Workbook

Sheet Validation (hidden)
A1: Cities | B1: Categories
A2: Abidjan | B2: Air Quality
A3: Accra | B3: Demand
A4: Addis Ababa | B4: Demographic
A5: Agadir | B5: Energy
A6: Agra | B6: Geographic
A7: Ahmedabad | B7: Safety
A8: Algiers | B8: Supply
A9: Almaty
A10: Amritsar
A11: Amsterdam
A12: Athens
A13: Bangalore
A14: Bangkok
A15: Barcelona
A16: Beijing
A17: Belo Horizonte
A18: Berlin
A19: Bhopal
A20: Bhuvaneshwar
A21: Bogota
A22: Bologna
A23: Budapest
A24: Buenos Aires
A25: Busan
A26: Cairo
A27: Casablanca
A28: Cebu
A29: Chandigarh
A30: Chennai
A31: Chicago
A32: Cochin
A33: Copenhagen
A34: Curitiba
A35: Dakar
A36: Danang
A37: Delhi
A38: Dubai
A39: Dublin
A40: Geneva
A41: Glasgow
A42: Guangzhou
A43: Guwahati
A44: Hamburg
A45: Hanoi
A46: Helsinki
A47: Ho Chi Minh City
A48: Hong Kong
A49: Hubli-Dharwad
A50: Hyderabad
A51: Istanbul
A52: Jaipur
A53: Jakarta
A54: Johannesburg
A55: Kanpur
A56: Kolkata
A57: Krakow
A58: Kuala Lumpur
A59: Kunming
A60: Leon
A61: Lisbon
A62: London
A63: Lyon
A64: Madrid
A65: Madurai
A66: Manchester
A67: Manila
A68: Marseille
A69: Medellin
A70: Melbourne
A71: Mexico city
A72: Milan
A73: Moscow
A74: Mumbai
A75: Munich
A76: Nagpur
A77: Nairobi
A78: Nantes
A79: New York
A80: Newcastle upon Tyne
A81: Oran
A82: Paris
A83: Patna
A84: Pune
A85: Rabat
A86: Rome
A87: Rotterdam
A88: Saint Petersburg
A89: Santiago
A90: Sao Paulo
A91: Seoul
A92: Seville
A93: Shanghai
A94: Singapore
A95: Stockholm
A96: Stuttgart
A97: Surabaya
A98: Surat
A99: Tallinn
A100: Tokyo
A101: Toronto
A102: Tunis
A103: Turin
A104: Valencia
A105: Valparaiso
A106: Vancouver
A107: Varanasi
A108: Vienna
A109: Warsaw
A110: Washington DC
A111: Wuhan
A112: Zurich

Sheet Matrix
EM1: Macroeconomic Indicators
B2: Geographic | E2: Demographic | N2: Demand | AM2: Supply | DU2: Energy | EC2: Safety | EG2: Air Quality | EX2: Supply of Vehicles and Road | FG2: Affordability | FP2: Travel Distance and Time | FR2: Mass Transit Supply and Use | FX2: Safety | GB2: Air Quality and Energy Use | GH2: Fares
B3: CITY | C3: Country | D3: Region | E3: Population (City) | G3: Population (Metropolitan Area) | I3: Municipal area (City) Km2 | K3: Urbanized Area (Metropolitan Area) | M3: Population Density | N3: Number of people employed | O3: Total number of registered private vehicles | Q3: Total number of registered motor vehicles (Private) | R3: Total number of registered motor vehicles (Private + Public) | S3: Share of trips to work by mode of transport (%) | AA3: Average trip length by car (km) | AB3: Average time of journey to work (minutes) | AC3: Daily public transport boardings on different public transport systems in the city (million) | AM3: Length of paved roads (km) | AN3: Length of mass transit (km) | AU3: Stations for Mass transit | BA3: Public transport vehicles available (Fleet or Number in use in peak service where available) | BM3: Peak Time fares for 10 km of journey for each mode of public transport (Local currency) | BT3: Fares for 10 km of journey for each mode of public transport (2007 US$ PPP) | CA3: Operating Costs/Revenue/Subsidies (LC million) | CU3: Operating Costs/Revenue/Subsidies ($ million in 2007 PPP) | DM3: Manpower strength for each mode | DT3: Age profile of bus fleet (years) | DU3: Energy Usage | DW3: Fuel prices by type of fuel (Local Currency) | DZ3: Fuel prices by type of fuel (PPP $ in 2007) | EC3: Number of road accidents injuries (per 100,000 population) | ED3: Number of road accident deaths (per 100,000 population) | EG3: Emission levels | EL3: Vehicle emission standards in force | EM3: Disposable Income (LC) | EN3: City Per Capita GDP (LC) | EO3: City Per Capita GDP (PPP US$ in 2015) | EP3: City GDP (LC Billion) | EQ3: City GDP (PPP$ billion 2015) | ER3: Median Annual household income (LC) | ES3: Median Annual household income ($ PPP in 2015) | ET3: Minimum Hourly* wage rate (LC) | EU3: Minimum Hourly* wage rate (PPP$ in 2014) | EV3: PPP exchange rate with the US$ (2016) | EX3: 2-wheelers/1000 population | EY3: 4-wheelers/1000 population | EZ3: Bus/1000 population | FA3: 2-wheelers/total motor vehicles | FB3: Passenger Car Unit (PCU) per Length of road | FC3: =AM3 -> Length of paved roads (km) | FD3: Length of road/1M population | FE3: Length of road/City area (Sq. Km.) | FF3: Manpower / Bus Fleet | FG3: Cost-Coverage - Bus | FH3: Cost-coverage -metro | FI3: Cost-coverage - LRT | FJ3: Cost-coverage - tram | FK3: Cost-coverage - Trolley bus | FL3: PT Fare as share of Income = Avg fare for 10km*40*12/per capita GDP | FM3: MT Fare as share of Income = Avg fare for 10km*40*12/per capita GDP | FN3: MT Fare for avg. trip length as share of minimum daily wage | FO3: Fuel Price Index = Cost of 100L of fuel*12/per capita GDP | FP3: Average Trip Length | FQ3: Average Journey Time | FR3: Length of mass transit | FS3: Daily Ridership on Mass Transit | FT3: Daily Ridership/Length | FU3: Mass Transit Ridership to Population Ratio | FV3: Mass Transit Coverage = Length of MT / City area | FW3: Mass Transit Unit Coverage = mass transit length / City area | FX3: No. of Road Accident Deaths | FY3: No. of Road Accident Deaths / Mill. Population | FZ3: No. of Road Accident Deaths / Km of Road | GA3: No. of Road Accident Deaths / 10K Motor Vehicles | GB3: C02 emissions/Mill population | GC3: Sulphur dioxide emissions/Mill population | GD3: Nitrogen dioxide emissions/Mill population | GE3: Particulate matter emissions/Mill population | GF3: Public Transport Energy Use | GG3: Private Transport Energy Use | GH3: Fares for Average Length of journey for each mode of public transport (2007 US$ PPP) | GO3: Notes
O4: Two- wheelers | P4: Four wheelers | S4: Car | T4: Motorcycle | U4: Bicycle | V4: Foot | W4: Three-Wheeler (India) / Taxi | X4: Public Transport | Z4: Others | AC4: Bus | AE4: Regional Rail | AF4: Metro | AG4: LRT | AH4: Tram | AI4: BRT | AJ4: Trolley Buses | AK4: Public Transport Ridership | AL4: Mass Transit Ridership | AN4: Bus | AO4: Regional Rail/Commuter Rail | AP4: Metro Rail | AQ4: Light Rail | AR4: Tram | AS4: BRT | AT4: Trolley Bus | AU4: Regional Rail/Commuter Rail | AV4: Metro Rail | AW4: Light Rail | AX4: Tram | AY4: Trolley Bus | AZ4: BRT | BA4: Bus | BF4: Metro Coaches | BG4: Suburban/Regional Rail Coaches | BH4: LRT Coaches | BI4: Tram cars | BJ4: BRT Buses | BK4: Trolley Buses | BL4: Paratransit | BM4: Bus | BN4: Regional Rail/Commuter trains | BO4: Metro | BP4: LRT | BQ4: Tram | BR4: BRT | BS4: Trolley Buses | BT4: Bus | BU4: Regional Rail/Commuter trains | BV4: Metro | BW4: LRT | BX4: Tram | BY4: BRT | BZ4: Trolley Buses | CA4: Operating costs | CH4: Fare revenue | CO4: Non fare earnings | CU4: Operating costs | CZ4: Fare revenue | DG4: Non fare earnings | DM4: Bus | DN4: Regional Rail | DO4: Metro | DP4: LRT | DQ4: Tram | DR4: BRT | DS4: Trolley Buses | DU4: Public Transport | DV4: Private Transport | DW4: Petrol (95 unleaded) | DY4: Diesel | DZ4: Petrol (95 unleaded) | EB4: Diesel | EG4: Sulphur dioxide (Mg/m3) | EH4: Nitrogen dioxide (Mg/m3) | EI4: Particulate matter (Weighted PM10) | EJ4: Carbon dioxide (Tonnes per year) | EK4: GHG (Mega tonne CO2-equivalent) | GH4: Bus | GI4: Regional Rail/Commuter trains | GJ4: Metro | GK4: LRT | GL4: Tram | GM4: BRT | GN4: Trolley Buses
E5: Current (2016) | F5: Year (-10) | G5: Current (2016) | H5: Year (-10) | I5: Current | J5: Year (-10) | K5: Current | L5: Year (-10) | M5: Municipal - Current | X5: Bus/BRT | Y5: Rail | AC5: Standard | AD5: Mini | BA5: Articulated | BB5: Double-deck | BC5: Standard | BD5: Mini | BE5: Midi | CA5: Bus | CB5: Regional Rail | CC5: Metro | CD5: LRT | CE5: Tram | CF5: BRT | CG5: Trolley Buses | CH5: Bus | CI5: Regional Rail | CJ5: Metro | CK5: LRT | CL5: Tram | CM5: BRT | CN5: Trolley Buses | CO5: Bus | CP5: Regional Rail | CQ5: Metro | CR5: LRT | CS5: Metro | CT5: LRT | CU5: Bus | CV5: Metro | CW5: LRT | CX5: Tram | CY5: Trolley Buses | CZ5: Bus | DA5: Regional Rail | DB5: Metro | DC5: LRT | DD5: Tram | DE5: BRT | DF5: Trolley Buses | DG5: Bus | DH5: Regional Rail | DI5: Metro | DJ5: LRT | DK5: Metro | DL5: LRT | DU5: (MJ/Passenger Km) | DV5: (MJ/Passenger Km) | DW5: Current | DX5: Year (-5) | DY5: Current | DZ5: Current 2016 | EA5: Year (-5) | EB5: Current | EC5: Current | ED5: Current | EE5: Year (-5) | EF5: Year (-10)
DW6: 2016 | DX6: 2012 | DY6: 2016 | DZ6: 2016 | EB6: 2016 | EX6: M2W / 1K pop | EY6: M4W / 1K pop | EZ6: Bus / 1K pop | FA6: M2W / Ttl Vehs | FB6: PCU per KM of road | FC6: LOR | FD6: LOR / 1M pop | FE6: LOR / Sq. KM. | FO6: FPI | FP6: Avg. Trip Length | FQ6: Avg. Journey Time | FR6: LOMT | FS6: Ridership MT | FU6: MTRP | FV6: MTC | FX6: RAD | FY6: RAD / Pop (Mill) | FZ6: RAD / Km | GA6: RAD / 10K MV | GF6: Pub Tr Energy Use | GG6: Priv Tr Energy Use
B7: CITY | C7: Country | D7: Region | E7: City Population - Current (2016) | F7: City Population - Yr (-10) | G7: Metro Population - Current (2016) | H7: Metro Population - Yr (-10) | I7: (City) Municipal area (Km2) - Current | J7: (City) Municipal area (Km2) - Yr (-10) | K7: Metro Urban Area (Km2) - Current | L7: Metro Urban Area (Km2) - Yr (-10) | M7: Population Density | N7: Number of people employed | O7: Registered Private Vehicles - 2Wheelers | P7: Registered Private Vehicles - 4Wheelers | Q7: Registered Private Vehicles - Total | R7: Total Registered Motor Vehicles | S7: Share of trips to work by car (%) | T7: Share of trips to work by motorcycle (%) | U7: Share of trips to work by bycicle (%) | V7: Share of trips to work by foot (%) | W7: Share of trips to work by 3wheeler (India) / Taxi (%) | X7: Share of trips to work by public Bus/BRT (%) | Y7: Share of trips to work by public rail (%) | Z7: Share of trips to work by Others (%) | AA7: Average trip length by car (km) | AB7: Average time of journey to work by car (minutes) | AC7: Daily public transport boardings (million) - Standard Bus | AD7: Daily public transport boardings (million) - Mini Bus | AE7: Daily public transport boardings (million) - Regional Rail | AF7: Daily public transport boardings (million) - Metro | AG7: Daily public transport boardings (million) - LRT | AH7: Daily public transport boardings (million) - Tram | AI7: Daily public transport boardings (million) - BRT | AJ7: Daily public transport boardings (million) - Trolley Bus | AK7: Daily public transport boardings (million) - Total | AL7: Daily mass transit boardings (mill) - Total | AM7: Length of roads in km | AN7: Length of mass transit (km) - Bus | AO7: Length of mass transit (km) - Regional/Commuter rail | AP7: Length of mass transit (km) - Metro rail | AQ7: Length of mass transit (km) - Light rail | AR7: Length of mass transit (km) - Tram | AS7: Length of mass transit (km) - BRT | AT7: Length of mass transit (km) - Trolley Bus2 | AU7: Stations - Regional/Commuter rail | AV7: Stations - Metro rail | AW7: Stations - Light rail | AX7: Stations - Tram | AY7: Stations - Trolley Bus | AZ7: Stations - BRT | BA7: Public vehicles available - Articulated bus | BB7: Public vehicles available - Double-decker bus | BC7: Public vehicles available - Standard bus | BD7: Public vehicles available - Mini bus | BE7: Public vehicles available - Midi bus | BF7: Public vehicles available - Metro coaches | BG7: Public vehicles available - Suburban/Regional rail coaches | BH7: Public vehicles available - LRT coaches | BI7: Public vehicles available -Tram | BJ7: Public vehicles available - BRT | BK7: Public vehicles available - Trolley | BL7: Public vehicles available - Taxi | BM7: Fares for 10 km of journey (Local currency) - Bus | BN7: Fares for 10 km of journey (Local currency) - Regional/Commuter rail | BO7: Fares for 10 km of journey (Local currency) - Metro | BP7: Fares for 10 km of journey (Local currency) - LRT | BQ7: Fares for 10 km of journey (Local currency) - Tram | BR7: Fares for 10 km of journey (Local currency) - BRT | BS7: Fares for 10 km of journey (Local currency) - Trolley Bus | BT7: Fares for 10 km of journey (2007 US$ PPP) - Bus | BU7: Fares for 10 km of journey (2007 US$ PPP) - Regional/Commuter Rail | BV7: Fares for 10 km of journey (2007 US$ PPP) - Metro | BW7: Fares for 10 km of journey (2007 US$ PPP) - LRT | BX7: Fares for 10 km of journey (2007 US$ PPP) - Tram | BY7: Fares for 10 km of journey (2007 US$ PPP) - BRT | BZ7: Fares for 10 km of journey (2007 US$ PPP) - Trolley Bus | CA7: Operating Costs (LC) - Bus | CB7: Operating Costs (LC) - Regional Rail | CC7: Operating Costs (LC) - Metro | CD7: Operating Costs (LC) - LRT | CE7: Operating Costs (LC) - Tram | CF7: Operating Costs (LC) - BRT | CG7: Operating Costs (LC) - Trolley Bus | CH7: Fare revenue (LC) - Bus | CI7: Fare revenue (LC) - Regional Rail | CJ7: Fare revenue (LC) - Metro | CK7: Fare revenue (LC) - LRT | CL7: Fare revenue (LC) - Tram | CM7: Fare revenue (LC) - BRT | CN7: Fare revenue (LC) - Trolley Buses | CO7: Non fare earnings (LC) - Bus | CP7: Non fare earnings (LC) - Regional Rail | CQ7: Non fare earnings (LC) - Metro | CR7: Non fare earnings (LC) - LRT | CS7: Public Subsidy (LC) - Metro | CT7: Public Subsidy (LC) - LRT | CU7: Operating Costs US$ - Bus | CV7: Operating Costs US$ - Metro | CW7: Operating Costs US$- LRT | CX7: Operating Costs US$- Tram | CY7: Operating Costs US$ - Trolley Bus | CZ7: Fare revenue US$- Bus | DA7: Fare revenue US$- Regional Rail | DB7: Fare revenue US$- Metro | DC7: Fare revenue US$- LRT | DD7: Fare revenue US$- Tram | DE7: Fare revenue US$- BRT | DF7: Fare revenue US$- Trolley Buses | DG7: Non fare earnings US$ - Bus | DH7: Non fare earnings US$- Regional Rail | DI7: Non fare earnings US$- Metro | DJ7: Non fare earnings US$ - LRT | DK7: Public Subsidy US$- Metro | DL7: Public Subsidy US$- LRT | DM7: Manpower strength - Bus | DN7: Manpower strength - Regional Rail | DO7: Manpower strength - Metro | DP7: Manpower strength - LRT | DQ7: Manpower strength - Tram | DR7: Manpower strength - BRT | DS7: Manpower strength - Trolley Bus | DT7: Age profile of bus fleet (Yrs) | DU7: Public Transport Energy Usage - (MJ/Passenger Km) | DV7: Private Transport Energy Usage - (MJ/Passenger Km) | DW7: Petrol price (LC) - Current | DX7: Petrol price (LC) - Year (-5) | DY7: Diesel price (LC) - Current | DZ7: Petrol price (US$)-current | EA7: Petrol price (US$) - Year (-5) | EB7: Diesel price (US$) - Current | EC7: Road accident injuries per 100k pop - Current | ED7: Road accident deaths per 100k pop - Current | EE7: Road accident deaths per 100k pop - Yr (-5) | EF7: Road accident deaths per 100k pop - Yr (-10) | EG7: Emission levels - Sulphur oxides (Mg/m3) | EH7: Emission levels - Nitrogen dioxide (Mg/m3) | EI7: Emission levels - Particulate matter (Weighted PM10) | EJ7: Emission levels - CO2 (Tonnes per year) | EK7: GHG (MtCO2e) | EL7: Vehicle emission standards in force | EM7: Disposable Income (LC) | EN7: City Per Capita GDP (LC) | EO7: City Per Capita GDP (PPP US$ in 2015) | EP7: City GDP (LC Billion) | EQ7: City GDP (PPP US$ billion 2015) | ER7: Median Annual household income (LC) | ES7: Median Annual household income ($ PPP 2015) | ET7: Minimum Hourly Wage Rate (LC) | EU7: Minimum Hourly Wage rate (PPP $ 2007) | EV7: PPP Exchange rate with the US$ (2016) | EW7: D | EX7: 2-whls per 1K pop. | EY7: 4-whls per 1k pop. | EZ7: Buses per 1k pop. | FA7: 2-whls per Ttl vehicles | FB7: PCU per Length of road | FC7: Length of roads (km) | FD7: Length of roads (km) per 1M pop. | FE7: Length of road (km) per city area (Km2) | FF7: Manpower per Bus | FG7: Cost-coverage -bus | FH7: Cost-coverage -metro | FI7: Cost-coverage - LRT | FJ7: Cost-coverage - tram | FK7: Cost-coverage - Trolley bus | FL7: PT Fare as share of Income | FM7: MT Fare as share of Income | FN7: MRT Fare for avg. trip length as share of minimum daily wage | FO7: Fuel Cost as share of Income | FP7: Avg. Trip Length (Km) | FQ7: Avg. Journey Time (Min) | FR7: Length of Mass Transit (Km) | FS7: Daily Ridership on Mass Transit (Mill) | FT7: Daily Ridership per MT Length | FU7: Daily MT Ridership per pop. | FV7: Mass Transit Coverage | FW7: Mass Transit Unit Coverage (km) | FX7: Road Accident Deaths | FY7: Road Accident Deaths per Mill. Pop. | FZ7: Road Accident Deaths per Km of Road | GA7: Road Accident Deaths per 10K Motor Vehicles | GB7: C02 emissions (Tonn per yr) per Mill pop. | GC7: SO2 emissions (Mg/ m3) per Mill pop. | GD7: NO2 emissions (Mg/m3) per Mill pop. | GE7: Particulate Matter emissions (PM10) per Mill pop. | GF7: Public Transport Energy Use (MJ/ Pax km) | GG7: Private Transport Energy (MJ/Pax km) | GH7: Fares for avg. length of journey (2007 US$ PPP) - Bus | GI7: Fares for avg. length of journey (2007 US$ PPP) - Regional/Commuter Rail | GJ7: Fares for avg. length of journey (2007 US$ PPP) - Metro | GK7: Fares for avg. length of journey (2007 US$ PPP) - LRT5 | GL7: Fares for avg. length of journey (2007 US$ PPP) - Tram | GM7: Fares for avg. length of journey (2007 US$ PPP) - BRT | GN7: Fares for avg. length of journey (2007 US$ PPP) - Trolley Bus | GO7: Notes
B8: Buenos Aires | C8: Argentina | D8: LAC | E8: 3059122 | F8: 2768772 | G8: 16841135 | H8: 12768000 | I8: 202 | J8: 200 | K8: 4758 | M8: =E8/I8 -> 15144.16832 | N8: 5485314 | O8: 470000 | P8: 4285311.55 | Q8: 4755311.55 | R8: 4811600.55 | S8: 32.14 | T8: 3.57 | U8: 7.14 | V8: 7.14 | W8: 0 | X8: 14.29 | Y8: 25 | Z8: 10.72 | AA8: 22.06 | AB8: 52.33 | AC8: 936261.5 | AE8: 33.42 | AF8: 0.94 | AG8: 0 | AI8: 0.989 | AJ8: 0 | AK8: 0.825686 | AL8: 0.825686 | AM8: 44994 | AO8: 892 | AP8: 51.5 | AQ8: 22.9 | AS8: 56.3 | AT8: 0 | AU8: 222 | AV8: 78 | AW8: 68 | AY8: 0 | AZ8: 97 | BA8: 0 | BC8: 9931 | BF8: 1095 | BG8: 40 | BI8: 12 | BJ8: 20 | BK8: 0 | BL8: 45500 | BM8: 2.05 | BO8: 2.5 | BP8: 0 | BQ8: 1 | BR8: 0.47 | BS8: 0 | BT8: 0.781536877 | BU8: 0 | BV8: 1.116481253 | BW8: 0 | BX8: 0.4465925011 | BY8: 0.781536877 | BZ8: 0 | CD8: 0 | CG8: 0 | CH8: 5577.28 | CJ8: 152 | CK8: 0 | CM8: 97.27 | CN8: 0 | CR8: 0 | CS8: 863 | CT8: 0 | CW8: 0 | CY8: 0 | DB8: 295.45 | DC8: 0 | DE8: 1354.79375 | DF8: 0 | DJ8: 0 | DK8: 1677.45625 | DL8: 0 | DM8: 54116 | DN8: 10182 | DO8: 4500 | DP8: 0 | DS8: 0 | DT8: 4 | DW8: 17 | DY8: 15.83 | DZ8: 1.21 | EA8: 0.946 | EB8: 1.08 | EI8: 26 | EJ8: 11.4 | EK8: 11.4 | EL8: Euro 5a | EN8: =25000*3.95 -> 98750 | EO8: 40850 | EP8: =192*3.95 -> 758.4 | EQ8: 313.73 | ER8: =13583*12 -> 162996 | ES8: =Table37[[#This Row],[Median Annual household income (LC)]]*'GDP Deflator 1960-2011'!AZ3/'GDP Deflator 1960-2011'!BA3*1/Table37[[#This Row],[PPP Exchange rate with the US$ (2016)]] -> 14879.6398 | ET8: 76 | EU8: =IF(ISERROR(Table37[[#This Row],[Minimum Hourly Wage Rate (LC)]]*'CPI 1960-2011'!AY3/'CPI 1960-2011'!BC3*1/Table37[[#This Row],[PPP Exchange rate with the US$ (2016)]]), "n/a", Table37[[#This Row],[Minimum Hourly Wage Rate (LC)]]*'GDP Deflator 1960-2011'!AZ3/'GDP Deflator 1960-2011'!BD3*1/Table37[[#This Row],[PPP Exchange rate with the US$ (2016)]]) -> 4.662119371 | EV8: 9.2 | EX8: =IFERROR(O8/G8*1000, O8/E8*1000) -> 27.90785775 | EY8: =IFERROR(P8/G8*1000,P8/E8*1000) -> 254.4550323 | EZ8: =IFERROR(SUM(BA8:BE8)/G8*1000, SUM(BA8:BE8)/E8*1000) -> 0.5896870965 | FA8: =IFERROR(O8/R8, "") -> 0.09768059404 | FB8: =IFERROR(((O8*0.5)+((P8+BL8)*1)+(SUM(BA8:BE8)*2.5))/AM8, "") -> 102.0278048 | FC8: =AM8 -> 44994 | FD8: =IFERROR(AM8/G8*10^6,AM8/E8*10^6) -> 2671.672663 | FE8: =IFERROR(AM8/K8, "") -> 9.456494325 | FF8: =IFERROR(DM8/SUM(BA8:BE8), "") -> 5.449199476 | FG8: =IFERROR(Table37[[#This Row],[Operating Costs US$ - Bus]]/Table37[[#This Row],[Fare revenue US$- Bus]], "") ->  | FH8: =IFERROR(Table37[[#This Row],[Operating Costs US$ - Metro]]/Table37[[#This Row],[Fare revenue US$- Metro]], "") -> 0 | FI8: =IFERROR(Table37[[#This Row],[Operating Costs US$- LRT]]/Table37[[#This Row],[Fare revenue US$- LRT]], "") ->  | FJ8: =IFERROR(Table37[[#This Row],[Operating Costs US$- Tram]]/Table37[[#This Row],[Fare revenue US$- Tram]], "") ->  | FK8: =IFERROR(Table37[[#This Row],[Operating Costs US$ - Trolley Bus]]/Table37[[#This Row],[Fare revenue US$- Trolley Buses]], "") ->  | FL8: =IFERROR((AVERAGEIF(Table37[[#This Row],[Fares for 10 km of journey (2007 US$ PPP) - Bus]:[Fares for 10 km of journey (2007 US$ PPP) - Trolley Bus]], "<>0")*40*12)/EO8, "") -> 0.009183297453 | FM8: =IFERROR((AVERAGEIF(Table37[[#This Row],[Fares for 10 km of journey (2007 US$ PPP) - Regional/Commuter Rail]:[Fares for 10 km of journey (2007 US$ PPP) - BRT]], "<>0")*40*12)/EO8, "") -> 0.009183297453 | FN8: =IFERROR(2*(AVERAGEIF(Table37[[#This Row],[Fares for avg. length of journey (2007 US$ PPP) - Metro]:[Fares for avg. length of journey (2007 US$ PPP) - BRT]], "<>0"))/(Table37[[#This Row],[Minimum Hourly Wage rate (PPP $ 2007)]]*8), "") -> 0.0924509978 | FO8: =IFERROR(DZ8*100*12/EO8, "") -> 0.03554467564 | FP8: =AA8 -> 22.06 | FQ8: =AB8 -> 52.33 | FR8: =SUM(AP8:AQ8)+Table37[[#This Row],[Length of mass transit (km) - BRT]] -> 130.7 | FS8: =SUM(AF8:AI8) -> 1.929 | FT8: =IFERROR(FS8*10^6/(AP8+AR8+AQ8+AS8), "") -> 14758.99005 | FU8: =IFERROR(FS8*10^6/G8, FS8*10^6/E8) -> 0.1145409736 | FV8: =IFERROR(FR8/I8, "") -> 0.647029703 | FW8: =IFERROR(((AP20*4)+((AR20+AS20)*0.5)+((AQ20+AS20)*1))/I8, "") -> 8.995049505 | FX8: =IFERROR(ED8*E8/10^5, "") -> 0 | FY8: =ED8*10 -> 0 | FZ8: =IFERROR(FX8/AM8, "") -> 0 | GA8: =IFERROR(FX8/(R8/10^4), "") -> 0 | GB8: =IFERROR(EJ8/G8*10^6, EJ8/E8*10^6) -> 0.6769139966 | GC8: =IFERROR(EG8/G8*10^6, EG8/E8*10^6) -> 0 | GD8: =IFERROR(EH8/G8*10^6, EH8/E8*10^6) -> 0 | GE8: =IFERROR(EI8/G8*10^6, EI8/E8*10^6) -> 1.54383894 | GF8: =DU8 -> 0 | GG8: =DV8 -> 0 | GH8: =Table37[[#This Row],[Fares for 10 km of journey (2007 US$ PPP) - Bus]]/10*Table37[[#This Row],[Average trip length by car (km)]] -> 1.724070351 | GI8: =Table37[[#This Row],[Fares for 10 km of journey (2007 US$ PPP) - Regional/Commuter Rail]]/10*Table37[[#This Row],[Average trip length by car (km)]] -> 0 | GJ8: =Table37[[#This Row],[Fares for 10 km of journey (2007 US$ PPP) - Metro]]/10*Table37[[#This Row],[Average trip length by car (km)]] -> 2.462957644 | GK8: =Table37[[#This Row],[Fares for 10 km of journey (2007 US$ PPP) - LRT]]/10*Table37[[#This Row],[Average trip length by car (km)]] -> 0 | GL8: =Table37[[#This Row],[Fares for 10 km of journey (2007 US$ PPP) - Tram]]/10*Table37[[#This Row],[Average trip length by car (km)]] -> 0.9851830575 | GM8: =Table37[[#This Row],[Fares for 10 km of journey (2007 US$ PPP) - BRT]]/10*Table37[[#This Row],[Average trip length by car (km)]] -> 1.724070351 | GN8: =Table37[[#This Row],[Fares for 10 km of journey (2007 US$ PPP) - Trolley Bus]]/10*Table37[[#This Row],[Average trip length by car (km)]] -> 0
B9: Melbourne | C9: Australia | D9: OECD | E9: 132271 | F9: 98859 | G9: 4628199 | H9: 3472207 | I9: 37.6 | K9: 7693.7 | M9: =E9/I9 -> 3517.845745 | N9: 1927952 | O9: 2630 | P9: 76877 | Q9: 79507 | R9: 95350 | S9: 49.5 | T9: 3.39 | U9: 10.17 | V9: 15.25 | W9: 0 | X9: 0 | Y9: 16.95 | Z9: 4.74 | AA9: 19.66 | AB9: 35.66 | AC9: 0.2163761644 | AE9: 0.49138889 | AF9: 0.64 | AG9: 0 | AH9: 0.49 | AI9: 0.0362 | AJ9: 0 | AK9: 1.292904932 | AL9: 1.076528767 | AM9: 342 | AO9: 830 | AP9: 0 | AR9: 250 | AS9: 233 | AT9: 0 | AU9: 218 | AV9: 0 | AW9: 0 | AX9: 1763 | AY9: 950 | AZ9: 56 | BC9: 950 | BG9: 1218 | BH9: 0 | BI9: 495 | BJ9: 122 | BK9: 0 | BM9: 0 | BN9: 0 | BO9: 0 | BP9: 0 | BQ9: 0 | BS9: 0 | BT9: 0 | BU9: 0 | BV9: 0 | BW9: 0 | BX9: 0 | BY9: 0 | BZ9: 0 | CB9: not available | CC9: 0 | CD9: 0 | CG9: 0 | CI9: not available | CJ9: 0 | CK9: 0 | CN9: 0 | CP9: not available | CR9: 0 | CS9: not available | CT9: 0 | CW9: 0 | CY9: 0 | DC9: 0 | DF9: 0 | DJ9: 0 | DL9: 0 | DM9: 1600 | DN9: 3700 | DO9: 0 | DP9: 0 | DQ9: 1800 | DS9: 0 | DU9: 0.72 | DV9: 2.62 | DW9: 1.19 | DX9: 1.42 | DY9: 1.2 | DZ9: 0.9 | EA9: 0.8771345273 | EB9: 0.9 | EC9: =5193/G9*10000 -> 11.22034727 | ED9: =167/G9*100000 -> 3.608315027 | EE9: =146/3592590 *100000 -> 4.063920458 | EF9: 7.68 | EG9: 7 | EH9: 14 | EI9: 25 | EJ9: 5.8 | EK9: 5.8 | EL9: Euro 6b | EM9: =481*52 -> 25012 | EN9: 58375 | EO9: =Table37[[#This Row],[City Per Capita GDP (LC)]]*('GDP Deflator 1960-2011'!AZ4/'GDP Deflator 1960-2011'!BC4)*1/Table37[[#This Row],[PPP Exchange rate with the US$ (2016)]] -> 38160.76896 | EP9: =0.205*1317.9 -> 270.1695 | EQ9: =Table37[[#This Row],[City GDP (LC Billion)]]*'GDP Deflator 1960-2011'!AZ4/'GDP Deflator 1960-2011'!BC4*1/Table37[[#This Row],[PPP Exchange rate with the US$ (2016)]] -> 176.6145759 | ER9: 85720 | ES9: =Table37[[#This Row],[Median Annual household income (LC)]]*'GDP Deflator 1960-2011'!AZ4/'GDP Deflator 1960-2011'!AY4*1/Table37[[#This Row],[PPP Exchange rate with the US$ (2016)]] -> 64446.04734 | ET9: 15.51 | EU9: =IF(ISERROR(Table37[[#This Row],[Minimum Hourly Wage Rate (LC)]]*'CPI 1960-2011'!AY4/'CPI 1960-2011'!BC4*1/Table37[[#This Row],[PPP Exchange rate with the US$ (2016)]]), "n/a", Table37[[#This Row],[Minimum Hourly Wage Rate (LC)]]*'GDP Deflator 1960-2011'!AZ4/'GDP Deflator 1960-2011'!BD4*1/Table37[[#This Row],[PPP Exchange rate with the US$ (2016)]]) -> 9.535679989 | EV9: 1.4 | EX9: 0.5682556001 | EY9: 16.61056493 | EZ9: 0.2052634297 | FA9: 0.02758259046 | FB9: 235.5760234 | FC9: 342 | FD9: 73.89483469 | FE9: =IFERROR(AM9/I9, "") -> 9.095744681 | FF9: 1.684210526 | FG9: =IFERROR(Table37[[#This Row],[Operating Costs US$ - Bus]]/Table37[[#This Row],[Fare revenue US$- Bus]], "") ->  | FH9: =IFERROR(Table37[[#This Row],[Operating Costs US$ - Metro]]/Table37[[#This Row],[Fare revenue US$- Metro]], "") ->  | FI9: =IFERROR(Table37[[#This Row],[Operating Costs US$- LRT]]/Table37[[#This Row],[Fare revenue US$- LRT]], "") ->  | FJ9: =IFERROR(Table37[[#This Row],[Operating Costs US$- Tram]]/Table37[[#This Row],[Fare revenue US$- Tram]], "") ->  | FK9: =IFERROR(Table37[[#This Row],[Operating Costs US$ - Trolley Bus]]/Table37[[#This Row],[Fare revenue US$- Trolley Buses]], "") ->  | FL9: =IFERROR((AVERAGEIF(Table37[[#This Row],[Fares for 10 km of journey (2007 US$ PPP) - Bus]:[Fares for 10 km of journey (2007 US$ PPP) - Trolley Bus]], "<>0")*40*12)/EO9, "") ->  | FM9: =IFERROR((AVERAGEIF(Table37[[#This Row],[Fares for 10 km of journey (2007 US$ PPP) - Regional/Commuter Rail]:[Fares for 10 km of journey (2007 US$ PPP) - BRT]], "<>0")*40*12)/EO9, "") ->  | FN9: =IFERROR(2*(AVERAGEIF(Table37[[#This Row],[Fares for avg. length of journey (2007 US$ PPP) - Metro]:[Fares for avg. length of journey (2007 US$ PPP) - BRT]], "<>0"))/(Table37[[#This Row],[Minimum Hourly Wage rate (PPP $ 2007)]]*8), "") ->  | FO9: =IFERROR(DZ9*100*12/EO9, "") -> 0.0283013165 | FP9: 19.66 | FQ9: 35.66 | FR9: =SUM(AP9:AQ9)+Table37[[#This Row],[Length of mass transit (km) - BRT]] -> 233 | FS9: =SUM(AE9:AI9) -> 1.65758889 | FT9: =IFERROR(FS9*10^6/(AO9+AR9+AQ9+AS9), "") -> 1262.443938 | FU9: 0.3581498743 | FV9: 6.196808511 | FW9: 22.1462766 | FX9: 4.772754369 | FY9: 36.08315027 | FZ9: 0.01395542213 | GA9: 0.5005510613 | GB9: 1.253187255 | GC9: 1.512467377 | GD9: 3.024934753 | GE9: 5.401669202 | GF9: 0.72 | GG9: 2.62 | GH9: =Table37[[#This Row],[Fares for 10 km of journey (2007 US$ PPP) - Bus]]/10*Table37[[#This Row],[Average trip length by car (km)]] -> 0 | GI9: =Table37[[#This Row],[Fares for 10 km of journey (2007 US$ PPP) - Regional/Commuter Rail]]/10*Table37[[#This Row],[Average trip length by car (km)]] -> 0 | GJ9: =Table37[[#This Row],[Fares for 10 km of journey (2007 US$ PPP) - Metro]]/10*Table37[[#This Row],[Average trip length by car (km)]] -> 0 | GK9: =Table37[[#This Row],[Fares for 10 km of journey (2007 US$ PPP) - LRT]]/10*Table37[[#This Row],[Average trip length by car (km)]] -> 0 | GL9: =Table37[[#This Row],[Fares for 10 km of journey (2007 US$ PPP) - Tram]]/10*Table37[[#This Row],[Average trip length by car (km)]] -> 0 | GM9: =Table37[[#This Row],[Fares for 10 km of journey (2007 US$ PPP) - BRT]]/10*Table37[[#This Row],[Average trip length by car (km)]] -> 0 | GN9: =Table37[[#This Row],[Fares for 10 km of journey (2007 US$ PPP) - Trolley Bus]]/10*Table37[[#This Row],[Average trip length by car (km)]] -> 0
B10: Vienna | C10: Austria | D10: OECD | E10: 1797337 | F10: 1660534 | G10: 2600000 | H10: 2165357 | I10: 414.65 | J10: 415 | K10: 553.44 | L10: 395.26 | M10: 4334.588207 | N10: 913944 | O10: 81076 | P10: 674526 | Q10: 755602 | R10: 829790 | S10: 8.33 | T10: 0 | U10: 8.33 | V10: 28 | W10: 0 | X10: 4.17 | Y10: 41.67 | Z10: 9.5 | AA10: 26.5 | AB10: 22 | AC10: 0.3134246575 | AE10: 2.72 | AF10: 1.22 | AG10: 0.35 | AH10: 0.084 | AI10: 0 | AJ10: 0 | AK10: 2.603169711 | AL10: 2.289745053 | AM10: 2823 | AN10: 826.5 | AP10: 79.1 | AQ10: 17.4 | AR10: 174.6 | AS10: 0 | AT10: 0 | AV10: 104 | AW10: 24 | AX10: 1065 | AY10: 4132 | AZ10: 0 | BC10: 456 | BF10: 738 | BH10: 172 | BI10: 853 | BJ10: 0 | BK10: 0 | BM10: 1.7 | BN10: 1.7 | BO10: 1.7 | BP10: 1.7 | BQ10: 1.7 | BR10: 0 | BS10: 0 | BT10: 1.731806881 | BU10: 1.731806881 | BV10: 1.731806881 | BW10: 1.731806881 | BX10: 1.731806881 | BY10: 0 | BZ10: 0 | CF10: 0 | CG10: 0 | CN10: 0 | CS10: 0 | CY10: 0 | DF10: 0 | DN10: 75 | DR10: 0 | DS10: 0 | DT10: 6.5 | DU10: 0.87 | DV10: 3.13 | DW10: 1.11 | DY10: 1.07 | DZ10: 1.21 | EB10: 1.17 | EC10: 0.98 | ED10: =22/E10*100000 -> 1.224033111 | EE10: 3 | EF10: 7.409 | EG10: 14 | EH10: 21.7 | EI10: 25 | EL10: Euro 6b | EM10: 26307 | EN10: 47300 | EO10: =Table37[[#This Row],[City Per Capita GDP (LC)]]*('GDP Deflator 1960-2011'!AZ5/'GDP Deflator 1960-2011'!BB5)*1/Table37[[#This Row],[PPP Exchange rate with the US$ (2016)]] -> 57498.85387 | EP10: 72.063 | EQ10: =Table37[[#This Row],[City GDP (LC Billion)]]*'GDP Deflator 1960-2011'!AZ5/'GDP Deflator 1960-2011'!BB5*1/Table37[[#This Row],[PPP Exchange rate with the US$ (2016)]] -> 87.60126651 | ER10: 43938 | ES10: =Table37[[#This Row],[Median Annual household income (LC)]]*'GDP Deflator 1960-2011'!AZ5/'GDP Deflator 1960-2011'!BB5*1/Table37[[#This Row],[PPP Exchange rate with the US$ (2016)]] -> 53411.93744 | ET10: 7.06 | EU10: =IF(ISERROR(Table37[[#This Row],[Minimum Hourly Wage Rate (LC)]]*'CPI 1960-2011'!AY5/'CPI 1960-2011'!BC5*1/Table37[[#This Row],[PPP Exchange rate with the US$ (2016)]]), "n/a", Table37[[#This Row],[Minimum Hourly Wage Rate (LC)]]*'GDP Deflator 1960-2011'!AZ5/'GDP Deflator 1960-2011'!BD5*1/Table37[[#This Row],[PPP Exchange rate with the US$ (2016)]]) -> 8.257806113 | EV10: 0.8 | EX10: 31.18307692 | EY10: 259.4330769 | EZ10: 0.1753846154 | FA10: 0.09770664867 | FB10: 253.7031527 | FC10: 2823 | FD10: 1085.769231 | FE10: =IFERROR(AM10/I10, "") -> 6.808151453 | FF10: 0 | FG10: =IFERROR(Table37[[#This Row],[Operating Costs US$ - Bus]]/Table37[[#This Row],[Fare revenue US$- Bus]], "") ->  | FH10: =IFERROR(Table37[[#This Row],[Operating Costs US$ - Metro]]/Table37[[#This Row],[Fare revenue US$- Metro]], "") ->  | FI10: =IFERROR(Table37[[#This Row],[Operating Costs US$- LRT]]/Table37[[#This Row],[Fare revenue US$- LRT]], "") ->  | FJ10: =IFERROR(Table37[[#This Row],[Operating Costs US$- Tram]]/Table37[[#This Row],[Fare revenue US$- Tram]], "") ->  | FK10: =IFERROR(Table37[[#This Row],[Operating Costs US$ - Trolley Bus]]/Table37[[#This Row],[Fare revenue US$- Trolley Buses]], "") ->  | FL10: =IFERROR((AVERAGEIF(Table37[[#This Row],[Fares for 10 km of journey (2007 US$ PPP) - Bus]:[Fares for 10 km of journey (2007 US$ PPP) - Trolley Bus]], "<>0")*40*12)/EO10, "") -> 0.01445711083 | FM10: =IFERROR((AVERAGEIF(Table37[[#This Row],[Fares for 10 km of journey (2007 US$ PPP) - Regional/Commuter Rail]:[Fares for 10 km of journey (2007 US$ PPP) - BRT]], "<>0")*40*12)/EO10, "") -> 0.01445711083 | FN10: =IFERROR(2*(AVERAGEIF(Table37[[#This Row],[Fares for avg. length of journey (2007 US$ PPP) - Metro]:[Fares for avg. length of journey (2007 US$ PPP) - BRT]], "<>0"))/(Table37[[#This Row],[Minimum Hourly Wage rate (PPP $ 2007)]]*8), "") -> 0.138937878 | FO10: 0.02525267727 | FP10: 26.5 | FQ10: 22 | FR10: =SUM(AP10:AQ10)+Table37[[#This Row],[Length of mass transit (km) - BRT]] -> 96.5 | FS10: =SUM(AF10:AI10) -> 1.654 | FT10: =IFERROR(FS10*10^6/(AP10+AR10+AQ10+AS10), "") -> 6101.069716 | FU10: 0.6361538462 | FV10: 0.2327263958 | FW10: 0.4087784879 | FX10: 22 | FY10: 12.24033111 | FZ10: 0.007793127878 | GA10: 0.2651273214 | GB10: 0 | GC10: 5.384615385 | GD10: 8.346153846 | GE10: 9.615384615 | GF10: 0.87 | GG10: 3.13 | GH10: =Table37[[#This Row],[Fares for 10 km of journey (2007 US$ PPP) - Bus]]/10*Table37[[#This Row],[Average trip length by car (km)]] -> 4.589288234 | GI10: =Table37[[#This Row],[Fares for 10 km of journey (2007 US$ PPP) - Regional/Commuter Rail]]/10*Table37[[#This Row],[Average trip length by car (km)]] -> 4.589288234 | GJ10: =Table37[[#This Row],[Fares for 10 km of journey (2007 US$ PPP) - Metro]]/10*Table37[[#This Row],[Average trip length by car (km)]] -> 4.589288234 | GK10: =Table37[[#This Row],[Fares for 10 km of journey (2007 US$ PPP) - LRT]]/10*Table37[[#This Row],[Average trip length by car (km)]] -> 4.589288234 | GL10: =Table37[[#This Row],[Fares for 10 km of journey (2007 US$ PPP) - Tram]]/10*Table37[[#This Row],[Average trip length by car (km)]] -> 4.589288234 | GM10: =Table37[[#This Row],[Fares for 10 km of journey (2007 US$ PPP) - BRT]]/10*Table37[[#This Row],[Average trip length by car (km)]] -> 0 | GN10: =Table37[[#This Row],[Fares for 10 km of journey (2007 US$ PPP) - Trolley Bus]]/10*Table37[[#This Row],[Average trip length by car (km)]] -> 0
B11: Curitiba | C11: Brazil | D11: LAC | E11: 1879355 | F11: 1879355 | G11: 3400000 | H11: 2872486 | I11: 430.9 | J11: 430.9 | K11: 15416.9 | L11: 15416.9 | M11: 4361.464377 | N11: 1548269.954 | O11: 124522 | P11: 774738 | Q11: =O11+P11 -> 899260 | R11: =Q11+SUM(BA11:BE11)+BL11 -> 906771 | S11: 59 | T11: 0 | U11: 9.09 | V11: 4.55 | W11: 0 | X11: 13.64 | Y11: 0 | Z11: =100-SUM(S11:Y11) -> 13.72 | AA11: 15.38 | AB11: 32.38 | AC11: 2.04 | AF11: 0 | AG11: 0 | AH11: 0 | AI11: 0.6195 | AJ11: 0 | AK11: 2.545 | AL11: 0.505 | AM11: 6677 | AN11: 455 | AP11: 0 | AQ11: 0 | AR11: 0 | AS11: 77 | AT11: 0 | AV11: 0 | AW11: 0 | AX11: 0 | AY11: 0 | AZ11: 380 | BA11: 565 | BC11: 2144 | BD11: 91 | BF11: 0 | BH11: 0 | BI11: 0 | BJ11: 179 | BK11: 0 | BL11: 4711 | BN11: 0 | BO11: 0 | BP11: 0 | BQ11: 0 | BS11: 0 | BT11: 0 | BU11: 0 | BV11: 0 | BW11: 0 | BX11: 0 | BY11: 0 | BZ11: 0 | CC11: 0 | CD11: 0 | CE11: 0 | CG11: 0 | CH11: 351 | CJ11: 0 | CK11: 0 | CL11: 0 | CM11: 168.52 | CN11: 0 | CQ11: 0 | CR11: 0 | CS11: 0 | CT11: 0 | CV11: 0 | CW11: 0 | CX11: 0 | CY11: 0 | CZ11: 389.8730283 | DB11: 0 | DC11: 0 | DD11: 0 | DE11: 96.51268594 | DF11: 0 | DI11: 0 | DJ11: 0 | DK11: 0 | DL11: 0 | DM11: 13787 | DO11: 0 | DP11: 0 | DQ11: 0 | DS11: 0 | DT11: 4.7 | DU11: 0.59 | DV11: 2.15 | DW11: 3.49 | DY11: 3.01 | DZ11: 1.11 | EA11: 1.898428571 | EB11: 0.93 | ED11: =320/E11*100000 -> 17.02711835 | EE11: 4.2 | EF11: 38.12 | EI11: 24 | EJ11: 3.036 | EL11: PROCONVE P7/PROCONVE L6 | EN11: 23696.43 | EO11: =Table37[[#This Row],[City Per Capita GDP (LC)]]*('GDP Deflator 1960-2011'!AZ6/'GDP Deflator 1960-2011'!BA6)*1/Table37[[#This Row],[PPP Exchange rate with the US$ (2016)]] -> 10936.85967 | EP11: 58 | EQ11: 36.5 | ER11: 98300 | ES11: =Table37[[#This Row],[Median Annual household income (LC)]]*'GDP Deflator 1960-2011'!AZ6/'GDP Deflator 1960-2011'!AY6*1/Table37[[#This Row],[PPP Exchange rate with the US$ (2016)]] -> 52034.33231 | ET11: 2.83 | EU11: =IF(ISERROR(Table37[[#This Row],[Minimum Hourly Wage Rate (LC)]]*'CPI 1960-2011'!AY6/'CPI 1960-2011'!BC6*1/Table37[[#This Row],[PPP Exchange rate with the US$ (2016)]]), "n/a", Table37[[#This Row],[Minimum Hourly Wage Rate (LC)]]*'GDP Deflator 1960-2011'!AZ6/'GDP Deflator 1960-2011'!BD6*1/Table37[[#This Row],[PPP Exchange rate with the US$ (2016)]]) -> 1.052597416 | EV11: 2 | EX11: 36.62411765 | EY11: 227.8641176 | EZ11: 0.8235294118 | FA11: 0.1373246387 | FB11: 127.1094803 | FC11: 6677 | FD11: 1963.823529 | FE11: =IFERROR(AM11/K11, "") -> 0.4330961477 | FF11: 4.923928571 | FG11: =IFERROR(Table37[[#This Row],[Operating Costs US$ - Bus]]/Table37[[#This Row],[Fare revenue US$- Bus]], "") -> 0 | FH11: =IFERROR(Table37[[#This Row],[Operating Costs US$ - Metro]]/Table37[[#This Row],[Fare revenue US$- Metro]], "") ->  | FI11: =IFERROR(Table37[[#This Row],[Operating Costs US$- LRT]]/Table37[[#This Row],[Fare revenue US$- LRT]], "") ->  | FJ11: =IFERROR(Table37[[#This Row],[Operating Costs US$- Tram]]/Table37[[#This Row],[Fare revenue US$- Tram]], "") ->  | FK11: =IFERROR(Table37[[#This Row],[Operating Costs US$ - Trolley Bus]]/Table37[[#This Row],[Fare revenue US$- Trolley Buses]], "") ->  | FL11: =IFERROR((AVERAGEIF(Table37[[#This Row],[Fares for 10 km of journey (2007 US$ PPP) - Bus]:[Fares for 10 km of journey (2007 US$ PPP) - Trolley Bus]], "<>0")*40*12)/EO11, "") ->  | FM11: =IFERROR((AVERAGEIF(Table37[[#This Row],[Fares for 10 km of journey (2007 US$ PPP) - Regional/Commuter Rail]:[Fares for 10 km of journey (2007 US$ PPP) - BRT]], "<>0")*40*12)/EO11, "") ->  | FN11: =IFERROR(2*(AVERAGEIF(Table37[[#This Row],[Fares for avg. length of journey (2007 US$ PPP) - Metro]:[Fares for avg. length of journey (2007 US$ PPP) - BRT]], "<>0"))/(Table37[[#This Row],[Minimum Hourly Wage rate (PPP $ 2007)]]*8), "") ->  | FO11: 0.1217899872 | FP11: 15.38 | FQ11: 32.38 | FR11: =SUM(AP11:AQ11)+Table37[[#This Row],[Length of mass transit (km) - BRT]] -> 77 | FS11: 0.6195 | FT11: 8045.454545 | FU11: 0.1822058824 | FV11: 0.1786957531 | FW11: =IFERROR(((#REF!*4)+((#REF!+#REF!)*0.5)+((#REF!+#REF!)*1))/I11, "") ->  | FX11: 320 | FY11: 170.2711835 | FZ11: 0.04792571514 | GA11: 3.52900567 | GB11: 0.8929411765 | GC11: 0 | GD11: 0 | GE11: 7.058823529 | GF11: 0.59 | GG11: 2.15 | GH11: =Table37[[#This Row],[Fares for 10 km of journey (2007 US$ PPP) - Bus]]/10*Table37[[#This Row],[Average trip length by car (km)]] -> 0 | GI11: =Table37[[#This Row],[Fares for 10 km of journey (2007 US$ PPP) - Regional/Commuter Rail]]/10*Table37[[#This Row],[Average trip length by car (km)]] -> 0 | GJ11: =Table37[[#This Row],[Fares for 10 km of journey (2007 US$ PPP) - Metro]]/10*Table37[[#This Row],[Average trip length by car (km)]] -> 0 | GK11: =Table37[[#This Row],[Fares for 10 km of journey (2007 US$ PPP) - LRT]]/10*Table37[[#This Row],[Average trip length by car (km)]] -> 0 | GL11: =Table37[[#This Row],[Fares for 10 km of journey (2007 US$ PPP) - Tram]]/10*Table37[[#This Row],[Average trip length by car (km)]] -> 0 | GM11: =Table37[[#This Row],[Fares for 10 km of journey (2007 US$ PPP) - BRT]]/10*Table37[[#This Row],[Average trip length by car (km)]] -> 0 | GN11: =Table37[[#This Row],[Fares for 10 km of journey (2007 US$ PPP) - Trolley Bus]]/10*Table37[[#This Row],[Average trip length by car (km)]] -> 0
B12: Sao Paulo | C12: Brazil | D12: LAC | E12: 12040000 | F12: 10744060 | G12: 21242939 | H12: 19000000 | I12: 1509 | J12: 1509 | K12: 2119.08 | M12: =E12/I12 -> 7978.793903 | N12: 9608000 | O12: 797405 | P12: 4617635 | Q12: 5415040 | R12: 5474429 | S12: 40.32 | T12: 8.06 | U12: 8.06 | V12: 12.9 | W12: 0 | X12: 14.52 | Y12: 11.29 | Z12: 4.85 | AA12: 15.74 | AB12: 46.88 | AC12: 10.5 | AE12: 2.319 | AF12: 3.75 | AG12: 0 | AH12: 0 | AI12: 2.11 | AK12: 16.36 | AL12: 5.86 | AM12: 37728 | AN12: 21240 | AO12: 258.6 | AP12: 74.3 | AQ12: 0 | AR12: 0 | AS12: 129.8 | AT12: 200 | AU12: 95 | AV12: 67 | AW12: 0 | AX12: 0 | BA12: 552 | BC12: 15002 | BD12: 2700 | BF12: 756 | BG12: 785 | BH12: 0 | BI12: 0 | BL12: 38639 | BM12: 3 | BO12: 3 | BP12: 0 | BQ12: 0 | BR12: 3 | BT12: 1.726228384 | BU12: 0 | BV12: 1.726228384 | BW12: 0 | BX12: 0 | BY12: 1.726228384 | BZ12: 0 | CD12: 0 | CE12: 0 | CH12: 2968 | CJ12: 833 | CK12: 0 | CL12: 0 | CR12: 0 | CS12: 296 | CT12: 0 | CW12: 0 | CX12: 0 | CZ12: 3424.615385 | DA12: 441.0647059 | DB12: 713.2352941 | DC12: 0 | DD12: 0 | DE12: 776.84 | DJ12: 0 | DK12: 253.4425535 | DL12: 0 | DM12: 108696 | DN12: 5920 | DO12: 7417 | DP12: 0 | DQ12: 0 | DT12: 5 | DU12: 0.37 | DV12: 2.59 | DW12: 3.37 | DY12: 3.05 | DZ12: 1.1 | EA12: 1.503 | EB12: 0.95 | ED12: =1225/E12*100000 -> 10.1744186 | EE12: 14.2 | EF12: 24.085 | EG12: 43 | EH12: 83 | EI12: 38 | EJ12: 15.7 | EK12: 15.115 | EL12: PROCONVE P7/PROCONVE L6 | EN12: 32493.96 | EO12: =Table37[[#This Row],[City Per Capita GDP (LC)]]*('GDP Deflator 1960-2011'!AZ7/'GDP Deflator 1960-2011'!BA7)*1/Table37[[#This Row],[PPP Exchange rate with the US$ (2016)]] -> 14997.27515 | EP12: 477 | EQ12: =Table37[[#This Row],[City GDP (LC Billion)]]*'GDP Deflator 1960-2011'!AZ7/'GDP Deflator 1960-2011'!BA7*1/Table37[[#This Row],[PPP Exchange rate with the US$ (2016)]] -> 220.1547687 | ER12: 128873 | ES12: =Table37[[#This Row],[Median Annual household income (LC)]]*'GDP Deflator 1960-2011'!AZ7/'GDP Deflator 1960-2011'!BB7*1/Table37[[#This Row],[PPP Exchange rate with the US$ (2016)]] -> 55492.85265 | ET12: 3.08 | EU12: =IF(ISERROR(Table37[[#This Row],[Minimum Hourly Wage Rate (LC)]]*'CPI 1960-2011'!AY7/'CPI 1960-2011'!BC7*1/Table37[[#This Row],[PPP Exchange rate with the US$ (2016)]]), "n/a", Table37[[#This Row],[Minimum Hourly Wage Rate (LC)]]*'GDP Deflator 1960-2011'!AZ7/'GDP Deflator 1960-2011'!BD7*1/Table37[[#This Row],[PPP Exchange rate with the US$ (2016)]]) -> 1.145583054 | EV12: 2 | EX12: 37.5374142 | EY12: 217.3726997 | EZ12: 0.859297294 | FA12: 0.1456599401 | FB12: 135.1943252 | FC12: 37728 | FD12: 1776.025436 | FE12: =IFERROR(AM12/K12, "") -> 17.80395266 | FF12: 5.954640079 | FG12: =IFERROR(Table37[[#This Row],[Operating Costs US$ - Bus]]/Table37[[#This Row],[Fare revenue US$- Bus]], "") -> 0 | FH12: =IFERROR(Table37[[#This Row],[Operating Costs US$ - Metro]]/Table37[[#This Row],[Fare revenue US$- Metro]], "") -> 0 | FI12: =IFERROR(Table37[[#This Row],[Operating Costs US$- LRT]]/Table37[[#This Row],[Fare revenue US$- LRT]], "") ->  | FJ12: =IFERROR(Table37[[#This Row],[Operating Costs US$- Tram]]/Table37[[#This Row],[Fare revenue US$- Tram]], "") ->  | FK12: =IFERROR(Table37[[#This Row],[Operating Costs US$ - Trolley Bus]]/Table37[[#This Row],[Fare revenue US$- Trolley Buses]], "") ->  | FL12: =IFERROR((AVERAGEIF(Table37[[#This Row],[Fares for 10 km of journey (2007 US$ PPP) - Bus]:[Fares for 10 km of journey (2007 US$ PPP) - Trolley Bus]], "<>0")*40*12)/EO12, "") -> 0.05524934468 | FM12: =IFERROR((AVERAGEIF(Table37[[#This Row],[Fares for 10 km of journey (2007 US$ PPP) - Regional/Commuter Rail]:[Fares for 10 km of journey (2007 US$ PPP) - BRT]], "<>0")*40*12)/EO12, "") -> 0.05524934468 | FN12: =IFERROR(2*(AVERAGEIF(Table37[[#This Row],[Fares for avg. length of journey (2007 US$ PPP) - Metro]:[Fares for avg. length of journey (2007 US$ PPP) - BRT]], "<>0"))/(Table37[[#This Row],[Minimum Hourly Wage rate (PPP $ 2007)]]*8), "") -> 0.5929477279 | FO12: 0.08801598869 | FP12: 15.74 | FQ12: 46.88 | FR12: =SUM(AP12:AQ12)+Table37[[#This Row],[Length of mass transit (km) - BRT]] -> 204.1 | FS12: 5.86 | FT12: 28711.41597 | FU12: 0.2758563681 | FV12: 0.1352551359 | FW12: =IFERROR(((AP23*4)+((AR23+AS23)*0.5)+((AQ23+AS23)*1))/I12, "") -> 0.05434062293 | FX12: 1225 | FY12: 101.744186 | FZ12: 0.0324692536 | GA12: 2.237676295 | GB12: 0.739069109 | GC12: 2.024202018 | GD12: 3.90718064 | GE12: 1.788829691 | GF12: 0.37 | GG12: 2.59 | GH12: =Table37[[#This Row],[Fares for 10 km of journey (2007 US$ PPP) - Bus]]/10*Table37[[#This Row],[Average trip length by car (km)]] -> 2.717083476 | GI12: =Table37[[#This Row],[Fares for 10 km of journey (2007 US$ PPP) - Regional/Commuter Rail]]/10*Table37[[#This Row],[Average trip length by car (km)]] -> 0 | GJ12: =Table37[[#This Row],[Fares for 10 km of journey (2007 US$ PPP) - Metro]]/10*Table37[[#This Row],[Average trip length by car (km)]] -> 2.717083476 | GK12: =Table37[[#This Row],[Fares for 10 km of journey (2007 US$ PPP) - LRT]]/10*Table37[[#This Row],[Average trip length by car (km)]] -> 0 | GL12: =Table37[[#This Row],[Fares for 10 km of journey (2007 US$ PPP) - Tram]]/10*Table37[[#This Row],[Average trip length by car (km)]] -> 0 | GM12: =Table37[[#This Row],[Fares for 10 km of journey (2007 US$ PPP) - BRT]]/10*Table37[[#This Row],[Average trip length by car (km)]] -> 2.717083476 | GN12: =Table37[[#This Row],[Fares for 10 km of journey (2007 US$ PPP) - Trolley Bus]]/10*Table37[[#This Row],[Average trip length by car (km)]] -> 0
B13: Toronto | C13: Canada | D13: OECD | E13: 2826497 | F13: 2481494 | G13: 5928040 | H13: 5113149 | I13: 630 | K13: 5903.63 | M13: 4486.503175 | N13: 1291200 | P13: 2694617.32 | Q13: 2694617.32 | R13: 2696436.32 | S13: 44 | T13: 1 | U13: 10 | V13: 12 | W13: 0 | X13: 5 | Y13: 15 | Z13: 13 | AA13: 37.18 | AB13: 44 | AC13: 0.77 | AE13: 0.13 | AF13: 0.22 | AG13: 0.43 | AH13: . | AI13: 0 | AJ13: 0 | AK13: 1.582 | AL13: 0.876 | AM13: 5617 | AN13: 9797 | AO13: 450 | AP13: 68.3 | AQ13: 368 | AS13: 0 | AT13: 0 | AU13: 62 | AV13: 69 | AW13: 691 | AY13: 0 | AZ13: 0 | BC13: 2350 | BF13: 704 | BG13: 653 | BH13: 247 | BJ13: 0 | BK13: 0 | BM13: 2.8875 | BN13: 3.95 | BO13: 2.8875 | BP13: 2.8875 | BQ13: 2.8875 | BR13: 0 | BS13: 0 | BT13: 2.237446117 | BU13: 3.060748801 | BV13: 2.237446117 | BW13: 2.237446117 | BX13: 2.237446117 | BY13: 0 | BZ13: 0 | CA13: 1385.86 | CF13: 0 | CG13: 0 | CH13: 929.79 | CN13: 0 | CO13: 57.71 | CU13: 433.2190334 | CW13: 611.9475041 | CY13: 0 | CZ13: 330.8874335 | DC13: 410.5628778 | DE13: 0 | DF13: 0 | DG13: 20.53744801 | DJ13: 25.48272586 | DL13: 83.99699877 | DR13: 0 | DS13: 0 | DT13: 4 | DU13: 0.98 | DV13: 5.06 | DW13: 1.05 | DX13: 1.286 | DY13: 0.904 | DZ13: 0.79 | EA13: 1.0066 | EB13: 0.683 | EF13: 6.135 | EG13: 17 | EH13: 43 | EI13: 14 | EJ13: 18.32 | EK13: 20.662 | EL13: US-EPA | EN13: 56000 | EO13: 38611 | EP13: 330 | EQ13: =Table37[[#This Row],[City GDP (LC Billion)]]*'GDP Deflator 1960-2011'!AZ8/'GDP Deflator 1960-2011'!BD8*1/Table37[[#This Row],[PPP Exchange rate with the US$ (2016)]] -> 253.3888479 | ER13: 67197 | ES13: =Table37[[#This Row],[Median Annual household income (LC)]]*'GDP Deflator 1960-2011'!AZ8/'GDP Deflator 1960-2011'!BC8*1/Table37[[#This Row],[PPP Exchange rate with the US$ (2016)]] -> 53274.52342 | ET13: 11.4 | EU13: =IF(ISERROR(Table37[[#This Row],[Minimum Hourly Wage Rate (LC)]]*'CPI 1960-2011'!AY8/'CPI 1960-2011'!BC8*1/Table37[[#This Row],[PPP Exchange rate with the US$ (2016)]]), "n/a", Table37[[#This Row],[Minimum Hourly Wage Rate (LC)]]*'GDP Deflator 1960-2011'!AZ8/'GDP Deflator 1960-2011'!BD8*1/Table37[[#This Row],[PPP Exchange rate with the US$ (2016)]]) -> 8.753432926 | EV13: 1.2 | EX13: 0 | EY13: 454.5545104 | EZ13: 0.3964210768 | FA13: 0 | FB13: 480.7712872 | FC13: 5617 | FD13: 947.5307184 | FE13: =IFERROR(AM13/I13, "") -> 8.915873016 | FF13: 0 | FG13: =IFERROR(Table37[[#This Row],[Operating Costs US$ - Bus]]/Table37[[#This Row],[Fare revenue US$- Bus]], "") -> 1.309264087 | FH13: =IFERROR(Table37[[#This Row],[Operating Costs US$ - Metro]]/Table37[[#This Row],[Fare revenue US$- Metro]], "") ->  | FI13: =IFERROR(Table37[[#This Row],[Operating Costs US$- LRT]]/Table37[[#This Row],[Fare revenue US$- LRT]], "") -> 1.490508609 | FJ13: =IFERROR(Table37[[#This Row],[Operating Costs US$- Tram]]/Table37[[#This Row],[Fare revenue US$- Tram]], "") ->  | FK13: =IFERROR(Table37[[#This Row],[Operating Costs US$ - Trolley Bus]]/Table37[[#This Row],[Fare revenue US$- Trolley Buses]], "") ->  | FL13: =IFERROR((AVERAGEIF(Table37[[#This Row],[Fares for 10 km of journey (2007 US$ PPP) - Bus]:[Fares for 10 km of journey (2007 US$ PPP) - Trolley Bus]], "<>0")*40*12)/EO13, "") -> 0.02986224635 | FM13: =IFERROR((AVERAGEIF(Table37[[#This Row],[Fares for 10 km of journey (2007 US$ PPP) - Regional/Commuter Rail]:[Fares for 10 km of journey (2007 US$ PPP) - BRT]], "<>0")*40*12)/EO13, "") -> 0.03037399855 | FN13: =IFERROR(2*(AVERAGEIF(Table37[[#This Row],[Fares for avg. length of journey (2007 US$ PPP) - Metro]:[Fares for avg. length of journey (2007 US$ PPP) - BRT]], "<>0"))/(Table37[[#This Row],[Minimum Hourly Wage rate (PPP $ 2007)]]*8), "") -> 0.2375874909 | FO13: 0.02455258864 | FP13: 37.18 | FQ13: 44 | FR13: =SUM(AP13:AQ13)+Table37[[#This Row],[Length of mass transit (km) - BRT]] -> 436.3 | FS13: 0.65 | FT13: 1489.800596 | FU13: 0.1096483829 | FV13: 0.6925396825 | FW13: 0.4825396825 | FX13: 0 | FY13: 0 | FZ13: 0 | GA13: 0 | GB13: 3.090397501 | GC13: 2.867726938 | GD13: 7.253662256 | GE13: 2.361657479 | GF13: 0.98 | GG13: 5.06 | GH13: =Table37[[#This Row],[Fares for 10 km of journey (2007 US$ PPP) - Bus]]/10*Table37[[#This Row],[Average trip length by car (km)]] -> 8.318824663 | GI13: =Table37[[#This Row],[Fares for 10 km of journey (2007 US$ PPP) - Regional/Commuter Rail]]/10*Table37[[#This Row],[Average trip length by car (km)]] -> 11.37986404 | GJ13: =Table37[[#This Row],[Fares for 10 km of journey (2007 US$ PPP) - Metro]]/10*Table37[[#This Row],[Average trip length by car (km)]] -> 8.318824663 | GK13: =Table37[[#This Row],[Fares for 10 km of journey (2007 US$ PPP) - LRT]]/10*Table37[[#This Row],[Average trip length by car (km)]] -> 8.318824663 | GL13: =Table37[[#This Row],[Fares for 10 km of journey (2007 US$ PPP) - Tram]]/10*Table37[[#This Row],[Average trip length by car (km)]] -> 8.318824663 | GM13: =Table37[[#This Row],[Fares for 10 km of journey (2007 US$ PPP) - BRT]]/10*Table37[[#This Row],[Average trip length by car (km)]] -> 0 | GN13: =Table37[[#This Row],[Fares for 10 km of journey (2007 US$ PPP) - Trolley Bus]]/10*Table37[[#This Row],[Average trip length by car (km)]] -> 0
B14: Vancouver | C14: Canada | D14: OECD | E14: 14557000 | F14: 10513000 | G14: 14657434 | H14: 13160068 | I14: 1539 | J14: 1539 | K14: 5612 | L14: 4343 | M14: 9458.739441 | N14: 378000 | P14: 1070989.986 | Q14: 1070989.986 | R14: 1072105.986 | S14: 48.78 | T14: 0 | U14: 7.32 | V14: 12.2 | W14: 0 | X14: 17.07 | Y14: 2.44 | Z14: 12.19 | AA14: 25.38 | AB14: 43.05 | AC14: 0.59 | AE14: 0.65 | AF14: 0 | AG14: 0.23 | AH14: 0 | AI14: 0.2 | AK14: 0.7197193945 | AL14: 0.3158262438 | AN14: 106 | AO14: 65 | AP14: 0 | AQ14: 68.7 | AR14: 0 | AS14: 27 | AU14: 8 | AV14: 0 | AW14: 47 | AX14: 0 | BC14: 1500 | BF14: 0 | BG14: 37 | BH14: 258 | BI14: 0 | BK14: 261 | BM14: 2.75 | BN14: 3.3625 | BO14: 0 | BP14: 2.75 | BQ14: 0 | BR14: 2.08 | BT14: 2.130901064 | BU14: 2.605510846 | BV14: 0 | BW14: 2.130901064 | BX14: 0 | BY14: 2.130901064 | BZ14: 0 | CA14: 574.579 | CB14: 17.931 | CC14: 0 | CD14: 190.555 | CE14: 0 | CH14: 444.732 | CJ14: 0 | CL14: 0 | CQ14: 0 | CS14: 0 | CU14: 445.225819 | CV14: 0 | CW14: 147.6559463 | CX14: 0 | CZ14: 222.3869861 | DA14: 3.388127681 | DB14: 0 | DC14: 118.835756 | DD14: 0 | DE14: 43.64 | DG14: 360.027975 | DH14: 5.485126487 | DI14: 0 | DJ14: 192.3862422 | DK14: 0 | DL14: 5.790120783 | DM14: 3890 | DO14: 0 | DP14: 540 | DQ14: 0 | DU14: 1.05 | DV14: 3.28 | DW14: 1.2 | DX14: 1.375 | DY14: 1.134 | DZ14: 0.91 | EA14: 1.143723979 | EB14: 0.857 | EF14: 6.478 | EG14: 14 | EH14: 37 | EI14: 12 | EJ14: 2.443 | EK14: 2.6 | EL14: US-EPA | EN14: 34938.75 | EO14: =Table37[[#This Row],[City Per Capita GDP (LC)]]*('GDP Deflator 1960-2011'!AZ9/'GDP Deflator 1960-2011'!AU9)*1/Table37[[#This Row],[PPP Exchange rate with the US$ (2016)]] -> 33963.47004 | EP14: 119.98 | EQ14: =Table37[[#This Row],[City GDP (LC Billion)]]*'GDP Deflator 1960-2011'!AZ9/'GDP Deflator 1960-2011'!AU9*1/Table37[[#This Row],[PPP Exchange rate with the US$ (2016)]] -> 116.6308793 | ER14: 66200 | ES14: =Table37[[#This Row],[Median Annual household income (LC)]]*'GDP Deflator 1960-2011'!AZ9/'GDP Deflator 1960-2011'!BC9*1/Table37[[#This Row],[PPP Exchange rate with the US$ (2016)]] -> 52484.09081 | ET14: 10.85 | EU14: =IF(ISERROR(Table37[[#This Row],[Minimum Hourly Wage Rate (LC)]]*'CPI 1960-2011'!AY9/'CPI 1960-2011'!BC9*1/Table37[[#This Row],[PPP Exchange rate with the US$ (2016)]]), "n/a", Table37[[#This Row],[Minimum Hourly Wage Rate (LC)]]*'GDP Deflator 1960-2011'!AZ9/'GDP Deflator 1960-2011'!BD9*1/Table37[[#This Row],[PPP Exchange rate with the US$ (2016)]]) -> 8.33111818 | EV14: 1.2 | EX14: 0 | EY14: 73.06804083 | EZ14: 0.1023371485 | FA14: 0 | FC14: 0 | FD14: 0 | FE14: =IFERROR(AM14/I14, "") -> 0 | FF14: 2.593333333 | FG14: =IFERROR(Table37[[#This Row],[Operating Costs US$ - Bus]]/Table37[[#This Row],[Fare revenue US$- Bus]], "") -> 2.002031804 | FH14: =IFERROR(Table37[[#This Row],[Operating Costs US$ - Metro]]/Table37[[#This Row],[Fare revenue US$- Metro]], "") ->  | FI14: =IFERROR(Table37[[#This Row],[Operating Costs US$- LRT]]/Table37[[#This Row],[Fare revenue US$- LRT]], "") -> 1.242521201 | FJ14: =IFERROR(Table37[[#This Row],[Operating Costs US$- Tram]]/Table37[[#This Row],[Fare revenue US$- Tram]], "") ->  | FK14: =IFERROR(Table37[[#This Row],[Operating Costs US$ - Trolley Bus]]/Table37[[#This Row],[Fare revenue US$- Trolley Buses]], "") ->  | FL14: =IFERROR((AVERAGEIF(Table37[[#This Row],[Fares for 10 km of journey (2007 US$ PPP) - Bus]:[Fares for 10 km of journey (2007 US$ PPP) - Trolley Bus]], "<>0")*40*12)/EO14, "") -> 0.03179256075 | FM14: =IFERROR((AVERAGEIF(Table37[[#This Row],[Fares for 10 km of journey (2007 US$ PPP) - Regional/Commuter Rail]:[Fares for 10 km of journey (2007 US$ PPP) - BRT]], "<>0")*40*12)/EO14, "") -> 0.03235152575 | FN14: =IFERROR(2*(AVERAGEIF(Table37[[#This Row],[Fares for avg. length of journey (2007 US$ PPP) - Metro]:[Fares for avg. length of journey (2007 US$ PPP) - BRT]], "<>0"))/(Table37[[#This Row],[Minimum Hourly Wage rate (PPP $ 2007)]]*8), "") -> 0.1622899467 | FO14: 0.03215219171 | FP14: 25.38 | FQ14: 43.05 | FR14: =SUM(AP14:AQ14)+Table37[[#This Row],[Length of mass transit (km) - BRT]] -> 95.7 | FS14: 0.43 | FT14: 4493.207941 | FU14: 0.02933664924 | FV14: 0.06218323587 | FW14: 0.02144249513 | FX14: 0 | FY14: 0 | GA14: 0 | GB14: 0.1666731025 | GC14: 0.9551467194 | GD14: 2.52431633 | GE14: 0.8186971881 | GF14: 1.05 | GG14: 3.28 | GH14: =Table37[[#This Row],[Fares for 10 km of journey (2007 US$ PPP) - Bus]]/10*Table37[[#This Row],[Average trip length by car (km)]] -> 5.4082269 | GI14: =Table37[[#This Row],[Fares for 10 km of journey (2007 US$ PPP) - Regional/Commuter Rail]]/10*Table37[[#This Row],[Average trip length by car (km)]] -> 6.612786527 | GJ14: =Table37[[#This Row],[Fares for 10 km of journey (2007 US$ PPP) - Metro]]/10*Table37[[#This Row],[Average trip length by car (km)]] -> 0 | GK14: =Table37[[#This Row],[Fares for 10 km of journey (2007 US$ PPP) - LRT]]/10*Table37[[#This Row],[Average trip length by car (km)]] -> 5.4082269 | GL14: =Table37[[#This Row],[Fares for 10 km of journey (2007 US$ PPP) - Tram]]/10*Table37[[#This Row],[Average trip length by car (km)]] -> 0 | GM14: =Table37[[#This Row],[Fares for 10 km of journey (2007 US$ PPP) - BRT]]/10*Table37[[#This Row],[Average trip length by car (km)]] -> 5.4082269 | GN14: =Table37[[#This Row],[Fares for 10 km of journey (2007 US$ PPP) - Trolley Bus]]/10*Table37[[#This Row],[Average trip length by car (km)]] -> 0
B15: Santiago | C15: Chile | D15: LAC | E15: 3390000 | F15: 3384569 | G15: 6150000 | H15: 4567857 | I15: 527 | J15: 527 | K15: 527 | M15: 6432.637571 | N15: 3471265 | O15: 22634 | P15: 819174 | Q15: 841808 | R15: 885928 | S15: 20.69 | T15: 3.45 | U15: 13.79 | V15: 20.29 | W15: 0 | X15: 13.79 | Y15: 20.69 | Z15: 7.3 | AA15: 19.5 | AB15: 35 | AC15: 0.11 | AE15: 0.016 | AF15: 2.2 | AG15: 0 | AH15: 0 | AI15: 0.3408 | AJ15: 0 | AK15: 2.094057534 | AL15: 2.094057534 | AM15: 11396 | AN15: 18334 | AP15: 103 | AQ15: 0 | AR15: 0 | AS15: 91.85 | AT15: 0 | AU15: 18 | AV15: 108 | AW15: 0 | AX15: 0 | AY15: 0 | AZ15: 127 | BA15: 1031 | BC15: 6385 | BF15: 967 | BG15: 13 | BH15: 0 | BI15: 0 | BK15: 0 | BL15: 37645 | BN15: 900 | BO15: 670 | BP15: 0 | BQ15: 0 | BR15: 1.19 | BS15: 0 | BT15: 0 | BU15: 2.092737868 | BV15: 1.557927079 | BW15: 0 | BX15: 0 | BY15: 0.97 | BZ15: 0 | CD15: 0 | CE15: 0 | CG15: 0 | CJ15: 290 | CK15: 0 | CL15: 0 | CM15: 539 | CN15: 0 | CR15: 0 | CS15: 0 | CT15: 0 | CW15: 0 | CX15: 0 | CY15: 0 | DA15: 4.512068695 | DB15: 402.7125144 | DC15: 0 | DD15: 0 | DE15: 69.44 | DF15: 0 | DJ15: 0 | DK15: 0 | DL15: 0 | DM15: 1334 | DO15: 3266 | DP15: 0 | DQ15: 0 | DS15: 0 | DT15: 5 | DU15: 0.71 | DW15: 736 | DY15: 612 | DZ15: 1.1 | EA15: 1.104 | EB15: 0.901 | EE15: 5.35 | EF15: 9.589 | EG15: 29 | EH15: 81 | EI15: 64 | EK15: 19.592 | EL15: Euro V | EM15: 157767 | EO15: =Table37[[#This Row],[City Per Capita GDP (LC)]]*('GDP Deflator 1960-2011'!AZ10/'GDP Deflator 1960-2011'!BB10)*1/Table37[[#This Row],[PPP Exchange rate with the US$ (2016)]] -> 0 | EQ15: =Table37[[#This Row],[City GDP (LC Billion)]]*'GDP Deflator 1960-2011'!AZ10/'GDP Deflator 1960-2011'!BD10*1/Table37[[#This Row],[PPP Exchange rate with the US$ (2016)]] -> 0 | ER15: 28257709 | ES15: =Table37[[#This Row],[Median Annual household income (LC)]]*'GDP Deflator 1960-2011'!AZ10/'GDP Deflator 1960-2011'!AY10*1/Table37[[#This Row],[PPP Exchange rate with the US$ (2016)]] -> 75945.76508 | ET15: 1466.666 | EU15: =IF(ISERROR(Table37[[#This Row],[Minimum Hourly Wage Rate (LC)]]*'CPI 1960-2011'!AY10/'CPI 1960-2011'!BC10*1/Table37[[#This Row],[PPP Exchange rate with the US$ (2016)]]), "n/a", Table37[[#This Row],[Minimum Hourly Wage Rate (LC)]]*'GDP Deflator 1960-2011'!AZ10/'GDP Deflator 1960-2011'!BD10*1/Table37[[#This Row],[PPP Exchange rate with the US$ (2016)]]) -> 3.2504013 | EV15: 390.1 | EX15: 3.680325203 | EY15: 133.1990244 | EZ15: 1.205853659 | FA15: 0.02554835156 | FB15: 77.80589681 | FC15: 11396 | FD15: 1853.00813 | FE15: =IFERROR(AM15/K15, "") -> 21.62428843 | FF15: 0.1798813376 | FG15: =IFERROR(Table37[[#This Row],[Operating Costs US$ - Bus]]/Table37[[#This Row],[Fare revenue US$- Bus]], "") ->  | FH15: =IFERROR(Table37[[#This Row],[Operating Costs US$ - Metro]]/Table37[[#This Row],[Fare revenue US$- Metro]], "") -> 0 | FI15: =IFERROR(Table37[[#This Row],[Operating Costs US$- LRT]]/Table37[[#This Row],[Fare revenue US$- LRT]], "") ->  | FJ15: =IFERROR(Table37[[#This Row],[Operating Costs US$- Tram]]/Table37[[#This Row],[Fare revenue US$- Tram]], "") ->  | FK15: =IFERROR(Table37[[#This Row],[Operating Costs US$ - Trolley Bus]]/Table37[[#This Row],[Fare revenue US$- Trolley Buses]], "") ->  | FL15: =IFERROR((AVERAGEIF(Table37[[#This Row],[Fares for 10 km of journey (2007 US$ PPP) - Bus]:[Fares for 10 km of journey (2007 US$ PPP) - Trolley Bus]], "<>0")*40*12)/EO15, "") ->  | FM15: =IFERROR((AVERAGEIF(Table37[[#This Row],[Fares for 10 km of journey (2007 US$ PPP) - Regional/Commuter Rail]:[Fares for 10 km of journey (2007 US$ PPP) - BRT]], "<>0")*40*12)/EO15, "") ->  | FN15: =IFERROR(2*(AVERAGEIF(Table37[[#This Row],[Fares for avg. length of journey (2007 US$ PPP) - Metro]:[Fares for avg. length of journey (2007 US$ PPP) - BRT]], "<>0"))/(Table37[[#This Row],[Minimum Hourly Wage rate (PPP $ 2007)]]*8), "") -> 0.1895711233 | FP15: 19.5 | FQ15: 35 | FR15: =SUM(AP15:AQ15)+Table37[[#This Row],[Length of mass transit (km) - BRT]] -> 194.85 | FS15: 2.5408 | FT15: 13039.77419 | FU15: 0.4131382114 | FV15: 0.3697343454 | FW15: 0.3295066414 | FX15: 0 | FY15: 0 | FZ15: 0 | GA15: 0 | GB15: 0 | GC15: 4.715447154 | GD15: 13.17073171 | GE15: 10.40650407 | GF15: 0.71 | GG15: 0 | GH15: =Table37[[#This Row],[Fares for 10 km of journey (2007 US$ PPP) - Bus]]/10*Table37[[#This Row],[Average trip length by car (km)]] -> 0 | GI15: =Table37[[#This Row],[Fares for 10 km of journey (2007 US$ PPP) - Regional/Commuter Rail]]/10*Table37[[#This Row],[Average trip length by car (km)]] -> 4.080838842 | GJ15: =Table37[[#This Row],[Fares for 10 km of journey (2007 US$ PPP) - Metro]]/10*Table37[[#This Row],[Average trip length by car (km)]] -> 3.037957805 | GK15: =Table37[[#This Row],[Fares for 10 km of journey (2007 US$ PPP) - LRT]]/10*Table37[[#This Row],[Average trip length by car (km)]] -> 0 | GL15: =Table37[[#This Row],[Fares for 10 km of journey (2007 US$ PPP) - Tram]]/10*Table37[[#This Row],[Average trip length by car (km)]] -> 0 | GM15: =Table37[[#This Row],[Fares for 10 km of journey (2007 US$ PPP) - BRT]]/10*Table37[[#This Row],[Average trip length by car (km)]] -> 1.8915 | GN15: =Table37[[#This Row],[Fares for 10 km of journey (2007 US$ PPP) - Trolley Bus]]/10*Table37[[#This Row],[Average trip length by car (km)]] -> 0
B16: Beijing | C16: China | D16: EAP | E16: 12265000 | F16: 11223000 | G16: 12265000 | H16: 11223000 | I16: 16410.54 | J16: 16808 | K16: 4556.84 | M16: 747.3855217 | N16: 9427000 | O16: 265000 | P16: 3291000 | Q16: 3556000 | R16: 4100000 | S16: 47.62 | T16: 4.76 | U16: 0 | V16: 19.05 | W16: 0 | X16: 9.52 | Y16: 14.29 | Z16: 4.76 | AA16: 28.3 | AB16: 54.5 | AC16: 13.83956164 | AF16: 5.058767123 | AG16: 0 | AH16: 0 | AI16: 0.305 | AJ16: 0 | AK16: 19.09832877 | AL16: 5.258767123 | AM16: 25765 | AN16: 18743 | AP16: 450 | AQ16: 9.4 | AR16: 0 | AS16: 74.5 | AT16: 0 | AV16: 281 | AW16: 0 | AX16: 0 | AY16: 0 | AZ16: 77 | BC16: 21548 | BF16: 2463 | BH16: 0 | BI16: 0 | BJ16: 187 | BK16: 0 | BL16: 66646 | BM16: 1 | BO16: 2 | BP16: 0 | BQ16: 0 | BR16: 0.3 | BS16: 0 | BT16: 0.2426412154 | BU16: 0 | BV16: 0.4852824308 | BW16: 0 | BX16: 0 | BY16: 0.4006006466 | BZ16: 0 | CD16: 0 | CE16: 0 | CG16: 0 | CK16: 0 | CL16: 0 | CM16: 11.39 | CN16: 0 | CR16: 0 | CT16: 0 | CW16: 0 | CX16: 0 | CY16: 0 | DC16: 0 | DD16: 0 | DE16: 52603 | DF16: 0 | DJ16: 0 | DL16: 0 | DM16: 99180 | DP16: 0 | DQ16: 0 | DS16: 0 | DU16: 0.13 | DV16: 1.38 | DW16: 6.31 | DY16: 5.1 | DZ16: 0.92 | EA16: 0.98 | EB16: 0.76 | EE16: =1515/15380000*100000 -> 9.850455137 | EF16: 3.822 | EG16: 100 | EH16: 34 | EI16: 68 | EK16: 109.585 | EL16: China 6 | EN16: =EP16*10^9/G16 -> 115072.1565 | EO16: =Table37[[#This Row],[City Per Capita GDP (LC)]]*('GDP Deflator 1960-2011'!AZ11/'GDP Deflator 1960-2011'!BC11)*1/Table37[[#This Row],[PPP Exchange rate with the US$ (2016)]] -> 28759.20617 | EP16: 1411.36 | EQ16: =Table37[[#This Row],[City GDP (LC Billion)]]*'GDP Deflator 1960-2011'!AZ11/'GDP Deflator 1960-2011'!BC11*1/Table37[[#This Row],[PPP Exchange rate with the US$ (2016)]] -> 352.7316637 | ER16: 310398 | ES16: =Table37[[#This Row],[Median Annual household income (LC)]]*'GDP Deflator 1960-2011'!AZ11/'GDP Deflator 1960-2011'!AY11*1/Table37[[#This Row],[PPP Exchange rate with the US$ (2016)]] -> 95426.96201 | ET16: 9.08 | EU16: =IF(ISERROR(Table37[[#This Row],[Minimum Hourly Wage Rate (LC)]]*'CPI 1960-2011'!AY11/'CPI 1960-2011'!BC11*1/Table37[[#This Row],[PPP Exchange rate with the US$ (2016)]]), "n/a", Table37[[#This Row],[Minimum Hourly Wage Rate (LC)]]*'GDP Deflator 1960-2011'!AZ11/'GDP Deflator 1960-2011'!BD11*1/Table37[[#This Row],[PPP Exchange rate with the US$ (2016)]]) -> 2.108027532 | EV16: 3.5 | EX16: 21.60619649 | EY16: 268.3245006 | EZ16: 1.75686914 | FA16: 0.06463414634 | FB16: 137.5515622 | FC16: 25765 | FD16: 2100.693029 | FE16: =IFERROR(AM16/I16, "") -> 1.570027555 | FF16: 4.602747355 | FG16: =IFERROR(Table37[[#This Row],[Operating Costs US$ - Bus]]/Table37[[#This Row],[Fare revenue US$- Bus]], "") ->  | FH16: =IFERROR(Table37[[#This Row],[Operating Costs US$ - Metro]]/Table37[[#This Row],[Fare revenue US$- Metro]], "") ->  | FI16: =IFERROR(Table37[[#This Row],[Operating Costs US$- LRT]]/Table37[[#This Row],[Fare revenue US$- LRT]], "") ->  | FJ16: =IFERROR(Table37[[#This Row],[Operating Costs US$- Tram]]/Table37[[#This Row],[Fare revenue US$- Tram]], "") ->  | FK16: =IFERROR(Table37[[#This Row],[Operating Costs US$ - Trolley Bus]]/Table37[[#This Row],[Fare revenue US$- Trolley Buses]], "") ->  | FL16: =IFERROR((AVERAGEIF(Table37[[#This Row],[Fares for 10 km of journey (2007 US$ PPP) - Bus]:[Fares for 10 km of journey (2007 US$ PPP) - Trolley Bus]], "<>0")*40*12)/EO16, "") -> 0.006278472561 | FM16: =IFERROR((AVERAGEIF(Table37[[#This Row],[Fares for 10 km of journey (2007 US$ PPP) - Regional/Commuter Rail]:[Fares for 10 km of journey (2007 US$ PPP) - BRT]], "<>0")*40*12)/EO16, "") -> 0.00739283057 | FN16: =IFERROR(2*(AVERAGEIF(Table37[[#This Row],[Fares for avg. length of journey (2007 US$ PPP) - Metro]:[Fares for avg. length of journey (2007 US$ PPP) - BRT]], "<>0"))/(Table37[[#This Row],[Minimum Hourly Wage rate (PPP $ 2007)]]*8), "") -> 0.1486608376 | FO16: 0.03838770769 | FP16: 28.3 | FQ16: 54.5 | FR16: =SUM(AP16:AQ16)+Table37[[#This Row],[Length of mass transit (km) - BRT]] -> 533.9 | FS16: 5.363767123 | FT16: 10046.38907 | FU16: 0.4373230431 | FV16: 0.03253396902 | FW16: 0.005590919007 | FX16: 0 | FY16: 0 | FZ16: 0 | GA16: 0 | GB16: 0 | GC16: 8.153281696 | GD16: 2.772115777 | GE16: 5.544231553 | GF16: 0.13 | GG16: 1.38 | GH16: =Table37[[#This Row],[Fares for 10 km of journey (2007 US$ PPP) - Bus]]/10*Table37[[#This Row],[Average trip length by car (km)]] -> 0.6866746396 | GI16: =Table37[[#This Row],[Fares for 10 km of journey (2007 US$ PPP) - Regional/Commuter Rail]]/10*Table37[[#This Row],[Average trip length by car (km)]] -> 0 | GJ16: =Table37[[#This Row],[Fares for 10 km of journey (2007 US$ PPP) - Metro]]/10*Table37[[#This Row],[Average trip length by car (km)]] -> 1.373349279 | GK16: =Table37[[#This Row],[Fares for 10 km of journey (2007 US$ PPP) - LRT]]/10*Table37[[#This Row],[Average trip length by car (km)]] -> 0 | GL16: =Table37[[#This Row],[Fares for 10 km of journey (2007 US$ PPP) - Tram]]/10*Table37[[#This Row],[Average trip length by car (km)]] -> 0 | GM16: =Table37[[#This Row],[Fares for 10 km of journey (2007 US$ PPP) - BRT]]/10*Table37[[#This Row],[Average trip length by car (km)]] -> 1.13369983 | GN16: =Table37[[#This Row],[Fares for 10 km of journey (2007 US$ PPP) - Trolley Bus]]/10*Table37[[#This Row],[Average trip length by car (km)]] -> 0
B17: Guangzhou | C17: China | D17: EAP | E17: 14043500 | F17: 7126000 | G17: 44259000 | H17: 30000000 | I17: 7434 | J17: 7434 | K17: 5082.59 | L17: 3843.42 | M17: 1889.090665 | O17: 933000 | P17: 1610000 | Q17: 2543000 | R17: =Q17+SUM(BA17:BE17)+BL17 -> 2568188 | S17: 40 | W17: 11 | X17: 35 | Y17: 14 | Z17: 0 | AA17: 7 | AB17: 48 | AF17: 4.493150685 | AG17: 0 | AH17: 0 | AI17: 0.85 | AK17: 5.293150685 | AL17: 5.293150685 | AM17: 5208 | AN17: 6852 | AP17: 236 | AQ17: 0 | AR17: 0 | AS17: 23 | AT17: 154.55 | AV17: 123 | AW17: 0 | AX17: 0 | AZ17: 26 | BC17: 9164 | BF17: 450 | BH17: 0 | BI17: 0 | BJ17: 800 | BK17: 279 | BL17: 16024 | BM17: 1.9 | BN17: 0 | BO17: 3.8 | BP17: 0 | BQ17: 0 | BR17: 0.6 | BS17: 2 | BT17: 0.4610183093 | BU17: 0 | BV17: 0.9220366185 | BW17: 0 | BX17: 0 | BY17: 0.3 | BZ17: 0.4852824308 | CD17: 0 | CE17: 0 | CK17: 0 | CL17: 0 | CM17: 175.2 | CR17: 0 | CT17: 0 | CW17: 0 | CX17: 0 | DC17: 0 | DD17: 0 | DE17: 53.5 | DJ17: 0 | DL17: 0 | DM17: 17400 | DO17: 6312 | DP17: 0 | DQ17: 0 | DU17: 0.56 | DV17: 1.63 | DW17: 8 | DY17: 5.55 | DZ17: 1.15 | EB17: 0.82 | EE17: =1738/6172800*100000 -> 28.1557802 | EF17: 13.727 | EG17: 57 | EH17: 136 | EI17: 72 | EK17: 59.256 | EL17: China IV | EN17: 139644 | EO17: =Table37[[#This Row],[City Per Capita GDP (LC)]]*('GDP Deflator 1960-2011'!AZ12/'GDP Deflator 1960-2011'!BC12)*1/Table37[[#This Row],[PPP Exchange rate with the US$ (2016)]] -> 34900.2809 | EP17: 1960.3 | EQ17: =Table37[[#This Row],[City GDP (LC Billion)]]*'GDP Deflator 1960-2011'!AZ12/'GDP Deflator 1960-2011'!BC12*1/Table37[[#This Row],[PPP Exchange rate with the US$ (2016)]] -> 489.924527 | ER17: 262000 | ES17: =Table37[[#This Row],[Median Annual household income (LC)]]*'GDP Deflator 1960-2011'!AZ12/'GDP Deflator 1960-2011'!AY12*1/Table37[[#This Row],[PPP Exchange rate with the US$ (2016)]] -> 80547.76141 | ET17: 9.11 | EU17: =IF(ISERROR(Table37[[#This Row],[Minimum Hourly Wage Rate (LC)]]*'CPI 1960-2011'!AY12/'CPI 1960-2011'!BC12*1/Table37[[#This Row],[PPP Exchange rate with the US$ (2016)]]), "n/a", Table37[[#This Row],[Minimum Hourly Wage Rate (LC)]]*'GDP Deflator 1960-2011'!AZ12/'GDP Deflator 1960-2011'!BD12*1/Table37[[#This Row],[PPP Exchange rate with the US$ (2016)]]) -> 2.11499238 | EV17: 3.5 | EX17: 21.08045821 | EY17: 36.37678212 | EZ17: 0.2070539325 | FA17: 0.3632911609 | FB17: 406.1893241 | FC17: 5208 | FD17: 117.6709822 | FE17: =IFERROR(AM17/I17, "") -> 0.7005649718 | FF17: 1.898734177 | FG17: =IFERROR(Table37[[#This Row],[Operating Costs US$ - Bus]]/Table37[[#This Row],[Fare revenue US$- Bus]], "") ->  | FH17: =IFERROR(Table37[[#This Row],[Operating Costs US$ - Metro]]/Table37[[#This Row],[Fare revenue US$- Metro]], "") ->  | FI17: =IFERROR(Table37[[#This Row],[Operating Costs US$- LRT]]/Table37[[#This Row],[Fare revenue US$- LRT]], "") ->  | FJ17: =IFERROR(Table37[[#This Row],[Operating Costs US$- Tram]]/Table37[[#This Row],[Fare revenue US$- Tram]], "") ->  | FK17: =IFERROR(Table37[[#This Row],[Operating Costs US$ - Trolley Bus]]/Table37[[#This Row],[Fare revenue US$- Trolley Buses]], "") ->  | FL17: =IFERROR((AVERAGEIF(Table37[[#This Row],[Fares for 10 km of journey (2007 US$ PPP) - Bus]:[Fares for 10 km of journey (2007 US$ PPP) - Trolley Bus]], "<>0")*40*12)/EO17, "") -> 0.007455541226 | FM17: =IFERROR((AVERAGEIF(Table37[[#This Row],[Fares for 10 km of journey (2007 US$ PPP) - Regional/Commuter Rail]:[Fares for 10 km of journey (2007 US$ PPP) - BRT]], "<>0")*40*12)/EO17, "") -> 0.008403622575 | FN17: =IFERROR(2*(AVERAGEIF(Table37[[#This Row],[Fares for avg. length of journey (2007 US$ PPP) - Metro]:[Fares for avg. length of journey (2007 US$ PPP) - BRT]], "<>0"))/(Table37[[#This Row],[Minimum Hourly Wage rate (PPP $ 2007)]]*8), "") -> 0.05055725264 | FO17: 0.03954122902 | FP17: 7 | FQ17: 48 | FR17: =SUM(AP17:AQ17)+Table37[[#This Row],[Length of mass transit (km) - BRT]] -> 259 | FS17: 5.343150685 | FT17: 20629.92542 | FU17: 0.1207246139 | FV17: 0.03483992467 | FW17: 0.004237288136 | FX17: 0 | FY17: 0 | FZ17: 0 | GA17: 0 | GB17: 0 | GC17: 1.287873653 | GD17: 3.072821347 | GE17: 1.626787772 | GF17: 0.56 | GG17: 1.63 | GH17: =Table37[[#This Row],[Fares for 10 km of journey (2007 US$ PPP) - Bus]]/10*Table37[[#This Row],[Average trip length by car (km)]] -> 0.3227128165 | GI17: =Table37[[#This Row],[Fares for 10 km of journey (2007 US$ PPP) - Regional/Commuter Rail]]/10*Table37[[#This Row],[Average trip length by car (km)]] -> 0 | GJ17: =Table37[[#This Row],[Fares for 10 km of journey (2007 US$ PPP) - Metro]]/10*Table37[[#This Row],[Average trip length by car (km)]] -> 0.645425633 | GK17: =Table37[[#This Row],[Fares for 10 km of journey (2007 US$ PPP) - LRT]]/10*Table37[[#This Row],[Average trip length by car (km)]] -> 0 | GL17: =Table37[[#This Row],[Fares for 10 km of journey (2007 US$ PPP) - Tram]]/10*Table37[[#This Row],[Average trip length by car (km)]] -> 0 | GM17: =Table37[[#This Row],[Fares for 10 km of journey (2007 US$ PPP) - BRT]]/10*Table37[[#This Row],[Average trip length by car (km)]] -> 0.21 | GN17: =Table37[[#This Row],[Fares for 10 km of journey (2007 US$ PPP) - Trolley Bus]]/10*Table37[[#This Row],[Average trip length by car (km)]] -> 0.3396977016
B18: Hong Kong | C18: China | D18: EAP | E18: =16320*I18 -> 1315392 | F18: 1268122 | G18: 7331699 | H18: 6813000 | I18: 80.6 | J18: 80.5 | K18: 122.78 | L18: 110.4 | M18: 16320 | O18: 38617 | P18: 434843 | Q18: 473460 | R18: 690089 | S18: 13.89 | T18: 2.78 | U18: 0 | V18: 11.11 | W18: 0 | X18: 36.11 | Y18: 27.78 | Z18: 8.33 | AA18: 24 | AB18: 39 | AC18: 2.7 | AF18: 4.1 | AG18: 0.44 | AH18: 0.2 | AI18: 0 | AJ18: 0 | AK18: 7.402315068 | AL18: 4.631887671 | AM18: 2086 | AN18: 175 | AP18: 221.1 | AQ18: 16 | AR18: 30 | AS18: 0 | AT18: 0 | AV18: 154 | AW18: 68 | AX18: 120 | AY18: 0 | AZ18: 0 | BC18: 6883 | BD18: 4350 | BF18: 1731 | BG18: 670 | BH18: 119 | BI18: 164 | BJ18: 0 | BK18: 0 | BL18: 18138 | BM18: 5.2 | BN18: 7.3 | BO18: 7.3 | BP18: 4 | BQ18: 2.3 | BR18: 0 | BS18: 0 | BT18: 0.8366380789 | BU18: 1.174511149 | BV18: 1.174511149 | BW18: 0.643567753 | BX18: 0.370051458 | BY18: 0 | BZ18: 0 | CA18: 6221.84 | CC18: 10288 | CE18: not available | CF18: 0 | CG18: 0 | CH18: 6177.135 | CJ18: 13357 | CL18: not available | CM18: 0 | CN18: 0 | CO18: 1018.88 | CQ18: 20066 | CS18: 0 | CU18: 1640.414484 | CV18: 913.9050265 | CW18: 101.9806474 | CX18: not available | CY18: 0 | CZ18: 1823.951624 | DB18: 1186.530855 | DC18: 132.4023627 | DD18: not available | DE18: 0 | DF18: 0 | DG18: 1410.97567 | DI18: 1782.505663 | DJ18: 198.9058779 | DK18: 0 | DM18: 12000 | DO18: 9244 | DQ18: 700 | DR18: 0 | DS18: 0 | DT18: 11 | DU18: 0.64 | DV18: 3.05 | DW18: 14.54 | DY18: 11.2 | DZ18: 1.85 | EA18: 1.815 | EB18: 1.67 | EE18: 2.1 | EF18: 2.57 | EG18: 16 | EH18: 61 | EI18: 49 | EJ18: 19.6 | EK18: 19.6 | EL18: Euro 4 | EN18: 285146 | EO18: =Table37[[#This Row],[City Per Capita GDP (LC)]]*('GDP Deflator 1960-2011'!AZ13/'GDP Deflator 1960-2011'!BC13)*1/Table37[[#This Row],[PPP Exchange rate with the US$ (2016)]] -> 80402.34371 | EP18: 2138 | EQ18: =Table37[[#This Row],[City GDP (LC Billion)]]*'GDP Deflator 1960-2011'!AZ13/'GDP Deflator 1960-2011'!BD13*1/Table37[[#This Row],[PPP Exchange rate with the US$ (2016)]] -> 582.888593 | ER18: 322182 | ES18: =Table37[[#This Row],[Median Annual household income (LC)]]*'GDP Deflator 1960-2011'!AZ13/'GDP Deflator 1960-2011'!AY13*1/Table37[[#This Row],[PPP Exchange rate with the US$ (2016)]] -> 94746.8699 | ET18: 28 | EU18: =IF(ISERROR(Table37[[#This Row],[Minimum Hourly Wage Rate (LC)]]*'CPI 1960-2011'!AY13/'CPI 1960-2011'!BC13*1/Table37[[#This Row],[PPP Exchange rate with the US$ (2016)]]), "n/a", Table37[[#This Row],[Minimum Hourly Wage Rate (LC)]]*'GDP Deflator 1960-2011'!AZ13/'GDP Deflator 1960-2011'!BD13*1/Table37[[#This Row],[PPP Exchange rate with the US$ (2016)]]) -> 7.633714034 | EV18: 3.5 | EX18: 5.267128397 | EY18: 59.30999077 | EZ18: 1.53211418 | FA18: 0.05595944871 | FB18: 239.8715244 | FC18: 2086 | FD18: 284.5179542 | FE18: =IFERROR(AM18/K18, "") -> 16.98973774 | FF18: 1.068280958 | FG18: =IFERROR(Table37[[#This Row],[Operating Costs US$ - Bus]]/Table37[[#This Row],[Fare revenue US$- Bus]], "") -> 0.899373899 | FH18: =IFERROR(Table37[[#This Row],[Operating Costs US$ - Metro]]/Table37[[#This Row],[Fare revenue US$- Metro]], "") -> 0.7702328367 | FI18: =IFERROR(Table37[[#This Row],[Operating Costs US$- LRT]]/Table37[[#This Row],[Fare revenue US$- LRT]], "") -> 0.7702328367 | FJ18: =IFERROR(Table37[[#This Row],[Operating Costs US$- Tram]]/Table37[[#This Row],[Fare revenue US$- Tram]], "") ->  | FK18: =IFERROR(Table37[[#This Row],[Operating Costs US$ - Trolley Bus]]/Table37[[#This Row],[Fare revenue US$- Trolley Buses]], "") ->  | FL18: =IFERROR((AVERAGEIF(Table37[[#This Row],[Fares for 10 km of journey (2007 US$ PPP) - Bus]:[Fares for 10 km of journey (2007 US$ PPP) - Trolley Bus]], "<>0")*40*12)/EO18, "") -> 0.005013919021 | FM18: =IFERROR((AVERAGEIF(Table37[[#This Row],[Fares for 10 km of journey (2007 US$ PPP) - Regional/Commuter Rail]:[Fares for 10 km of journey (2007 US$ PPP) - BRT]], "<>0")*40*12)/EO18, "") -> 0.005018721626 | FN18: =IFERROR(2*(AVERAGEIF(Table37[[#This Row],[Fares for avg. length of journey (2007 US$ PPP) - Metro]:[Fares for avg. length of journey (2007 US$ PPP) - BRT]], "<>0"))/(Table37[[#This Row],[Minimum Hourly Wage rate (PPP $ 2007)]]*8), "") -> 0.05732806732 | FO18: 0.02761113542 | FP18: 24 | FQ18: 39 | FR18: =SUM(AP18:AQ18)+Table37[[#This Row],[Length of mass transit (km) - BRT]] -> 237.1 | FS18: 4.74 | FT18: 17746.16249 | FU18: 0.6465077194 | FV18: 2.941687345 | FW18: 11.53225806 | FX18: 0 | FY18: 0 | FZ18: 0 | GA18: 0 | GB18: 2.673323059 | GC18: 2.182304538 | GD18: 8.320036052 | GE18: 6.683307648 | GF18: 0.64 | GG18: 3.05 | GH18: =Table37[[#This Row],[Fares for 10 km of journey (2007 US$ PPP) - Bus]]/10*Table37[[#This Row],[Average trip length by car (km)]] -> 2.007931389 | GI18: =Table37[[#This Row],[Fares for 10 km of journey (2007 US$ PPP) - Regional/Commuter Rail]]/10*Table37[[#This Row],[Average trip length by car (km)]] -> 2.818826758 | GJ18: =Table37[[#This Row],[Fares for 10 km of journey (2007 US$ PPP) - Metro]]/10*Table37[[#This Row],[Average trip length by car (km)]] -> 2.818826758 | GK18: =Table37[[#This Row],[Fares for 10 km of journey (2007 US$ PPP) - LRT]]/10*Table37[[#This Row],[Average trip length by car (km)]] -> 1.544562607 | GL18: =Table37[[#This Row],[Fares for 10 km of journey (2007 US$ PPP) - Tram]]/10*Table37[[#This Row],[Average trip length by car (km)]] -> 0.8881234991 | GM18: =Table37[[#This Row],[Fares for 10 km of journey (2007 US$ PPP) - BRT]]/10*Table37[[#This Row],[Average trip length by car (km)]] -> 0 | GN18: =Table37[[#This Row],[Fares for 10 km of journey (2007 US$ PPP) - Trolley Bus]]/10*Table37[[#This Row],[Average trip length by car (km)]] -> 0
B19: Kunming | C19: China | D19: EAP | E19: 3780000 | F19: 2990000 | G19: 6626000 | H19: 6120000 | I19: 2081 | K19: 21473 | M19: 1816.434407 | P19: 1300000 | Q19: 1300000 | R19: =Q19+SUM(BA19:BE19)+BL19 -> 1300450 | S19: 10.77 | T19: 4.9 | U19: 31.02 | V19: 33.83 | W19: 2.1 | X19: 14.63 | Z19: 2.75 | AG19: 0 | AH19: 0 | AI19: 0.156 | AJ19: 0 | AK19: =SUM(AC19:AD19, AF19:AJ19) -> 0.156 | AL19: =SUM(AF19:AJ19) -> 0.156 | AQ19: 0 | AR19: 0 | AS19: 46.7 | AT19: 0 | AW19: 0 | AX19: 0 | AY19: 0 | AZ19: 63 | BC19: 450 | BH19: 0 | BI19: 0 | BJ19: 156 | BK19: 0 | BM19: 1 | BN19: 0 | BP19: 0 | BQ19: 0 | BR19: 0.19 | BS19: 0 | BT19: 0.2426412154 | BU19: 0 | BV19: 0 | BW19: 0 | BX19: 0 | BY19: 0.2927466264 | BZ19: 0 | CD19: 0 | CE19: 0 | CG19: 0 | CK19: 0 | CL19: 0 | CM19: 10.82 | CN19: 0 | CR19: 0 | CT19: 0 | CW19: 0 | CX19: 0 | CY19: 0 | DC19: 0 | DD19: 0 | DE19: 22.81216667 | DF19: 0 | DJ19: 0 | DL19: 0 | DP19: 0 | DQ19: 0 | DS19: 0 | DW19: 8 | DY19: 5.55 | DZ19: 1.12 | EB19: 0.82 | EE19: =431/2298800*100000 -> 18.74891248 | EG19: 19 | EH19: 33 | EI19: 82 | EL19: China IV | EN19: =EP19*10^9/G19 -> 32001.20736 | EO19: =Table37[[#This Row],[City Per Capita GDP (LC)]]*('GDP Deflator 1960-2011'!AZ14/'GDP Deflator 1960-2011'!BC14)*1/Table37[[#This Row],[PPP Exchange rate with the US$ (2016)]] -> 7997.845422 | EP19: 212.04 | EQ19: =Table37[[#This Row],[City GDP (LC Billion)]]*'GDP Deflator 1960-2011'!AZ14/'GDP Deflator 1960-2011'!BC14*1/Table37[[#This Row],[PPP Exchange rate with the US$ (2016)]] -> 52.99372377 | ER19: 262000 | ES19: =Table37[[#This Row],[Median Annual household income (LC)]]*'GDP Deflator 1960-2011'!AZ14/'GDP Deflator 1960-2011'!AY14*1/Table37[[#This Row],[PPP Exchange rate with the US$ (2016)]] -> 80547.76141 | ET19: =950/(20*8) -> 5.9375 | EU19: =IF(ISERROR(Table37[[#This Row],[Minimum Hourly Wage Rate (LC)]]*'CPI 1960-2011'!AY14/'CPI 1960-2011'!BC14*1/Table37[[#This Row],[PPP Exchange rate with the US$ (2016)]]), "n/a", Table37[[#This Row],[Minimum Hourly Wage Rate (LC)]]*'GDP Deflator 1960-2011'!AZ14/'GDP Deflator 1960-2011'!BD14*1/Table37[[#This Row],[PPP Exchange rate with the US$ (2016)]]) -> 1.378459633 | EV19: 3.5 | EX19: 0 | EY19: 196.1968005 | EZ19: 0.06791427709 | FA19: 0 | FC19: 0 | FD19: 0 | FE19: =IFERROR(AM19/I19, "") -> 0 | FF19: 0 | FG19: =IFERROR(Table37[[#This Row],[Operating Costs US$ - Bus]]/Table37[[#This Row],[Fare revenue US$- Bus]], "") ->  | FH19: =IFERROR(Table37[[#This Row],[Operating Costs US$ - Metro]]/Table37[[#This Row],[Fare revenue US$- Metro]], "") ->  | FI19: =IFERROR(Table37[[#This Row],[Operating Costs US$- LRT]]/Table37[[#This Row],[Fare revenue US$- LRT]], "") ->  | FJ19: =IFERROR(Table37[[#This Row],[Operating Costs US$- Tram]]/Table37[[#This Row],[Fare revenue US$- Tram]], "") ->  | FK19: =IFERROR(Table37[[#This Row],[Operating Costs US$ - Trolley Bus]]/Table37[[#This Row],[Fare revenue US$- Trolley Buses]], "") ->  | FL19: =IFERROR((AVERAGEIF(Table37[[#This Row],[Fares for 10 km of journey (2007 US$ PPP) - Bus]:[Fares for 10 km of journey (2007 US$ PPP) - Trolley Bus]], "<>0")*40*12)/EO19, "") -> 0.01606596217 | FM19: =IFERROR((AVERAGEIF(Table37[[#This Row],[Fares for 10 km of journey (2007 US$ PPP) - Regional/Commuter Rail]:[Fares for 10 km of journey (2007 US$ PPP) - BRT]], "<>0")*40*12)/EO19, "") -> 0.01756952945 | FN19: =IFERROR(2*(AVERAGEIF(Table37[[#This Row],[Fares for avg. length of journey (2007 US$ PPP) - Metro]:[Fares for avg. length of journey (2007 US$ PPP) - BRT]], "<>0"))/(Table37[[#This Row],[Minimum Hourly Wage rate (PPP $ 2007)]]*8), "") ->  | FO19: 0.1680452583 | FP19: 0 | FQ19: 0 | FR19: =SUM(AP19:AQ19)+Table37[[#This Row],[Length of mass transit (km) - BRT]] -> 46.7 | FS19: 0.156 | FT19: 3340.471092 | FU19: 0.02354361606 | FV19: 0.02244113407 | FW19: =IFERROR(((AP34*4)+((AR34+AS34)*0.5)+((AQ34+AS34)*1))/I19, "") -> 0 | FX19: 0 | FY19: 0 | GA19: 0 | GB19: 0 | GC19: 2.867491699 | GD19: 4.98038032 | GE19: 12.37549049 | GF19: 0 | GG19: 0 | GH19: =Table37[[#This Row],[Fares for 10 km of journey (2007 US$ PPP) - Bus]]/10*Table37[[#This Row],[Average trip length by car (km)]] -> 0 | GI19: =Table37[[#This Row],[Fares for 10 km of journey (2007 US$ PPP) - Regional/Commuter Rail]]/10*Table37[[#This Row],[Average trip length by car (km)]] -> 0 | GJ19: =Table37[[#This Row],[Fares for 10 km of journey (2007 US$ PPP) - Metro]]/10*Table37[[#This Row],[Average trip length by car (km)]] -> 0 | GK19: =Table37[[#This Row],[Fares for 10 km of journey (2007 US$ PPP) - LRT]]/10*Table37[[#This Row],[Average trip length by car (km)]] -> 0 | GL19: =Table37[[#This Row],[Fares for 10 km of journey (2007 US$ PPP) - Tram]]/10*Table37[[#This Row],[Average trip length by car (km)]] -> 0 | GM19: =Table37[[#This Row],[Fares for 10 km of journey (2007 US$ PPP) - BRT]]/10*Table37[[#This Row],[Average trip length by car (km)]] -> 0 | GN19: =Table37[[#This Row],[Fares for 10 km of journey (2007 US$ PPP) - Trolley Bus]]/10*Table37[[#This Row],[Average trip length by car (km)]] -> 0
B20: Shanghai | C20: China | D20: EAP | E20: 24260000 | F20: 13271400 | G20: 24387272 | H20: 16760000 | I20: 6341 | J20: 6218.65 | K20: 4688.72 | L20: 3885 | M20: 3825.894969 | N20: 8283500 | O20: 1201300 | P20: 1190000 | Q20: 2391300 | R20: =Q20+SUM(BA20:BE20)+BL20 -> 2458762 | S20: 40 | T20: 0 | U20: 0 | V20: 15 | W20: 0 | X20: 15 | Y20: 20 | Z20: 10 | AA20: 24.9 | AB20: 25.33 | AC20: 7.692 | AF20: 5.161835616 | AG20: 0 | AI20: 0 | AK20: 12.85383562 | AL20: 5.161835616 | AM20: 14619 | AN20: 23130 | AP20: 453 | AQ20: 0 | AR20: 10 | AS20: 0 | AV20: 282 | AW20: 0 | AX20: 15 | AY20: 328.042328 | AZ20: 0 | BC20: 17455 | BF20: 2842 | BH20: 0 | BI20: 27 | BJ20: 0 | BL20: 50007 | BM20: 2 | BO20: 4 | BP20: 0 | BQ20: 2 | BR20: 0 | BT20: 0.4852824308 | BU20: 0 | BV20: 0.9705648616 | BW20: 0 | BX20: 0.4852824308 | BY20: 0 | BZ20: 0 | CD20: 0 | CF20: 0 | CK20: 0 | CR20: 0 | CT20: 0 | CW20: 0 | DC20: 0 | DJ20: 0 | DL20: 0 | DM20: 74000 | DO20: 2700 | DP20: 0 | DR20: 0 | DU20: 0.15 | DV20: 2.07 | DW20: 6.27 | DY20: 5.1 | DZ20: 0.87 | EB20: 0.76 | EE20: =1393/17784200*100000 -> 7.832795403 | EF20: 8.234 | EG20: 53 | EH20: 73 | EI20: 84 | EK20: 147.77 | EL20: China IV | EN20: =EP20*10^9/G20 -> 70389.17678 | EO20: =Table37[[#This Row],[City Per Capita GDP (LC)]]*('GDP Deflator 1960-2011'!AZ15/'GDP Deflator 1960-2011'!BC15)*1/Table37[[#This Row],[PPP Exchange rate with the US$ (2016)]] -> 17591.89111 | EP20: 1716.6 | EQ20: =Table37[[#This Row],[City GDP (LC Billion)]]*'GDP Deflator 1960-2011'!AZ15/'GDP Deflator 1960-2011'!BC15*1/Table37[[#This Row],[PPP Exchange rate with the US$ (2016)]] -> 429.0182334 | ER20: 262000 | ES20: =Table37[[#This Row],[Median Annual household income (LC)]]*'GDP Deflator 1960-2011'!AZ15/'GDP Deflator 1960-2011'!AY15*1/Table37[[#This Row],[PPP Exchange rate with the US$ (2016)]] -> 80547.76141 | ET20: 12.5 | EU20: =IF(ISERROR(Table37[[#This Row],[Minimum Hourly Wage Rate (LC)]]*'CPI 1960-2011'!AY15/'CPI 1960-2011'!BC15*1/Table37[[#This Row],[PPP Exchange rate with the US$ (2016)]]), "n/a", Table37[[#This Row],[Minimum Hourly Wage Rate (LC)]]*'GDP Deflator 1960-2011'!AZ15/'GDP Deflator 1960-2011'!BD15*1/Table37[[#This Row],[PPP Exchange rate with the US$ (2016)]]) -> 2.902020281 | EV20: 3.5 | EX20: 49.25930215 | EY20: 48.79594569 | EZ20: 0.7157422118 | FA20: 0.4885792118 | FB20: 128.893529 | FC20: 14619 | FD20: 599.452042 | FE20: =IFERROR(AM20/I20, "") -> 2.305472323 | FF20: 4.23947293 | FG20: =IFERROR(Table37[[#This Row],[Operating Costs US$ - Bus]]/Table37[[#This Row],[Fare revenue US$- Bus]], "") ->  | FH20: =IFERROR(Table37[[#This Row],[Operating Costs US$ - Metro]]/Table37[[#This Row],[Fare revenue US$- Metro]], "") ->  | FI20: =IFERROR(Table37[[#This Row],[Operating Costs US$- LRT]]/Table37[[#This Row],[Fare revenue US$- LRT]], "") ->  | FJ20: =IFERROR(Table37[[#This Row],[Operating Costs US$- Tram]]/Table37[[#This Row],[Fare revenue US$- Tram]], "") ->  | FK20: =IFERROR(Table37[[#This Row],[Operating Costs US$ - Trolley Bus]]/Table37[[#This Row],[Fare revenue US$- Trolley Buses]], "") ->  | FL20: =IFERROR((AVERAGEIF(Table37[[#This Row],[Fares for 10 km of journey (2007 US$ PPP) - Bus]:[Fares for 10 km of journey (2007 US$ PPP) - Trolley Bus]], "<>0")*40*12)/EO20, "") -> 0.01765476797 | FM20: =IFERROR((AVERAGEIF(Table37[[#This Row],[Fares for 10 km of journey (2007 US$ PPP) - Regional/Commuter Rail]:[Fares for 10 km of journey (2007 US$ PPP) - BRT]], "<>0")*40*12)/EO20, "") -> 0.01986161397 | FN20: =IFERROR(2*(AVERAGEIF(Table37[[#This Row],[Fares for avg. length of journey (2007 US$ PPP) - Metro]:[Fares for avg. length of journey (2007 US$ PPP) - BRT]], "<>0"))/(Table37[[#This Row],[Minimum Hourly Wage rate (PPP $ 2007)]]*8), "") -> 0.1561437984 | FO20: 0.05934552423 | FP20: 24.9 | FQ20: 25.33 | FR20: =SUM(AP20:AQ20)+Table37[[#This Row],[Length of mass transit (km) - BRT]] -> 453 | FS20: 5.161835616 | FT20: 11148.67304 | FU20: 0.2116610507 | FV20: 0.07143983599 | FW20: =IFERROR(((AP30*4)+((AR30+AS30)*0.5)+((AQ30+AS30)*1))/I20, "") -> 0.09569468538 | FX20: 0 | FY20: 0 | FZ20: 0 | GA20: 0 | GB20: 0 | GC20: 2.173264808 | GD20: 2.993364736 | GE20: 3.444419696 | GF20: 0.15 | GG20: 2.07 | GH20: =Table37[[#This Row],[Fares for 10 km of journey (2007 US$ PPP) - Bus]]/10*Table37[[#This Row],[Average trip length by car (km)]] -> 1.208353253 | GI20: =Table37[[#This Row],[Fares for 10 km of journey (2007 US$ PPP) - Regional/Commuter Rail]]/10*Table37[[#This Row],[Average trip length by car (km)]] -> 0 | GJ20: =Table37[[#This Row],[Fares for 10 km of journey (2007 US$ PPP) - Metro]]/10*Table37[[#This Row],[Average trip length by car (km)]] -> 2.416706505 | GK20: =Table37[[#This Row],[Fares for 10 km of journey (2007 US$ PPP) - LRT]]/10*Table37[[#This Row],[Average trip length by car (km)]] -> 0 | GL20: =Table37[[#This Row],[Fares for 10 km of journey (2007 US$ PPP) - Tram]]/10*Table37[[#This Row],[Average trip length by car (km)]] -> 1.208353253 | GM20: =Table37[[#This Row],[Fares for 10 km of journey (2007 US$ PPP) - BRT]]/10*Table37[[#This Row],[Average trip length by car (km)]] -> 0 | GN20: =Table37[[#This Row],[Fares for 10 km of journey (2007 US$ PPP) - Trolley Bus]]/10*Table37[[#This Row],[Average trip length by car (km)]] -> 0
B21: Wuhan | C21: China | D21: EAP | E21: 8370000 | F21: 7582300 | G21: 8174063 | H21: 7582300 | I21: 8494.41 | J21: 8494 | K21: 1837.23 | M21: 985.3538974 | N21: 4686000 | O21: 232670 | P21: 318195 | Q21: 550865 | R21: =Q21+SUM(BA21:BE21)+BL21 -> 557862 | S21: 15.6 | U21: 20.5 | V21: 40.5 | W21: 0 | X21: 23.4 | Z21: 0 | AC21: 4.537260274 | AF21: 1.945 | AG21: 0 | AH21: 0 | AI21: 0 | AK21: 4.737260274 | AL21: 0.2 | AM21: 2542 | AN21: 1092 | AP21: 184.3 | AQ21: 95.5 | AR21: 0 | AS21: 0 | AV21: 130 | AW21: 74 | AX21: 0 | AZ21: 0 | BC21: 6997 | BH21: 302 | BI21: 0 | BJ21: 0 | BK21: 244 | BM21: 2 | BP21: 0 | BQ21: 0 | BR21: 0 | BT21: 0.4852824308 | BU21: 0 | BV21: 0 | BW21: 0 | BX21: 0 | BY21: 0 | BZ21: 0 | CA21: 1910 | CD21: 0 | CE21: 0 | CF21: 0 | CH21: 1630 | CK21: 0 | CL21: 0 | CR21: 0 | CT21: 0 | CU21: 501.1652993 | CW21: 0 | CX21: 0 | CZ21: 427.6960408 | DC21: 0 | DD21: 0 | DJ21: 0 | DL21: 0 | DP21: 0 | DQ21: 0 | DR21: 0 | DW21: 7 | DY21: 5.4 | DZ21: 0.99 | EB21: 0.8 | EC21: =2988/835.55*10 -> 35.76087607 | ED21: =371/835.55*10 -> 4.440189097 | EE21: =413/818.84*10 -> 5.043720385 | EF21: =569/781.19*10 -> 7.283759393 | EG21: 40 | EH21: 43 | EI21: 124 | EL21: China IV | EN21: =EP21*10^9/G21 -> 68092.20824 | EO21: =Table37[[#This Row],[City Per Capita GDP (LC)]]*('GDP Deflator 1960-2011'!AZ16/'GDP Deflator 1960-2011'!BC16)*1/Table37[[#This Row],[PPP Exchange rate with the US$ (2016)]] -> 17017.82529 | EP21: 556.59 | EQ21: =Table37[[#This Row],[City GDP (LC Billion)]]*'GDP Deflator 1960-2011'!AZ16/'GDP Deflator 1960-2011'!BC16*1/Table37[[#This Row],[PPP Exchange rate with the US$ (2016)]] -> 139.104776 | ER21: 250000 | ES21: =Table37[[#This Row],[Median Annual household income (LC)]]*'GDP Deflator 1960-2011'!AZ16/'GDP Deflator 1960-2011'!BB16*1/Table37[[#This Row],[PPP Exchange rate with the US$ (2016)]] -> 66657.09581 | ET21: 7.45 | EU21: =IF(ISERROR(Table37[[#This Row],[Minimum Hourly Wage Rate (LC)]]*'CPI 1960-2011'!AY16/'CPI 1960-2011'!BC16*1/Table37[[#This Row],[PPP Exchange rate with the US$ (2016)]]), "n/a", Table37[[#This Row],[Minimum Hourly Wage Rate (LC)]]*'GDP Deflator 1960-2011'!AZ16/'GDP Deflator 1960-2011'!BD16*1/Table37[[#This Row],[PPP Exchange rate with the US$ (2016)]]) -> 1.729604087 | EV21: 3.5 | EX21: 28.46442461 | EY21: 38.92739755 | EZ21: 0.8560002535 | FA21: 0.4170744736 | FB21: 177.8215972 | FC21: 2542 | FD21: 310.9836565 | FE21: =IFERROR(AM21/I21, "") -> 0.2992556281 | FF21: 0 | FG21: =IFERROR(Table37[[#This Row],[Operating Costs US$ - Bus]]/Table37[[#This Row],[Fare revenue US$- Bus]], "") -> 1.171779141 | FH21: =IFERROR(Table37[[#This Row],[Operating Costs US$ - Metro]]/Table37[[#This Row],[Fare revenue US$- Metro]], "") ->  | FI21: =IFERROR(Table37[[#This Row],[Operating Costs US$- LRT]]/Table37[[#This Row],[Fare revenue US$- LRT]], "") ->  | FJ21: =IFERROR(Table37[[#This Row],[Operating Costs US$- Tram]]/Table37[[#This Row],[Fare revenue US$- Tram]], "") ->  | FK21: =IFERROR(Table37[[#This Row],[Operating Costs US$ - Trolley Bus]]/Table37[[#This Row],[Fare revenue US$- Trolley Buses]], "") ->  | FL21: =IFERROR((AVERAGEIF(Table37[[#This Row],[Fares for 10 km of journey (2007 US$ PPP) - Bus]:[Fares for 10 km of journey (2007 US$ PPP) - Trolley Bus]], "<>0")*40*12)/EO21, "") -> 0.01368773993 | FM21: =IFERROR((AVERAGEIF(Table37[[#This Row],[Fares for 10 km of journey (2007 US$ PPP) - Regional/Commuter Rail]:[Fares for 10 km of journey (2007 US$ PPP) - BRT]], "<>0")*40*12)/EO21, "") ->  | FN21: =IFERROR(2*(AVERAGEIF(Table37[[#This Row],[Fares for avg. length of journey (2007 US$ PPP) - Metro]:[Fares for avg. length of journey (2007 US$ PPP) - BRT]], "<>0"))/(Table37[[#This Row],[Minimum Hourly Wage rate (PPP $ 2007)]]*8), "") ->  | FO21: 0.0698091548 | FQ21: 0 | FR21: =SUM(AP21:AQ21)+Table37[[#This Row],[Length of mass transit (km) - BRT]] -> 279.8 | FS21: 1.945 | FT21: 6951.393853 | FU21: 0.2379477623 | FV21: 0.0329393095 | FW21: =IFERROR(((AP31*4)+((AR31+AS31)*0.5)+((AQ31+AS31)*1))/I21, "") -> 0.05006822134 | FX21: 371.6438274 | FY21: 44.40189097 | FZ21: 0.1462013483 | GA21: 6.66193122 | GB21: 0 | GC21: 4.893527246 | GD21: 5.260541789 | GE21: 15.16993446 | GF21: 0 | GG21: 0 | GH21: =Table37[[#This Row],[Fares for 10 km of journey (2007 US$ PPP) - Bus]]/10*Table37[[#This Row],[Average trip length by car (km)]] ->  | GI21: =Table37[[#This Row],[Fares for 10 km of journey (2007 US$ PPP) - Regional/Commuter Rail]]/10*Table37[[#This Row],[Average trip length by car (km)]] ->  | GJ21: =Table37[[#This Row],[Fares for 10 km of journey (2007 US$ PPP) - Metro]]/10*Table37[[#This Row],[Average trip length by car (km)]] ->  | GK21: =Table37[[#This Row],[Fares for 10 km of journey (2007 US$ PPP) - LRT]]/10*Table37[[#This Row],[Average trip length by car (km)]] ->  | GL21: =Table37[[#This Row],[Fares for 10 km of journey (2007 US$ PPP) - Tram]]/10*Table37[[#This Row],[Average trip length by car (km)]] ->  | GM21: =Table37[[#This Row],[Fares for 10 km of journey (2007 US$ PPP) - BRT]]/10*Table37[[#This Row],[Average trip length by car (km)]] ->  | GN21: =Table37[[#This Row],[Fares for 10 km of journey (2007 US$ PPP) - Trolley Bus]]/10*Table37[[#This Row],[Average trip length by car (km)]] -> 
B22: Bogota | C22: Colombia | D22: LAC | E22: 7760500 | F22: 6302881 | G22: 9155100 | H22: 6840116 | K22: 307 | N22: 3293000 | O22: 116197 | P22: 958281 | Q22: 1074478 | R22: 1139309 | S22: 18.75 | T22: 3.12 | U22: 15.62 | V22: 18.75 | W22: 0 | X22: 37.5 | Y22: 0 | Z22: 6.26 | AA22: 11.67 | AB22: 30.5 | AC22: 1.9 | AF22: 0 | AG22: 0 | AH22: 0 | AI22: 2.213236 | AK22: 2.738852058 | AL22: 2.09 | AM22: 7749 | AN22: 663 | AP22: 0 | AQ22: 0 | AR22: 0 | AS22: 113 | AV22: 0 | AW22: 0 | AX22: 0 | AZ22: 189 | BA22: 1390 | BF22: 0 | BH22: 0 | BI22: 0 | BJ22: 1392 | BL22: 48907 | BN22: 0 | BO22: 0 | BP22: 0 | BQ22: 0 | BR22: 1700 | BS22: 0 | BT22: 0 | BU22: 0 | BV22: 0 | BW22: 0 | BX22: 0 | BY22: 0.66 | BZ22: 0 | CC22: 0 | CD22: 0 | CE22: 0 | CH22: 2295 | CJ22: 0 | CK22: 0 | CL22: 0 | CM22: 262.39 | CQ22: 0 | CR22: 0 | CS22: 0 | CT22: 0 | CV22: 0 | CW22: 0 | CX22: 0 | CZ22: 966.9767026 | DB22: 0 | DC22: 0 | DD22: 0 | DE22: 3114.702778 | DI22: 0 | DJ22: 0 | DK22: 0 | DL22: 0 | DM22: 21235 | DO22: 0 | DP22: 0 | DQ22: 0 | DT22: 6.5 | DU22: 1.31 | DV22: 2.08 | DW22: 2.114 | DY22: 3346.63 | DZ22: 0.72 | EA22: 1.582741188 | EB22: 1.15 | EE22: 6.94 | EF22: 20.45 | EG22: 21.7 | EH22: 32.9 | EI22: 52 | EJ22: 12.359 | EK22: 15.757 | EL22: Euro 4 | EN22: =(EP22*10^9/G22) -> 14622163.49 | EO22: =Table37[[#This Row],[City Per Capita GDP (LC)]]*('GDP Deflator 1960-2011'!AZ17/'GDP Deflator 1960-2011'!BC17)*1/Table37[[#This Row],[PPP Exchange rate with the US$ (2016)]] -> 10093.84869 | EP22: =70.3*1904.23 -> 133867.369 | EQ22: =Table37[[#This Row],[City GDP (LC Billion)]]*'GDP Deflator 1960-2011'!AZ17/'GDP Deflator 1960-2011'!BC17*1/Table37[[#This Row],[PPP Exchange rate with the US$ (2016)]] -> 92.4101941 | ER22: 70199310 | ES22: =Table37[[#This Row],[Median Annual household income (LC)]]*'GDP Deflator 1960-2011'!AZ17/'GDP Deflator 1960-2011'!AY17*1/Table37[[#This Row],[PPP Exchange rate with the US$ (2016)]] -> 59141.14924 | ET22: 15369.1 | EU22: =IF(ISERROR(Table37[[#This Row],[Minimum Hourly Wage Rate (LC)]]*'CPI 1960-2011'!AY17/'CPI 1960-2011'!BC17*1/Table37[[#This Row],[PPP Exchange rate with the US$ (2016)]]), "n/a", Table37[[#This Row],[Minimum Hourly Wage Rate (LC)]]*'GDP Deflator 1960-2011'!AZ17/'GDP Deflator 1960-2011'!BD17*1/Table37[[#This Row],[PPP Exchange rate with the US$ (2016)]]) -> 10.05910808 | EV22: 1246.8 | EX22: 12.69205142 | EY22: 104.6718223 | EZ22: 0.1518279429 | FA22: 0.1019890126 | FB22: 137.9225061 | FC22: 7749 | FD22: 846.4134745 | FE22: =IFERROR(AM22/K22, "") -> 25.24104235 | FF22: 15.27697842 | FG22: =IFERROR(Table37[[#This Row],[Operating Costs US$ - Bus]]/Table37[[#This Row],[Fare revenue US$- Bus]], "") -> 0 | FH22: =IFERROR(Table37[[#This Row],[Operating Costs US$ - Metro]]/Table37[[#This Row],[Fare revenue US$- Metro]], "") ->  | FI22: =IFERROR(Table37[[#This Row],[Operating Costs US$- LRT]]/Table37[[#This Row],[Fare revenue US$- LRT]], "") ->  | FJ22: =IFERROR(Table37[[#This Row],[Operating Costs US$- Tram]]/Table37[[#This Row],[Fare revenue US$- Tram]], "") ->  | FK22: =IFERROR(Table37[[#This Row],[Operating Costs US$ - Trolley Bus]]/Table37[[#This Row],[Fare revenue US$- Trolley Buses]], "") ->  | FL22: =IFERROR((AVERAGEIF(Table37[[#This Row],[Fares for 10 km of journey (2007 US$ PPP) - Bus]:[Fares for 10 km of journey (2007 US$ PPP) - Trolley Bus]], "<>0")*40*12)/EO22, "") -> 0.03138545166 | FM22: =IFERROR((AVERAGEIF(Table37[[#This Row],[Fares for 10 km of journey (2007 US$ PPP) - Regional/Commuter Rail]:[Fares for 10 km of journey (2007 US$ PPP) - BRT]], "<>0")*40*12)/EO22, "") -> 0.03138545166 | FN22: =IFERROR(2*(AVERAGEIF(Table37[[#This Row],[Fares for avg. length of journey (2007 US$ PPP) - Metro]:[Fares for avg. length of journey (2007 US$ PPP) - BRT]], "<>0"))/(Table37[[#This Row],[Minimum Hourly Wage rate (PPP $ 2007)]]*8), "") -> 0.01914235322 | FO22: 0.08559668635 | FP22: 11.67 | FQ22: 30.5 | FR22: =SUM(AP22:AQ22)+Table37[[#This Row],[Length of mass transit (km) - BRT]] -> 113 | FS22: 2.213236 | FT22: 19586.15929 | FU22: 0.2417489705 | FW22: =IFERROR(((AP32*4)+((AR32+AS32)*0.5)+((AQ32+AS32)*1))/I22, "") ->  | FX22: 0 | FY22: 0 | FZ22: 0 | GA22: 0 | GB22: 1.349957947 | GC22: 2.370263569 | GD22: 3.593625411 | GE22: 5.679894267 | GF22: 1.31 | GG22: 2.08 | GH22: =Table37[[#This Row],[Fares for 10 km of journey (2007 US$ PPP) - Bus]]/10*Table37[[#This Row],[Average trip length by car (km)]] -> 0 | GI22: =Table37[[#This Row],[Fares for 10 km of journey (2007 US$ PPP) - Regional/Commuter Rail]]/10*Table37[[#This Row],[Average trip length by car (km)]] -> 0 | GJ22: =Table37[[#This Row],[Fares for 10 km of journey (2007 US$ PPP) - Metro]]/10*Table37[[#This Row],[Average trip length by car (km)]] -> 0 | GK22: =Table37[[#This Row],[Fares for 10 km of journey (2007 US$ PPP) - LRT]]/10*Table37[[#This Row],[Average trip length by car (km)]] -> 0 | GL22: =Table37[[#This Row],[Fares for 10 km of journey (2007 US$ PPP) - Tram]]/10*Table37[[#This Row],[Average trip length by car (km)]] -> 0 | GM22: =Table37[[#This Row],[Fares for 10 km of journey (2007 US$ PPP) - BRT]]/10*Table37[[#This Row],[Average trip length by car (km)]] -> 0.77022 | GN22: =Table37[[#This Row],[Fares for 10 km of journey (2007 US$ PPP) - Trolley Bus]]/10*Table37[[#This Row],[Average trip length by car (km)]] -> 0
B23: Copenhagen | C23: Denmark | D23: OECD | E23: 602481 | F23: 500531 | G23: 2036717 | H23: 1713624 | I23: 74.7 | J23: 88.25 | K23: 2546.3 | L23: 2561.27 | M23: 8065.341365 | N23: 308374 | O23: =7364+2092 -> 9456 | P23: 120113 | Q23: 129569 | R23: 174145 | S23: 16.13 | T23: 0 | U23: 41.94 | V23: 12.9 | W23: 0 | X23: 9.68 | Y23: 12.9 | Z23: 6.45 | AA23: 23.2 | AB23: 35.2 | AC23: =199/365 -> 0.5452054795 | AE23: =89.7/365 -> 0.2457534247 | AF23: 0.137 | AG23: 0 | AH23: 0 | AI23: 0 | AK23: 0.6822054795 | AL23: 0.137 | AM23: 700 | AN23: 4500 | AO23: 169 | AP23: 20.5 | AQ23: 0 | AR23: 0 | AS23: 0 | AU23: 85 | AV23: 22 | AW23: 0 | AX23: 0 | AZ23: 0 | BA23: 15 | BB23: 31 | BC23: =624+238+30+2 -> 894 | BF23: =34*3 -> 102 | BG23: =162 -> 162 | BH23: 0 | BI23: 0 | BJ23: 0 | BL23: =476+1625 -> 2101 | BM23: =145/10 -> 14.5 | BN23: =145/10 -> 14.5 | BO23: =145/10 -> 14.5 | BP23: 0 | BQ23: 0 | BR23: 0 | BS23: 0 | BT23: 1.530921745 | BU23: 1.530921745 | BV23: 1.530921745 | BW23: 0 | BX23: 0 | BY23: 0 | BZ23: 0 | CC23: not available | CD23: 0 | CE23: 0 | CF23: 0 | CJ23: not available | CK23: 0 | CL23: 0 | CQ23: not available | CR23: 0 | CS23: not available | CT23: 0 | CW23: 0 | CX23: 0 | DC23: 0 | DD23: 0 | DJ23: 0 | DL23: 0 | DM23: 3000 | DN23: =2136 -> 2136 | DO23: 250 | DP23: 0 | DQ23: 0 | DR23: 0 | DU23: 0.78 | DV23: 1.8 | DW23: 10.3 | DX23: 13.54 | DY23: 9.7 | DZ23: 1.54 | EB23: 1.45 | EC23: =204/528208*100000 -> 38.62114924 | ED23: =(14/528208)*100000 -> 2.650471027 | EE23: =(19/501158)*100000 -> 3.791219536 | EF23: =31/495699*100000 -> 6.253795146 | EG23: 7 | EH23: 19.8 | EI23: 27 | EJ23: 1.4 | EK23: 2.124 | EL23: Euro 6b | EM23: 188400 | EN23: 323734 | EO23: =Table37[[#This Row],[City Per Capita GDP (LC)]]*('GDP Deflator 1960-2011'!AZ19/'GDP Deflator 1960-2011'!BD19)*1/Table37[[#This Row],[PPP Exchange rate with the US$ (2016)]] -> 40782.56372 | EP23: 391.4 | EQ23: =Table37[[#This Row],[City GDP (LC Billion)]]*'GDP Deflator 1960-2011'!AZ18/'GDP Deflator 1960-2011'!BC18*1/Table37[[#This Row],[PPP Exchange rate with the US$ (2016)]] -> 53.23961749 | ER23: 456613 | ES23: =Table37[[#This Row],[Median Annual household income (LC)]]*'GDP Deflator 1960-2011'!AZ19/'GDP Deflator 1960-2011'!AY19*1/Table37[[#This Row],[PPP Exchange rate with the US$ (2016)]] -> 64863.67624 | ET23: 110 | EU23: =IF(ISERROR(Table37[[#This Row],[Minimum Hourly Wage Rate (LC)]]*'CPI 1960-2011'!AY18/'CPI 1960-2011'!BC18*1/Table37[[#This Row],[PPP Exchange rate with the US$ (2016)]]), "n/a", Table37[[#This Row],[Minimum Hourly Wage Rate (LC)]]*'GDP Deflator 1960-2011'!AZ18/'GDP Deflator 1960-2011'!BD18*1/Table37[[#This Row],[PPP Exchange rate with the US$ (2016)]]) -> 15.07415202 | EV23: 7.2 | EX23: 4.642765784 | EY23: 58.97382896 | EZ23: 0.4615270556 | FA23: 0.05429957794 | FB23: 184.7028571 | FC23: 700 | FD23: 343.6903605 | FE23: =IFERROR(AM23/I23, "") -> 9.3708166 | FF23: 3.191489362 | FG23: =IFERROR(Table37[[#This Row],[Operating Costs US$ - Bus]]/Table37[[#This Row],[Fare revenue US$- Bus]], "") ->  | FH23: =IFERROR(Table37[[#This Row],[Operating Costs US$ - Metro]]/Table37[[#This Row],[Fare revenue US$- Metro]], "") ->  | FI23: =IFERROR(Table37[[#This Row],[Operating Costs US$- LRT]]/Table37[[#This Row],[Fare revenue US$- LRT]], "") ->  | FJ23: =IFERROR(Table37[[#This Row],[Operating Costs US$- Tram]]/Table37[[#This Row],[Fare revenue US$- Tram]], "") ->  | FK23: =IFERROR(Table37[[#This Row],[Operating Costs US$ - Trolley Bus]]/Table37[[#This Row],[Fare revenue US$- Trolley Buses]], "") ->  | FL23: =IFERROR((AVERAGEIF(Table37[[#This Row],[Fares for 10 km of journey (2007 US$ PPP) - Bus]:[Fares for 10 km of journey (2007 US$ PPP) - Trolley Bus]], "<>0")*40*12)/EO23, "") -> 0.01801854446 | FM23: =IFERROR((AVERAGEIF(Table37[[#This Row],[Fares for 10 km of journey (2007 US$ PPP) - Regional/Commuter Rail]:[Fares for 10 km of journey (2007 US$ PPP) - BRT]], "<>0")*40*12)/EO23, "") -> 0.01801854446 | FN23: =IFERROR(2*(AVERAGEIF(Table37[[#This Row],[Fares for avg. length of journey (2007 US$ PPP) - Metro]:[Fares for avg. length of journey (2007 US$ PPP) - BRT]], "<>0"))/(Table37[[#This Row],[Minimum Hourly Wage rate (PPP $ 2007)]]*8), "") -> 0.05890444855 | FO23: 0.04531348281 | FP23: 23.2 | FQ23: 35.2 | FR23: =SUM(AP23:AQ23)+Table37[[#This Row],[Length of mass transit (km) - BRT]] -> 20.5 | FS23: 0.137 | FT23: 6682.926829 | FU23: 0.06726511342 | FV23: 0.2744310576 | FW23: =IFERROR(((AP35*4)+((AR35+AS35)*0.5)+((AQ35+AS35)*1))/I23, "") -> 2.949129853 | FX23: 15.96858435 | FY23: 26.50471027 | FZ23: 0.02281226335 | GA23: 0.9169705903 | GB23: 0.687380721 | GC23: 3.436903605 | GD23: 9.72152734 | GE23: 13.25662819 | GF23: 0.78 | GG23: 1.8 | GH23: =Table37[[#This Row],[Fares for 10 km of journey (2007 US$ PPP) - Bus]]/10*Table37[[#This Row],[Average trip length by car (km)]] -> 3.551738448 | GI23: =Table37[[#This Row],[Fares for 10 km of journey (2007 US$ PPP) - Regional/Commuter Rail]]/10*Table37[[#This Row],[Average trip length by car (km)]] -> 3.551738448 | GJ23: =Table37[[#This Row],[Fares for 10 km of journey (2007 US$ PPP) - Metro]]/10*Table37[[#This Row],[Average trip length by car (km)]] -> 3.551738448 | GK23: =Table37[[#This Row],[Fares for 10 km of journey (2007 US$ PPP) - LRT]]/10*Table37[[#This Row],[Average trip length by car (km)]] -> 0 | GL23: =Table37[[#This Row],[Fares for 10 km of journey (2007 US$ PPP) - Tram]]/10*Table37[[#This Row],[Average trip length by car (km)]] -> 0 | GM23: =Table37[[#This Row],[Fares for 10 km of journey (2007 US$ PPP) - BRT]]/10*Table37[[#This Row],[Average trip length by car (km)]] -> 0 | GN23: =Table37[[#This Row],[Fares for 10 km of journey (2007 US$ PPP) - Trolley Bus]]/10*Table37[[#This Row],[Average trip length by car (km)]] -> 0
B24: Cairo | C24: Egypt | D24: MENA | E24: 9500000 | F24: 7216387 | G24: 20439541 | H24: 17290000 | I24: 214 | K24: 3974 | M24: 44392.52336 | O24: 175687 | P24: 1017223 | Q24: 1192910 | R24: 1494725 | S24: 61.54 | T24: 0 | U24: 0 | V24: 6.62 | W24: 0 | X24: 16.92 | Y24: 3.08 | Z24: 11.84 | AA24: 28.71 | AB24: 52.75 | AC24: 2.65 | AD24: 0.336 | AE24: 1.4 | AF24: 2.145205479 | AG24: 0 | AI24: 0 | AK24: 3.750684932 | AL24: 2.145205479 | AM24: 24609 | AN24: 1450 | AP24: 76 | AQ24: 0 | AS24: 0 | AV24: 55 | AW24: 0 | AZ24: 0 | BC24: 1788 | BD24: 499 | BF24: 87 | BH24: 0 | BI24: 91 | BJ24: 0 | BL24: 71075 | BO24: 1 | BP24: 0 | BR24: 0 | BS24: 0 | BT24: 0 | BU24: 0 | BV24: 0.3430964119 | BW24: 0 | BX24: 0 | BY24: 0 | BZ24: 0 | CD24: 0 | CF24: 0 | CK24: 0 | CR24: 0 | CT24: 0 | CW24: 0 | DC24: 0 | DJ24: 0 | DL24: 0 | DM24: 29860 | DO24: 6000 | DP24: 0 | DR24: 0 | DU24: 0.73 | DV24: 1.66 | DW24: 2.9 | DY24: 1.8 | DZ24: 0.33 | EA24: 0.309 | EB24: 118.83 | EF24: 11.412 | EG24: 13.4 | EH24: 76 | EI24: 179 | EJ24: 8.23 | EK24: 43.279 | EL24: Euro 3 | EO24: =Table37[[#This Row],[City Per Capita GDP (LC)]]*('GDP Deflator 1960-2011'!AZ20/'GDP Deflator 1960-2011'!BB20)*1/Table37[[#This Row],[PPP Exchange rate with the US$ (2016)]] -> 0 | EQ24: =Table37[[#This Row],[City GDP (LC Billion)]]*'GDP Deflator 1960-2011'!AZ20/'GDP Deflator 1960-2011'!BC20*1/Table37[[#This Row],[PPP Exchange rate with the US$ (2016)]] -> 0 | ER24: 106325 | ES24: =Table37[[#This Row],[Median Annual household income (LC)]]*'GDP Deflator 1960-2011'!AZ20/'GDP Deflator 1960-2011'!AY20*1/Table37[[#This Row],[PPP Exchange rate with the US$ (2016)]] -> 66509.67812 | ET24: =700/(20*8) -> 4.375 | EU24: =IF(ISERROR(Table37[[#This Row],[Minimum Hourly Wage Rate (LC)]]*'CPI 1960-2011'!AY20/'CPI 1960-2011'!BC20*1/Table37[[#This Row],[PPP Exchange rate with the US$ (2016)]]), "n/a", Table37[[#This Row],[Minimum Hourly Wage Rate (LC)]]*'GDP Deflator 1960-2011'!AZ20/'GDP Deflator 1960-2011'!BD20*1/Table37[[#This Row],[PPP Exchange rate with the US$ (2016)]]) -> 1.591399473 | EV24: 1.8 | EX24: 8.595447422 | EY24: 49.76740916 | EZ24: 0.1118909666 | FA24: 0.1175380087 | FB24: 48.02547848 | FC24: 24609 | FD24: 1203.989855 | FE24: =IFERROR(AM24/K24, "") -> 6.192501258 | FF24: 13.05640577 | FG24: =IFERROR(Table37[[#This Row],[Operating Costs US$ - Bus]]/Table37[[#This Row],[Fare revenue US$- Bus]], "") ->  | FH24: =IFERROR(Table37[[#This Row],[Operating Costs US$ - Metro]]/Table37[[#This Row],[Fare revenue US$- Metro]], "") ->  | FI24: =IFERROR(Table37[[#This Row],[Operating Costs US$- LRT]]/Table37[[#This Row],[Fare revenue US$- LRT]], "") ->  | FJ24: =IFERROR(Table37[[#This Row],[Operating Costs US$- Tram]]/Table37[[#This Row],[Fare revenue US$- Tram]], "") ->  | FK24: =IFERROR(Table37[[#This Row],[Operating Costs US$ - Trolley Bus]]/Table37[[#This Row],[Fare revenue US$- Trolley Buses]], "") ->  | FL24: =IFERROR((AVERAGEIF(Table37[[#This Row],[Fares for 10 km of journey (2007 US$ PPP) - Bus]:[Fares for 10 km of journey (2007 US$ PPP) - Trolley Bus]], "<>0")*40*12)/EO24, "") ->  | FM24: =IFERROR((AVERAGEIF(Table37[[#This Row],[Fares for 10 km of journey (2007 US$ PPP) - Regional/Commuter Rail]:[Fares for 10 km of journey (2007 US$ PPP) - BRT]], "<>0")*40*12)/EO24, "") ->  | FN24: =IFERROR(2*(AVERAGEIF(Table37[[#This Row],[Fares for avg. length of journey (2007 US$ PPP) - Metro]:[Fares for avg. length of journey (2007 US$ PPP) - BRT]], "<>0"))/(Table37[[#This Row],[Minimum Hourly Wage rate (PPP $ 2007)]]*8), "") -> 0.154742699 | FP24: 28.71 | FQ24: 52.75 | FR24: =SUM(AP24:AQ24)+Table37[[#This Row],[Length of mass transit (km) - BRT]] -> 76 | FS24: 2.145205479 | FT24: 28226.38789 | FU24: 0.1049537012 | FV24: 0.3551401869 | FW24: 1.013200935 | FX24: 0 | FY24: 0 | FZ24: 0 | GA24: 0 | GB24: 0.4026509206 | GC24: 0.6555920214 | GD24: 3.718283106 | GE24: 8.757535211 | GF24: 0.73 | GG24: 1.66 | GH24: =Table37[[#This Row],[Fares for 10 km of journey (2007 US$ PPP) - Bus]]/10*Table37[[#This Row],[Average trip length by car (km)]] -> 0 | GI24: =Table37[[#This Row],[Fares for 10 km of journey (2007 US$ PPP) - Regional/Commuter Rail]]/10*Table37[[#This Row],[Average trip length by car (km)]] -> 0 | GJ24: =Table37[[#This Row],[Fares for 10 km of journey (2007 US$ PPP) - Metro]]/10*Table37[[#This Row],[Average trip length by car (km)]] -> 0.9850297986 | GK24: =Table37[[#This Row],[Fares for 10 km of journey (2007 US$ PPP) - LRT]]/10*Table37[[#This Row],[Average trip length by car (km)]] -> 0 | GL24: =Table37[[#This Row],[Fares for 10 km of journey (2007 US$ PPP) - Tram]]/10*Table37[[#This Row],[Average trip length by car (km)]] -> 0 | GM24: =Table37[[#This Row],[Fares for 10 km of journey (2007 US$ PPP) - BRT]]/10*Table37[[#This Row],[Average trip length by car (km)]] -> 0 | GN24: =Table37[[#This Row],[Fares for 10 km of journey (2007 US$ PPP) - Trolley Bus]]/10*Table37[[#This Row],[Average trip length by car (km)]] -> 0
B25: Tallinn | C25: Estonia | D25: OECD | E25: 411603 | F25: 401646 | G25: 530530 | H25: 531095 | I25: 148.2 | J25: 158.3 | K25: 4333.1 | L25: 4298.8 | M25: 2777.348178 | N25: 212259 | O25: 2637 | P25: 190712 | Q25: 193349 | R25: 239841.0681 | S25: 40 | T25: 0 | U25: 7 | V25: 17 | W25: 0 | X25: 30.8 | Y25: 5.2 | Z25: 0 | AA25: 8 | AB25: 11 | AC25: 0.1745205479 | AE25: 0.017 | AF25: 0 | AG25: 0 | AH25: 0.07178082192 | AI25: 0 | AJ25: 0.09287671233 | AK25: 0.3391780822 | AL25: 0.1646575342 | AM25: 3452 | AN25: 522.1 | AO25: 795 | AP25: 0 | AQ25: 0 | AR25: 66 | AS25: 0 | AT25: 134.3 | AU25: 126 | AV25: 0 | AW25: 0 | AZ25: 0 | BC25: 335 | BF25: 0 | BG25: 38 | BH25: 0 | BI25: 113 | BJ25: 0 | BK25: 129 | BM25: 0.4625 | BO25: 0 | BP25: 0 | BQ25: 0.4625 | BR25: 0 | BS25: 0.4625 | BT25: 0.4310948889 | BU25: 0 | BV25: 0 | BW25: 0 | BX25: 0.4310948889 | BY25: 0 | BZ25: 0.4310948889 | CC25: 0 | CD25: 0 | CF25: 0 | CJ25: 0 | CK25: 0 | CQ25: 0 | CR25: 0 | CS25: 0 | CT25: 0 | CV25: 0 | CW25: 0 | DB25: 0 | DC25: 0 | DI25: 0 | DJ25: 0 | DK25: 0 | DL25: 0 | DM25: 1072 | DN25: 285 | DO25: 0 | DP25: 0 | DQ25: 171 | DR25: 0 | DS25: 454 | DT25: 10 | DU25: 1.16 | DW25: 1.04 | DY25: 1.119 | DZ25: 1.16 | EA25: 0.945125207 | EB25: 1.25 | EC25: 134 | ED25: 4 | EE25: 5 | EF25: 7 | EH25: 10.1 | EI25: 14 | EL25: Euro 5 | EM25: =3573/2.4 -> 1488.75 | EN25: 15400 | EO25: =Table37[[#This Row],[City Per Capita GDP (LC)]]*('GDP Deflator 1960-2011'!AZ21/'GDP Deflator 1960-2011'!BB21)*1/Table37[[#This Row],[PPP Exchange rate with the US$ (2016)]] -> 29537.97764 | EP25: 20.5 | EQ25: =Table37[[#This Row],[City GDP (LC Billion)]]*'GDP Deflator 1960-2011'!AZ21/'GDP Deflator 1960-2011'!BB21*1/Table37[[#This Row],[PPP Exchange rate with the US$ (2016)]] -> 39.32003517 | ER25: 23595 | ES25: =Table37[[#This Row],[Median Annual household income (LC)]]*'GDP Deflator 1960-2011'!AZ21/'GDP Deflator 1960-2011'!BB21*1/Table37[[#This Row],[PPP Exchange rate with the US$ (2016)]] -> 45256.40145 | ET25: 2.44 | EU25: =IF(ISERROR(Table37[[#This Row],[Minimum Hourly Wage Rate (LC)]]*'CPI 1960-2011'!AY20/'CPI 1960-2011'!BC20*1/Table37[[#This Row],[PPP Exchange rate with the US$ (2016)]]), "n/a", Table37[[#This Row],[Minimum Hourly Wage Rate (LC)]]*'GDP Deflator 1960-2011'!AZ20/'GDP Deflator 1960-2011'!BD20*1/Table37[[#This Row],[PPP Exchange rate with the US$ (2016)]]) -> 3.195166393 | EV25: 0.5 | EX25: 4.970501197 | EY25: 359.4744878 | EZ25: 0.6314440277 | FA25: 0.01099478092 | FB25: 55.87137891 | FC25: 3452 | FD25: 6506.700846 | FE25: =IFERROR(AM25/I25, "") -> 23.2928475 | FF25: 3.2 | FG25: =IFERROR(Table37[[#This Row],[Operating Costs US$ - Bus]]/Table37[[#This Row],[Fare revenue US$- Bus]], "") ->  | FH25: =IFERROR(Table37[[#This Row],[Operating Costs US$ - Metro]]/Table37[[#This Row],[Fare revenue US$- Metro]], "") ->  | FI25: =IFERROR(Table37[[#This Row],[Operating Costs US$- LRT]]/Table37[[#This Row],[Fare revenue US$- LRT]], "") ->  | FJ25: =IFERROR(Table37[[#This Row],[Operating Costs US$- Tram]]/Table37[[#This Row],[Fare revenue US$- Tram]], "") ->  | FK25: =IFERROR(Table37[[#This Row],[Operating Costs US$ - Trolley Bus]]/Table37[[#This Row],[Fare revenue US$- Trolley Buses]], "") ->  | FL25: =IFERROR((AVERAGEIF(Table37[[#This Row],[Fares for 10 km of journey (2007 US$ PPP) - Bus]:[Fares for 10 km of journey (2007 US$ PPP) - Trolley Bus]], "<>0")*40*12)/EO25, "") -> 0.007005406708 | FM25: =IFERROR((AVERAGEIF(Table37[[#This Row],[Fares for 10 km of journey (2007 US$ PPP) - Regional/Commuter Rail]:[Fares for 10 km of journey (2007 US$ PPP) - BRT]], "<>0")*40*12)/EO25, "") -> 0.007005406708 | FN25: =IFERROR(2*(AVERAGEIF(Table37[[#This Row],[Fares for avg. length of journey (2007 US$ PPP) - Metro]:[Fares for avg. length of journey (2007 US$ PPP) - BRT]], "<>0"))/(Table37[[#This Row],[Minimum Hourly Wage rate (PPP $ 2007)]]*8), "") -> 0.02698419023 | FO25: 0.04712577202 | FP25: 8 | FQ25: 11 | FR25: =SUM(AP25:AQ25)+Table37[[#This Row],[Length of mass transit (km) - BRT]] -> 0 | FS25: 0.07178082192 | FT25: 1087.588211 | FU25: 0.1353002128 | FV25: 0 | FW25: 0 | FX25: 16.46412 | FY25: 40 | FZ25: 0.004769443801 | GA25: 0.6864595847 | GB25: 0 | GC25: 0 | GD25: 19.03756621 | GE25: 26.38870563 | GF25: 1.16 | GG25: 0 | GH25: =Table37[[#This Row],[Fares for 10 km of journey (2007 US$ PPP) - Bus]]/10*Table37[[#This Row],[Average trip length by car (km)]] -> 0.3448759111 | GI25: =Table37[[#This Row],[Fares for 10 km of journey (2007 US$ PPP) - Regional/Commuter Rail]]/10*Table37[[#This Row],[Average trip length by car (km)]] -> 0 | GJ25: =Table37[[#This Row],[Fares for 10 km of journey (2007 US$ PPP) - Metro]]/10*Table37[[#This Row],[Average trip length by car (km)]] -> 0 | GK25: =Table37[[#This Row],[Fares for 10 km of journey (2007 US$ PPP) - LRT]]/10*Table37[[#This Row],[Average trip length by car (km)]] -> 0 | GL25: =Table37[[#This Row],[Fares for 10 km of journey (2007 US$ PPP) - Tram]]/10*Table37[[#This Row],[Average trip length by car (km)]] -> 0.3448759111 | GM25: =Table37[[#This Row],[Fares for 10 km of journey (2007 US$ PPP) - BRT]]/10*Table37[[#This Row],[Average trip length by car (km)]] -> 0 | GN25: =Table37[[#This Row],[Fares for 10 km of journey (2007 US$ PPP) - Trolley Bus]]/10*Table37[[#This Row],[Average trip length by car (km)]] -> 0.3448759111
B26: Helsinki | C26: Finland | D26: OECD | E26: 628208 | F26: 560905 | G26: 1092404 | H26: 1022139 | I26: 213 | K26: 769.5 | M26: 2949.333333 | N26: 319286 | O26: 12696 | P26: 240175 | Q26: 252871 | R26: 253468 | S26: 37.9 | T26: 1 | U26: 9.5 | V26: 12.5 | W26: 0 | Y26: 37.8 | Z26: 1.3 | AA26: 13 | AB26: 26 | AC26: 0.246 | AE26: 0.286 | AF26: 0.152 | AG26: 0 | AH26: 0.158 | AI26: 0.03 | AK26: 0.4472054795 | AL26: 0.3017260274 | AN26: 450 | AO26: 173 | AP26: 21.1 | AQ26: 0 | AR26: 96 | AS26: 27.5 | AU26: 52 | AV26: 17 | AW26: 0 | AX26: 288 | AZ26: 0 | BC26: 447 | BF26: 74 | BG26: 277 | BH26: 0 | BI26: 132 | BJ26: 0 | BL26: 1077 | BM26: 1.395 | BN26: 1.395 | BO26: 1.395 | BP26: 0 | BQ26: 1.395 | BR26: 3.52 | BS26: 0 | BT26: 1.422066383 | BU26: 1.422066383 | BV26: 1.422066383 | BW26: 0 | BX26: 1.422066383 | BY26: 0 | BZ26: 0 | CC26: not available | CD26: 0 | CE26: not available | CF26: 0 | CJ26: not available | CK26: 0 | CL26: not available | CQ26: not available | CR26: 0 | CS26: not available | CT26: 0 | CW26: 0 | DC26: 0 | DE26: 22.16 | DJ26: 0 | DL26: 0 | DM26: 1068 | DN26: 9500 | DO26: 110 | DP26: 0 | DQ26: 540 | DR26: 0 | DT26: 6.9 | DU26: 1.23 | DV26: 1.82 | DW26: 1.4 | DY26: 1.384 | DZ26: 1.55 | EB26: 1.54 | EE26: 2 | EF26: 4.714 | EG26: 4 | EH26: 19.2 | EI26: 19 | EJ26: 2.789 | EL26: Euro 6b | EM26: 28966 | EN26: 50200 | EO26: =Table37[[#This Row],[City Per Capita GDP (LC)]]*('GDP Deflator 1960-2011'!AZ22/'GDP Deflator 1960-2011'!BB22)*1/Table37[[#This Row],[PPP Exchange rate with the US$ (2016)]] -> 53440.93661 | EP26: 80.96 | EQ26: =Table37[[#This Row],[City GDP (LC Billion)]]*'GDP Deflator 1960-2011'!AZ22/'GDP Deflator 1960-2011'!BB22*1/Table37[[#This Row],[PPP Exchange rate with the US$ (2016)]] -> 86.18681728 | ER26: 44200 | ES26: =Table37[[#This Row],[Median Annual household income (LC)]]*'GDP Deflator 1960-2011'!AZ22/'GDP Deflator 1960-2011'!BC22*1/Table37[[#This Row],[PPP Exchange rate with the US$ (2016)]] -> 46853.1682 | ET26: No universal minimum wage in Finland | EU26: =IF(ISERROR(Table37[[#This Row],[Minimum Hourly Wage Rate (LC)]]*'CPI 1960-2011'!AY22/'CPI 1960-2011'!BC22*1/Table37[[#This Row],[PPP Exchange rate with the US$ (2016)]]), "n/a", Table37[[#This Row],[Minimum Hourly Wage Rate (LC)]]*'GDP Deflator 1960-2011'!AZ22/'GDP Deflator 1960-2011'!BD22*1/Table37[[#This Row],[PPP Exchange rate with the US$ (2016)]]) -> n/a | EV26: 0.9 | EX26: 11.62207388 | EY26: 219.8591364 | EZ26: 0.4091892743 | FA26: 0.05008916313 | FC26: 0 | FD26: 0 | FE26: 0 | FF26: 2.389261745 | FG26: =IFERROR(Table37[[#This Row],[Operating Costs US$ - Bus]]/Table37[[#This Row],[Fare revenue US$- Bus]], "") ->  | FH26: =IFERROR(Table37[[#This Row],[Operating Costs US$ - Metro]]/Table37[[#This Row],[Fare revenue US$- Metro]], "") ->  | FI26: =IFERROR(Table37[[#This Row],[Operating Costs US$- LRT]]/Table37[[#This Row],[Fare revenue US$- LRT]], "") ->  | FJ26: =IFERROR(Table37[[#This Row],[Operating Costs US$- Tram]]/Table37[[#This Row],[Fare revenue US$- Tram]], "") ->  | FK26: =IFERROR(Table37[[#This Row],[Operating Costs US$ - Trolley Bus]]/Table37[[#This Row],[Fare revenue US$- Trolley Buses]], "") ->  | FL26: =IFERROR((AVERAGEIF(Table37[[#This Row],[Fares for 10 km of journey (2007 US$ PPP) - Bus]:[Fares for 10 km of journey (2007 US$ PPP) - Trolley Bus]], "<>0")*40*12)/EO26, "") -> 0.01277282748 | FM26: =IFERROR((AVERAGEIF(Table37[[#This Row],[Fares for 10 km of journey (2007 US$ PPP) - Regional/Commuter Rail]:[Fares for 10 km of journey (2007 US$ PPP) - BRT]], "<>0")*40*12)/EO26, "") -> 0.01277282748 | FN26: =IFERROR(2*(AVERAGEIF(Table37[[#This Row],[Fares for avg. length of journey (2007 US$ PPP) - Metro]:[Fares for avg. length of journey (2007 US$ PPP) - BRT]], "<>0"))/(Table37[[#This Row],[Minimum Hourly Wage rate (PPP $ 2007)]]*8), "") ->  | FO26: 0.03480477922 | FP26: 13 | FQ26: 26 | FR26: =SUM(AP26:AQ26)+Table37[[#This Row],[Length of mass transit (km) - BRT]] -> 48.6 | FS26: 0.34 | FT26: 2351.31397 | FU26: 0.3112401639 | FV26: 0.2281690141 | FW26: 0.2746478873 | FX26: 0 | FY26: 0 | GA26: 0 | GB26: 2.553084756 | GC26: 3.661648987 | GD26: 17.57591514 | GE26: 17.39283269 | GF26: 1.23 | GG26: 1.82 | GH26: =Table37[[#This Row],[Fares for 10 km of journey (2007 US$ PPP) - Bus]]/10*Table37[[#This Row],[Average trip length by car (km)]] -> 1.848686298 | GI26: =Table37[[#This Row],[Fares for 10 km of journey (2007 US$ PPP) - Regional/Commuter Rail]]/10*Table37[[#This Row],[Average trip length by car (km)]] -> 1.848686298 | GJ26: =Table37[[#This Row],[Fares for 10 km of journey (2007 US$ PPP) - Metro]]/10*Table37[[#This Row],[Average trip length by car (km)]] -> 1.848686298 | GK26: =Table37[[#This Row],[Fares for 10 km of journey (2007 US$ PPP) - LRT]]/10*Table37[[#This Row],[Average trip length by car (km)]] -> 0 | GL26: =Table37[[#This Row],[Fares for 10 km of journey (2007 US$ PPP) - Tram]]/10*Table37[[#This Row],[Average trip length by car (km)]] -> 1.848686298 | GM26: =Table37[[#This Row],[Fares for 10 km of journey (2007 US$ PPP) - BRT]]/10*Table37[[#This Row],[Average trip length by car (km)]] -> 0 | GN26: =Table37[[#This Row],[Fares for 10 km of journey (2007 US$ PPP) - Trolley Bus]]/10*Table37[[#This Row],[Average trip length by car (km)]] -> 0 | GO26: 1,930 staff at HKL/HST that operates bus, metro, tram, train and ferry.
B27: Marseille | C27: France | D27: OECD | E27: 855393 | F27: 797,491 | G27: 1831500 | H27: 1846878 | I27: 240.62 | J27: 240.62 | K27: 3179.51 | L27: 3179.51 | M27: 3554.953869 | N27: 458747 | P27: 456994 | Q27: 456994 | R27: 457589 | S27: 57.67 | T27: 2.7 | U27: 4.01 | V27: 11.7 | W27: 0 | Y27: 10.8 | Z27: 13.12 | AA27: 8 | AB27: 30 | AC27: 0.191 | AF27: 0.204 | AG27: 0 | AH27: 0.04257534247 | AI27: 0 | AJ27: 0.01808219178 | AK27: 0.498630137 | AL27: 0.2646575342 | AN27: 673 | AP27: 21.5 | AQ27: 0 | AR27: 11.5 | AS27: 0 | AV27: 28 | AW27: 0 | AX27: 28 | AZ27: 0 | BC27: 595 | BF27: 144 | BH27: 0 | BI27: 26 | BJ27: 0 | BM27: 1.6 | BO27: 0.6 | BP27: 0 | BQ27: 0.6 | BR27: 0 | BS27: 0 | BT27: 1.7 | BU27: 0 | BV27: 0.624858247 | BW27: 0 | BX27: 0.624858247 | BY27: 0 | BZ27: 0 | CD27: 0 | CF27: 0 | CK27: 0 | CR27: 0 | CT27: 0 | CW27: 0 | DC27: 0 | DJ27: 0 | DL27: 0 | DM27: 3600 | DO27: 118 | DP27: 0 | DQ27: 90 | DR27: 0 | DT27: 7.6 | DU27: 1.22 | DV27: 3.73 | DW27: 1.44 | DY27: 1.323 | DZ27: 1.61 | EB27: 1.47 | EC27: 12 | EE27: 6 | EF27: 9.393 | EH27: 34.7 | EI27: 29 | EL27: Euro 6b | EM27: 24947 | EN27: 30500 | EO27: =Table37[[#This Row],[City Per Capita GDP (LC)]]*('GDP Deflator 1960-2011'!AZ23/'GDP Deflator 1960-2011'!BB23)*1/Table37[[#This Row],[PPP Exchange rate with the US$ (2016)]] -> 42189.20609 | EP27: 152.77 | EQ27: =Table37[[#This Row],[City GDP (LC Billion)]]*'GDP Deflator 1960-2011'!AZ23/'GDP Deflator 1960-2011'!BB23*1/Table37[[#This Row],[PPP Exchange rate with the US$ (2016)]] -> 211.3195087 | ER27: =4450*12 -> 53400 | ES27: =Table37[[#This Row],[Median Annual household income (LC)]]*'GDP Deflator 1960-2011'!AZ23/'GDP Deflator 1960-2011'!AT23*1/Table37[[#This Row],[PPP Exchange rate with the US$ (2016)]] -> 86355.38305 | ET27: 9.76 | EU27: =IF(ISERROR(Table37[[#This Row],[Minimum Hourly Wage Rate (LC)]]*'CPI 1960-2011'!AY23/'CPI 1960-2011'!BC23*1/Table37[[#This Row],[PPP Exchange rate with the US$ (2016)]]), "n/a", Table37[[#This Row],[Minimum Hourly Wage Rate (LC)]]*'GDP Deflator 1960-2011'!AZ23/'GDP Deflator 1960-2011'!BD23*1/Table37[[#This Row],[PPP Exchange rate with the US$ (2016)]]) -> 13.18333718 | EV27: 0.7 | EX27: 0 | EY27: 249.5189735 | EZ27: 0.3248703249 | FA27: 0 | FC27: 0 | FD27: 0 | FE27: 0 | FF27: 6.050420168 | FG27: =IFERROR(Table37[[#This Row],[Operating Costs US$ - Bus]]/Table37[[#This Row],[Fare revenue US$- Bus]], "") ->  | FH27: =IFERROR(Table37[[#This Row],[Operating Costs US$ - Metro]]/Table37[[#This Row],[Fare revenue US$- Metro]], "") ->  | FI27: =IFERROR(Table37[[#This Row],[Operating Costs US$- LRT]]/Table37[[#This Row],[Fare revenue US$- LRT]], "") ->  | FJ27: =IFERROR(Table37[[#This Row],[Operating Costs US$- Tram]]/Table37[[#This Row],[Fare revenue US$- Tram]], "") ->  | FK27: =IFERROR(Table37[[#This Row],[Operating Costs US$ - Trolley Bus]]/Table37[[#This Row],[Fare revenue US$- Trolley Buses]], "") ->  | FL27: =IFERROR((AVERAGEIF(Table37[[#This Row],[Fares for 10 km of journey (2007 US$ PPP) - Bus]:[Fares for 10 km of journey (2007 US$ PPP) - Trolley Bus]], "<>0")*40*12)/EO27, "") -> 0.01118662053 | FM27: =IFERROR((AVERAGEIF(Table37[[#This Row],[Fares for 10 km of journey (2007 US$ PPP) - Regional/Commuter Rail]:[Fares for 10 km of journey (2007 US$ PPP) - BRT]], "<>0")*40*12)/EO27, "") -> 0.007109210776 | FN27: =IFERROR(2*(AVERAGEIF(Table37[[#This Row],[Fares for avg. length of journey (2007 US$ PPP) - Metro]:[Fares for avg. length of journey (2007 US$ PPP) - BRT]], "<>0"))/(Table37[[#This Row],[Minimum Hourly Wage rate (PPP $ 2007)]]*8), "") -> 0.009479515518 | FO27: 0.04579370362 | FP27: 8 | FQ27: 30 | FR27: =SUM(AP27:AQ27)+Table37[[#This Row],[Length of mass transit (km) - BRT]] -> 21.5 | FS27: 0.2465753425 | FT27: 7471.980075 | FU27: 0.1346302716 | FV27: 0.08935250603 | FW27: 0 | FX27: 0 | FY27: 0 | GA27: 0 | GB27: 0 | GC27: 0 | GD27: 18.94621895 | GE27: 15.83401583 | GF27: 1.22 | GG27: 3.73 | GH27: =Table37[[#This Row],[Fares for 10 km of journey (2007 US$ PPP) - Bus]]/10*Table37[[#This Row],[Average trip length by car (km)]] -> 1.36 | GI27: =Table37[[#This Row],[Fares for 10 km of journey (2007 US$ PPP) - Regional/Commuter Rail]]/10*Table37[[#This Row],[Average trip length by car (km)]] -> 0 | GJ27: =Table37[[#This Row],[Fares for 10 km of journey (2007 US$ PPP) - Metro]]/10*Table37[[#This Row],[Average trip length by car (km)]] -> 0.4998865976 | GK27: =Table37[[#This Row],[Fares for 10 km of journey (2007 US$ PPP) - LRT]]/10*Table37[[#This Row],[Average trip length by car (km)]] -> 0 | GL27: =Table37[[#This Row],[Fares for 10 km of journey (2007 US$ PPP) - Tram]]/10*Table37[[#This Row],[Average trip length by car (km)]] -> 0.4998865976 | GM27: =Table37[[#This Row],[Fares for 10 km of journey (2007 US$ PPP) - BRT]]/10*Table37[[#This Row],[Average trip length by car (km)]] -> 0 | GN27: =Table37[[#This Row],[Fares for 10 km of journey (2007 US$ PPP) - Trolley Bus]]/10*Table37[[#This Row],[Average trip length by car (km)]] -> 0 | GO27: To translate: http://www.rtm.fr/ for financials
B28: Nantes | C28: France | D28: OECD | E28: 609199 | F28: 579131 | G28: 1277320 | H28: 1146058 | I28: 64 | K28: 551.2 | M28: 4406.984375 | N28: 299833 | P28: 323447 | Q28: 323447 | R28: 323769 | S28: 61.03 | T28: 2.57 | U28: 4.1 | V28: 9.35 | W28: 0 | Y28: 9.4 | Z28: 13.55 | AA28: 10.2 | AB28: 18.5 | AC28: 0.1178082192 | AF28: 0 | AH28: 0.1821917808 | AI28: 0.025 | AK28: 0.321 | AL28: 0.2031917808 | AN28: 624 | AP28: 0 | AR28: 42 | AS28: 7 | AV28: 0 | AX28: 79 | AZ28: 15 | BA28: 20 | BC28: 234 | BD28: 1 | BE28: 3 | BF28: 0 | BI28: 283 | BJ28: 20 | BM28: 1.3625 | BO28: 0 | BP28: 1.3625 | BQ28: 1.3625 | BR28: 1.5 | BS28: 0 | BT28: 1.418948936 | BU28: 0 | BV28: 0 | BW28: 1.418948936 | BX28: 1.418948936 | BY28: 1.187230669 | BZ28: 0 | CC28: 0 | CJ28: 0 | CM28: 13.69 | CQ28: 0 | CS28: 0 | CV28: 0 | DB28: 0 | DE28: 11.11628 | DI28: 0 | DK28: 0 | DM28: 1450 | DO28: 0 | DU28: 0.58 | DV28: 2.79 | DW28: 1.37 | DY28: 1.28 | DZ28: 1.54 | EB28: 1.42 | EC28: 19 | ED28: 3 | EF28: 8.801 | EH28: 19.9 | EI28: 19 | EL28: Euro 6b | EM28: 24940 | EN28: 27800 | EO28: =Table37[[#This Row],[City Per Capita GDP (LC)]]*('GDP Deflator 1960-2011'!AZ24/'GDP Deflator 1960-2011'!BB24)*1/Table37[[#This Row],[PPP Exchange rate with the US$ (2016)]] -> 38454.42391 | EP28: 91.94 | EQ28: =Table37[[#This Row],[City GDP (LC Billion)]]*'GDP Deflator 1960-2011'!AZ24/'GDP Deflator 1960-2011'!BB24*1/Table37[[#This Row],[PPP Exchange rate with the US$ (2016)]] -> 127.1762495 | ER28: =4250*12 -> 51000 | ES28: =Table37[[#This Row],[Median Annual household income (LC)]]*'GDP Deflator 1960-2011'!AZ24/'GDP Deflator 1960-2011'!AT24*1/Table37[[#This Row],[PPP Exchange rate with the US$ (2016)]] -> 82474.24224 | ET28: 9.22 | EU28: =IF(ISERROR(Table37[[#This Row],[Minimum Hourly Wage Rate (LC)]]*'CPI 1960-2011'!AY24/'CPI 1960-2011'!BC24*1/Table37[[#This Row],[PPP Exchange rate with the US$ (2016)]]), "n/a", Table37[[#This Row],[Minimum Hourly Wage Rate (LC)]]*'GDP Deflator 1960-2011'!AZ24/'GDP Deflator 1960-2011'!BD24*1/Table37[[#This Row],[PPP Exchange rate with the US$ (2016)]]) -> 12.45393123 | EV28: 0.7 | EX28: 0 | EY28: 253.2231547 | EZ28: 0.2019854069 | FA28: 0 | FC28: 0 | FD28: 0 | FE28: 0 | FF28: 5.620155039 | FG28: =IFERROR(Table37[[#This Row],[Operating Costs US$ - Bus]]/Table37[[#This Row],[Fare revenue US$- Bus]], "") ->  | FH28: =IFERROR(Table37[[#This Row],[Operating Costs US$ - Metro]]/Table37[[#This Row],[Fare revenue US$- Metro]], "") ->  | FI28: =IFERROR(Table37[[#This Row],[Operating Costs US$- LRT]]/Table37[[#This Row],[Fare revenue US$- LRT]], "") ->  | FJ28: =IFERROR(Table37[[#This Row],[Operating Costs US$- Tram]]/Table37[[#This Row],[Fare revenue US$- Tram]], "") ->  | FK28: =IFERROR(Table37[[#This Row],[Operating Costs US$ - Trolley Bus]]/Table37[[#This Row],[Fare revenue US$- Trolley Buses]], "") ->  | FL28: =IFERROR((AVERAGEIF(Table37[[#This Row],[Fares for 10 km of journey (2007 US$ PPP) - Bus]:[Fares for 10 km of journey (2007 US$ PPP) - Trolley Bus]], "<>0")*40*12)/EO28, "") -> 0.01698866426 | FM28: =IFERROR((AVERAGEIF(Table37[[#This Row],[Fares for 10 km of journey (2007 US$ PPP) - Regional/Commuter Rail]:[Fares for 10 km of journey (2007 US$ PPP) - BRT]], "<>0")*40*12)/EO28, "") -> 0.01674763268 | FN28: =IFERROR(2*(AVERAGEIF(Table37[[#This Row],[Fares for avg. length of journey (2007 US$ PPP) - Metro]:[Fares for avg. length of journey (2007 US$ PPP) - BRT]], "<>0"))/(Table37[[#This Row],[Minimum Hourly Wage rate (PPP $ 2007)]]*8), "") -> 0.02747212263 | FO28: 0.04805688948 | FP28: 10.2 | FQ28: 18.5 | FR28: =SUM(AP28:AQ28)+Table37[[#This Row],[Length of mass transit (km) - BRT]] -> 7 | FS28: 0.2071917808 | FT28: 4228.40369 | FU28: 0.1622082022 | FV28: 0.109375 | FW28: 2.64375 | FX28: 18.27597 | FY28: 30 | GA28: 0.5644755983 | GB28: 0 | GC28: 0 | GD28: 15.57949457 | GE28: 14.87489431 | GF28: 0.58 | GG28: 2.79 | GH28: =Table37[[#This Row],[Fares for 10 km of journey (2007 US$ PPP) - Bus]]/10*Table37[[#This Row],[Average trip length by car (km)]] -> 1.447327915 | GI28: =Table37[[#This Row],[Fares for 10 km of journey (2007 US$ PPP) - Regional/Commuter Rail]]/10*Table37[[#This Row],[Average trip length by car (km)]] -> 0 | GJ28: =Table37[[#This Row],[Fares for 10 km of journey (2007 US$ PPP) - Metro]]/10*Table37[[#This Row],[Average trip length by car (km)]] -> 0 | GK28: =Table37[[#This Row],[Fares for 10 km of journey (2007 US$ PPP) - LRT]]/10*Table37[[#This Row],[Average trip length by car (km)]] -> 1.447327915 | GL28: =Table37[[#This Row],[Fares for 10 km of journey (2007 US$ PPP) - Tram]]/10*Table37[[#This Row],[Average trip length by car (km)]] -> 1.447327915 | GM28: =Table37[[#This Row],[Fares for 10 km of journey (2007 US$ PPP) - BRT]]/10*Table37[[#This Row],[Average trip length by car (km)]] -> 1.210975283 | GN28: =Table37[[#This Row],[Fares for 10 km of journey (2007 US$ PPP) - Trolley Bus]]/10*Table37[[#This Row],[Average trip length by car (km)]] -> 0 | GO28: To translate: https://www.tan.fr/ for financials
B29: Paris | C29: France | D29: OECD | E29: 2246995 | F29: 2181374 | G29: 12089098 | H29: 11659260 | I29: 105.8 | J29: 105.8 | K29: 2778.48 | M29: 21238.138 | N29: 1239950 | P29: 495313 | Q29: 495313 | R29: 499553 | S29: 12.89 | T29: 3.67 | U29: 3.12 | V29: 10.96 | W29: 0 | Y29: 69.35 | Z29: 0.01 | AA29: 21.15 | AB29: 37.69 | AC29: 0.9506849315 | AE29: 3.117808219 | AF29: 4.126027397 | AG29: 0 | AH29: 0.284 | AI29: 0.0895 | AK29: 5.425712329 | AL29: 4.475027397 | AM29: 1700 | AN29: 2650 | AO29: 366 | AP29: 213 | AQ29: 0 | AR29: 31.4 | AS29: 41.2 | AU29: 158 | AV29: 300 | AW29: 0 | AX29: 56 | AZ29: 54 | BA29: 59 | BC29: 3600 | BD29: 164 | BF29: 3532 | BG29: 4831 | BH29: 0 | BI29: 82 | BJ29: 12 | BM29: 1.27 | BN29: 1.27 | BO29: 1.27 | BP29: 0 | BQ29: 1.27 | BS29: 0 | BT29: 1.322616623 | BU29: 1.322616623 | BV29: 1.322616623 | BW29: 0 | BX29: 1.322616623 | BY29: 2.2 | BZ29: 0 | CC29: 4159.07 | CD29: 0 | CJ29: 3940.947 | CK29: 0 | CQ29: 553.22 | CR29: 0 | CS29: 0.239 | CT29: 0 | CU29: 636.0847082 | CV29: 2760.644296 | CW29: 0 | CX29: 190.0188497 | CZ29: 602.725158 | DA29: 792.4880499 | DB29: 2615.861925 | DC29: 0 | DD29: 180.0532849 | DE29: 41.33 | DG29: 84.60900689 | DH29: 111.2474334 | DI29: 367.2079665 | DJ29: 0 | DK29: 0.1586397889 | DL29: 0 | DM29: 12398 | DN29: 2896 | DO29: 9250 | DP29: 0 | DU29: 0.57 | DV29: 2.68 | DW29: 1.28 | DX29: =5.54/3.79 -> 1.461741425 | DY29: 1.42 | DZ29: 1.4 | EA29: 1.595 | EB29: 1.58 | EC29: 25 | ED29: 2 | EF29: 8.56 | EG29: 14 | EH29: 39.2 | EI29: 28 | EJ29: 5.195 | EK29: 7.4 | EL29: Euro 6b | EM29: 24940 | EN29: 54600 | EO29: =Table37[[#This Row],[City Per Capita GDP (LC)]]*('GDP Deflator 1960-2011'!AZ25/'GDP Deflator 1960-2011'!BB25)*1/Table37[[#This Row],[PPP Exchange rate with the US$ (2016)]] -> 75525.59517 | EP29: 659.9 | EQ29: =Table37[[#This Row],[City GDP (LC Billion)]]*'GDP Deflator 1960-2011'!AZ25/'GDP Deflator 1960-2011'!BB25*1/Table37[[#This Row],[PPP Exchange rate with the US$ (2016)]] -> 912.8084295 | ER29: =4500*12 -> 54000 | ES29: =Table37[[#This Row],[Median Annual household income (LC)]]*'GDP Deflator 1960-2011'!AZ25/'GDP Deflator 1960-2011'!AT25*1/Table37[[#This Row],[PPP Exchange rate with the US$ (2016)]] -> 87325.66826 | ET29: 9.8 | EU29: =IF(ISERROR(Table37[[#This Row],[Minimum Hourly Wage Rate (LC)]]*'CPI 1960-2011'!AY24/'CPI 1960-2011'!BC24*1/Table37[[#This Row],[PPP Exchange rate with the US$ (2016)]]), "n/a", Table37[[#This Row],[Minimum Hourly Wage Rate (LC)]]*'GDP Deflator 1960-2011'!AZ24/'GDP Deflator 1960-2011'!BD24*1/Table37[[#This Row],[PPP Exchange rate with the US$ (2016)]]) -> 13.23736725 | EV29: 0.7 | EX29: 0 | EY29: 40.971874 | EZ29: 0.3162353386 | FA29: 0 | FB29: 296.9826471 | FC29: 1700 | FD29: 140.6225675 | FE29: 16.06805293 | FF29: 3.243002877 | FG29: =IFERROR(Table37[[#This Row],[Operating Costs US$ - Bus]]/Table37[[#This Row],[Fare revenue US$- Bus]], "") -> 1.055347864 | FH29: =IFERROR(Table37[[#This Row],[Operating Costs US$ - Metro]]/Table37[[#This Row],[Fare revenue US$- Metro]], "") -> 1.055347864 | FI29: =IFERROR(Table37[[#This Row],[Operating Costs US$- LRT]]/Table37[[#This Row],[Fare revenue US$- LRT]], "") ->  | FJ29: =IFERROR(Table37[[#This Row],[Operating Costs US$- Tram]]/Table37[[#This Row],[Fare revenue US$- Tram]], "") -> 1.055347864 | FK29: =IFERROR(Table37[[#This Row],[Operating Costs US$ - Trolley Bus]]/Table37[[#This Row],[Fare revenue US$- Trolley Buses]], "") ->  | FL29: =IFERROR((AVERAGEIF(Table37[[#This Row],[Fares for 10 km of journey (2007 US$ PPP) - Bus]:[Fares for 10 km of journey (2007 US$ PPP) - Trolley Bus]], "<>0")*40*12)/EO29, "") -> 0.009521074036 | FM29: =IFERROR((AVERAGEIF(Table37[[#This Row],[Fares for 10 km of journey (2007 US$ PPP) - Regional/Commuter Rail]:[Fares for 10 km of journey (2007 US$ PPP) - BRT]], "<>0")*40*12)/EO29, "") -> 0.009799882842 | FN29: =IFERROR(2*(AVERAGEIF(Table37[[#This Row],[Fares for avg. length of journey (2007 US$ PPP) - Metro]:[Fares for avg. length of journey (2007 US$ PPP) - BRT]], "<>0"))/(Table37[[#This Row],[Minimum Hourly Wage rate (PPP $ 2007)]]*8), "") -> 0.06451225105 | FO29: 0.02224411468 | FP29: 21.15 | FQ29: 37.69 | FR29: =SUM(AP29:AQ29)+Table37[[#This Row],[Length of mass transit (km) - BRT]] -> 254.2 | FS29: 4.499527397 | FT29: 15754.64775 | FU29: 0.3721971149 | FV29: 2.402646503 | FW29: 0.3402646503 | FX29: 44.9399 | FY29: 20 | FZ29: 0.02643523529 | GA29: 0.8996022444 | GB29: 0.4297260226 | GC29: 1.158068203 | GD29: 3.242590969 | GE29: 2.316136407 | GF29: 0.57 | GG29: 2.68 | GH29: =Table37[[#This Row],[Fares for 10 km of journey (2007 US$ PPP) - Bus]]/10*Table37[[#This Row],[Average trip length by car (km)]] -> 2.797334157 | GI29: =Table37[[#This Row],[Fares for 10 km of journey (2007 US$ PPP) - Regional/Commuter Rail]]/10*Table37[[#This Row],[Average trip length by car (km)]] -> 2.797334157 | GJ29: =Table37[[#This Row],[Fares for 10 km of journey (2007 US$ PPP) - Metro]]/10*Table37[[#This Row],[Average trip length by car (km)]] -> 2.797334157 | GK29: =Table37[[#This Row],[Fares for 10 km of journey (2007 US$ PPP) - LRT]]/10*Table37[[#This Row],[Average trip length by car (km)]] -> 0 | GL29: =Table37[[#This Row],[Fares for 10 km of journey (2007 US$ PPP) - Tram]]/10*Table37[[#This Row],[Average trip length by car (km)]] -> 2.797334157 | GM29: =Table37[[#This Row],[Fares for 10 km of journey (2007 US$ PPP) - BRT]]/10*Table37[[#This Row],[Average trip length by car (km)]] -> 4.653 | GN29: =Table37[[#This Row],[Fares for 10 km of journey (2007 US$ PPP) - Trolley Bus]]/10*Table37[[#This Row],[Average trip length by car (km)]] -> 0
B30: Berlin | C30: Germany | D30: OECD | E30: 3469849 | F30: 3387828 | G30: 5055116 | H30: 6754282 | I30: 891.85 | J30: 891.7 | K30: 5370 | M30: 3890.619499 | N30: 1786400 | O30: 93465 | P30: 1018214 | Q30: 1111679 | R30: =Q30+SUM(BA30:BE30)+BL30 -> 1113290 | S30: 38.2 | T30: 0 | U30: 10.8 | V30: 6.5 | W30: 0 | X30: 8 | Y30: 36.36 | Z30: 0.14 | AA30: 12.6 | AB30: 32.2 | AC30: =404.7/365 -> 1.108767123 | AE30: =291/365 -> 0.797260274 | AF30: =464/365 -> 1.271232877 | AG30: 0 | AH30: =167.5/365+1/365+1.2/365+0.87/365 -> 0.4673150685 | AI30: 0 | AK30: 2.847315068 | AL30: 1.738547945 | AM30: 5317 | AO30: 324 | AP30: 151.7 | AQ30: 0 | AS30: 0 | AU30: 161 | AV30: 170 | AW30: 0 | AX30: 377 | AZ30: 0 | BA30: =459+9 -> 468 | BB30: 357 | BC30: =395+117+39+235 -> 786 | BF30: 1278 | BG30: 1516 | BH30: 0 | BI30: =600+7+6+94 -> 707 | BJ30: 0 | BM30: =895/(12*20*2) -> 1.864583333 | BN30: =895/(12*20*2) -> 1.864583333 | BO30: =895/(12*20*2) -> 1.864583333 | BP30: 0 | BQ30: =895/(12*20*2) -> 1.864583333 | BR30: 0 | BS30: 0 | BT30: 1.944935957 | BU30: 1.944935957 | BV30: 1.944935957 | BW30: 0 | BX30: 1.944935957 | BY30: 0 | BZ30: 0 | CC30: not available | CD30: 0 | CF30: 0 | CJ30: not available | CK30: 0 | CQ30: not available | CR30: 0 | CS30: not available | CT30: 0 | CW30: 0 | DC30: 0 | DJ30: 0 | DL30: 0 | DM30: =523 -> 523 | DN30: 4416 | DP30: 0 | DR30: 0 | DT30: 5.9 | DU30: 0.59 | DV30: 2.91 | DW30: 1.28 | DY30: 1.31 | DZ30: 1.39 | EA30: 1.802 | EB30: 1.46 | EC30: 53 | ED30: 2 | EE30: 2 | EF30: 7.634 | EG30: 18 | EH30: 30 | EI30: 24 | EJ30: 21.3 | EK30: 20.168 | EL30: Euro 6b | EM30: 27992 | EN30: 35600 | EO30: =Table37[[#This Row],[City Per Capita GDP (LC)]]*('GDP Deflator 1960-2011'!AZ26/'GDP Deflator 1960-2011'!BB26)*1/Table37[[#This Row],[PPP Exchange rate with the US$ (2016)]] -> 49881.4899 | EP30: 124.45 | EQ30: =Table37[[#This Row],[City GDP (LC Billion)]]*'GDP Deflator 1960-2011'!AZ26/'GDP Deflator 1960-2011'!BB26*1/Table37[[#This Row],[PPP Exchange rate with the US$ (2016)]] -> 174.3750398 | ER30: =4102*12 -> 49224 | ES30: =Table37[[#This Row],[Median Annual household income (LC)]]*'GDP Deflator 1960-2011'!AZ26/'GDP Deflator 1960-2011'!BB26*1/Table37[[#This Row],[PPP Exchange rate with the US$ (2016)]] -> 68970.96795 | ET30: 9.35 | EU30: =IF(ISERROR(Table37[[#This Row],[Minimum Hourly Wage Rate (LC)]]*'CPI 1960-2011'!AY26/'CPI 1960-2011'!BC26*1/Table37[[#This Row],[PPP Exchange rate with the US$ (2016)]]), "n/a", Table37[[#This Row],[Minimum Hourly Wage Rate (LC)]]*'GDP Deflator 1960-2011'!AZ26/'GDP Deflator 1960-2011'!BD26*1/Table37[[#This Row],[PPP Exchange rate with the US$ (2016)]]) -> 12.92295734 | EV30: 0.7 | EX30: 18.48918996 | EY30: 201.4224797 | EZ30: 0.3186870489 | FA30: 0.08395386647 | FB30: 201.0483355 | FC30: 5317 | FD30: 1051.805735 | FE30: 5.961764871 | FF30: 0.3246430788 | FG30: =IFERROR(Table37[[#This Row],[Operating Costs US$ - Bus]]/Table37[[#This Row],[Fare revenue US$- Bus]], "") ->  | FH30: =IFERROR(Table37[[#This Row],[Operating Costs US$ - Metro]]/Table37[[#This Row],[Fare revenue US$- Metro]], "") ->  | FI30: =IFERROR(Table37[[#This Row],[Operating Costs US$- LRT]]/Table37[[#This Row],[Fare revenue US$- LRT]], "") ->  | FJ30: =IFERROR(Table37[[#This Row],[Operating Costs US$- Tram]]/Table37[[#This Row],[Fare revenue US$- Tram]], "") ->  | FK30: =IFERROR(Table37[[#This Row],[Operating Costs US$ - Trolley Bus]]/Table37[[#This Row],[Fare revenue US$- Trolley Buses]], "") ->  | FL30: =IFERROR((AVERAGEIF(Table37[[#This Row],[Fares for 10 km of journey (2007 US$ PPP) - Bus]:[Fares for 10 km of journey (2007 US$ PPP) - Trolley Bus]], "<>0")*40*12)/EO30, "") -> 0.01871574528 | FM30: =IFERROR((AVERAGEIF(Table37[[#This Row],[Fares for 10 km of journey (2007 US$ PPP) - Regional/Commuter Rail]:[Fares for 10 km of journey (2007 US$ PPP) - BRT]], "<>0")*40*12)/EO30, "") -> 0.01871574528 | FN30: =IFERROR(2*(AVERAGEIF(Table37[[#This Row],[Fares for avg. length of journey (2007 US$ PPP) - Metro]:[Fares for avg. length of journey (2007 US$ PPP) - BRT]], "<>0"))/(Table37[[#This Row],[Minimum Hourly Wage rate (PPP $ 2007)]]*8), "") -> 0.04740825264 | FO30: 0.03343925779 | FP30: 12.6 | FQ30: 32.2 | FR30: =SUM(AP30:AQ30)+Table37[[#This Row],[Length of mass transit (km) - BRT]] -> 151.7 | FS30: 1.738547945 | FT30: 11460.43471 | FU30: 0.3439185066 | FV30: 0.1700958681 | FW30: =IFERROR(((AP43*4)+((AR43+AS43)*0.5)+((AQ43+AS43)*1))/I30, "") -> 0 | FX30: 69.39698 | FY30: 20 | FZ30: 0.01305190521 | GA30: 0.6233504298 | GB30: 4.213553161 | GC30: 3.56074915 | GD30: 5.934581917 | GE30: 4.747665533 | GF30: 0.59 | GG30: 2.91 | GH30: =Table37[[#This Row],[Fares for 10 km of journey (2007 US$ PPP) - Bus]]/10*Table37[[#This Row],[Average trip length by car (km)]] -> 2.450619306 | GI30: =Table37[[#This Row],[Fares for 10 km of journey (2007 US$ PPP) - Regional/Commuter Rail]]/10*Table37[[#This Row],[Average trip length by car (km)]] -> 2.450619306 | GJ30: =Table37[[#This Row],[Fares for 10 km of journey (2007 US$ PPP) - Metro]]/10*Table37[[#This Row],[Average trip length by car (km)]] -> 2.450619306 | GK30: =Table37[[#This Row],[Fares for 10 km of journey (2007 US$ PPP) - LRT]]/10*Table37[[#This Row],[Average trip length by car (km)]] -> 0 | GL30: =Table37[[#This Row],[Fares for 10 km of journey (2007 US$ PPP) - Tram]]/10*Table37[[#This Row],[Average trip length by car (km)]] -> 2.450619306 | GM30: =Table37[[#This Row],[Fares for 10 km of journey (2007 US$ PPP) - BRT]]/10*Table37[[#This Row],[Average trip length by car (km)]] -> 0 | GN30: =Table37[[#This Row],[Fares for 10 km of journey (2007 US$ PPP) - Trolley Bus]]/10*Table37[[#This Row],[Average trip length by car (km)]] -> 0 | GO30: To translate: http://www.hochbahn.de/wps/portal/de/home/hochbahn AND http://www.s-bahn-hamburg.de/s_hamburg/view/index.shtml for financials and tariffs
B31: Hamburg | C31: Germany | D31: OECD | E31: 1762791 | F31: 1716634 | G31: 3008841 | H31: 2956742 | I31: 755.3 | J31: 755.3 | K31: 7304.1 | L31: 7303.7 | M31: 2333.895141 | N31: 934700 | O31: 48138 | P31: 604460 | Q31: 652598 | R31: 653345 | S31: 43.5 | T31: 1 | U31: 8.7 | V31: 6 | W31: 0 | Y31: 40.8 | Z31: =100-SUM(S31:Y31) -> 0 | AA31: 11.7 | AB31: 29.5 | AC31: =219.394/365 -> 0.6010794521 | AE31: =176/365+13.5/365 -> 0.5191780822 | AF31: =199.304/365 -> 0.5460383562 | AG31: 0 | AH31: 0 | AI31: 0.06 | AK31: 1.207117808 | AL31: 0.6060383562 | AM31: 3900 | AN31: 11680 | AP31: 100.7 | AQ31: 0 | AR31: 0 | AS31: 15 | AU31: 59 | AV31: 89 | AW31: 0 | AX31: 0 | AZ31: 30 | BA31: 24 | BC31: 723 | BF31: 749 | BG31: 528 | BH31: 0 | BI31: 0 | BJ31: 24 | BM31: 1.2025 | BN31: 1.2025 | BO31: 1.2025 | BP31: 0 | BQ31: 0 | BS31: 0 | BT31: 1.254320709 | BU31: 1.254320709 | BV31: 1.254320709 | BW31: 0 | BX31: 0 | BY31: 3,52 | BZ31: 0 | CC31: 492.651 | CD31: 0 | CE31: 0 | CJ31: 352.44 | CK31: 0 | CL31: 0 | CQ31: 51.703 | CR31: 0 | CS31: Not disclosed | CT31: 0 | CU31: 275.4710142 | CV31: 250.2460186 | CW31: 0 | CX31: 0 | CZ31: 179.0247189 | DB31: 179.0247189 | DC31: 0 | DD31: 0 | DG31: 28.91027897 | DI31: 26.26295268 | DJ31: 0 | DK31: not disclosed | DL31: 0 | DM31: 2789 | DN31: 1357 | DO31: 1551 | DP31: 0 | DQ31: 0 | DT31: 6.8 | DU31: 0.64 | DV31: 2.33 | DW31: 1.27 | DY31: 1.3 | DZ31: 1.5 | EB31: 1.42 | EC31: 46 | ED31: 2 | EE31: 3 | EF31: 3.455 | EH31: 24.9 | EI31: 21 | EJ31: 18.4 | EK31: 18.2 | EL31: Euro 6b | EM31: 27992 | EN31: 61700 | EO31: =Table37[[#This Row],[City Per Capita GDP (LC)]]*('GDP Deflator 1960-2011'!AZ27/'GDP Deflator 1960-2011'!BB27)*1/Table37[[#This Row],[PPP Exchange rate with the US$ (2016)]] -> 86451.90806 | EP31: 109.52 | EQ31: =Table37[[#This Row],[City GDP (LC Billion)]]*'GDP Deflator 1960-2011'!AZ27/'GDP Deflator 1960-2011'!BB27*1/Table37[[#This Row],[PPP Exchange rate with the US$ (2016)]] -> 153.4556397 | ER31: 49500 | ES31: =Table37[[#This Row],[Median Annual household income (LC)]]*'GDP Deflator 1960-2011'!AZ27/'GDP Deflator 1960-2011'!BB27*1/Table37[[#This Row],[PPP Exchange rate with the US$ (2016)]] -> 69357.68961 | ET31: 7.89 | EU31: =IF(ISERROR(Table37[[#This Row],[Minimum Hourly Wage Rate (LC)]]*'CPI 1960-2011'!AY27/'CPI 1960-2011'!BC27*1/Table37[[#This Row],[PPP Exchange rate with the US$ (2016)]]), "n/a", Table37[[#This Row],[Minimum Hourly Wage Rate (LC)]]*'GDP Deflator 1960-2011'!AZ27/'GDP Deflator 1960-2011'!BD27*1/Table37[[#This Row],[PPP Exchange rate with the US$ (2016)]]) -> 10.90504101 | EV31: 0.7 | EX31: 15.99885138 | EY31: 200.8946302 | EZ31: 0.2482683532 | FA31: 0.07367929654 | FB31: 161.6401282 | FC31: 3900 | FD31: 1296.180157 | FE31: 5.163511188 | FF31: 3.733601071 | FG31: =IFERROR(Table37[[#This Row],[Operating Costs US$ - Bus]]/Table37[[#This Row],[Fare revenue US$- Bus]], "") -> 1.538731723 | FH31: =IFERROR(Table37[[#This Row],[Operating Costs US$ - Metro]]/Table37[[#This Row],[Fare revenue US$- Metro]], "") -> 1.397829418 | FI31: =IFERROR(Table37[[#This Row],[Operating Costs US$- LRT]]/Table37[[#This Row],[Fare revenue US$- LRT]], "") ->  | FJ31: =IFERROR(Table37[[#This Row],[Operating Costs US$- Tram]]/Table37[[#This Row],[Fare revenue US$- Tram]], "") ->  | FK31: =IFERROR(Table37[[#This Row],[Operating Costs US$ - Trolley Bus]]/Table37[[#This Row],[Fare revenue US$- Trolley Buses]], "") ->  | FL31: =IFERROR((AVERAGEIF(Table37[[#This Row],[Fares for 10 km of journey (2007 US$ PPP) - Bus]:[Fares for 10 km of journey (2007 US$ PPP) - Trolley Bus]], "<>0")*40*12)/EO31, "") -> 0.006964264337 | FM31: =IFERROR((AVERAGEIF(Table37[[#This Row],[Fares for 10 km of journey (2007 US$ PPP) - Regional/Commuter Rail]:[Fares for 10 km of journey (2007 US$ PPP) - BRT]], "<>0")*40*12)/EO31, "") -> 0.006964264337 | FN31: =IFERROR(2*(AVERAGEIF(Table37[[#This Row],[Fares for avg. length of journey (2007 US$ PPP) - Metro]:[Fares for avg. length of journey (2007 US$ PPP) - BRT]], "<>0"))/(Table37[[#This Row],[Minimum Hourly Wage rate (PPP $ 2007)]]*8), "") ->  | FO31: 0.02082082444 | FP31: 11.7 | FQ31: 29.5 | FR31: =SUM(AP31:AQ31)+Table37[[#This Row],[Length of mass transit (km) - BRT]] -> 115.7 | FS31: 0.6060383562 | FT31: 5238.015179 | FU31: 0.201419203 | FV31: 0.1531841652 | FW31: =IFERROR(((AP44*4)+((AR44+AS44)*0.5)+((AQ44+AS44)*1))/I31, "") -> 0.2385595128 | FX31: 35.25582 | FY31: 20 | FZ31: 0.009039953846 | GA31: 0.5396202619 | GB31: 6.11531151 | GC31: 0 | GD31: 8.275611772 | GE31: 6.979431615 | GF31: 0.64 | GG31: 2.33 | GH31: =Table37[[#This Row],[Fares for 10 km of journey (2007 US$ PPP) - Bus]]/10*Table37[[#This Row],[Average trip length by car (km)]] -> 1.467555229 | GI31: =Table37[[#This Row],[Fares for 10 km of journey (2007 US$ PPP) - Regional/Commuter Rail]]/10*Table37[[#This Row],[Average trip length by car (km)]] -> 1.467555229 | GJ31: =Table37[[#This Row],[Fares for 10 km of journey (2007 US$ PPP) - Metro]]/10*Table37[[#This Row],[Average trip length by car (km)]] -> 1.467555229 | GK31: =Table37[[#This Row],[Fares for 10 km of journey (2007 US$ PPP) - LRT]]/10*Table37[[#This Row],[Average trip length by car (km)]] -> 0 | GL31: =Table37[[#This Row],[Fares for 10 km of journey (2007 US$ PPP) - Tram]]/10*Table37[[#This Row],[Average trip length by car (km)]] -> 0 | GM31: =Table37[[#This Row],[Fares for 10 km of journey (2007 US$ PPP) - BRT]]/10*Table37[[#This Row],[Average trip length by car (km)]] ->  | GN31: =Table37[[#This Row],[Fares for 10 km of journey (2007 US$ PPP) - Trolley Bus]]/10*Table37[[#This Row],[Average trip length by car (km)]] -> 0
B32: Munich | C32: Germany | D32: OECD | E32: 1429879 | F32: 1276686 | G32: 2965871 | H32: 2702323 | I32: 310.4 | J32: 310.5 | K32: 5503.6 | L32: 5503.8 | M32: 4606.568943 | N32: 764300 | O32: 51984 | P32: 478637 | Q32: 530621 | R32: 531044 | S32: 35.8 | T32: 0.5 | U32: 10.7 | V32: 6 | W32: 0 | X32: 7 | Y32: 40 | Z32: 0 | AA32: 15.4 | AB32: 26.6 | AC32: =32.3/365+156.1/365175/365 -> 0.08849432183 | AE32: =218/365 -> 0.597260274 | AF32: =360/365 -> 0.9863013699 | AG32: 0 | AH32: =98/365 -> 0.2684931507 | AI32: 0 | AK32: 1.343288842 | AL32: 1.254794521 | AM32: 2350 | AN32: 454 | AP32: 95 | AQ32: 0 | AR32: 79 | AS32: 0 | AV32: 100 | AW32: 0 | AX32: 164 | AZ32: 0 | BA32: 186 | BC32: =50+187 -> 237 | BF32: 574 | BG32: =234*4 -> 936 | BH32: 0 | BI32: 104 | BJ32: 0 | BM32: =107.3/(20*2) -> 2.6825 | BN32: =107.3/(20*2) -> 2.6825 | BO32: =107.3/(20*2) -> 2.6825 | BP32: 0 | BQ32: =107.3/(20*2) -> 2.6825 | BR32: 0 | BS32: 0 | BT32: 2.798100043 | BU32: 2.798100043 | BV32: 2.798100043 | BW32: 0 | BX32: 2.798100043 | BY32: 0 | BZ32: 0 | CA32: not available | CC32: not available | CD32: 0 | CE32: not available | CF32: 0 | CH32: not available | CJ32: not available | CK32: 0 | CL32: not available | CO32: not available | CQ32: not available | CR32: 0 | CS32: not available | CT32: 0 | CW32: 0 | DC32: 0 | DJ32: 0 | DL32: 0 | DM32: 2694 | DN32: 1100 | DP32: 0 | DR32: 0 | DU32: 0.58 | DV32: 2.55 | DW32: 1.3 | DY32: 1.28 | DZ32: 1.46 | EB32: 1.42 | EC32: 1.35 | ED32: 2 | EE32: 2 | EF32: 5.664 | EG32: 8 | EH32: 35.3 | EI32: 26 | EJ32: 17.755 | EL32: Euro 6b | EM32: 27992 | EN32: 53200 | EO32: =Table37[[#This Row],[City Per Capita GDP (LC)]]*('GDP Deflator 1960-2011'!AZ28/'GDP Deflator 1960-2011'!BB28)*1/Table37[[#This Row],[PPP Exchange rate with the US$ (2016)]] -> 74542.00177 | EP32: 204.41 | EQ32: =Table37[[#This Row],[City GDP (LC Billion)]]*'GDP Deflator 1960-2011'!AZ28/'GDP Deflator 1960-2011'!BB28*1/Table37[[#This Row],[PPP Exchange rate with the US$ (2016)]] -> 286.412229 | ER32: 24200 | ES32: =Table37[[#This Row],[Median Annual household income (LC)]]*'GDP Deflator 1960-2011'!AZ28/'GDP Deflator 1960-2011'!BB28*1/Table37[[#This Row],[PPP Exchange rate with the US$ (2016)]] -> 33908.20381 | ET32: 7.89 | EU32: =IF(ISERROR(Table37[[#This Row],[Minimum Hourly Wage Rate (LC)]]*'CPI 1960-2011'!AY28/'CPI 1960-2011'!BC28*1/Table37[[#This Row],[PPP Exchange rate with the US$ (2016)]]), "n/a", Table37[[#This Row],[Minimum Hourly Wage Rate (LC)]]*'GDP Deflator 1960-2011'!AZ28/'GDP Deflator 1960-2011'!BD28*1/Table37[[#This Row],[PPP Exchange rate with the US$ (2016)]]) -> 10.90504101 | EV32: 0.7 | EX32: 17.52739752 | EY32: 161.3815975 | EZ32: 0.1426225213 | FA32: 0.09789019366 | FB32: 215.1857447 | FC32: 2350 | FD32: 792.3473408 | FE32: 7.570876289 | FF32: 6.368794326 | FG32: =IFERROR(Table37[[#This Row],[Operating Costs US$ - Bus]]/Table37[[#This Row],[Fare revenue US$- Bus]], "") ->  | FH32: =IFERROR(Table37[[#This Row],[Operating Costs US$ - Metro]]/Table37[[#This Row],[Fare revenue US$- Metro]], "") ->  | FI32: =IFERROR(Table37[[#This Row],[Operating Costs US$- LRT]]/Table37[[#This Row],[Fare revenue US$- LRT]], "") ->  | FJ32: =IFERROR(Table37[[#This Row],[Operating Costs US$- Tram]]/Table37[[#This Row],[Fare revenue US$- Tram]], "") ->  | FK32: =IFERROR(Table37[[#This Row],[Operating Costs US$ - Trolley Bus]]/Table37[[#This Row],[Fare revenue US$- Trolley Buses]], "") ->  | FL32: =IFERROR((AVERAGEIF(Table37[[#This Row],[Fares for 10 km of journey (2007 US$ PPP) - Bus]:[Fares for 10 km of journey (2007 US$ PPP) - Trolley Bus]], "<>0")*40*12)/EO32, "") -> 0.01801786897 | FM32: =IFERROR((AVERAGEIF(Table37[[#This Row],[Fares for 10 km of journey (2007 US$ PPP) - Regional/Commuter Rail]:[Fares for 10 km of journey (2007 US$ PPP) - BRT]], "<>0")*40*12)/EO32, "") -> 0.01801786897 | FN32: =IFERROR(2*(AVERAGEIF(Table37[[#This Row],[Fares for avg. length of journey (2007 US$ PPP) - Metro]:[Fares for avg. length of journey (2007 US$ PPP) - BRT]], "<>0"))/(Table37[[#This Row],[Minimum Hourly Wage rate (PPP $ 2007)]]*8), "") -> 0.09878628754 | FO32: 0.02350352766 | FP32: 15.4 | FQ32: 26.6 | FR32: =SUM(AP32:AQ32)+Table37[[#This Row],[Length of mass transit (km) - BRT]] -> 95 | FS32: 1.254794521 | FT32: 7211.462762 | FU32: 0.4230779156 | FV32: 0.306056701 | FW32: =IFERROR(((AP45*4)+((AR45+AS45)*0.5)+((AQ45+AS45)*1))/I32, "") -> 0 | FX32: 28.59758 | FY32: 20 | FZ32: 0.01216918298 | GA32: 0.5385162058 | GB32: 5.986437037 | GC32: 2.69735265 | GD32: 11.90206857 | GE32: 8.766396111 | GF32: 0.58 | GG32: 2.55 | GH32: =Table37[[#This Row],[Fares for 10 km of journey (2007 US$ PPP) - Bus]]/10*Table37[[#This Row],[Average trip length by car (km)]] -> 4.309074066 | GI32: =Table37[[#This Row],[Fares for 10 km of journey (2007 US$ PPP) - Regional/Commuter Rail]]/10*Table37[[#This Row],[Average trip length by car (km)]] -> 4.309074066 | GJ32: =Table37[[#This Row],[Fares for 10 km of journey (2007 US$ PPP) - Metro]]/10*Table37[[#This Row],[Average trip length by car (km)]] -> 4.309074066 | GK32: =Table37[[#This Row],[Fares for 10 km of journey (2007 US$ PPP) - LRT]]/10*Table37[[#This Row],[Average trip length by car (km)]] -> 0 | GL32: =Table37[[#This Row],[Fares for 10 km of journey (2007 US$ PPP) - Tram]]/10*Table37[[#This Row],[Average trip length by car (km)]] -> 4.309074066 | GM32: =Table37[[#This Row],[Fares for 10 km of journey (2007 US$ PPP) - BRT]]/10*Table37[[#This Row],[Average trip length by car (km)]] -> 0 | GN32: =Table37[[#This Row],[Fares for 10 km of journey (2007 US$ PPP) - Trolley Bus]]/10*Table37[[#This Row],[Average trip length by car (km)]] -> 0 | GO32: Staff for SSB that operates bus and lightrail/tram is 2,646.
B33: Stuttgart | C33: Germany | D33: OECD | E33: 612441 | F33: 590657 | G33: 1965942 | H33: 1941517 | I33: 207.4 | J33: 207.4 | K33: 3654 | L33: 3653.9 | M33: 2952.945998 | N33: 305200 | O33: 19750 | P33: 210152 | Q33: 229902 | R33: 230178 | S33: 47.4 | T33: 0 | U33: 4.7 | V33: 10.5 | W33: 0 | Y33: 36.7 | Z33: 0.7 | AA33: 12.1 | AB33: 25.3 | AC33: =0.56-AG33 -> 0.2 | AF33: 0 | AG33: 0.36 | AI33: 0 | AK33: 0.56 | AL33: 0.36 | AM33: 1427 | AN33: 388 | AO33: 177 | AP33: 0 | AQ33: =888-AN33 -> 500 | AS33: 0 | AU33: 10 | AV33: 0 | AW33: 193 | AZ33: 0 | BC33: 276 | BF33: 0 | BG33: =90*3+58*3 -> 444 | BH33: 195 | BJ33: 0 | BM33: =9.7/(3*2) -> 1.616666667 | BN33: =9.7/(3*2) -> 1.616666667 | BO33: 0 | BP33: =9.7/(3*2) -> 1.616666667 | BQ33: =9.7/(3*2) -> 1.616666667 | BR33: 0 | BT33: 1.073975703 | BU33: 1.073975703 | BV33: 0 | BW33: 1.073975703 | BX33: 1.073975703 | BY33: 0 | BZ33: 0 | CA33: 264.6 | CC33: 0 | CF33: 0 | CH33: 168.6 | CJ33: 0 | CO33: 117.9 | CQ33: 0 | CS33: 0 | CU33: 75.56485356 | CV33: 0 | CW33: 136.0167364 | CZ33: 48.14903367 | DB33: 0 | DC33: 86.66826061 | DG33: 33.6700538 | DI33: 0 | DJ33: 60.60609683 | DK33: 0 | DL33: 9.612671847 | DM33: 2920 | DN33: 550 | DO33: 0 | DR33: 0 | DT33: 5.6 | DU33: 0.69 | DV33: 2.19 | DW33: 1.32 | DY33: 1.3 | DZ33: 1.48 | EB33: 1.45 | EC33: 48 | ED33: 1 | EE33: 2 | EF33: 4.098 | EH33: 33.5 | EI33: 24 | EL33: Euro 6b | EM33: 27900 | EN33: 48400 | EO33: =Table37[[#This Row],[City Per Capita GDP (LC)]]*('GDP Deflator 1960-2011'!AZ29/'GDP Deflator 1960-2011'!BB29)*1/Table37[[#This Row],[PPP Exchange rate with the US$ (2016)]] -> 67816.40762 | EP33: 195 | EQ33: =Table37[[#This Row],[City GDP (LC Billion)]]*'GDP Deflator 1960-2011'!AZ29/'GDP Deflator 1960-2011'!BB29*1/Table37[[#This Row],[PPP Exchange rate with the US$ (2016)]] -> 273.2272621 | ER33: 23300 | ES33: =Table37[[#This Row],[Median Annual household income (LC)]]*'GDP Deflator 1960-2011'!AZ29/'GDP Deflator 1960-2011'!BB29*1/Table37[[#This Row],[PPP Exchange rate with the US$ (2016)]] -> 32647.15491 | ET33: 7.89 | EU33: =IF(ISERROR(Table37[[#This Row],[Minimum Hourly Wage Rate (LC)]]*'CPI 1960-2011'!AY29/'CPI 1960-2011'!BC29*1/Table37[[#This Row],[PPP Exchange rate with the US$ (2016)]]), "n/a", Table37[[#This Row],[Minimum Hourly Wage Rate (LC)]]*'GDP Deflator 1960-2011'!AZ29/'GDP Deflator 1960-2011'!BD29*1/Table37[[#This Row],[PPP Exchange rate with the US$ (2016)]]) -> 10.90504101 | EV33: 0.7 | EX33: 10.0460746 | EY33: 106.8963377 | EZ33: 0.1403907135 | FA33: 0.08580316103 | FB33: 154.6720392 | FC33: 1427 | FD33: 725.8606815 | FE33: 6.880424301 | FF33: 10.57971014 | FG33: =IFERROR(Table37[[#This Row],[Operating Costs US$ - Bus]]/Table37[[#This Row],[Fare revenue US$- Bus]], "") -> 1.569395018 | FH33: =IFERROR(Table37[[#This Row],[Operating Costs US$ - Metro]]/Table37[[#This Row],[Fare revenue US$- Metro]], "") ->  | FI33: =IFERROR(Table37[[#This Row],[Operating Costs US$- LRT]]/Table37[[#This Row],[Fare revenue US$- LRT]], "") -> 1.569395018 | FJ33: =IFERROR(Table37[[#This Row],[Operating Costs US$- Tram]]/Table37[[#This Row],[Fare revenue US$- Tram]], "") ->  | FK33: =IFERROR(Table37[[#This Row],[Operating Costs US$ - Trolley Bus]]/Table37[[#This Row],[Fare revenue US$- Trolley Buses]], "") ->  | FL33: =IFERROR((AVERAGEIF(Table37[[#This Row],[Fares for 10 km of journey (2007 US$ PPP) - Bus]:[Fares for 10 km of journey (2007 US$ PPP) - Trolley Bus]], "<>0")*40*12)/EO33, "") -> 0.007601528235 | FM33: =IFERROR((AVERAGEIF(Table37[[#This Row],[Fares for 10 km of journey (2007 US$ PPP) - Regional/Commuter Rail]:[Fares for 10 km of journey (2007 US$ PPP) - BRT]], "<>0")*40*12)/EO33, "") -> 0.007601528235 | FN33: =IFERROR(2*(AVERAGEIF(Table37[[#This Row],[Fares for avg. length of journey (2007 US$ PPP) - Metro]:[Fares for avg. length of journey (2007 US$ PPP) - BRT]], "<>0"))/(Table37[[#This Row],[Minimum Hourly Wage rate (PPP $ 2007)]]*8), "") -> 0.02979151109 | FO33: 0.02618835268 | FP33: 12.1 | FQ33: 25.3 | FR33: =SUM(AP33:AQ33)+Table37[[#This Row],[Length of mass transit (km) - BRT]] -> 500 | FS33: 0.36 | FT33: 720 | FU33: 0.1831183219 | FV33: 2.410800386 | FW33: =IFERROR(((AP46*4)+((AR46+AS46)*0.5)+((AQ46+AS46)*1))/I33, "") -> 3.7 | FX33: 6.12441 | FY33: 10 | FZ33: 0.004291807989 | GA33: 0.2660727785 | GB33: 0 | GC33: 0 | GD33: 17.04017718 | GE33: 12.20788813 | GF33: 0.69 | GG33: 2.19 | GH33: =Table37[[#This Row],[Fares for 10 km of journey (2007 US$ PPP) - Bus]]/10*Table37[[#This Row],[Average trip length by car (km)]] -> 1.2995106 | GI33: =Table37[[#This Row],[Fares for 10 km of journey (2007 US$ PPP) - Regional/Commuter Rail]]/10*Table37[[#This Row],[Average trip length by car (km)]] -> 1.2995106 | GJ33: =Table37[[#This Row],[Fares for 10 km of journey (2007 US$ PPP) - Metro]]/10*Table37[[#This Row],[Average trip length by car (km)]] -> 0 | GK33: =Table37[[#This Row],[Fares for 10 km of journey (2007 US$ PPP) - LRT]]/10*Table37[[#This Row],[Average trip length by car (km)]] -> 1.2995106 | GL33: =Table37[[#This Row],[Fares for 10 km of journey (2007 US$ PPP) - Tram]]/10*Table37[[#This Row],[Average trip length by car (km)]] -> 1.2995106 | GM33: =Table37[[#This Row],[Fares for 10 km of journey (2007 US$ PPP) - BRT]]/10*Table37[[#This Row],[Average trip length by car (km)]] -> 0 | GN33: =Table37[[#This Row],[Fares for 10 km of journey (2007 US$ PPP) - Trolley Bus]]/10*Table37[[#This Row],[Average trip length by car (km)]] -> 0
B34: Accra | C34: Ghana | D34: AFR | E34: 1848614 | G34: 3832680 | H34: 2905726 | I34: 139.674 | K34: 872.12 | M34: =E34/I34 -> 13235.20483 | N34: =531670+183934 -> 715604 | P34: 53806 | Q34: =O34+P34 -> 53806 | R34: 121895 | S34: 13 | W34: 9 | X34: 62 | Z34: 16 | AC34: =12.437145/365 -> 0.03407436986 | AD34: =1458.103/365 -> 3.99480274 | AF34: 0 | AG34: 0 | AH34: 0 | AI34: 0 | AK34: =SUM(AC34:AD34, AF34:AJ34) -> 4.02887711 | AL34: =SUM(AF34:AJ34) -> 0 | AM34: 2355 | AP34: 0 | AQ34: 0 | AR34: 0 | AS34: 0 | AV34: 0 | AW34: 0 | AX34: 0 | AZ34: 0 | BC34: 107 | BD34: 45883 | BF34: 0 | BH34: 0 | BI34: 0 | BJ34: 0 | BL34: 22099 | BO34: 0 | BP34: 0 | BQ34: 0 | BR34: 0 | BS34: 0 | BT34: 0 | BU34: 0 | BV34: 0 | BW34: 0 | BX34: 0 | BY34: 0 | BZ34: 0 | CA34: =5.010436+128.2 -> 133.210436 | CC34: 0 | CD34: 0 | CE34: 0 | CF34: 0 | CH34: =2.45+410.56 -> 413.01 | CJ34: 0 | CK34: 0 | CL34: 0 | CQ34: 0 | CR34: 0 | CS34: 0 | CT34: 0 | CU34: 143.7681967 | CV34: 0 | CW34: 0 | CX34: 0 | CZ34: 445.7436273 | DB34: 0 | DC34: 0 | DD34: 0 | DI34: 0 | DJ34: 0 | DK34: 0 | DL34: 0 | DO34: 0 | DP34: 0 | DQ34: 0 | DR34: 0 | DW34: 3.49 | DY34: 3.62 | DZ34: 0.89 | EB34: 1.28 | ED34: =286/G34*100000 -> 7.462141374 | EI34: 98 | EL34: Euro 3 | EN34: =1562*2.03 -> 3170.86 | EO34: =Table37[[#This Row],[City Per Capita GDP (LC)]]*('GDP Deflator 1960-2011'!AZ30/'GDP Deflator 1960-2011'!BB30)*1/Table37[[#This Row],[PPP Exchange rate with the US$ (2016)]] -> 4524.058688 | EP34: 12.15 | EQ34: =Table37[[#This Row],[City GDP (LC Billion)]]*'GDP Deflator 1960-2011'!AZ30/'GDP Deflator 1960-2011'!BB30*1/Table37[[#This Row],[PPP Exchange rate with the US$ (2016)]] -> 17.33514348 | ER34: 1217 | ES34: =Table37[[#This Row],[Median Annual household income (LC)]]*'GDP Deflator 1960-2011'!AZ30/'GDP Deflator 1960-2011'!AY30*1/Table37[[#This Row],[PPP Exchange rate with the US$ (2016)]] -> 2830.17368 | ET34: 1.1 | EU34: =IF(ISERROR(Table37[[#This Row],[Minimum Hourly Wage Rate (LC)]]*'CPI 1960-2011'!AY29/'CPI 1960-2011'!BC29*1/Table37[[#This Row],[PPP Exchange rate with the US$ (2016)]]), "n/a", Table37[[#This Row],[Minimum Hourly Wage Rate (LC)]]*'GDP Deflator 1960-2011'!AZ29/'GDP Deflator 1960-2011'!BD29*1/Table37[[#This Row],[PPP Exchange rate with the US$ (2016)]]) -> 2.128487091 | EV34: 0.5 | EX34: 0 | EY34: 14.03874052 | EZ34: 11.99943643 | FA34: 0 | FB34: 81.05307856 | FC34: 2355 | FD34: 614.4525502 | FE34: =IFERROR(AM34/K34, "") -> 2.70031647 | FF34: 0 | FG34: =IFERROR(Table37[[#This Row],[Operating Costs US$ - Bus]]/Table37[[#This Row],[Fare revenue US$- Bus]], "") -> 0.322535619 | FH34: =IFERROR(Table37[[#This Row],[Operating Costs US$ - Metro]]/Table37[[#This Row],[Fare revenue US$- Metro]], "") ->  | FI34: =IFERROR(Table37[[#This Row],[Operating Costs US$- LRT]]/Table37[[#This Row],[Fare revenue US$- LRT]], "") ->  | FJ34: =IFERROR(Table37[[#This Row],[Operating Costs US$- Tram]]/Table37[[#This Row],[Fare revenue US$- Tram]], "") ->  | FK34: =IFERROR(Table37[[#This Row],[Operating Costs US$ - Trolley Bus]]/Table37[[#This Row],[Fare revenue US$- Trolley Buses]], "") ->  | FL34: =IFERROR((AVERAGEIF(Table37[[#This Row],[Fares for 10 km of journey (2007 US$ PPP) - Bus]:[Fares for 10 km of journey (2007 US$ PPP) - Trolley Bus]], "<>0")*40*12)/EO34, "") ->  | FM34: =IFERROR((AVERAGEIF(Table37[[#This Row],[Fares for 10 km of journey (2007 US$ PPP) - Regional/Commuter Rail]:[Fares for 10 km of journey (2007 US$ PPP) - BRT]], "<>0")*40*12)/EO34, "") ->  | FN34: =IFERROR(2*(AVERAGEIF(Table37[[#This Row],[Fares for avg. length of journey (2007 US$ PPP) - Metro]:[Fares for avg. length of journey (2007 US$ PPP) - BRT]], "<>0"))/(Table37[[#This Row],[Minimum Hourly Wage rate (PPP $ 2007)]]*8), "") ->  | FO34: 0.2360712081 | FP34: 0 | FQ34: 0 | FR34: =SUM(AP34:AQ34)+Table37[[#This Row],[Length of mass transit (km) - BRT]] -> 0 | FS34: 0 | FU34: 0 | FV34: 0 | FW34: =IFERROR(((AP42*4)+((AR42+AS42)*0.5)+((AQ42+AS42)*1))/I34, "") -> 0 | FX34: 137.9461901 | FY34: 74.62141374 | FZ34: 0.05857587691 | GA34: 11.31680464 | GB34: 0 | GC34: 0 | GD34: 0 | GE34: 25.56957534 | GF34: 0 | GG34: 0 | GH34: =Table37[[#This Row],[Fares for 10 km of journey (2007 US$ PPP) - Bus]]/10*Table37[[#This Row],[Average trip length by car (km)]] -> 0 | GI34: =Table37[[#This Row],[Fares for 10 km of journey (2007 US$ PPP) - Regional/Commuter Rail]]/10*Table37[[#This Row],[Average trip length by car (km)]] -> 0 | GJ34: =Table37[[#This Row],[Fares for 10 km of journey (2007 US$ PPP) - Metro]]/10*Table37[[#This Row],[Average trip length by car (km)]] -> 0 | GK34: =Table37[[#This Row],[Fares for 10 km of journey (2007 US$ PPP) - LRT]]/10*Table37[[#This Row],[Average trip length by car (km)]] -> 0 | GL34: =Table37[[#This Row],[Fares for 10 km of journey (2007 US$ PPP) - Tram]]/10*Table37[[#This Row],[Average trip length by car (km)]] -> 0 | GM34: =Table37[[#This Row],[Fares for 10 km of journey (2007 US$ PPP) - BRT]]/10*Table37[[#This Row],[Average trip length by car (km)]] -> 0 | GN34: =Table37[[#This Row],[Fares for 10 km of journey (2007 US$ PPP) - Trolley Bus]]/10*Table37[[#This Row],[Average trip length by car (km)]] -> 0 | GO34: Staff numbers in most cases were combined for bus, metro and tramways. To translate: http://www.s-bahn-berlin.de/ for financials
B35: Athens | C35: Greece | D35: OECD | E35: 2715595 | F35: 2897123 | G35: 664046 | H35: 798216 | I35: 38.9 | J35: 38.9 | K35: 3806.9 | L35: 3806.9 | M35: 69809.6401 | N35: 323247 | Q35: 0 | R35: 1973 | S35: 40.23 | T35: 10.34 | U35: 1.15 | V35: 19.54 | W35: 0 | X35: 9.2 | Y35: 14.94 | Z35: 4.6 | AA35: 19.4 | AB35: 38.06 | AC35: =379/365 -> 1.038356164 | AF35: 0.775 | AG35: 0 | AH35: 0.065 | AI35: 0 | AJ35: =77.5/365 -> 0.2123287671 | AK35: 2.090684932 | AL35: 1.052328767 | AM35: 2380 | AN35: =6984/2 -> 3492 | AP35: 51.7 | AQ35: 0 | AR35: 27 | AS35: 0 | AT35: =356/2 -> 178 | AV35: 34 | AW35: 0 | AX35: 48 | AZ35: 0 | BC35: 1973 | BF35: =28*6 -> 168 | BH35: 0 | BI35: =35*5 -> 175 | BJ35: 0 | BK35: 366 | BM35: =45/(20*2) -> 1.125 | BN35: =45/(20*2) -> 1.125 | BO35: =45/(20*2) -> 1.125 | BP35: 0 | BQ35: =45/(20*2) -> 1.125 | BR35: 0 | BS35: =45/(20*2) -> 1.125 | BT35: 1.409072685 | BU35: 1.409072685 | BV35: 1.409072685 | BW35: 0 | BX35: 1.409072685 | BY35: 0 | BZ35: 1.409072685 | CC35: Not available | CD35: 0 | CF35: 0 | CJ35: Not available | CK35: 0 | CQ35: Not available | CR35: 0 | CS35: Not available | CT35: 0 | CW35: 0 | DC35: 0 | DJ35: 0 | DL35: 0 | DM35: 6683 | DO35: =1270+350 -> 1620 | DP35: 0 | DQ35: 500 | DR35: 0 | DS35: 1509 | DT35: 9 | DU35: 0.63 | DV35: 2.37 | DW35: 1.37 | DY35: 1.12 | DZ35: 1.53 | EB35: 1.25 | EC35: 30 | EE35: 7 | EF35: 22.093 | EG35: 34 | EH35: 64 | EI35: 40 | EJ35: 4.711 | EK35: 4.471 | EL35: Euro 5 | EM35: 15037 | EN35: 22100 | EO35: =Table37[[#This Row],[City Per Capita GDP (LC)]]*('GDP Deflator 1960-2011'!AZ31/'GDP Deflator 1960-2011'!BB31)*1/Table37[[#This Row],[PPP Exchange rate with the US$ (2016)]] -> 34217.55863 | EP35: 84.368 | EQ35: =Table37[[#This Row],[City GDP (LC Billion)]]*'GDP Deflator 1960-2011'!AZ31/'GDP Deflator 1960-2011'!BC31*1/Table37[[#This Row],[PPP Exchange rate with the US$ (2016)]] -> 128.4311468 | ES35: =Table37[[#This Row],[Median Annual household income (LC)]]*'GDP Deflator 1960-2011'!AZ31/'GDP Deflator 1960-2011'!AY31*1/Table37[[#This Row],[PPP Exchange rate with the US$ (2016)]] -> 0 | ET35: =585.78/(20*8) -> 3.661125 | EU35: =IF(ISERROR(Table37[[#This Row],[Minimum Hourly Wage Rate (LC)]]*'CPI 1960-2011'!AY31/'CPI 1960-2011'!BC31*1/Table37[[#This Row],[PPP Exchange rate with the US$ (2016)]]), "n/a", Table37[[#This Row],[Minimum Hourly Wage Rate (LC)]]*'GDP Deflator 1960-2011'!AZ31/'GDP Deflator 1960-2011'!BD31*1/Table37[[#This Row],[PPP Exchange rate with the US$ (2016)]]) -> 5.483275297 | EV35: 0.6 | EX35: 0 | EY35: 0 | EZ35: 2.971179707 | FA35: 0 | FB35: 2.072478992 | FC35: 2380 | FD35: 3584.089054 | FE35: =IFERROR(AM35/K35, "") -> 0.6251805931 | FF35: 3.387227572 | FG35: =IFERROR(Table37[[#This Row],[Operating Costs US$ - Bus]]/Table37[[#This Row],[Fare revenue US$- Bus]], "") ->  | FH35: =IFERROR(Table37[[#This Row],[Operating Costs US$ - Metro]]/Table37[[#This Row],[Fare revenue US$- Metro]], "") ->  | FI35: =IFERROR(Table37[[#This Row],[Operating Costs US$- LRT]]/Table37[[#This Row],[Fare revenue US$- LRT]], "") ->  | FJ35: =IFERROR(Table37[[#This Row],[Operating Costs US$- Tram]]/Table37[[#This Row],[Fare revenue US$- Tram]], "") ->  | FK35: =IFERROR(Table37[[#This Row],[Operating Costs US$ - Trolley Bus]]/Table37[[#This Row],[Fare revenue US$- Trolley Buses]], "") ->  | FL35: =IFERROR((AVERAGEIF(Table37[[#This Row],[Fares for 10 km of journey (2007 US$ PPP) - Bus]:[Fares for 10 km of journey (2007 US$ PPP) - Trolley Bus]], "<>0")*40*12)/EO35, "") -> 0.01976631051 | FM35: =IFERROR((AVERAGEIF(Table37[[#This Row],[Fares for 10 km of journey (2007 US$ PPP) - Regional/Commuter Rail]:[Fares for 10 km of journey (2007 US$ PPP) - BRT]], "<>0")*40*12)/EO35, "") -> 0.01976631051 | FN35: =IFERROR(2*(AVERAGEIF(Table37[[#This Row],[Fares for avg. length of journey (2007 US$ PPP) - Metro]:[Fares for avg. length of journey (2007 US$ PPP) - BRT]], "<>0"))/(Table37[[#This Row],[Minimum Hourly Wage rate (PPP $ 2007)]]*8), "") -> 0.124633584 | FO35: 0.05365666264 | FP35: 19.4 | FQ35: 38.06 | FR35: =SUM(AP35:AQ35)+Table37[[#This Row],[Length of mass transit (km) - BRT]] -> 51.7 | FS35: 0.84 | FT35: 10673.44346 | FU35: 1.264972607 | FV35: 1.329048843 | FW35: =IFERROR(((AP47*4)+((AR47+AS47)*0.5)+((AQ47+AS47)*1))/I35, "") -> 0 | FX35: 0 | FY35: 0 | FZ35: 0 | GA35: 0 | GB35: 7.094388039 | GC35: 51.2012722 | GD35: 96.37886532 | GE35: 60.23679082 | GF35: 0.63 | GG35: 2.37 | GH35: =Table37[[#This Row],[Fares for 10 km of journey (2007 US$ PPP) - Bus]]/10*Table37[[#This Row],[Average trip length by car (km)]] -> 2.733601008 | GI35: =Table37[[#This Row],[Fares for 10 km of journey (2007 US$ PPP) - Regional/Commuter Rail]]/10*Table37[[#This Row],[Average trip length by car (km)]] -> 2.733601008 | GJ35: =Table37[[#This Row],[Fares for 10 km of journey (2007 US$ PPP) - Metro]]/10*Table37[[#This Row],[Average trip length by car (km)]] -> 2.733601008 | GK35: =Table37[[#This Row],[Fares for 10 km of journey (2007 US$ PPP) - LRT]]/10*Table37[[#This Row],[Average trip length by car (km)]] -> 0 | GL35: =Table37[[#This Row],[Fares for 10 km of journey (2007 US$ PPP) - Tram]]/10*Table37[[#This Row],[Average trip length by car (km)]] -> 2.733601008 | GM35: =Table37[[#This Row],[Fares for 10 km of journey (2007 US$ PPP) - BRT]]/10*Table37[[#This Row],[Average trip length by car (km)]] -> 0 | GN35: =Table37[[#This Row],[Fares for 10 km of journey (2007 US$ PPP) - Trolley Bus]]/10*Table37[[#This Row],[Average trip length by car (km)]] -> 2.733601008 | GO35: To translate: http://www.tramsa.gr/download/oikonomikes_katastaseis_2009.pdf for tram financials
B36: Budapest | C36: Hungary | D36: OECD | E36: 1692974 | F36: 1751339 | G36: 2879601 | H36: 2812571 | I36: 525.16 | J36: 525.1 | K36: 757.15 | L36: 2538 | M36: 3223.729911 | N36: 954000 | O36: 22438 | P36: 565563 | Q36: 588001 | R36: 589372 | S36: 21.05 | T36: 3.51 | U36: 3.51 | V36: 14.04 | W36: 0 | X36: 22.81 | Y36: 22.81 | Z36: 12.27 | AA36: 17.4 | AB36: 30 | AC36: =548.621/365 -> 1.503071233 | AE36: =69.505/365 -> 0.1904246575 | AF36: =301.556/365 -> 0.8261808219 | AG36: 0 | AH36: =386.411/365 -> 1.058660274 | AI36: 0 | AJ36: =67.84/365 -> 0.1858630137 | AK36: 3.573775342 | AL36: 2.07070411 | AN36: 998.25 | AO36: 97.9 | AP36: 34.6 | AQ36: 0 | AR36: 156.85 | AS36: 0 | AT36: 56.7 | AU36: 139 | AV36: 78 | AW36: 0 | AX36: 677 | AY36: 283 | AZ36: 0 | BC36: 1371 | BF36: =368+23 -> 391 | BG36: 294 | BH36: 0 | BI36: 604 | BJ36: 0 | BK36: 160 | BM36: =2800/10 -> 280 | BN36: =2800/10 -> 280 | BO36: 260 | BP36: 0 | BQ36: =2800/10 -> 280 | BR36: 0 | BS36: =2800/10 -> 280 | BT36: 1.723582922 | BU36: 1.723582922 | BV36: 1.600469856 | BW36: 0 | BX36: 1.723582922 | BY36: 0 | BZ36: 1.723582922 | CA36: 126217 | CD36: 0 | CF36: 0 | CH36: 49541 | CK36: 0 | CO36: =131417-CH36 -> 81876 | CR36: 0 | CT36: 0 | CU36: 322.5178318 | CV36: 177.2757282 | CW36: 0 | CX36: 227.1594377 | CY36: 39.88110136 | CZ36: 126.5903634 | DA36: 16.03778057 | DB36: 69.58188556 | DC36: 0 | DD36: 89.16156861 | DF36: 15.65359375 | DG36: 209.2148442 | DH36: 26.50550699 | DI36: 114.9974054 | DJ36: 0 | DK36: 76.82505352 | DL36: 0 | DM36: 3400 | DN36: 139 | DO36: 330 | DP36: 0 | DQ36: 913 | DR36: 0 | DS36: 319 | DT36: 14.3 | DU36: 0.35 | DV36: 2.53 | DW36: 335.9 | DY36: 1.57 | DZ36: 1.24 | EA36: 2.159713779 | EB36: 1.75 | EC36: 59 | ED36: 5 | EE36: 6 | EF36: 13.793 | EG36: 39 | EH36: 27.3 | EI36: 29 | EL36: Euro 6b | EM36: 13551 | EN36: 22200 | EO36: =Table37[[#This Row],[City Per Capita GDP (LC)]]*('GDP Deflator 1960-2011'!AZ32/'GDP Deflator 1960-2011'!BB32)*1/EV35 -> 33936.00278 | EP36: =37.13 -> 37.13 | EQ36: =Table37[[#This Row],[City GDP (LC Billion)]]*'GDP Deflator 1960-2011'!AZ32/'GDP Deflator 1960-2011'!BB32*1/EV35 -> 56.75872898 | ER36: =4639*247.445 -> 1147897.355 | ES36: =Table37[[#This Row],[Median Annual household income (LC)]]*'GDP Deflator 1960-2011'!AZ32/'GDP Deflator 1960-2011'!AT32*1/Table37[[#This Row],[PPP Exchange rate with the US$ (2016)]] -> 11952.64331 | ET36: =92000/(20*8) -> 575 | EU36: =IF(ISERROR(Table37[[#This Row],[Minimum Hourly Wage Rate (LC)]]*'CPI 1960-2011'!AY32/'CPI 1960-2011'!BC32*1/Table37[[#This Row],[PPP Exchange rate with the US$ (2016)]]), "n/a", Table37[[#This Row],[Minimum Hourly Wage Rate (LC)]]*'GDP Deflator 1960-2011'!AZ32/'GDP Deflator 1960-2011'!BD32*1/Table37[[#This Row],[PPP Exchange rate with the US$ (2016)]]) -> 3.825278512 | EV36: 129.2 | EX36: 7.792051746 | EY36: 196.4032517 | EZ36: 0.4761076274 | FA36: 0.03807103154 | FC36: 0 | FD36: 0 | FE36: =IFERROR(AM36/I36, "") -> 0 | FF36: 2.479941648 | FG36: =IFERROR(Table37[[#This Row],[Operating Costs US$ - Bus]]/Table37[[#This Row],[Fare revenue US$- Bus]], "") -> 2.547728144 | FH36: =IFERROR(Table37[[#This Row],[Operating Costs US$ - Metro]]/Table37[[#This Row],[Fare revenue US$- Metro]], "") -> 2.547728144 | FI36: =IFERROR(Table37[[#This Row],[Operating Costs US$- LRT]]/Table37[[#This Row],[Fare revenue US$- LRT]], "") ->  | FJ36: =IFERROR(Table37[[#This Row],[Operating Costs US$- Tram]]/Table37[[#This Row],[Fare revenue US$- Tram]], "") -> 2.547728144 | FK36: =IFERROR(Table37[[#This Row],[Operating Costs US$ - Trolley Bus]]/Table37[[#This Row],[Fare revenue US$- Trolley Buses]], "") -> 2.547728144 | FL36: =IFERROR((AVERAGEIF(Table37[[#This Row],[Fares for 10 km of journey (2007 US$ PPP) - Bus]:[Fares for 10 km of journey (2007 US$ PPP) - Trolley Bus]], "<>0")*40*12)/EO36, "") -> 0.02403055403 | FM36: =IFERROR((AVERAGEIF(Table37[[#This Row],[Fares for 10 km of journey (2007 US$ PPP) - Regional/Commuter Rail]:[Fares for 10 km of journey (2007 US$ PPP) - BRT]], "<>0")*40*12)/EO36, "") -> 0.02379837476 | FN36: =IFERROR(2*(AVERAGEIF(Table37[[#This Row],[Fares for avg. length of journey (2007 US$ PPP) - Metro]:[Fares for avg. length of journey (2007 US$ PPP) - BRT]], "<>0"))/(Table37[[#This Row],[Minimum Hourly Wage rate (PPP $ 2007)]]*8), "") -> 0.189001004 | FO36: 0.04384723827 | FP36: 17.4 | FQ36: 30 | FR36: =SUM(AP36:AQ36)+Table37[[#This Row],[Length of mass transit (km) - BRT]] -> 34.6 | FS36: 1.884841096 | FT36: 9845.082768 | FU36: 0.6545493962 | FV36: 0.06588468276 | FW36: 0 | FX36: 84.6487 | FY36: 50 | GA36: 1.436252486 | GB36: 0 | GC36: 13.54354301 | GD36: 9.480480108 | GE36: 10.07083968 | GF36: 0.35 | GG36: 2.53 | GH36: =Table37[[#This Row],[Fares for 10 km of journey (2007 US$ PPP) - Bus]]/10*Table37[[#This Row],[Average trip length by car (km)]] -> 2.999034285 | GI36: =Table37[[#This Row],[Fares for 10 km of journey (2007 US$ PPP) - Regional/Commuter Rail]]/10*Table37[[#This Row],[Average trip length by car (km)]] -> 2.999034285 | GJ36: =Table37[[#This Row],[Fares for 10 km of journey (2007 US$ PPP) - Metro]]/10*Table37[[#This Row],[Average trip length by car (km)]] -> 2.78481755 | GK36: =Table37[[#This Row],[Fares for 10 km of journey (2007 US$ PPP) - LRT]]/10*Table37[[#This Row],[Average trip length by car (km)]] -> 0 | GL36: =Table37[[#This Row],[Fares for 10 km of journey (2007 US$ PPP) - Tram]]/10*Table37[[#This Row],[Average trip length by car (km)]] -> 2.999034285 | GM36: =Table37[[#This Row],[Fares for 10 km of journey (2007 US$ PPP) - BRT]]/10*Table37[[#This Row],[Average trip length by car (km)]] -> 0 | GN36: =Table37[[#This Row],[Fares for 10 km of journey (2007 US$ PPP) - Trolley Bus]]/10*Table37[[#This Row],[Average trip length by car (km)]] -> 2.999034285
B37: Agra | C37: India | D37: SAR | E37: 1574542 | F37: 1275000 | G37: 1746467 | I37: 141 | J37: 141 | K37: 188.4 | M37: 11166.96454 | Q37: 0 | R37: 544 | Z37: 0 | AE37: 0 | AF37: 0 | AG37: 0 | AH37: 0 | AI37: 0 | AJ37: 0 | AK37: 0 | AL37: 0 | AO37: 0 | AP37: 0 | AQ37: 0 | AR37: 0 | AS37: 0 | AT37: 0 | AU37: 0 | AV37: 0 | AW37: 0 | AX37: 0 | AY37: 0 | AZ37: 0 | BC37: 544 | BF37: 0 | BG37: 0 | BH37: 0 | BI37: 0 | BJ37: 0 | BK37: 0 | BN37: 0 | BO37: 0 | BP37: 0 | BQ37: 0 | BR37: 0 | BS37: 0 | BT37: 0 | BU37: 0 | BV37: 0 | BW37: 0 | BX37: 0 | BY37: 0 | BZ37: 0 | CB37: 0 | CC37: 0 | CD37: 0 | CE37: 0 | CF37: 0 | CG37: 0 | CI37: 0 | CJ37: 0 | CK37: 0 | CL37: 0 | CN37: 0 | CP37: 0 | CQ37: 0 | CR37: 0 | CS37: 0 | CT37: 0 | CV37: 0 | CW37: 0 | CX37: 0 | CY37: 0 | DA37: 0 | DB37: 0 | DC37: 0 | DD37: 0 | DF37: 0 | DH37: 0 | DI37: 0 | DJ37: 0 | DK37: 0 | DL37: 0 | DN37: 0 | DO37: 0 | DP37: 0 | DQ37: 0 | DR37: 0 | DS37: 0 | DW37: 60 | DX37: 73.12 | DY37: 54.49 | DZ37: 0.9 | EB37: 0.82 | EC37: 45.22 | ED37: 3.461 | EI37: 196 | EL37: Euro 4 | EO37: =Table37[[#This Row],[City Per Capita GDP (LC)]]*('GDP Deflator 1960-2011'!AZ33/'GDP Deflator 1960-2011'!BB33)*1/Table37[[#This Row],[PPP Exchange rate with the US$ (2016)]] -> 0 | EQ37: =Table37[[#This Row],[City GDP (LC Billion)]]*'GDP Deflator 1960-2011'!AZ33/'GDP Deflator 1960-2011'!BC33*1/Table37[[#This Row],[PPP Exchange rate with the US$ (2016)]] -> 0 | ES37: =Table37[[#This Row],[Median Annual household income (LC)]]*'GDP Deflator 1960-2011'!AZ33/'GDP Deflator 1960-2011'!AY33*1/Table37[[#This Row],[PPP Exchange rate with the US$ (2016)]] -> 0 | ET37: 29 | EU37: =IF(ISERROR(Table37[[#This Row],[Minimum Hourly Wage Rate (LC)]]*'CPI 1960-2011'!AY33/'CPI 1960-2011'!BC33*1/Table37[[#This Row],[PPP Exchange rate with the US$ (2016)]]), "n/a", Table37[[#This Row],[Minimum Hourly Wage Rate (LC)]]*'GDP Deflator 1960-2011'!AZ33/'GDP Deflator 1960-2011'!BD33*1/Table37[[#This Row],[PPP Exchange rate with the US$ (2016)]]) -> 1.249884677 | EV37: 17.2 | EX37: 0 | EY37: 0 | EZ37: 0.3114859886 | FA37: 0 | FC37: 0 | FD37: 0 | FE37: =IFERROR(AM37/I37, "") -> 0 | FF37: 0 | FG37: =IFERROR(Table37[[#This Row],[Operating Costs US$ - Bus]]/Table37[[#This Row],[Fare revenue US$- Bus]], "") ->  | FH37: =IFERROR(Table37[[#This Row],[Operating Costs US$ - Metro]]/Table37[[#This Row],[Fare revenue US$- Metro]], "") ->  | FI37: =IFERROR(Table37[[#This Row],[Operating Costs US$- LRT]]/Table37[[#This Row],[Fare revenue US$- LRT]], "") ->  | FJ37: =IFERROR(Table37[[#This Row],[Operating Costs US$- Tram]]/Table37[[#This Row],[Fare revenue US$- Tram]], "") ->  | FK37: =IFERROR(Table37[[#This Row],[Operating Costs US$ - Trolley Bus]]/Table37[[#This Row],[Fare revenue US$- Trolley Buses]], "") ->  | FL37: =IFERROR((AVERAGEIF(Table37[[#This Row],[Fares for 10 km of journey (2007 US$ PPP) - Bus]:[Fares for 10 km of journey (2007 US$ PPP) - Trolley Bus]], "<>0")*40*12)/EO37, "") ->  | FM37: =IFERROR((AVERAGEIF(Table37[[#This Row],[Fares for 10 km of journey (2007 US$ PPP) - Regional/Commuter Rail]:[Fares for 10 km of journey (2007 US$ PPP) - BRT]], "<>0")*40*12)/EO37, "") ->  | FN37: =IFERROR(2*(AVERAGEIF(Table37[[#This Row],[Fares for avg. length of journey (2007 US$ PPP) - Metro]:[Fares for avg. length of journey (2007 US$ PPP) - BRT]], "<>0"))/(Table37[[#This Row],[Minimum Hourly Wage rate (PPP $ 2007)]]*8), "") ->  | FP37: 0 | FQ37: 0 | FR37: =SUM(AP37:AQ37)+Table37[[#This Row],[Length of mass transit (km) - BRT]] -> 0 | FS37: 0 | FU37: 0 | FV37: 0 | FW37: 0 | FX37: 54.49489862 | FY37: 34.61 | GA37: 1001.74446 | GB37: 0 | GC37: 0 | GD37: 0 | GE37: 112.2265694 | GF37: 0 | GG37: 0 | GH37: =Table37[[#This Row],[Fares for 10 km of journey (2007 US$ PPP) - Bus]]/10*Table37[[#This Row],[Average trip length by car (km)]] -> 0 | GI37: =Table37[[#This Row],[Fares for 10 km of journey (2007 US$ PPP) - Regional/Commuter Rail]]/10*Table37[[#This Row],[Average trip length by car (km)]] -> 0 | GJ37: =Table37[[#This Row],[Fares for 10 km of journey (2007 US$ PPP) - Metro]]/10*Table37[[#This Row],[Average trip length by car (km)]] -> 0 | GK37: =Table37[[#This Row],[Fares for 10 km of journey (2007 US$ PPP) - LRT]]/10*Table37[[#This Row],[Average trip length by car (km)]] -> 0 | GL37: =Table37[[#This Row],[Fares for 10 km of journey (2007 US$ PPP) - Tram]]/10*Table37[[#This Row],[Average trip length by car (km)]] -> 0 | GM37: =Table37[[#This Row],[Fares for 10 km of journey (2007 US$ PPP) - BRT]]/10*Table37[[#This Row],[Average trip length by car (km)]] -> 0 | GN37: =Table37[[#This Row],[Fares for 10 km of journey (2007 US$ PPP) - Trolley Bus]]/10*Table37[[#This Row],[Average trip length by car (km)]] -> 0
B38: Ahmedabad | C38: India | D38: SAR | E38: 5570585 | F38: 3520085 | G38: 6352254 | H38: 4525013 | I38: 288.04 | J38: 288.04 | K38: 274.09 | L38: 1719 | M38: 19339.62297 | N38: =355726-1300-507 -> 353919 | O38: 1235688 | P38: =199777+13666 -> 213443 | Q38: 1449131 | R38: 1585526 | S38: 44.44 | T38: 5.56 | U38: 11.11 | V38: 22.22 | W38: 5 | X38: 10 | Z38: 1.67 | AA38: 5.4 | AB38: 16 | AC38: =157.26/365+114.46/365 -> 0.7444383562 | AE38: 0 | AF38: 0 | AG38: 0 | AH38: 0 | AI38: 0.115 | AJ38: 0 | AK38: 0.8594383562 | AL38: 0.115 | AM38: 1873 | AO38: 0 | AP38: 0 | AQ38: 0 | AR38: 0 | AS38: 39 | AT38: 0 | AU38: 0 | AV38: 0 | AW38: 0 | AX38: 0 | AY38: 0 | AZ38: 57 | BC38: =572+320 -> 892 | BF38: 0 | BG38: 0 | BH38: 0 | BI38: 0 | BJ38: 70 | BK38: 0 | BL38: =6072+81923 -> 87995 | BM38: 12 | BN38: 0 | BO38: 0 | BP38: 0 | BQ38: 0 | BR38: 0.3 | BS38: 0 | BT38: 0.5355040188 | BU38: 0 | BV38: 0 | BW38: 0 | BX38: 0 | BY38: 0.7202529053 | BZ38: 0 | CB38: 0 | CC38: 0 | CD38: 0 | CE38: 0 | CG38: 0 | CI38: 0 | CJ38: 0 | CK38: 0 | CL38: 0 | CM38: 7.12 | CN38: 0 | CP38: 0 | CQ38: 0 | CR38: 0 | CS38: 0 | CT38: 0 | CV38: 0 | CW38: 0 | CX38: 0 | CY38: 0 | DA38: 0 | DB38: 0 | DC38: 0 | DD38: 0 | DE38: 14.88576221 | DF38: 0 | DH38: 0 | DI38: 0 | DJ38: 0 | DK38: 0 | DL38: 0 | DM38: 3828 | DN38: 0 | DO38: 0 | DP38: 0 | DQ38: 0 | DS38: 0 | DT38: 10.54 | DW38: 66 | DX38: 71.8 | DY38: 58.45 | DZ38: 1 | EB38: 0.88 | ED38: =222/E38*100000 -> 3.985218788 | EF38: =162/F38*100000 -> 4.602161596 | EG38: 30 | EH38: 21 | EI38: 83 | EK38: 6.408 | EL38: Euro 4 | EO38: 49 | EQ38: =Table37[[#This Row],[City GDP (LC Billion)]]*'GDP Deflator 1960-2011'!AZ34/'GDP Deflator 1960-2011'!BC34*1/Table37[[#This Row],[PPP Exchange rate with the US$ (2016)]] -> 0 | ES38: =Table37[[#This Row],[Median Annual household income (LC)]]*'GDP Deflator 1960-2011'!AZ34/'GDP Deflator 1960-2011'!AY34*1/Table37[[#This Row],[PPP Exchange rate with the US$ (2016)]] -> 0 | ET38: =(22.63+30)/2 -> 26.315 | EU38: =IF(ISERROR(Table37[[#This Row],[Minimum Hourly Wage Rate (LC)]]*'CPI 1960-2011'!AY34/'CPI 1960-2011'!BC34*1/Table37[[#This Row],[PPP Exchange rate with the US$ (2016)]]), "n/a", Table37[[#This Row],[Minimum Hourly Wage Rate (LC)]]*'GDP Deflator 1960-2011'!AZ34/'GDP Deflator 1960-2011'!BD34*1/Table37[[#This Row],[PPP Exchange rate with the US$ (2016)]]) -> 1.134162596 | EV38: 17.2 | EX38: 194.5274858 | EY38: 33.60114378 | EZ38: 0.1404225965 | FA38: 0.7793552424 | FB38: 491.9978644 | FC38: 1873 | FD38: 294.8559677 | FE38: =IFERROR(AM38/I38, "") -> 6.502569088 | FF38: 4.291479821 | FG38: =IFERROR(Table37[[#This Row],[Operating Costs US$ - Bus]]/Table37[[#This Row],[Fare revenue US$- Bus]], "") ->  | FH38: =IFERROR(Table37[[#This Row],[Operating Costs US$ - Metro]]/Table37[[#This Row],[Fare revenue US$- Metro]], "") ->  | FI38: =IFERROR(Table37[[#This Row],[Operating Costs US$- LRT]]/Table37[[#This Row],[Fare revenue US$- LRT]], "") ->  | FJ38: =IFERROR(Table37[[#This Row],[Operating Costs US$- Tram]]/Table37[[#This Row],[Fare revenue US$- Tram]], "") ->  | FK38: =IFERROR(Table37[[#This Row],[Operating Costs US$ - Trolley Bus]]/Table37[[#This Row],[Fare revenue US$- Trolley Buses]], "") ->  | FL38: =IFERROR((AVERAGEIF(Table37[[#This Row],[Fares for 10 km of journey (2007 US$ PPP) - Bus]:[Fares for 10 km of journey (2007 US$ PPP) - Trolley Bus]], "<>0")*40*12)/EO38, "") -> 6.150646159 | FM38: =IFERROR((AVERAGEIF(Table37[[#This Row],[Fares for 10 km of journey (2007 US$ PPP) - Regional/Commuter Rail]:[Fares for 10 km of journey (2007 US$ PPP) - BRT]], "<>0")*40*12)/EO38, "") -> 7.055538665 | FN38: =IFERROR(2*(AVERAGEIF(Table37[[#This Row],[Fares for avg. length of journey (2007 US$ PPP) - Metro]:[Fares for avg. length of journey (2007 US$ PPP) - BRT]], "<>0"))/(Table37[[#This Row],[Minimum Hourly Wage rate (PPP $ 2007)]]*8), "") -> 0.085732101 | FO38: 24.48979592 | FP38: 5.4 | FQ38: 16 | FR38: =SUM(AP38:AQ38)+Table37[[#This Row],[Length of mass transit (km) - BRT]] -> 39 | FS38: 0.115 | FT38: 2948.717949 | FU38: 0.01810381008 | FV38: 0.1353978614 | FW38: 0.03697403138 | FX38: 222 | FY38: 39.85218788 | FZ38: 0.1185264282 | GA38: 1.400166254 | GB38: 0 | GC38: 4.722733065 | GD38: 3.305913145 | GE38: 13.06622815 | GF38: 0 | GG38: 0 | GH38: =Table37[[#This Row],[Fares for 10 km of journey (2007 US$ PPP) - Bus]]/10*Table37[[#This Row],[Average trip length by car (km)]] -> 0.2891721702 | GI38: =Table37[[#This Row],[Fares for 10 km of journey (2007 US$ PPP) - Regional/Commuter Rail]]/10*Table37[[#This Row],[Average trip length by car (km)]] -> 0 | GJ38: =Table37[[#This Row],[Fares for 10 km of journey (2007 US$ PPP) - Metro]]/10*Table37[[#This Row],[Average trip length by car (km)]] -> 0 | GK38: =Table37[[#This Row],[Fares for 10 km of journey (2007 US$ PPP) - LRT]]/10*Table37[[#This Row],[Average trip length by car (km)]] -> 0 | GL38: =Table37[[#This Row],[Fares for 10 km of journey (2007 US$ PPP) - Tram]]/10*Table37[[#This Row],[Average trip length by car (km)]] -> 0 | GM38: =Table37[[#This Row],[Fares for 10 km of journey (2007 US$ PPP) - BRT]]/10*Table37[[#This Row],[Average trip length by car (km)]] -> 0.3889365689 | GN38: =Table37[[#This Row],[Fares for 10 km of journey (2007 US$ PPP) - Trolley Bus]]/10*Table37[[#This Row],[Average trip length by car (km)]] -> 0
B39: Amritsar | C39: India | D39: SAR | E39: 1132761 | F39: 1011327 | G39: 1183705 | I39: 139 | J39: 139 | M39: =E39/I39 -> 8149.359712 | N39: =12260+1992+280770+16646 -> 311668 | O39: 306891 | P39: 62685 | Q39: =O39+P39 -> 369576 | R39: 386217 | T39: 33.33 | U39: 66.67 | Z39: 0 | AA39: 15 | AB39: 31 | AE39: 0 | AF39: 0 | AG39: 0 | AH39: 0 | AI39: 0 | AJ39: 0 | AK39: 0 | AL39: 0 | AM39: 525 | AO39: 0 | AP39: 0 | AQ39: 0 | AR39: 0 | AS39: 0 | AT39: 0 | AU39: 0 | AV39: 0 | AW39: 0 | AX39: 0 | AY39: 0 | AZ39: 0 | BC39: 1624 | BF39: 0 | BG39: 0 | BH39: 0 | BI39: 0 | BJ39: 0 | BK39: 0 | BL39: =1958+7945 -> 9903 | BN39: 0 | BO39: 0 | BP39: 0 | BQ39: 0 | BR39: 0 | BS39: 0 | BT39: 0 | BU39: 0 | BV39: 0 | BW39: 0 | BX39: 0 | BY39: 0 | BZ39: 0 | CB39: 0 | CC39: 0 | CD39: 0 | CE39: 0 | CF39: 0 | CG39: 0 | CI39: 0 | CJ39: 0 | CK39: 0 | CL39: 0 | CN39: 0 | CP39: 0 | CQ39: 0 | CR39: 0 | CS39: 0 | CT39: 0 | CV39: 0 | CW39: 0 | CX39: 0 | CY39: 0 | DA39: 0 | DB39: 0 | DC39: 0 | DD39: 0 | DF39: 0 | DH39: 0 | DI39: 0 | DJ39: 0 | DK39: 0 | DL39: 0 | DN39: 0 | DO39: 0 | DP39: 0 | DQ39: 0 | DR39: 0 | DS39: 0 | DW39: 75 | DX39: 75.83 | DY39: 53.26 | DZ39: 1.13 | EB39: 0.8 | ED39: =37/E39*100000 -> 3.266355392 | EI39: 202 | EL39: Euro 3 | EO39: =Table37[[#This Row],[City Per Capita GDP (LC)]]*('GDP Deflator 1960-2011'!AZ35/'GDP Deflator 1960-2011'!BB35)*1/Table37[[#This Row],[PPP Exchange rate with the US$ (2016)]] -> 0 | EQ39: =Table37[[#This Row],[City GDP (LC Billion)]]*'GDP Deflator 1960-2011'!AZ35/'GDP Deflator 1960-2011'!BC35*1/Table37[[#This Row],[PPP Exchange rate with the US$ (2016)]] -> 0 | ER39: 267056 | ES39: =Table37[[#This Row],[Median Annual household income (LC)]]*'GDP Deflator 1960-2011'!AZ35/'GDP Deflator 1960-2011'!BA35*1/Table37[[#This Row],[PPP Exchange rate with the US$ (2016)]] -> 14288.46707 | ET39: =(20.25+24.75)/2 -> 22.5 | EU39: =IF(ISERROR(Table37[[#This Row],[Minimum Hourly Wage Rate (LC)]]*'CPI 1960-2011'!AY35/'CPI 1960-2011'!BC35*1/Table37[[#This Row],[PPP Exchange rate with the US$ (2016)]]), "n/a", Table37[[#This Row],[Minimum Hourly Wage Rate (LC)]]*'GDP Deflator 1960-2011'!AZ35/'GDP Deflator 1960-2011'!BD35*1/Table37[[#This Row],[PPP Exchange rate with the US$ (2016)]]) -> 0.9697381116 | EV39: 17.2 | EX39: =IFERROR(O39/G39*1000, O39/E39*1000) -> 259.2630765 | EY39: =IFERROR(P39/G39*1000,P39/E39*1000) -> 52.95660659 | EZ39: =IFERROR(SUM(BA39:BE39)/G39*1000, SUM(BA39:BE39)/E39*1000) -> 1.371963454 | FA39: =IFERROR(O39/R39, "") -> 0.7946076946 | FB39: =IFERROR(((O39*0.5)+((P39+BL39)*1)+(SUM(BA39:BE39)*2.5))/AM39, "") -> 438.2733333 | FC39: =AM39 -> 525 | FD39: =IFERROR(AM39/G39*10^6,AM39/E39*10^6) -> 443.5226682 | FE39: =IFERROR(AM39/I39, "") -> 3.776978417 | FF39: =IFERROR(DM39/SUM(BA39:BE39), "") -> 0 | FG39: =IFERROR(Table37[[#This Row],[Operating Costs US$ - Bus]]/Table37[[#This Row],[Fare revenue US$- Bus]], "") ->  | FH39: =IFERROR(Table37[[#This Row],[Operating Costs US$ - Metro]]/Table37[[#This Row],[Fare revenue US$- Metro]], "") ->  | FI39: =IFERROR(Table37[[#This Row],[Operating Costs US$- LRT]]/Table37[[#This Row],[Fare revenue US$- LRT]], "") ->  | FJ39: =IFERROR(Table37[[#This Row],[Operating Costs US$- Tram]]/Table37[[#This Row],[Fare revenue US$- Tram]], "") ->  | FK39: =IFERROR(Table37[[#This Row],[Operating Costs US$ - Trolley Bus]]/Table37[[#This Row],[Fare revenue US$- Trolley Buses]], "") ->  | FL39: =IFERROR((AVERAGEIF(Table37[[#This Row],[Fares for 10 km of journey (2007 US$ PPP) - Bus]:[Fares for 10 km of journey (2007 US$ PPP) - Trolley Bus]], "<>0")*40*12)/EO39, "") ->  | FM39: =IFERROR((AVERAGEIF(Table37[[#This Row],[Fares for 10 km of journey (2007 US$ PPP) - Regional/Commuter Rail]:[Fares for 10 km of journey (2007 US$ PPP) - BRT]], "<>0")*40*12)/EO39, "") ->  | FN39: =IFERROR(2*(AVERAGEIF(Table37[[#This Row],[Fares for avg. length of journey (2007 US$ PPP) - Metro]:[Fares for avg. length of journey (2007 US$ PPP) - BRT]], "<>0"))/(Table37[[#This Row],[Minimum Hourly Wage rate (PPP $ 2007)]]*8), "") ->  | FP39: =AA39 -> 15 | FQ39: =AB39 -> 31 | FR39: =SUM(AP39:AQ39)+Table37[[#This Row],[Length of mass transit (km) - BRT]] -> 0 | FS39: 0 | FU39: =IFERROR(FS39*10^6/G39, FS39*10^6/E39) -> 0 | FV39: =IFERROR(FR39/I39, "") -> 0 | FW39: 0 | FX39: =IFERROR(ED39*E39/10^5, "") -> 37 | FY39: =ED39*10 -> 32.66355392 | FZ39: =IFERROR(FX39/AM39, "") -> 0.07047619048 | GA39: =IFERROR(FX39/(R39/10^4), "") -> 0.958010652 | GB39: =IFERROR(EJ39/G39*10^6, EJ39/E39*10^6) -> 0 | GC39: =IFERROR(EG39/G39*10^6, EG39/E39*10^6) -> 0 | GD39: =IFERROR(EH39/G39*10^6, EH39/E39*10^6) -> 0 | GE39: =IFERROR(EI39/G39*10^6, EI39/E39*10^6) -> 170.6506266 | GF39: =DU39 -> 0 | GG39: =DV39 -> 0 | GH39: =Table37[[#This Row],[Fares for 10 km of journey (2007 US$ PPP) - Bus]]/10*Table37[[#This Row],[Average trip length by car (km)]] -> 0 | GI39: =Table37[[#This Row],[Fares for 10 km of journey (2007 US$ PPP) - Regional/Commuter Rail]]/10*Table37[[#This Row],[Average trip length by car (km)]] -> 0 | GJ39: =Table37[[#This Row],[Fares for 10 km of journey (2007 US$ PPP) - Metro]]/10*Table37[[#This Row],[Average trip length by car (km)]] -> 0 | GK39: =Table37[[#This Row],[Fares for 10 km of journey (2007 US$ PPP) - LRT]]/10*Table37[[#This Row],[Average trip length by car (km)]] -> 0 | GL39: =Table37[[#This Row],[Fares for 10 km of journey (2007 US$ PPP) - Tram]]/10*Table37[[#This Row],[Average trip length by car (km)]] -> 0 | GM39: =Table37[[#This Row],[Fares for 10 km of journey (2007 US$ PPP) - BRT]]/10*Table37[[#This Row],[Average trip length by car (km)]] -> 0 | GN39: =Table37[[#This Row],[Fares for 10 km of journey (2007 US$ PPP) - Trolley Bus]]/10*Table37[[#This Row],[Average trip length by car (km)]] -> 0
B40: Bangalore | C40: India | D40: SAR | E40: 8425970 | F40: 5897267 | G40: 8499399 | I40: 709 | J40: 709 | K40: 8005 | L40: 8002 | M40: 11884.30183 | O40: 2406036 | P40: 634090 | Q40: 3040126 | R40: 3472910 | S40: 43.69 | T40: 6.8 | U40: 12.62 | V40: 8.74 | W40: 0 | X40: 11.65 | Y40: 1 | Z40: 15.5 | AA40: 9.6 | AB40: 32 | AC40: 4.5 | AE40: 0 | AG40: 0 | AH40: 0 | AI40: 0 | AJ40: 0 | AK40: 4.5 | AL40: 0 | AM40: =956+1066.18 -> 2022.18 | AO40: 0 | AP40: =18.1+24.2 -> 42.3 | AQ40: 0 | AR40: 0 | AS40: 0 | AT40: 0 | AU40: 0 | AV40: 35 | AW40: 0 | AX40: 0 | AY40: 0 | AZ40: 0 | BC40: 6381 | BG40: 0 | BH40: 0 | BI40: 0 | BJ40: 0 | BK40: 0 | BL40: =104543+117261 -> 221804 | BM40: 12 | BN40: 0 | BO40: 15 | BP40: 0 | BQ40: 0 | BR40: 0 | BS40: 0 | BT40: 0.5355040188 | BU40: 0 | BV40: 0.6693800235 | BW40: 0 | BX40: 0 | BY40: 0 | BZ40: 0 | CA40: 12789.95 | CB40: 0 | CD40: 0 | CE40: 0 | CF40: 0 | CG40: 0 | CH40: =(121123.53*10^5/10^6) -> 12112.353 | CI40: 0 | CK40: 0 | CL40: 0 | CN40: 0 | CO40: 605.763 | CP40: 0 | CR40: 0 | CT40: 0 | CU40: 570.7558021 | CW40: 0 | CX40: 0 | CY40: 0 | CZ40: 540.5178091 | DA40: 0 | DC40: 0 | DD40: 0 | DF40: 0 | DG40: 27.03237675 | DH40: 0 | DJ40: 0 | DL40: 0 | DM40: 34278 | DN40: 0 | DP40: 0 | DQ40: 0 | DR40: 0 | DS40: 0 | DT40: 4.05 | DW40: 69.29 | DX40: 75.17 | DY40: 56.65 | DZ40: 1.04 | EB40: 0.86 | EC40: 48.05 | ED40: 10.2 | EG40: 7 | EH40: 50 | EI40: 118 | EK40: 21.43 | EL40: Euro 4 | EN40: 156967 | EO40: =Table37[[#This Row],[City Per Capita GDP (LC)]]*('GDP Deflator 1960-2011'!AZ36/'GDP Deflator 1960-2011'!BB36)*1/Table37[[#This Row],[PPP Exchange rate with the US$ (2016)]] -> 7925.581297 | EP40: 1136.8043 | EQ40: =Table37[[#This Row],[City GDP (LC Billion)]]*'GDP Deflator 1960-2011'!AZ36/'GDP Deflator 1960-2011'!BB36*1/Table37[[#This Row],[PPP Exchange rate with the US$ (2016)]] -> 57.39954831 | ER40: 300678 | ES40: =Table37[[#This Row],[Median Annual household income (LC)]]*'GDP Deflator 1960-2011'!AZ36/'GDP Deflator 1960-2011'!BA36*1/Table37[[#This Row],[PPP Exchange rate with the US$ (2016)]] -> 16087.36632 | ET40: =(22.63+30)/2 -> 26.315 | EU40: =IF(ISERROR(Table37[[#This Row],[Minimum Hourly Wage Rate (LC)]]*'CPI 1960-2011'!AY36/'CPI 1960-2011'!BC36*1/Table37[[#This Row],[PPP Exchange rate with the US$ (2016)]]), "n/a", Table37[[#This Row],[Minimum Hourly Wage Rate (LC)]]*'GDP Deflator 1960-2011'!AZ36/'GDP Deflator 1960-2011'!BD36*1/Table37[[#This Row],[PPP Exchange rate with the US$ (2016)]]) -> 1.134162596 | EV40: 17.2 | EX40: 283.0830745 | EY40: 74.60409848 | EZ40: 0.7507589654 | FA40: 0.692801138 | FB40: 1026.053319 | FC40: 2022.18 | FD40: 237.9203518 | FE40: =IFERROR(AM40/K40, "") -> 0.2526146159 | FF40: 5.371885284 | FG40: =IFERROR(Table37[[#This Row],[Operating Costs US$ - Bus]]/Table37[[#This Row],[Fare revenue US$- Bus]], "") -> 1.05594264 | FH40: =IFERROR(Table37[[#This Row],[Operating Costs US$ - Metro]]/Table37[[#This Row],[Fare revenue US$- Metro]], "") ->  | FI40: =IFERROR(Table37[[#This Row],[Operating Costs US$- LRT]]/Table37[[#This Row],[Fare revenue US$- LRT]], "") ->  | FJ40: =IFERROR(Table37[[#This Row],[Operating Costs US$- Tram]]/Table37[[#This Row],[Fare revenue US$- Tram]], "") ->  | FK40: =IFERROR(Table37[[#This Row],[Operating Costs US$ - Trolley Bus]]/Table37[[#This Row],[Fare revenue US$- Trolley Buses]], "") ->  | FL40: =IFERROR((AVERAGEIF(Table37[[#This Row],[Fares for 10 km of journey (2007 US$ PPP) - Bus]:[Fares for 10 km of journey (2007 US$ PPP) - Trolley Bus]], "<>0")*40*12)/EO40, "") -> 0.03648592568 | FM40: =IFERROR((AVERAGEIF(Table37[[#This Row],[Fares for 10 km of journey (2007 US$ PPP) - Regional/Commuter Rail]:[Fares for 10 km of journey (2007 US$ PPP) - BRT]], "<>0")*40*12)/EO40, "") -> 0.04053991742 | FN40: =IFERROR(2*(AVERAGEIF(Table37[[#This Row],[Fares for avg. length of journey (2007 US$ PPP) - Metro]:[Fares for avg. length of journey (2007 US$ PPP) - BRT]], "<>0"))/(Table37[[#This Row],[Minimum Hourly Wage rate (PPP $ 2007)]]*8), "") -> 0.1416474201 | FO40: 0.1574647907 | FP40: 9.6 | FQ40: 32 | FR40: =SUM(AP40:AQ40)+Table37[[#This Row],[Length of mass transit (km) - BRT]] -> 42.3 | FS40: 0 | FT40: 0 | FU40: 0 | FV40: 0.05966149506 | FW40: 0.1407616361 | FX40: 859.44894 | FY40: 102 | FZ40: 0.4250110969 | GA40: 2.474722754 | GB40: 0 | GC40: 0.8235876443 | GD40: 5.882768888 | GE40: 13.88333457 | GF40: 0 | GG40: 0 | GH40: =Table37[[#This Row],[Fares for 10 km of journey (2007 US$ PPP) - Bus]]/10*Table37[[#This Row],[Average trip length by car (km)]] -> 0.5140838581 | GI40: =Table37[[#This Row],[Fares for 10 km of journey (2007 US$ PPP) - Regional/Commuter Rail]]/10*Table37[[#This Row],[Average trip length by car (km)]] -> 0 | GJ40: =Table37[[#This Row],[Fares for 10 km of journey (2007 US$ PPP) - Metro]]/10*Table37[[#This Row],[Average trip length by car (km)]] -> 0.6426048226 | GK40: =Table37[[#This Row],[Fares for 10 km of journey (2007 US$ PPP) - LRT]]/10*Table37[[#This Row],[Average trip length by car (km)]] -> 0 | GL40: =Table37[[#This Row],[Fares for 10 km of journey (2007 US$ PPP) - Tram]]/10*Table37[[#This Row],[Average trip length by car (km)]] -> 0 | GM40: =Table37[[#This Row],[Fares for 10 km of journey (2007 US$ PPP) - BRT]]/10*Table37[[#This Row],[Average trip length by car (km)]] -> 0 | GN40: =Table37[[#This Row],[Fares for 10 km of journey (2007 US$ PPP) - Trolley Bus]]/10*Table37[[#This Row],[Average trip length by car (km)]] -> 0
B41: Bhopal | C41: India | D41: SAR | E41: 1843000 | F41: 1437354 | G41: 2995648 | I41: 298.48 | J41: 298.48 | M41: 6174.618065 | O41: 463101 | P41: 52953 | Q41: 516054 | R41: 571088 | Z41: 0 | AA41: 3.1 | AB41: 15 | AC41: 0.1 | AE41: 0 | AF41: 0 | AG41: 0 | AH41: 0 | AI41: 0.07 | AJ41: 0 | AK41: 0.1 | AL41: 0 | AO41: 0 | AP41: 0 | AQ41: 0 | AR41: 0 | AS41: 24 | AT41: 0 | AU41: 0 | AV41: 0 | AW41: 0 | AX41: 0 | AY41: 0 | AZ41: 41 | BC41: 3169 | BF41: 0 | BG41: 0 | BH41: 0 | BI41: 0 | BJ41: 26 | BK41: 0 | BL41: 23303 | BM41: 10 | BN41: 0 | BO41: 0 | BP41: 0 | BQ41: 0 | BR41: 0 | BS41: 0 | BT41: 0.446253349 | BU41: 0 | BV41: 0 | BW41: 0 | BX41: 0 | BY41: 0.43 | BZ41: 0 | CB41: 0 | CC41: 0 | CD41: 0 | CE41: 0 | CF41: 0 | CG41: 0 | CI41: 0 | CJ41: 0 | CK41: 0 | CL41: 0 | CM41: 6.33 | CN41: 0 | CP41: 0 | CQ41: 0 | CR41: 0 | CS41: 0 | CT41: 0 | CV41: 0 | CW41: 0 | CX41: 0 | CY41: 0 | DA41: 0 | DB41: 0 | DC41: 0 | DD41: 0 | DF41: 0 | DH41: 0 | DI41: 0 | DJ41: 0 | DK41: 0 | DL41: 0 | DN41: 0 | DO41: 0 | DP41: 0 | DQ41: 0 | DR41: 0 | DS41: 0 | DW41: 71.18 | DX41: 72.7 | DY41: 59.53 | DZ41: 1.078 | EB41: 0.9 | ED41: =147/E41*100000 -> 7.976125882 | EI41: 173 | EL41: Euro 3 | EO41: =Table37[[#This Row],[City Per Capita GDP (LC)]]*('GDP Deflator 1960-2011'!AZ37/'GDP Deflator 1960-2011'!BB37)*1/Table37[[#This Row],[PPP Exchange rate with the US$ (2016)]] -> 0 | EQ41: =Table37[[#This Row],[City GDP (LC Billion)]]*'GDP Deflator 1960-2011'!AZ37/'GDP Deflator 1960-2011'!BC37*1/Table37[[#This Row],[PPP Exchange rate with the US$ (2016)]] -> 0 | ER41: 165210 | ES41: =Table37[[#This Row],[Median Annual household income (LC)]]*'GDP Deflator 1960-2011'!AZ37/'GDP Deflator 1960-2011'!BA37*1/Table37[[#This Row],[PPP Exchange rate with the US$ (2016)]] -> 8839.335735 | ET41: =(20.5+27.5)/2 -> 24 | EU41: =IF(ISERROR(Table37[[#This Row],[Minimum Hourly Wage Rate (LC)]]*'CPI 1960-2011'!AY37/'CPI 1960-2011'!BC37*1/Table37[[#This Row],[PPP Exchange rate with the US$ (2016)]]), "n/a", Table37[[#This Row],[Minimum Hourly Wage Rate (LC)]]*'GDP Deflator 1960-2011'!AZ37/'GDP Deflator 1960-2011'!BD37*1/Table37[[#This Row],[PPP Exchange rate with the US$ (2016)]]) -> 1.034387319 | EV41: 17.2 | EX41: 154.5912604 | EY41: 17.67664292 | EZ41: 1.057867947 | FA41: 0.8109100524 | FC41: 0 | FD41: 0 | FE41: =IFERROR(AM41/I41, "") -> 0 | FF41: 0 | FG41: =IFERROR(Table37[[#This Row],[Operating Costs US$ - Bus]]/Table37[[#This Row],[Fare revenue US$- Bus]], "") ->  | FH41: =IFERROR(Table37[[#This Row],[Operating Costs US$ - Metro]]/Table37[[#This Row],[Fare revenue US$- Metro]], "") ->  | FI41: =IFERROR(Table37[[#This Row],[Operating Costs US$- LRT]]/Table37[[#This Row],[Fare revenue US$- LRT]], "") ->  | FJ41: =IFERROR(Table37[[#This Row],[Operating Costs US$- Tram]]/Table37[[#This Row],[Fare revenue US$- Tram]], "") ->  | FK41: =IFERROR(Table37[[#This Row],[Operating Costs US$ - Trolley Bus]]/Table37[[#This Row],[Fare revenue US$- Trolley Buses]], "") ->  | FL41: =IFERROR((AVERAGEIF(Table37[[#This Row],[Fares for 10 km of journey (2007 US$ PPP) - Bus]:[Fares for 10 km of journey (2007 US$ PPP) - Trolley Bus]], "<>0")*40*12)/EO41, "") ->  | FM41: =IFERROR((AVERAGEIF(Table37[[#This Row],[Fares for 10 km of journey (2007 US$ PPP) - Regional/Commuter Rail]:[Fares for 10 km of journey (2007 US$ PPP) - BRT]], "<>0")*40*12)/EO41, "") ->  | FN41: =IFERROR(2*(AVERAGEIF(Table37[[#This Row],[Fares for avg. length of journey (2007 US$ PPP) - Metro]:[Fares for avg. length of journey (2007 US$ PPP) - BRT]], "<>0"))/(Table37[[#This Row],[Minimum Hourly Wage rate (PPP $ 2007)]]*8), "") -> 0.03221713896 | FP41: 3.1 | FQ41: 15 | FR41: =SUM(AP41:AQ41)+Table37[[#This Row],[Length of mass transit (km) - BRT]] -> 24 | FS41: =SUM(AF41:AI41) -> 0.07 | FT41: =IFERROR(FS41*10^6/(AP41+AR41+AQ41+AS41), "") -> 2916.666667 | FU41: 0.0233672314 | FV41: 0.08040739748 | FW41: 0 | FX41: 147 | FY41: 79.76125882 | GA41: 2.574034124 | GB41: 0 | GC41: 0 | GD41: 0 | GE41: 57.75044331 | GF41: 0 | GG41: 0 | GH41: =Table37[[#This Row],[Fares for 10 km of journey (2007 US$ PPP) - Bus]]/10*Table37[[#This Row],[Average trip length by car (km)]] -> 0.1383385382 | GI41: =Table37[[#This Row],[Fares for 10 km of journey (2007 US$ PPP) - Regional/Commuter Rail]]/10*Table37[[#This Row],[Average trip length by car (km)]] -> 0 | GJ41: =Table37[[#This Row],[Fares for 10 km of journey (2007 US$ PPP) - Metro]]/10*Table37[[#This Row],[Average trip length by car (km)]] -> 0 | GK41: =Table37[[#This Row],[Fares for 10 km of journey (2007 US$ PPP) - LRT]]/10*Table37[[#This Row],[Average trip length by car (km)]] -> 0 | GL41: =Table37[[#This Row],[Fares for 10 km of journey (2007 US$ PPP) - Tram]]/10*Table37[[#This Row],[Average trip length by car (km)]] -> 0 | GM41: =Table37[[#This Row],[Fares for 10 km of journey (2007 US$ PPP) - BRT]]/10*Table37[[#This Row],[Average trip length by car (km)]] -> 0.1333 | GN41: =Table37[[#This Row],[Fares for 10 km of journey (2007 US$ PPP) - Trolley Bus]]/10*Table37[[#This Row],[Average trip length by car (km)]] -> 0
B42: Bhuvaneshwar | C42: India | D42: SAR | E42: 837737 | F42: 648032 | G42: 881988 | I42: 135 | J42: 135 | K42: 233 | L42: 233 | M42: 6205.459259 | N42: =4715+206667 -> 211382 | Q42: 0 | R42: =Q42+SUM(BA42:BE42)+BL42 -> 0 | S42: 16.67 | U42: 33.33 | V42: 16.67 | Z42: 33.33 | AE42: 0 | AF42: 0 | AG42: 0 | AH42: 0 | AI42: 0 | AJ42: 0 | AK42: 0 | AL42: 0 | AM42: =900+700 -> 1600 | AO42: 0 | AP42: 0 | AQ42: 0 | AR42: 0 | AS42: 0 | AT42: 0 | AU42: 0 | AV42: 0 | AW42: 0 | AX42: 0 | AY42: 0 | AZ42: 0 | BF42: 0 | BG42: 0 | BH42: 0 | BI42: 0 | BJ42: 0 | BK42: 0 | BN42: 0 | BO42: 0 | BP42: 0 | BQ42: 0 | BR42: 0 | BS42: 0 | BT42: 0 | BU42: 0 | BV42: 0 | BW42: 0 | BX42: 0 | BY42: 0 | BZ42: 0 | CB42: 0 | CC42: 0 | CD42: 0 | CE42: 0 | CF42: 0 | CG42: 0 | CI42: 0 | CJ42: 0 | CK42: 0 | CL42: 0 | CN42: 0 | CP42: 0 | CQ42: 0 | CR42: 0 | CS42: 0 | CT42: 0 | CV42: 0 | CW42: 0 | CX42: 0 | CY42: 0 | DA42: 0 | DB42: 0 | DC42: 0 | DD42: 0 | DF42: 0 | DH42: 0 | DI42: 0 | DJ42: 0 | DK42: 0 | DL42: 0 | DN42: 0 | DO42: 0 | DP42: 0 | DQ42: 0 | DR42: 0 | DS42: 0 | DW42: 67.65 | DX42: 67.65 | DY42: 49.73 | DZ42: 1.025 | EB42: 0.75 | EI42: 81 | EL42: Euro 3 | EO42: =Table37[[#This Row],[City Per Capita GDP (LC)]]*('GDP Deflator 1960-2011'!AZ38/'GDP Deflator 1960-2011'!BB38)*1/Table37[[#This Row],[PPP Exchange rate with the US$ (2016)]] -> 0 | EQ42: =Table37[[#This Row],[City GDP (LC Billion)]]*'GDP Deflator 1960-2011'!AZ38/'GDP Deflator 1960-2011'!BC38*1/Table37[[#This Row],[PPP Exchange rate with the US$ (2016)]] -> 0 | ES42: =Table37[[#This Row],[Median Annual household income (LC)]]*'GDP Deflator 1960-2011'!AZ38/'GDP Deflator 1960-2011'!AY38*1/Table37[[#This Row],[PPP Exchange rate with the US$ (2016)]] -> 0 | ET42: =(20.5+27.5)/2 -> 24 | EU42: =IF(ISERROR(Table37[[#This Row],[Minimum Hourly Wage Rate (LC)]]*'CPI 1960-2011'!AY38/'CPI 1960-2011'!BC38*1/Table37[[#This Row],[PPP Exchange rate with the US$ (2016)]]), "n/a", Table37[[#This Row],[Minimum Hourly Wage Rate (LC)]]*'GDP Deflator 1960-2011'!AZ38/'GDP Deflator 1960-2011'!BD38*1/Table37[[#This Row],[PPP Exchange rate with the US$ (2016)]]) -> 1.034387319 | EV42: 17.2 | EX42: 0 | EY42: 0 | EZ42: 0 | FB42: 0 | FC42: 1600 | FD42: 1814.083638 | FE42: 11.85185185 | FG42: =IFERROR(Table37[[#This Row],[Operating Costs US$ - Bus]]/Table37[[#This Row],[Fare revenue US$- Bus]], "") ->  | FH42: =IFERROR(Table37[[#This Row],[Operating Costs US$ - Metro]]/Table37[[#This Row],[Fare revenue US$- Metro]], "") ->  | FI42: =IFERROR(Table37[[#This Row],[Operating Costs US$- LRT]]/Table37[[#This Row],[Fare revenue US$- LRT]], "") ->  | FJ42: =IFERROR(Table37[[#This Row],[Operating Costs US$- Tram]]/Table37[[#This Row],[Fare revenue US$- Tram]], "") ->  | FK42: =IFERROR(Table37[[#This Row],[Operating Costs US$ - Trolley Bus]]/Table37[[#This Row],[Fare revenue US$- Trolley Buses]], "") ->  | FL42: =IFERROR((AVERAGEIF(Table37[[#This Row],[Fares for 10 km of journey (2007 US$ PPP) - Bus]:[Fares for 10 km of journey (2007 US$ PPP) - Trolley Bus]], "<>0")*40*12)/EO42, "") ->  | FM42: =IFERROR((AVERAGEIF(Table37[[#This Row],[Fares for 10 km of journey (2007 US$ PPP) - Regional/Commuter Rail]:[Fares for 10 km of journey (2007 US$ PPP) - BRT]], "<>0")*40*12)/EO42, "") ->  | FN42: =IFERROR(2*(AVERAGEIF(Table37[[#This Row],[Fares for avg. length of journey (2007 US$ PPP) - Metro]:[Fares for avg. length of journey (2007 US$ PPP) - BRT]], "<>0"))/(Table37[[#This Row],[Minimum Hourly Wage rate (PPP $ 2007)]]*8), "") ->  | FP42: 0 | FQ42: 0 | FR42: =SUM(AP42:AQ42)+Table37[[#This Row],[Length of mass transit (km) - BRT]] -> 0 | FS42: 0 | FU42: 0 | FV42: 0 | FX42: 0 | FY42: 0 | FZ42: 0 | GB42: 0 | GC42: 0 | GD42: 0 | GE42: 91.83798419 | GF42: 0 | GG42: 0 | GH42: =Table37[[#This Row],[Fares for 10 km of journey (2007 US$ PPP) - Bus]]/10*Table37[[#This Row],[Average trip length by car (km)]] -> 0 | GI42: =Table37[[#This Row],[Fares for 10 km of journey (2007 US$ PPP) - Regional/Commuter Rail]]/10*Table37[[#This Row],[Average trip length by car (km)]] -> 0 | GJ42: =Table37[[#This Row],[Fares for 10 km of journey (2007 US$ PPP) - Metro]]/10*Table37[[#This Row],[Average trip length by car (km)]] -> 0 | GK42: =Table37[[#This Row],[Fares for 10 km of journey (2007 US$ PPP) - LRT]]/10*Table37[[#This Row],[Average trip length by car (km)]] -> 0 | GL42: =Table37[[#This Row],[Fares for 10 km of journey (2007 US$ PPP) - Tram]]/10*Table37[[#This Row],[Average trip length by car (km)]] -> 0 | GM42: =Table37[[#This Row],[Fares for 10 km of journey (2007 US$ PPP) - BRT]]/10*Table37[[#This Row],[Average trip length by car (km)]] -> 0 | GN42: =Table37[[#This Row],[Fares for 10 km of journey (2007 US$ PPP) - Trolley Bus]]/10*Table37[[#This Row],[Average trip length by car (km)]] -> 0
B43: Chandigarh | C43: India | D43: SAR | E43: 960787 | F43: 900635 | G43: 1025682 | I43: 114 | M43: 8427.95614 | N43: =328989-124691 -> 204298 | O43: 415413 | P43: 162263 | Q43: 577676 | R43: 602729 | Z43: 0 | AE43: 0 | AF43: 0 | AG43: 0 | AH43: 0 | AI43: 0 | AJ43: 0 | AK43: 0 | AL43: 0 | AM43: =1536+394 -> 1930 | AO43: 0 | AP43: 0 | AQ43: 0 | AR43: 0 | AS43: 0 | AT43: 0 | AU43: 0 | AV43: 0 | AW43: 0 | AX43: 0 | AY43: 0 | AZ43: 0 | BC43: 417 | BF43: 0 | BG43: 0 | BH43: 0 | BI43: 0 | BJ43: 0 | BK43: 0 | BN43: 0 | BO43: 0 | BP43: 0 | BQ43: 0 | BR43: 0 | BS43: 0 | BT43: 0 | BU43: 0 | BV43: 0 | BW43: 0 | BX43: 0 | BY43: 0 | BZ43: 0 | CB43: 0 | CC43: 0 | CD43: 0 | CE43: 0 | CF43: 0 | CG43: 0 | CI43: 0 | CJ43: 0 | CK43: 0 | CL43: 0 | CN43: 0 | CP43: 0 | CQ43: 0 | CR43: 0 | CS43: 0 | CT43: 0 | CV43: 0 | CW43: 0 | CX43: 0 | CY43: 0 | DA43: 0 | DB43: 0 | DC43: 0 | DD43: 0 | DF43: 0 | DH43: 0 | DI43: 0 | DJ43: 0 | DK43: 0 | DL43: 0 | DN43: 0 | DO43: 0 | DP43: 0 | DQ43: 0 | DR43: 0 | DS43: 0 | DW43: 64.59 | DX43: 69.29 | DY43: 53.45 | DZ43: 0.978 | EB43: 0.81 | ED43: =135/E43*100000 -> 14.05098112 | EI43: 110 | EL43: Euro 3 | EO43: =Table37[[#This Row],[City Per Capita GDP (LC)]]*('GDP Deflator 1960-2011'!AZ39/'GDP Deflator 1960-2011'!BB39)*1/Table37[[#This Row],[PPP Exchange rate with the US$ (2016)]] -> 0 | EQ43: =Table37[[#This Row],[City GDP (LC Billion)]]*'GDP Deflator 1960-2011'!AZ39/'GDP Deflator 1960-2011'!BC39*1/Table37[[#This Row],[PPP Exchange rate with the US$ (2016)]] -> 0 | ER43: 484775 | ES43: =Table37[[#This Row],[Median Annual household income (LC)]]*'GDP Deflator 1960-2011'!AZ39/'GDP Deflator 1960-2011'!BA39*1/Table37[[#This Row],[PPP Exchange rate with the US$ (2016)]] -> 25937.22523 | ET43: =341/8 -> 42.625 | EU43: =IF(ISERROR(Table37[[#This Row],[Minimum Hourly Wage Rate (LC)]]*'CPI 1960-2011'!AY39/'CPI 1960-2011'!BC39*1/Table37[[#This Row],[PPP Exchange rate with the US$ (2016)]]), "n/a", Table37[[#This Row],[Minimum Hourly Wage Rate (LC)]]*'GDP Deflator 1960-2011'!AZ39/'GDP Deflator 1960-2011'!BD39*1/Table37[[#This Row],[PPP Exchange rate with the US$ (2016)]]) -> 1.837114978 | EV43: 17.2 | EX43: 405.0114948 | EY43: 158.2001049 | EZ43: 0.406558758 | FA43: 0.6892201968 | FB43: 192.2341969 | FC43: 1930 | FD43: 1881.674827 | FE43: 16.92982456 | FF43: 0 | FG43: =IFERROR(Table37[[#This Row],[Operating Costs US$ - Bus]]/Table37[[#This Row],[Fare revenue US$- Bus]], "") ->  | FH43: =IFERROR(Table37[[#This Row],[Operating Costs US$ - Metro]]/Table37[[#This Row],[Fare revenue US$- Metro]], "") ->  | FI43: =IFERROR(Table37[[#This Row],[Operating Costs US$- LRT]]/Table37[[#This Row],[Fare revenue US$- LRT]], "") ->  | FJ43: =IFERROR(Table37[[#This Row],[Operating Costs US$- Tram]]/Table37[[#This Row],[Fare revenue US$- Tram]], "") ->  | FK43: =IFERROR(Table37[[#This Row],[Operating Costs US$ - Trolley Bus]]/Table37[[#This Row],[Fare revenue US$- Trolley Buses]], "") ->  | FL43: =IFERROR((AVERAGEIF(Table37[[#This Row],[Fares for 10 km of journey (2007 US$ PPP) - Bus]:[Fares for 10 km of journey (2007 US$ PPP) - Trolley Bus]], "<>0")*40*12)/EO43, "") ->  | FM43: =IFERROR((AVERAGEIF(Table37[[#This Row],[Fares for 10 km of journey (2007 US$ PPP) - Regional/Commuter Rail]:[Fares for 10 km of journey (2007 US$ PPP) - BRT]], "<>0")*40*12)/EO43, "") ->  | FN43: =IFERROR(2*(AVERAGEIF(Table37[[#This Row],[Fares for avg. length of journey (2007 US$ PPP) - Metro]:[Fares for avg. length of journey (2007 US$ PPP) - BRT]], "<>0"))/(Table37[[#This Row],[Minimum Hourly Wage rate (PPP $ 2007)]]*8), "") ->  | FP43: 0 | FQ43: 0 | FR43: =SUM(AP43:AQ43)+Table37[[#This Row],[Length of mass transit (km) - BRT]] -> 0 | FS43: 0 | FU43: 0 | FV43: 0 | FW43: 0 | FX43: 135 | FY43: 140.5098112 | FZ43: 0.06994818653 | GA43: 2.239812586 | GB43: 0 | GC43: 0 | GD43: 0 | GE43: 107.2457155 | GF43: 0 | GG43: 0 | GH43: =Table37[[#This Row],[Fares for 10 km of journey (2007 US$ PPP) - Bus]]/10*Table37[[#This Row],[Average trip length by car (km)]] -> 0 | GI43: =Table37[[#This Row],[Fares for 10 km of journey (2007 US$ PPP) - Regional/Commuter Rail]]/10*Table37[[#This Row],[Average trip length by car (km)]] -> 0 | GJ43: =Table37[[#This Row],[Fares for 10 km of journey (2007 US$ PPP) - Metro]]/10*Table37[[#This Row],[Average trip length by car (km)]] -> 0 | GK43: =Table37[[#This Row],[Fares for 10 km of journey (2007 US$ PPP) - LRT]]/10*Table37[[#This Row],[Average trip length by car (km)]] -> 0 | GL43: =Table37[[#This Row],[Fares for 10 km of journey (2007 US$ PPP) - Tram]]/10*Table37[[#This Row],[Average trip length by car (km)]] -> 0 | GM43: =Table37[[#This Row],[Fares for 10 km of journey (2007 US$ PPP) - BRT]]/10*Table37[[#This Row],[Average trip length by car (km)]] -> 0 | GN43: =Table37[[#This Row],[Fares for 10 km of journey (2007 US$ PPP) - Trolley Bus]]/10*Table37[[#This Row],[Average trip length by car (km)]] -> 0
B44: Chennai | C44: India | D44: SAR | E44: 4680000 | F44: 4343645 | G44: 8696010 | I44: 426.7 | K44: 1189 | M44: 10967.89313 | N44: 2284457 | O44: 2813920 | P44: =622130+10048 -> 632178 | Q44: 3446098 | R44: 3682601 | S44: 25.49 | T44: 17.65 | U44: 7.84 | V44: 15.69 | X44: 19.61 | Y44: 5.88 | Z44: 7.84 | AA44: 10.4 | AB44: 22.3 | AC44: =1320.5/365 -> 3.617808219 | AE44: =123/365+118/365 -> 0.6602739726 | AG44: 0 | AH44: 0 | AI44: 0 | AJ44: 0 | AK44: 3.617808219 | AL44: 0 | AM44: 2847 | AO44: 147 | AP44: =23.085+21.961 -> 45.046 | AQ44: 0 | AR44: 0 | AS44: 0 | AT44: 0 | AU44: 63 | AV44: =18+18 -> 36 | AW44: 0 | AX44: 0 | AY44: 0 | AZ44: 0 | BA44: 100 | BC44: 3357 | BD44: 4 | BF44: =92+92 -> 184 | BG44: 607 | BH44: 0 | BI44: 0 | BJ44: 0 | BK44: 0 | BL44: =53818+75209 -> 129027 | BM44: 6 | BO44: 14 | BP44: 0 | BQ44: 0 | BR44: 0 | BS44: 0 | BT44: 0.2677520094 | BU44: 0 | BV44: 0.6247546886 | BW44: 0 | BX44: 0 | BY44: 0 | BZ44: 0 | CD44: 0 | CE44: 0 | CF44: 0 | CG44: 0 | CK44: 0 | CL44: 0 | CN44: 0 | CR44: 0 | CT44: 0 | CW44: 0 | CX44: 0 | CY44: 0 | DC44: 0 | DD44: 0 | DF44: 0 | DJ44: 0 | DL44: 0 | DM44: 22320 | DP44: 0 | DQ44: 0 | DR44: 0 | DS44: 0 | DT44: 2.72 | DU44: 0.14 | DV44: 1.86 | DW44: 63.76 | DX44: 71.48 | DY44: 54.1 | DZ44: 0.966 | EA44: 3.103267974 | EB44: 0.82 | EC44: 156.41 | ED44: 18.93 | EF44: 5.819 | EG44: 15 | EH44: 17 | EI44: 57 | EK44: 19.28 | EL44: Euro 4 | EO44: =Table37[[#This Row],[City Per Capita GDP (LC)]]*('GDP Deflator 1960-2011'!AZ40/'GDP Deflator 1960-2011'!BB40)*1/Table37[[#This Row],[PPP Exchange rate with the US$ (2016)]] -> 0 | EQ44: =Table37[[#This Row],[City GDP (LC Billion)]]*'GDP Deflator 1960-2011'!AZ40/'GDP Deflator 1960-2011'!BC40*1/Table37[[#This Row],[PPP Exchange rate with the US$ (2016)]] -> 0 | ER44: 337059 | ES44: =Table37[[#This Row],[Median Annual household income (LC)]]*'GDP Deflator 1960-2011'!AZ40/'GDP Deflator 1960-2011'!BA40*1/Table37[[#This Row],[PPP Exchange rate with the US$ (2016)]] -> 18033.88211 | ET44: =(22.63+30)/2 -> 26.315 | EU44: =IF(ISERROR(Table37[[#This Row],[Minimum Hourly Wage Rate (LC)]]*'CPI 1960-2011'!AY40/'CPI 1960-2011'!BC40*1/Table37[[#This Row],[PPP Exchange rate with the US$ (2016)]]), "n/a", Table37[[#This Row],[Minimum Hourly Wage Rate (LC)]]*'GDP Deflator 1960-2011'!AZ40/'GDP Deflator 1960-2011'!BD40*1/Table37[[#This Row],[PPP Exchange rate with the US$ (2016)]]) -> 1.134162596 | EV44: 17.2 | EX44: 323.5874844 | EY44: 72.6974785 | EZ44: 0.3979986224 | FA44: 0.7641121045 | FB44: 764.6004566 | FC44: 2847 | FD44: 327.3915278 | FE44: 6.672134989 | FF44: 6.449003178 | FG44: =IFERROR(Table37[[#This Row],[Operating Costs US$ - Bus]]/Table37[[#This Row],[Fare revenue US$- Bus]], "") ->  | FH44: =IFERROR(Table37[[#This Row],[Operating Costs US$ - Metro]]/Table37[[#This Row],[Fare revenue US$- Metro]], "") ->  | FI44: =IFERROR(Table37[[#This Row],[Operating Costs US$- LRT]]/Table37[[#This Row],[Fare revenue US$- LRT]], "") ->  | FJ44: =IFERROR(Table37[[#This Row],[Operating Costs US$- Tram]]/Table37[[#This Row],[Fare revenue US$- Tram]], "") ->  | FK44: =IFERROR(Table37[[#This Row],[Operating Costs US$ - Trolley Bus]]/Table37[[#This Row],[Fare revenue US$- Trolley Buses]], "") ->  | FL44: =IFERROR((AVERAGEIF(Table37[[#This Row],[Fares for 10 km of journey (2007 US$ PPP) - Bus]:[Fares for 10 km of journey (2007 US$ PPP) - Trolley Bus]], "<>0")*40*12)/EO44, "") ->  | FM44: =IFERROR((AVERAGEIF(Table37[[#This Row],[Fares for 10 km of journey (2007 US$ PPP) - Regional/Commuter Rail]:[Fares for 10 km of journey (2007 US$ PPP) - BRT]], "<>0")*40*12)/EO44, "") ->  | FN44: =IFERROR(2*(AVERAGEIF(Table37[[#This Row],[Fares for avg. length of journey (2007 US$ PPP) - Metro]:[Fares for avg. length of journey (2007 US$ PPP) - BRT]], "<>0"))/(Table37[[#This Row],[Minimum Hourly Wage rate (PPP $ 2007)]]*8), "") -> 0.1432212803 | FP44: 10.4 | FQ44: 22.3 | FR44: =SUM(AP44:AQ44)+Table37[[#This Row],[Length of mass transit (km) - BRT]] -> 45.046 | FS44: 0 | FT44: 0 | FU44: 0 | FV44: 0.105568315 | FW44: 0 | FX44: 885.924 | FY44: 189.3 | FZ44: 0.3111780822 | GA44: 2.40570184 | GB44: 0 | GC44: 1.724929019 | GD44: 1.954919555 | GE44: 6.554730273 | GF44: 0.14 | GG44: 1.86 | GH44: =Table37[[#This Row],[Fares for 10 km of journey (2007 US$ PPP) - Bus]]/10*Table37[[#This Row],[Average trip length by car (km)]] -> 0.2784620898 | GI44: =Table37[[#This Row],[Fares for 10 km of journey (2007 US$ PPP) - Regional/Commuter Rail]]/10*Table37[[#This Row],[Average trip length by car (km)]] -> 0 | GJ44: =Table37[[#This Row],[Fares for 10 km of journey (2007 US$ PPP) - Metro]]/10*Table37[[#This Row],[Average trip length by car (km)]] -> 0.6497448762 | GK44: =Table37[[#This Row],[Fares for 10 km of journey (2007 US$ PPP) - LRT]]/10*Table37[[#This Row],[Average trip length by car (km)]] -> 0 | GL44: =Table37[[#This Row],[Fares for 10 km of journey (2007 US$ PPP) - Tram]]/10*Table37[[#This Row],[Average trip length by car (km)]] -> 0 | GM44: =Table37[[#This Row],[Fares for 10 km of journey (2007 US$ PPP) - BRT]]/10*Table37[[#This Row],[Average trip length by car (km)]] -> 0 | GN44: =Table37[[#This Row],[Fares for 10 km of journey (2007 US$ PPP) - Trolley Bus]]/10*Table37[[#This Row],[Average trip length by car (km)]] -> 0 | GO44: information on buses from http://www.mtcbus.org/
B45: Cochin | C45: India | D45: SAR | E45: 601574 | F45: 596473 | G45: 2117990 | H45: 1355406 | I45: 94.88 | J45: 94.88 | L45: 330.02 | M45: 6340.366779 | O45: 128823 | P45: =69056+5832 -> 74888 | Q45: 203711 | R45: 246510 | S45: 15.45 | T45: 7.48 | W45: 4.21 | X45: 72.86 | Z45: 0 | AF45: 0 | AG45: 0 | AH45: 0 | AI45: 0 | AJ45: 0 | AK45: 0 | AL45: 0 | AM45: 613.96 | AO45: 0 | AP45: 0 | AQ45: 0 | AR45: 0 | AS45: 0 | AT45: 0 | AU45: 0 | AV45: 0 | AW45: 0 | AX45: 0 | AY45: 0 | AZ45: 0 | BC45: 650 | BF45: 0 | BG45: 0 | BH45: 0 | BI45: 0 | BJ45: 0 | BK45: 0 | BM45: =3+0.52*5 -> 5.6 | BN45: 0 | BO45: 0 | BP45: 0 | BQ45: 0 | BR45: 0 | BS45: 0 | BT45: 0.2499018755 | BU45: 0 | BV45: 0 | BW45: 0 | BX45: 0 | BY45: 0 | BZ45: 0 | CB45: 0 | CC45: 0 | CD45: 0 | CE45: 0 | CF45: 0 | CG45: 0 | CI45: 0 | CJ45: 0 | CK45: 0 | CL45: 0 | CM45: 0 | CN45: 0 | CP45: 0 | CQ45: 0 | CR45: 0 | CS45: 0 | CT45: 0 | CV45: 0 | CW45: 0 | CX45: 0 | CY45: 0 | DA45: 0 | DB45: 0 | DC45: 0 | DD45: 0 | DE45: 0 | DF45: 0 | DH45: 0 | DI45: 0 | DJ45: 0 | DK45: 0 | DL45: 0 | DN45: 0 | DO45: 0 | DP45: 0 | DQ45: 0 | DR45: 0 | DS45: 0 | DW45: 67.12 | DY45: 56.12 | DZ45: 1.01 | EB45: 0.85 | ED45: =219/E45*100000 -> 36.40449886 | EL45: Euro 3 | EO45: =Table37[[#This Row],[City Per Capita GDP (LC)]]*('GDP Deflator 1960-2011'!AZ41/'GDP Deflator 1960-2011'!BB41)*1/Table37[[#This Row],[PPP Exchange rate with the US$ (2016)]] -> 0 | EQ45: =Table37[[#This Row],[City GDP (LC Billion)]]*'GDP Deflator 1960-2011'!AZ41/'GDP Deflator 1960-2011'!BC41*1/Table37[[#This Row],[PPP Exchange rate with the US$ (2016)]] -> 0 | ES45: =Table37[[#This Row],[Median Annual household income (LC)]]*'GDP Deflator 1960-2011'!AZ41/'GDP Deflator 1960-2011'!AY41*1/Table37[[#This Row],[PPP Exchange rate with the US$ (2016)]] -> 0 | ET45: =(20.5+27.5)/2 -> 24 | EU45: =IF(ISERROR(Table37[[#This Row],[Minimum Hourly Wage Rate (LC)]]*'CPI 1960-2011'!AY41/'CPI 1960-2011'!BC41*1/Table37[[#This Row],[PPP Exchange rate with the US$ (2016)]]), "n/a", Table37[[#This Row],[Minimum Hourly Wage Rate (LC)]]*'GDP Deflator 1960-2011'!AZ41/'GDP Deflator 1960-2011'!BD41*1/Table37[[#This Row],[PPP Exchange rate with the US$ (2016)]]) -> 1.034387319 | EV45: 17.2 | EX45: 60.82323335 | EY45: 35.35805174 | EZ45: 0.3068947445 | FA45: 0.522587319 | FB45: 229.533683 | FC45: 613.96 | FD45: 289.8786113 | FE45: 6.470910624 | FF45: 0 | FG45: =IFERROR(Table37[[#This Row],[Operating Costs US$ - Bus]]/Table37[[#This Row],[Fare revenue US$- Bus]], "") ->  | FH45: =IFERROR(Table37[[#This Row],[Operating Costs US$ - Metro]]/Table37[[#This Row],[Fare revenue US$- Metro]], "") ->  | FI45: =IFERROR(Table37[[#This Row],[Operating Costs US$- LRT]]/Table37[[#This Row],[Fare revenue US$- LRT]], "") ->  | FJ45: =IFERROR(Table37[[#This Row],[Operating Costs US$- Tram]]/Table37[[#This Row],[Fare revenue US$- Tram]], "") ->  | FK45: =IFERROR(Table37[[#This Row],[Operating Costs US$ - Trolley Bus]]/Table37[[#This Row],[Fare revenue US$- Trolley Buses]], "") ->  | FL45: =IFERROR((AVERAGEIF(Table37[[#This Row],[Fares for 10 km of journey (2007 US$ PPP) - Bus]:[Fares for 10 km of journey (2007 US$ PPP) - Trolley Bus]], "<>0")*40*12)/EO45, "") ->  | FM45: =IFERROR((AVERAGEIF(Table37[[#This Row],[Fares for 10 km of journey (2007 US$ PPP) - Regional/Commuter Rail]:[Fares for 10 km of journey (2007 US$ PPP) - BRT]], "<>0")*40*12)/EO45, "") ->  | FN45: =IFERROR(2*(AVERAGEIF(Table37[[#This Row],[Fares for avg. length of journey (2007 US$ PPP) - Metro]:[Fares for avg. length of journey (2007 US$ PPP) - BRT]], "<>0"))/(Table37[[#This Row],[Minimum Hourly Wage rate (PPP $ 2007)]]*8), "") ->  | FP45: 0 | FQ45: 0 | FR45: =SUM(AP45:AQ45)+Table37[[#This Row],[Length of mass transit (km) - BRT]] -> 0 | FS45: 0 | FU45: 0 | FV45: 0 | FW45: 0.4616357504 | FX45: 219 | FY45: 364.0449886 | FZ45: 0.3567007623 | GA45: 8.884020932 | GB45: 0 | GC45: 0 | GD45: 0 | GE45: 0 | GF45: 0 | GG45: 0 | GH45: =Table37[[#This Row],[Fares for 10 km of journey (2007 US$ PPP) - Bus]]/10*Table37[[#This Row],[Average trip length by car (km)]] -> 0 | GI45: =Table37[[#This Row],[Fares for 10 km of journey (2007 US$ PPP) - Regional/Commuter Rail]]/10*Table37[[#This Row],[Average trip length by car (km)]] -> 0 | GJ45: =Table37[[#This Row],[Fares for 10 km of journey (2007 US$ PPP) - Metro]]/10*Table37[[#This Row],[Average trip length by car (km)]] -> 0 | GK45: =Table37[[#This Row],[Fares for 10 km of journey (2007 US$ PPP) - LRT]]/10*Table37[[#This Row],[Average trip length by car (km)]] -> 0 | GL45: =Table37[[#This Row],[Fares for 10 km of journey (2007 US$ PPP) - Tram]]/10*Table37[[#This Row],[Average trip length by car (km)]] -> 0 | GM45: =Table37[[#This Row],[Fares for 10 km of journey (2007 US$ PPP) - BRT]]/10*Table37[[#This Row],[Average trip length by car (km)]] -> 0 | GN45: =Table37[[#This Row],[Fares for 10 km of journey (2007 US$ PPP) - Trolley Bus]]/10*Table37[[#This Row],[Average trip length by car (km)]] -> 0
B46: Delhi | C46: India | D46: SAR | E46: 13850507 | G46: 16314838 | H46: 15048000 | I46: 1483 | J46: 1483 | K46: 431.09 | M46: 9339.519218 | N46: 4080033 | O46: 4342403 | P46: 2173323 | Q46: 6515726 | R46: 6932706 | S46: 51.67 | U46: 10 | V46: 5 | W46: 10 | X46: 6.67 | Y46: 15 | Z46: 1.66 | AA46: 23.24 | AB46: 59.32 | AC46: 3.03 | AE46: =2.77/365 -> 0.007589041096 | AF46: =(1.693+1.829+2.083)/3 -> 1.868333333 | AG46: 0 | AH46: 0 | AI46: 0.0535 | AJ46: 0 | AK46: 4.951833333 | AL46: 1.921833333 | AM46: 31432 | AP46: 189.67 | AQ46: 0 | AR46: 0 | AS46: 5.8 | AT46: 0 | AV46: 146 | AW46: 0 | AX46: 0 | AY46: 0 | AZ46: 9 | BC46: 4330 | BF46: 966 | BH46: 0 | BI46: 0 | BJ46: 96 | BK46: 0 | BL46: =43887+168073 -> 211960 | BM46: 10 | BO46: 16 | BP46: 0 | BQ46: 0 | BS46: 0 | BT46: 0.446253349 | BU46: 0 | BV46: 0.7140053585 | BW46: 0 | BX46: 0 | BY46: 0 | BZ46: 0 | CA46: 15608.98 | CC46: 10632 | CD46: 0 | CE46: 0 | CG46: 0 | CH46: 6333.8 | CJ46: 7465.858 | CK46: 0 | CL46: 0 | CN46: 0 | CO46: =1079.18+1702.301 -> 2781.481 | CQ46: =2488.384-CS46+983.751+1903.355+17.308 -> 4852.5 | CR46: 0 | CS46: =51.2+489.098 -> 540.298 | CT46: 0 | CU46: 758.2558093 | CV46: 516.4831888 | CW46: 0 | CX46: 0 | CY46: 0 | CZ46: 307.684464 | DB46: 362.6777791 | DC46: 0 | DD46: 0 | DF46: 0 | DG46: 135.1192792 | DI46: 235.7256089 | DJ46: 0 | DK46: 26.24669243 | DL46: 0 | DM46: 29200 | DO46: 6775 | DP46: 0 | DQ46: 0 | DS46: 0 | DT46: 2.9 | DW46: 64.29 | DX46: 67.89 | DY46: 52.64 | DZ46: 0.97 | EA46: 2.800653595 | EB46: 0.8 | EC46: 53.32 | ED46: 9.57 | EG46: 24 | EH46: 41 | EI46: 229 | EK46: 24 | EL46: Euro 4 | EN46: 141961 | EO46: =Table37[[#This Row],[City Per Capita GDP (LC)]]*('GDP Deflator 1960-2011'!AZ42/'GDP Deflator 1960-2011'!BC42)*1/Table37[[#This Row],[PPP Exchange rate with the US$ (2016)]] -> 6607.540647 | EP46: 2588.08 | EQ46: =Table37[[#This Row],[City GDP (LC Billion)]]*'GDP Deflator 1960-2011'!AZ42/'GDP Deflator 1960-2011'!BC42*1/Table37[[#This Row],[PPP Exchange rate with the US$ (2016)]] -> 120.461562 | ER46: 408237 | ES46: =Table37[[#This Row],[Median Annual household income (LC)]]*'GDP Deflator 1960-2011'!AZ42/'GDP Deflator 1960-2011'!BA42*1/Table37[[#This Row],[PPP Exchange rate with the US$ (2016)]] -> 21842.16393 | ET46: 64.12 | EU46: =IF(ISERROR(Table37[[#This Row],[Minimum Hourly Wage Rate (LC)]]*'CPI 1960-2011'!AY42/'CPI 1960-2011'!BC42*1/Table37[[#This Row],[PPP Exchange rate with the US$ (2016)]]), "n/a", Table37[[#This Row],[Minimum Hourly Wage Rate (LC)]]*'GDP Deflator 1960-2011'!AZ42/'GDP Deflator 1960-2011'!BD42*1/Table37[[#This Row],[PPP Exchange rate with the US$ (2016)]]) -> 2.763538121 | EV46: 17.2 | EX46: 266.1628022 | EY46: 133.2114361 | EZ46: 0.265402574 | FA46: 0.626364799 | FB46: 145.3076323 | FC46: 31432 | FD46: 1926.589771 | FE46: 21.19487525 | FF46: 6.743648961 | FG46: =IFERROR(Table37[[#This Row],[Operating Costs US$ - Bus]]/Table37[[#This Row],[Fare revenue US$- Bus]], "") -> 2.464394203 | FH46: =IFERROR(Table37[[#This Row],[Operating Costs US$ - Metro]]/Table37[[#This Row],[Fare revenue US$- Metro]], "") -> 1.424082805 | FI46: =IFERROR(Table37[[#This Row],[Operating Costs US$- LRT]]/Table37[[#This Row],[Fare revenue US$- LRT]], "") ->  | FJ46: =IFERROR(Table37[[#This Row],[Operating Costs US$- Tram]]/Table37[[#This Row],[Fare revenue US$- Tram]], "") ->  | FK46: =IFERROR(Table37[[#This Row],[Operating Costs US$ - Trolley Bus]]/Table37[[#This Row],[Fare revenue US$- Trolley Buses]], "") ->  | FL46: =IFERROR((AVERAGEIF(Table37[[#This Row],[Fares for 10 km of journey (2007 US$ PPP) - Bus]:[Fares for 10 km of journey (2007 US$ PPP) - Trolley Bus]], "<>0")*40*12)/EO46, "") -> 0.04214307633 | FM46: =IFERROR((AVERAGEIF(Table37[[#This Row],[Fares for 10 km of journey (2007 US$ PPP) - Regional/Commuter Rail]:[Fares for 10 km of journey (2007 US$ PPP) - BRT]], "<>0")*40*12)/EO46, "") -> 0.05186840163 | FN46: =IFERROR(2*(AVERAGEIF(Table37[[#This Row],[Fares for avg. length of journey (2007 US$ PPP) - Metro]:[Fares for avg. length of journey (2007 US$ PPP) - BRT]], "<>0"))/(Table37[[#This Row],[Minimum Hourly Wage rate (PPP $ 2007)]]*8), "") -> 0.1501108706 | FO46: 0.1761623669 | FP46: 23.24 | FQ46: 59.32 | FR46: =SUM(AP46:AQ46)+Table37[[#This Row],[Length of mass transit (km) - BRT]] -> 195.47 | FS46: 1.921833333 | FT46: 9831.858256 | FU46: 0.1177966544 | FV46: 0.1318071477 | FW46: 0.0101146325 | FX46: 1325.49352 | FY46: 95.7 | FZ46: 0.04217019343 | GA46: 1.911942494 | GB46: 0 | GC46: 1.471053528 | GD46: 2.513049777 | GE46: 14.03630241 | GF46: 0 | GG46: 0 | GH46: =Table37[[#This Row],[Fares for 10 km of journey (2007 US$ PPP) - Bus]]/10*Table37[[#This Row],[Average trip length by car (km)]] -> 1.037092783 | GI46: =Table37[[#This Row],[Fares for 10 km of journey (2007 US$ PPP) - Regional/Commuter Rail]]/10*Table37[[#This Row],[Average trip length by car (km)]] -> 0 | GJ46: =Table37[[#This Row],[Fares for 10 km of journey (2007 US$ PPP) - Metro]]/10*Table37[[#This Row],[Average trip length by car (km)]] -> 1.659348453 | GK46: =Table37[[#This Row],[Fares for 10 km of journey (2007 US$ PPP) - LRT]]/10*Table37[[#This Row],[Average trip length by car (km)]] -> 0 | GL46: =Table37[[#This Row],[Fares for 10 km of journey (2007 US$ PPP) - Tram]]/10*Table37[[#This Row],[Average trip length by car (km)]] -> 0 | GM46: =Table37[[#This Row],[Fares for 10 km of journey (2007 US$ PPP) - BRT]]/10*Table37[[#This Row],[Average trip length by car (km)]] -> 0 | GN46: =Table37[[#This Row],[Fares for 10 km of journey (2007 US$ PPP) - Trolley Bus]]/10*Table37[[#This Row],[Average trip length by car (km)]] -> 0 | GO46: Metro rail information is from DMRC Annual Report 2010-11
B47: Guwahati | C47: India | D47: SAR | E47: 963429 | F47: 809895 | G47: 968549 | I47: 216 | K47: 340 | M47: 4460.319444 | Q47: 0 | R47: =Q47+SUM(BA47:BE47)+BL47 -> 52 | T47: 35 | U47: 22 | V47: 12 | X47: 14 | Z47: 17 | AF47: 0 | AG47: 0 | AH47: 0 | AI47: 0 | AJ47: 0 | AK47: 0 | AL47: 0 | AM47: 218 | AN47: 700 | AO47: 0 | AP47: 0 | AQ47: 0 | AR47: 0 | AS47: 0 | AT47: 0 | AU47: 0 | AV47: 0 | AW47: 0 | AX47: 0 | AY47: 0 | AZ47: 0 | BC47: 52 | BF47: 0 | BG47: 0 | BH47: 0 | BI47: 0 | BJ47: 0 | BK47: 0 | BN47: 0 | BO47: 0 | BP47: 0 | BQ47: 0 | BR47: 0 | BS47: 0 | BT47: 0 | BU47: 0 | BV47: 0 | BW47: 0 | BX47: 0 | BY47: 0 | BZ47: 0 | CA47: 20.48 | CB47: 0 | CC47: 0 | CD47: 0 | CE47: 0 | CF47: 0 | CG47: 0 | CH47: 25.51 | CI47: 0 | CJ47: 0 | CK47: 0 | CL47: 0 | CM47: 0 | CN47: 0 | CP47: 0 | CQ47: 0 | CR47: 0 | CS47: 0 | CT47: 0 | CU47: 1.235385004 | CV47: 0 | CW47: 0 | CX47: 0 | CY47: 0 | CZ47: 1.538802317 | DA47: 0 | DB47: 0 | DC47: 0 | DD47: 0 | DE47: 0 | DF47: 0 | DH47: 0 | DI47: 0 | DJ47: 0 | DK47: 0 | DL47: 0 | DM47: 347 | DN47: 0 | DO47: 0 | DP47: 0 | DQ47: 0 | DR47: 0 | DS47: 0 | DT47: 5 | DW47: 68.8 | DX47: 74.75 | DY47: 56.2 | DZ47: 1.04 | EB47: 0.85 | EI47: 92 | EL47: Euro 3 | EN47: =(EP47*10^9/E47) -> 47227.14388 | EO47: =Table37[[#This Row],[City Per Capita GDP (LC)]]*('GDP Deflator 1960-2011'!AZ43/'GDP Deflator 1960-2011'!BC43)*1/Table37[[#This Row],[PPP Exchange rate with the US$ (2016)]] -> 2198.176068 | EP47: =1*45.5 -> 45.5 | EQ47: =Table37[[#This Row],[City GDP (LC Billion)]]*'GDP Deflator 1960-2011'!AZ43/'GDP Deflator 1960-2011'!BC43*1/Table37[[#This Row],[PPP Exchange rate with the US$ (2016)]] -> 2.117786571 | ES47: =Table37[[#This Row],[Median Annual household income (LC)]]*'GDP Deflator 1960-2011'!AZ43/'GDP Deflator 1960-2011'!AY43*1/Table37[[#This Row],[PPP Exchange rate with the US$ (2016)]] -> 0 | ET47: =(20.5+27.5)/2 -> 24 | EU47: =IF(ISERROR(Table37[[#This Row],[Minimum Hourly Wage Rate (LC)]]*'CPI 1960-2011'!AY43/'CPI 1960-2011'!BC43*1/Table37[[#This Row],[PPP Exchange rate with the US$ (2016)]]), "n/a", Table37[[#This Row],[Minimum Hourly Wage Rate (LC)]]*'GDP Deflator 1960-2011'!AZ43/'GDP Deflator 1960-2011'!BD43*1/Table37[[#This Row],[PPP Exchange rate with the US$ (2016)]]) -> 1.034387319 | EV47: 17.2 | EX47: 0 | EY47: 0 | EZ47: 0.05368855886 | FA47: 0 | FB47: 0.5963302752 | FC47: 218 | FD47: 225.0789583 | FE47: 1.009259259 | FF47: 6.673076923 | FG47: =IFERROR(Table37[[#This Row],[Operating Costs US$ - Bus]]/Table37[[#This Row],[Fare revenue US$- Bus]], "") -> 0.8028224226 | FH47: =IFERROR(Table37[[#This Row],[Operating Costs US$ - Metro]]/Table37[[#This Row],[Fare revenue US$- Metro]], "") ->  | FI47: =IFERROR(Table37[[#This Row],[Operating Costs US$- LRT]]/Table37[[#This Row],[Fare revenue US$- LRT]], "") ->  | FJ47: =IFERROR(Table37[[#This Row],[Operating Costs US$- Tram]]/Table37[[#This Row],[Fare revenue US$- Tram]], "") ->  | FK47: =IFERROR(Table37[[#This Row],[Operating Costs US$ - Trolley Bus]]/Table37[[#This Row],[Fare revenue US$- Trolley Buses]], "") ->  | FL47: =IFERROR((AVERAGEIF(Table37[[#This Row],[Fares for 10 km of journey (2007 US$ PPP) - Bus]:[Fares for 10 km of journey (2007 US$ PPP) - Trolley Bus]], "<>0")*40*12)/EO47, "") ->  | FM47: =IFERROR((AVERAGEIF(Table37[[#This Row],[Fares for 10 km of journey (2007 US$ PPP) - Regional/Commuter Rail]:[Fares for 10 km of journey (2007 US$ PPP) - BRT]], "<>0")*40*12)/EO47, "") ->  | FN47: =IFERROR(2*(AVERAGEIF(Table37[[#This Row],[Fares for avg. length of journey (2007 US$ PPP) - Metro]:[Fares for avg. length of journey (2007 US$ PPP) - BRT]], "<>0"))/(Table37[[#This Row],[Minimum Hourly Wage rate (PPP $ 2007)]]*8), "") ->  | FO47: 0.5677434206 | FP47: 0 | FQ47: 0 | FR47: =SUM(AP47:AQ47)+Table37[[#This Row],[Length of mass transit (km) - BRT]] -> 0 | FS47: 0 | FU47: 0 | FV47: 0 | FW47: 0 | FX47: 0 | FY47: 0 | FZ47: 0 | GA47: 0 | GB47: 0 | GC47: 0 | GD47: 0 | GE47: 94.9874503 | GF47: 0 | GG47: 0 | GH47: =Table37[[#This Row],[Fares for 10 km of journey (2007 US$ PPP) - Bus]]/10*Table37[[#This Row],[Average trip length by car (km)]] -> 0 | GI47: =Table37[[#This Row],[Fares for 10 km of journey (2007 US$ PPP) - Regional/Commuter Rail]]/10*Table37[[#This Row],[Average trip length by car (km)]] -> 0 | GJ47: =Table37[[#This Row],[Fares for 10 km of journey (2007 US$ PPP) - Metro]]/10*Table37[[#This Row],[Average trip length by car (km)]] -> 0 | GK47: =Table37[[#This Row],[Fares for 10 km of journey (2007 US$ PPP) - LRT]]/10*Table37[[#This Row],[Average trip length by car (km)]] -> 0 | GL47: =Table37[[#This Row],[Fares for 10 km of journey (2007 US$ PPP) - Tram]]/10*Table37[[#This Row],[Average trip length by car (km)]] -> 0 | GM47: =Table37[[#This Row],[Fares for 10 km of journey (2007 US$ PPP) - BRT]]/10*Table37[[#This Row],[Average trip length by car (km)]] -> 0 | GN47: =Table37[[#This Row],[Fares for 10 km of journey (2007 US$ PPP) - Trolley Bus]]/10*Table37[[#This Row],[Average trip length by car (km)]] -> 0
B48: Hubli-Dharwad | C48: India | D48: SAR | E48: 943857 | F48: 786195 | G48: 943857 | I48: 202.3 | J48: 202.3 | M48: 4665.630252 | Q48: 0 | R48: =Q48+SUM(BA48:BE48)+BL48 -> 0 | S48: 14.7 | T48: 25.8 | U48: 6.9 | V48: 16 | W48: 6.5 | X48: 29.8 | Z48: 0.3 | AA48: 5.81 | AF48: 0 | AG48: 0 | AH48: 0 | AI48: 0 | AJ48: 0 | AK48: 0 | AL48: 0 | AM48: 595 | AO48: 0 | AP48: 0 | AQ48: 0 | AR48: 0 | AS48: 0 | AT48: 0 | AU48: 0 | AV48: 0 | AW48: 0 | AX48: 0 | AY48: 0 | AZ48: 0 | BF48: 0 | BG48: 0 | BH48: 0 | BI48: 0 | BJ48: 0 | BK48: 0 | BN48: 0 | BO48: 0 | BP48: 0 | BQ48: 0 | BR48: 0 | BS48: 0 | BT48: 0 | BU48: 0 | BV48: 0 | BW48: 0 | BX48: 0 | BY48: 0 | BZ48: 0 | CB48: 0 | CC48: 0 | CD48: 0 | CE48: 0 | CF48: 0 | CG48: 0 | CI48: 0 | CJ48: 0 | CK48: 0 | CL48: 0 | CM48: 0 | CN48: 0 | CP48: 0 | CQ48: 0 | CR48: 0 | CS48: 0 | CT48: 0 | CV48: 0 | CW48: 0 | CX48: 0 | CY48: 0 | DA48: 0 | DB48: 0 | DC48: 0 | DD48: 0 | DE48: 0 | DF48: 0 | DH48: 0 | DI48: 0 | DJ48: 0 | DK48: 0 | DL48: 0 | DN48: 0 | DO48: 0 | DP48: 0 | DQ48: 0 | DR48: 0 | DS48: 0 | DW48: 68.81 | DX48: 74.6 | DY48: 56.27 | DZ48: 1.04 | EB48: 0.85 | EL48: Euro 3 | EO48: =Table37[[#This Row],[City Per Capita GDP (LC)]]*('GDP Deflator 1960-2011'!AZ44/'GDP Deflator 1960-2011'!BB44)*1/Table37[[#This Row],[PPP Exchange rate with the US$ (2016)]] -> 0 | EQ48: =Table37[[#This Row],[City GDP (LC Billion)]]*'GDP Deflator 1960-2011'!AZ44/'GDP Deflator 1960-2011'!BC44*1/Table37[[#This Row],[PPP Exchange rate with the US$ (2016)]] -> 0 | ES48: =Table37[[#This Row],[Median Annual household income (LC)]]*'GDP Deflator 1960-2011'!AZ44/'GDP Deflator 1960-2011'!AY44*1/Table37[[#This Row],[PPP Exchange rate with the US$ (2016)]] -> 0 | ET48: =(20.5+27.5)/2 -> 24 | EU48: =IF(ISERROR(Table37[[#This Row],[Minimum Hourly Wage Rate (LC)]]*'CPI 1960-2011'!AY44/'CPI 1960-2011'!BC44*1/Table37[[#This Row],[PPP Exchange rate with the US$ (2016)]]), "n/a", Table37[[#This Row],[Minimum Hourly Wage Rate (LC)]]*'GDP Deflator 1960-2011'!AZ44/'GDP Deflator 1960-2011'!BD44*1/Table37[[#This Row],[PPP Exchange rate with the US$ (2016)]]) -> 1.034387319 | EV48: 17.2 | EX48: 0 | EY48: 0 | EZ48: 0 | FB48: 0 | FC48: 595 | FD48: 630.3921039 | FE48: 2.941176471 | FG48: =IFERROR(Table37[[#This Row],[Operating Costs US$ - Bus]]/Table37[[#This Row],[Fare revenue US$- Bus]], "") ->  | FH48: =IFERROR(Table37[[#This Row],[Operating Costs US$ - Metro]]/Table37[[#This Row],[Fare revenue US$- Metro]], "") ->  | FI48: =IFERROR(Table37[[#This Row],[Operating Costs US$- LRT]]/Table37[[#This Row],[Fare revenue US$- LRT]], "") ->  | FJ48: =IFERROR(Table37[[#This Row],[Operating Costs US$- Tram]]/Table37[[#This Row],[Fare revenue US$- Tram]], "") ->  | FK48: =IFERROR(Table37[[#This Row],[Operating Costs US$ - Trolley Bus]]/Table37[[#This Row],[Fare revenue US$- Trolley Buses]], "") ->  | FL48: =IFERROR((AVERAGEIF(Table37[[#This Row],[Fares for 10 km of journey (2007 US$ PPP) - Bus]:[Fares for 10 km of journey (2007 US$ PPP) - Trolley Bus]], "<>0")*40*12)/EO48, "") ->  | FM48: =IFERROR((AVERAGEIF(Table37[[#This Row],[Fares for 10 km of journey (2007 US$ PPP) - Regional/Commuter Rail]:[Fares for 10 km of journey (2007 US$ PPP) - BRT]], "<>0")*40*12)/EO48, "") ->  | FN48: =IFERROR(2*(AVERAGEIF(Table37[[#This Row],[Fares for avg. length of journey (2007 US$ PPP) - Metro]:[Fares for avg. length of journey (2007 US$ PPP) - BRT]], "<>0"))/(Table37[[#This Row],[Minimum Hourly Wage rate (PPP $ 2007)]]*8), "") ->  | FP48: 5.81 | FQ48: 0 | FR48: =SUM(AP48:AQ48)+Table37[[#This Row],[Length of mass transit (km) - BRT]] -> 0 | FS48: 0 | FU48: 0 | FV48: 0 | FW48: 1.532995551 | FX48: 0 | FY48: 0 | FZ48: 0 | GB48: 0 | GC48: 0 | GD48: 0 | GE48: 0 | GF48: 0 | GG48: 0 | GH48: =Table37[[#This Row],[Fares for 10 km of journey (2007 US$ PPP) - Bus]]/10*Table37[[#This Row],[Average trip length by car (km)]] -> 0 | GI48: =Table37[[#This Row],[Fares for 10 km of journey (2007 US$ PPP) - Regional/Commuter Rail]]/10*Table37[[#This Row],[Average trip length by car (km)]] -> 0 | GJ48: =Table37[[#This Row],[Fares for 10 km of journey (2007 US$ PPP) - Metro]]/10*Table37[[#This Row],[Average trip length by car (km)]] -> 0 | GK48: =Table37[[#This Row],[Fares for 10 km of journey (2007 US$ PPP) - LRT]]/10*Table37[[#This Row],[Average trip length by car (km)]] -> 0 | GL48: =Table37[[#This Row],[Fares for 10 km of journey (2007 US$ PPP) - Tram]]/10*Table37[[#This Row],[Average trip length by car (km)]] -> 0 | GM48: =Table37[[#This Row],[Fares for 10 km of journey (2007 US$ PPP) - BRT]]/10*Table37[[#This Row],[Average trip length by car (km)]] -> 0 | GN48: =Table37[[#This Row],[Fares for 10 km of journey (2007 US$ PPP) - Trolley Bus]]/10*Table37[[#This Row],[Average trip length by car (km)]] -> 0
B49: Hyderabad | C49: India | D49: SAR | E49: 6809970 | F49: 3630000 | G49: 11723548 | H49: 6380000 | I49: 172 | J49: 172 | K49: 729.98 | M49: 39592.84884 | O49: 1666955 | P49: =372180+8311 -> 380491 | Q49: 2047446 | R49: 2443840 | S49: 35 | T49: 10 | U49: 20 | V49: 15 | X49: 10 | Z49: 10 | AC49: 3.068 | AE49: 0.035 | AF49: 0 | AG49: 0 | AH49: 0 | AI49: 0 | AJ49: 0 | AK49: 3.068 | AL49: 0 | AN49: 14624 | AO49: 50 | AP49: 0 | AQ49: 0 | AR49: 0 | AS49: 0 | AT49: 0 | AU49: 26 | AV49: 0 | AW49: 0 | AX49: 0 | AY49: 0 | AZ49: 0 | BC49: 2841 | BF49: 0 | BH49: 0 | BI49: 0 | BJ49: 0 | BK49: 0 | BL49: =24789+75268 -> 100057 | BO49: 0 | BP49: 0 | BQ49: 0 | BR49: 0 | BS49: 0 | BT49: 0 | BU49: 0 | BV49: 0 | BW49: 0 | BX49: 0 | BY49: 0 | BZ49: 0 | CC49: 0 | CD49: 0 | CE49: 0 | CF49: 0 | CG49: 0 | CJ49: 0 | CK49: 0 | CL49: 0 | CN49: 0 | CQ49: 0 | CR49: 0 | CS49: 0 | CT49: 0 | CV49: 0 | CW49: 0 | CX49: 0 | CY49: 0 | DB49: 0 | DC49: 0 | DD49: 0 | DF49: 0 | DI49: 0 | DJ49: 0 | DK49: 0 | DL49: 0 | DO49: 0 | DP49: 0 | DQ49: 0 | DR49: 0 | DS49: 0 | DW49: 68.56 | DX49: 74.68 | DY49: 57.35 | DZ49: 1.03 | EB49: 0.87 | EC49: 34.97 | ED49: 6.24 | EF49: =214/F49*100000 -> 5.895316804 | EG49: 12 | EH49: 17 | EI49: 79 | EK49: 20.71 | EL49: Euro 4 | EO49: =Table37[[#This Row],[City Per Capita GDP (LC)]]*('GDP Deflator 1960-2011'!AZ45/'GDP Deflator 1960-2011'!BB45)*1/Table37[[#This Row],[PPP Exchange rate with the US$ (2016)]] -> 0 | EQ49: =Table37[[#This Row],[City GDP (LC Billion)]]*'GDP Deflator 1960-2011'!AZ45/'GDP Deflator 1960-2011'!BC45*1/Table37[[#This Row],[PPP Exchange rate with the US$ (2016)]] -> 0 | ER49: 273353 | ES49: =Table37[[#This Row],[Median Annual household income (LC)]]*'GDP Deflator 1960-2011'!AZ45/'GDP Deflator 1960-2011'!BA45*1/Table37[[#This Row],[PPP Exchange rate with the US$ (2016)]] -> 14625.37946 | ET49: =(22.63+30)/2 -> 26.315 | EU49: =IF(ISERROR(Table37[[#This Row],[Minimum Hourly Wage Rate (LC)]]*'CPI 1960-2011'!AY45/'CPI 1960-2011'!BC45*1/Table37[[#This Row],[PPP Exchange rate with the US$ (2016)]]), "n/a", Table37[[#This Row],[Minimum Hourly Wage Rate (LC)]]*'GDP Deflator 1960-2011'!AZ45/'GDP Deflator 1960-2011'!BD45*1/Table37[[#This Row],[PPP Exchange rate with the US$ (2016)]]) -> 1.134162596 | EV49: 17.2 | EX49: 142.1886105 | EY49: 32.45527719 | EZ49: 0.2423327819 | FA49: 0.6821048023 | FC49: 0 | FD49: 0 | FE49: 0 | FF49: 0 | FG49: =IFERROR(Table37[[#This Row],[Operating Costs US$ - Bus]]/Table37[[#This Row],[Fare revenue US$- Bus]], "") ->  | FH49: =IFERROR(Table37[[#This Row],[Operating Costs US$ - Metro]]/Table37[[#This Row],[Fare revenue US$- Metro]], "") ->  | FI49: =IFERROR(Table37[[#This Row],[Operating Costs US$- LRT]]/Table37[[#This Row],[Fare revenue US$- LRT]], "") ->  | FJ49: =IFERROR(Table37[[#This Row],[Operating Costs US$- Tram]]/Table37[[#This Row],[Fare revenue US$- Tram]], "") ->  | FK49: =IFERROR(Table37[[#This Row],[Operating Costs US$ - Trolley Bus]]/Table37[[#This Row],[Fare revenue US$- Trolley Buses]], "") ->  | FL49: =IFERROR((AVERAGEIF(Table37[[#This Row],[Fares for 10 km of journey (2007 US$ PPP) - Bus]:[Fares for 10 km of journey (2007 US$ PPP) - Trolley Bus]], "<>0")*40*12)/EO49, "") ->  | FM49: =IFERROR((AVERAGEIF(Table37[[#This Row],[Fares for 10 km of journey (2007 US$ PPP) - Regional/Commuter Rail]:[Fares for 10 km of journey (2007 US$ PPP) - BRT]], "<>0")*40*12)/EO49, "") ->  | FN49: =IFERROR(2*(AVERAGEIF(Table37[[#This Row],[Fares for avg. length of journey (2007 US$ PPP) - Metro]:[Fares for avg. length of journey (2007 US$ PPP) - BRT]], "<>0"))/(Table37[[#This Row],[Minimum Hourly Wage rate (PPP $ 2007)]]*8), "") ->  | FP49: 0 | FQ49: 0 | FR49: =SUM(AP49:AQ49)+Table37[[#This Row],[Length of mass transit (km) - BRT]] -> 0 | FS49: 0 | FU49: 0 | FV49: 0 | FW49: 0 | FX49: 424.942128 | FY49: 62.4 | GA49: 1.73882958 | GB49: 0 | GC49: 1.023580916 | GD49: 1.450072964 | GE49: 6.738574363 | GF49: 0 | GG49: 0 | GH49: =Table37[[#This Row],[Fares for 10 km of journey (2007 US$ PPP) - Bus]]/10*Table37[[#This Row],[Average trip length by car (km)]] -> 0 | GI49: =Table37[[#This Row],[Fares for 10 km of journey (2007 US$ PPP) - Regional/Commuter Rail]]/10*Table37[[#This Row],[Average trip length by car (km)]] -> 0 | GJ49: =Table37[[#This Row],[Fares for 10 km of journey (2007 US$ PPP) - Metro]]/10*Table37[[#This Row],[Average trip length by car (km)]] -> 0 | GK49: =Table37[[#This Row],[Fares for 10 km of journey (2007 US$ PPP) - LRT]]/10*Table37[[#This Row],[Average trip length by car (km)]] -> 0 | GL49: =Table37[[#This Row],[Fares for 10 km of journey (2007 US$ PPP) - Tram]]/10*Table37[[#This Row],[Average trip length by car (km)]] -> 0 | GM49: =Table37[[#This Row],[Fares for 10 km of journey (2007 US$ PPP) - BRT]]/10*Table37[[#This Row],[Average trip length by car (km)]] -> 0 | GN49: =Table37[[#This Row],[Fares for 10 km of journey (2007 US$ PPP) - Trolley Bus]]/10*Table37[[#This Row],[Average trip length by car (km)]] -> 0
B50: Jaipur | C50: India | D50: SAR | E50: 3653927 | F50: 2822580 | G50: 6660000 | H50: 5816000 | I50: 484.64 | J50: 288 | K50: 303.9 | L50: 300 | M50: 7539.466408 | N50: 1351952 | O50: 963881 | P50: 185756 | Q50: 1149637 | R50: 1288820 | S50: 8 | T50: 31 | W50: 9 | X50: 19 | Z50: 33 | AA50: 5.4 | AB50: 20 | AC50: 900000 | AE50: 0 | AF50: 0 | AG50: 0 | AH50: 0 | AI50: 0.006622 | AJ50: 0 | AK50: 0.006622 | AL50: 0.006622 | AM50: 751 | AN50: 250 | AO50: 0 | AP50: 0 | AQ50: 0 | AR50: 0 | AS50: 7.1 | AT50: 0 | AU50: 0 | AV50: 0 | AW50: 0 | AX50: 0 | AY50: 0 | AZ50: 10 | BC50: 400 | BD50: 1500 | BF50: 0 | BG50: 0 | BH50: 0 | BI50: 0 | BJ50: 20 | BK50: 0 | BL50: 31234 | BM50: 10 | BN50: 0 | BO50: 0 | BP50: 0 | BQ50: 0 | BR50: 0.18 | BS50: 0 | BT50: 0.446253349 | BU50: 0 | BV50: 0 | BW50: 0 | BX50: 0 | BY50: 0 | BZ50: 0 | CB50: 0 | CC50: 0 | CD50: 0 | CE50: 0 | CG50: 0 | CI50: 0 | CJ50: 0 | CK50: 0 | CL50: 0 | CM50: 0.25 | CN50: 0 | CP50: 0 | CQ50: 0 | CR50: 0 | CS50: 0 | CT50: 0 | CV50: 0 | CW50: 0 | CX50: 0 | CY50: 0 | DA50: 0 | DB50: 0 | DC50: 0 | DD50: 0 | DF50: 0 | DH50: 0 | DI50: 0 | DJ50: 0 | DK50: 0 | DL50: 0 | DN50: 0 | DO50: 0 | DP50: 0 | DQ50: 0 | DS50: 0 | DW50: 66.57 | DX50: 71.71 | DY50: 56.58 | DZ50: 1.01 | EB50: 0.86 | EC50: 79.14 | ED50: 25.7 | EE50: 343 | EI50: 187 | EL50: Euro 3 | EO50: =Table37[[#This Row],[City Per Capita GDP (LC)]]*('GDP Deflator 1960-2011'!AZ46/'GDP Deflator 1960-2011'!BB46)*1/Table37[[#This Row],[PPP Exchange rate with the US$ (2016)]] -> 0 | EQ50: =Table37[[#This Row],[City GDP (LC Billion)]]*'GDP Deflator 1960-2011'!AZ46/'GDP Deflator 1960-2011'!BC46*1/Table37[[#This Row],[PPP Exchange rate with the US$ (2016)]] -> 0 | ER50: 300374 | ES50: =Table37[[#This Row],[Median Annual household income (LC)]]*'GDP Deflator 1960-2011'!AZ46/'GDP Deflator 1960-2011'!BA46*1/Table37[[#This Row],[PPP Exchange rate with the US$ (2016)]] -> 16071.10122 | ET50: 25.8 | EU50: =IF(ISERROR(Table37[[#This Row],[Minimum Hourly Wage Rate (LC)]]*'CPI 1960-2011'!AY46/'CPI 1960-2011'!BC46*1/Table37[[#This Row],[PPP Exchange rate with the US$ (2016)]]), "n/a", Table37[[#This Row],[Minimum Hourly Wage Rate (LC)]]*'GDP Deflator 1960-2011'!AZ46/'GDP Deflator 1960-2011'!BD46*1/Table37[[#This Row],[PPP Exchange rate with the US$ (2016)]]) -> 1.111966368 | EV50: 17.2 | EX50: 144.7268769 | EY50: 27.89129129 | EZ50: 0.2852852853 | FA50: 0.7478786797 | FB50: 936.9913449 | FC50: 751 | FD50: 112.7627628 | FE50: 1.54960383 | FF50: 0 | FG50: =IFERROR(Table37[[#This Row],[Operating Costs US$ - Bus]]/Table37[[#This Row],[Fare revenue US$- Bus]], "") ->  | FH50: =IFERROR(Table37[[#This Row],[Operating Costs US$ - Metro]]/Table37[[#This Row],[Fare revenue US$- Metro]], "") ->  | FI50: =IFERROR(Table37[[#This Row],[Operating Costs US$- LRT]]/Table37[[#This Row],[Fare revenue US$- LRT]], "") ->  | FJ50: =IFERROR(Table37[[#This Row],[Operating Costs US$- Tram]]/Table37[[#This Row],[Fare revenue US$- Tram]], "") ->  | FK50: =IFERROR(Table37[[#This Row],[Operating Costs US$ - Trolley Bus]]/Table37[[#This Row],[Fare revenue US$- Trolley Buses]], "") ->  | FL50: =IFERROR((AVERAGEIF(Table37[[#This Row],[Fares for 10 km of journey (2007 US$ PPP) - Bus]:[Fares for 10 km of journey (2007 US$ PPP) - Trolley Bus]], "<>0")*40*12)/EO50, "") ->  | FM50: =IFERROR((AVERAGEIF(Table37[[#This Row],[Fares for 10 km of journey (2007 US$ PPP) - Regional/Commuter Rail]:[Fares for 10 km of journey (2007 US$ PPP) - BRT]], "<>0")*40*12)/EO50, "") ->  | FN50: =IFERROR(2*(AVERAGEIF(Table37[[#This Row],[Fares for avg. length of journey (2007 US$ PPP) - Metro]:[Fares for avg. length of journey (2007 US$ PPP) - BRT]], "<>0"))/(Table37[[#This Row],[Minimum Hourly Wage rate (PPP $ 2007)]]*8), "") ->  | FP50: 5.4 | FQ50: 20 | FR50: =SUM(AP50:AQ50)+Table37[[#This Row],[Length of mass transit (km) - BRT]] -> 7.1 | FS50: 0.006622 | FT50: 932.6760563 | FU50: 0.0009942942943 | FV50: 0.01465004952 | FW50: 0.04972763288 | FX50: 939.059239 | FY50: 257 | FZ50: 1.25041177 | GA50: 7.286193875 | GB50: 0 | GC50: 0 | GD50: 0 | GE50: 28.07807808 | GF50: 0 | GG50: 0 | GH50: =Table37[[#This Row],[Fares for 10 km of journey (2007 US$ PPP) - Bus]]/10*Table37[[#This Row],[Average trip length by car (km)]] -> 0.2409768085 | GI50: =Table37[[#This Row],[Fares for 10 km of journey (2007 US$ PPP) - Regional/Commuter Rail]]/10*Table37[[#This Row],[Average trip length by car (km)]] -> 0 | GJ50: =Table37[[#This Row],[Fares for 10 km of journey (2007 US$ PPP) - Metro]]/10*Table37[[#This Row],[Average trip length by car (km)]] -> 0 | GK50: =Table37[[#This Row],[Fares for 10 km of journey (2007 US$ PPP) - LRT]]/10*Table37[[#This Row],[Average trip length by car (km)]] -> 0 | GL50: =Table37[[#This Row],[Fares for 10 km of journey (2007 US$ PPP) - Tram]]/10*Table37[[#This Row],[Average trip length by car (km)]] -> 0 | GM50: =Table37[[#This Row],[Fares for 10 km of journey (2007 US$ PPP) - BRT]]/10*Table37[[#This Row],[Average trip length by car (km)]] -> 0 | GN50: =Table37[[#This Row],[Fares for 10 km of journey (2007 US$ PPP) - Trolley Bus]]/10*Table37[[#This Row],[Average trip length by car (km)]] -> 0 | GO50: Much of the city's transport requirements are provided by private operators: minibuses seating 20 passengers, 3-wheelers seating 12 and cycle rickshaw provide much of the city's transport.
B51: Kanpur | C51: India | D51: SAR | E51: 2767031 | F51: 2551337 | G51: 3500000 | H51: 2800000 | K51: 266.74 | L51: 266.74 | N51: 840000 | O51: 519664 | P51: =73947+5456 -> 79403 | Q51: 599067 | R51: 597689 | Z51: 0 | AF51: 0 | AG51: 0 | AH51: 0 | AI51: 0 | AJ51: 0 | AK51: 0 | AL51: 0 | AP51: 0 | AQ51: 0 | AR51: 0 | AS51: 0 | AT51: 0 | AV51: 0 | AW51: 0 | AX51: 0 | AY51: 0 | AZ51: 0 | BC51: 482 | BD51: 235 | BF51: 0 | BH51: 0 | BI51: 0 | BJ51: 0 | BK51: 0 | BL51: =135+7588 -> 7723 | BO51: 0 | BP51: 0 | BQ51: 0 | BR51: 0 | BS51: 0 | BT51: 0 | BU51: 0 | BV51: 0 | BW51: 0 | BX51: 0 | BY51: 0 | BZ51: 0 | CC51: 0 | CD51: 0 | CE51: 0 | CF51: 0 | CG51: 0 | CJ51: 0 | CK51: 0 | CL51: 0 | CN51: 0 | CQ51: 0 | CR51: 0 | CS51: 0 | CT51: 0 | CV51: 0 | CW51: 0 | CX51: 0 | CY51: 0 | DB51: 0 | DC51: 0 | DD51: 0 | DF51: 0 | DI51: 0 | DJ51: 0 | DK51: 0 | DL51: 0 | DO51: 0 | DP51: 0 | DQ51: 0 | DR51: 0 | DS51: 0 | DW51: 67.22 | DX51: 73.25 | DY51: 54.73 | DZ51: 1.02 | EB51: 0.83 | EC51: 15.79 | ED51: 32.49 | EG51: 15 | EH51: 14 | EI51: 215 | EL51: Euro 4 | EO51: =Table37[[#This Row],[City Per Capita GDP (LC)]]*('GDP Deflator 1960-2011'!AZ47/'GDP Deflator 1960-2011'!BB47)*1/Table37[[#This Row],[PPP Exchange rate with the US$ (2016)]] -> 0 | EQ51: =Table37[[#This Row],[City GDP (LC Billion)]]*'GDP Deflator 1960-2011'!AZ47/'GDP Deflator 1960-2011'!BC47*1/Table37[[#This Row],[PPP Exchange rate with the US$ (2016)]] -> 0 | ER51: 159761 | ES51: =Table37[[#This Row],[Median Annual household income (LC)]]*'GDP Deflator 1960-2011'!AZ47/'GDP Deflator 1960-2011'!BA47*1/Table37[[#This Row],[PPP Exchange rate with the US$ (2016)]] -> 8547.794422 | ET51: =(22.63+30)/2 -> 26.315 | EU51: =IF(ISERROR(Table37[[#This Row],[Minimum Hourly Wage Rate (LC)]]*'CPI 1960-2011'!AY47/'CPI 1960-2011'!BC47*1/Table37[[#This Row],[PPP Exchange rate with the US$ (2016)]]), "n/a", Table37[[#This Row],[Minimum Hourly Wage Rate (LC)]]*'GDP Deflator 1960-2011'!AZ47/'GDP Deflator 1960-2011'!BD47*1/Table37[[#This Row],[PPP Exchange rate with the US$ (2016)]]) -> 1.134162596 | EV51: 17.2 | EX51: 148.4754286 | EY51: 22.68657143 | EZ51: 0.2048571429 | FA51: 0.8694555195 | FC51: 0 | FD51: 0 | FF51: 0 | FG51: =IFERROR(Table37[[#This Row],[Operating Costs US$ - Bus]]/Table37[[#This Row],[Fare revenue US$- Bus]], "") ->  | FH51: =IFERROR(Table37[[#This Row],[Operating Costs US$ - Metro]]/Table37[[#This Row],[Fare revenue US$- Metro]], "") ->  | FI51: =IFERROR(Table37[[#This Row],[Operating Costs US$- LRT]]/Table37[[#This Row],[Fare revenue US$- LRT]], "") ->  | FJ51: =IFERROR(Table37[[#This Row],[Operating Costs US$- Tram]]/Table37[[#This Row],[Fare revenue US$- Tram]], "") ->  | FK51: =IFERROR(Table37[[#This Row],[Operating Costs US$ - Trolley Bus]]/Table37[[#This Row],[Fare revenue US$- Trolley Buses]], "") ->  | FL51: =IFERROR((AVERAGEIF(Table37[[#This Row],[Fares for 10 km of journey (2007 US$ PPP) - Bus]:[Fares for 10 km of journey (2007 US$ PPP) - Trolley Bus]], "<>0")*40*12)/EO51, "") ->  | FM51: =IFERROR((AVERAGEIF(Table37[[#This Row],[Fares for 10 km of journey (2007 US$ PPP) - Regional/Commuter Rail]:[Fares for 10 km of journey (2007 US$ PPP) - BRT]], "<>0")*40*12)/EO51, "") ->  | FN51: =IFERROR(2*(AVERAGEIF(Table37[[#This Row],[Fares for avg. length of journey (2007 US$ PPP) - Metro]:[Fares for avg. length of journey (2007 US$ PPP) - BRT]], "<>0"))/(Table37[[#This Row],[Minimum Hourly Wage rate (PPP $ 2007)]]*8), "") ->  | FP51: 0 | FQ51: 0 | FR51: =SUM(AP51:AQ51)+Table37[[#This Row],[Length of mass transit (km) - BRT]] -> 0 | FS51: 0 | FU51: 0 | FX51: 899.0083719 | FY51: 324.9 | GA51: 15.04140735 | GB51: 0 | GC51: 4.285714286 | GD51: 4 | GE51: 61.42857143 | GF51: 0 | GG51: 0 | GH51: =Table37[[#This Row],[Fares for 10 km of journey (2007 US$ PPP) - Bus]]/10*Table37[[#This Row],[Average trip length by car (km)]] -> 0 | GI51: =Table37[[#This Row],[Fares for 10 km of journey (2007 US$ PPP) - Regional/Commuter Rail]]/10*Table37[[#This Row],[Average trip length by car (km)]] -> 0 | GJ51: =Table37[[#This Row],[Fares for 10 km of journey (2007 US$ PPP) - Metro]]/10*Table37[[#This Row],[Average trip length by car (km)]] -> 0 | GK51: =Table37[[#This Row],[Fares for 10 km of journey (2007 US$ PPP) - LRT]]/10*Table37[[#This Row],[Average trip length by car (km)]] -> 0 | GL51: =Table37[[#This Row],[Fares for 10 km of journey (2007 US$ PPP) - Tram]]/10*Table37[[#This Row],[Average trip length by car (km)]] -> 0 | GM51: =Table37[[#This Row],[Fares for 10 km of journey (2007 US$ PPP) - BRT]]/10*Table37[[#This Row],[Average trip length by car (km)]] -> 0 | GN51: =Table37[[#This Row],[Fares for 10 km of journey (2007 US$ PPP) - Trolley Bus]]/10*Table37[[#This Row],[Average trip length by car (km)]] -> 0 | GO51: Extensive private buses, tempo taxis and cycle rickshaws provide most of the city's transport needs.
B52: Kolkata | C52: India | D52: SAR | E52: 14112536 | F52: 13205697 | G52: 15123555 | H52: 14112536 | I52: 1480 | K52: 968680 | L52: 968680 | M52: 9535.497297 | O52: 162753 | P52: 302821 | Q52: 465574 | R52: 572783 | Z52: 0 | AC52: =221.1/365+51.4/365 -> 0.7465753425 | AE52: =590/365+79/365 -> 1.832876712 | AF52: =173/365 -> 0.4739726027 | AG52: 0 | AH52: =58/365 -> 0.1589041096 | AI52: 0 | AJ52: 0 | AK52: 1.379452055 | AL52: 0.6328767123 | AN52: 23332 | AP52: 16.45 | AQ52: 0 | AR52: 68 | AS52: 0 | AT52: 0 | AV52: 17 | AW52: 0 | AX52: 447 | AY52: 0 | AZ52: 0 | BC52: =1124+358 -> 1482 | BF52: 144 | BH52: 0 | BI52: 170 | BJ52: 0 | BK52: 0 | BL52: =33524+16258 -> 49782 | BP52: 0 | BR52: 0 | BS52: 0 | BT52: 0 | BU52: 0 | BV52: 0 | BW52: 0 | BX52: 0 | BY52: 0 | BZ52: 0 | CD52: 0 | CF52: 0 | CG52: 0 | CK52: 0 | CN52: 0 | CR52: 0 | CT52: 0 | CW52: 0 | CY52: 0 | DC52: 0 | DF52: 0 | DJ52: 0 | DL52: 0 | DM52: 7741 | DP52: 0 | DR52: 0 | DS52: 0 | DT52: 6.53 | DW52: 67.4 | DX52: 75.44 | DY52: 54.88 | DZ52: 1.02 | EA52: 3.065359477 | EB52: 0.84 | ED52: =421/E52*100000 -> 2.983163338 | EG52: 49 | EH52: 34 | EI52: 135 | EK52: 16.027 | EL52: Euro 4 | EO52: =Table37[[#This Row],[City Per Capita GDP (LC)]]*('GDP Deflator 1960-2011'!AZ48/'GDP Deflator 1960-2011'!BB48)*1/Table37[[#This Row],[PPP Exchange rate with the US$ (2016)]] -> 0 | EQ52: =Table37[[#This Row],[City GDP (LC Billion)]]*'GDP Deflator 1960-2011'!AZ48/'GDP Deflator 1960-2011'!BC48*1/Table37[[#This Row],[PPP Exchange rate with the US$ (2016)]] -> 0 | ER52: 287199 | ES52: =Table37[[#This Row],[Median Annual household income (LC)]]*'GDP Deflator 1960-2011'!AZ48/'GDP Deflator 1960-2011'!BA48*1/Table37[[#This Row],[PPP Exchange rate with the US$ (2016)]] -> 15366.19081 | ET52: =(22.63+30)/2 -> 26.315 | EU52: =IF(ISERROR(Table37[[#This Row],[Minimum Hourly Wage Rate (LC)]]*'CPI 1960-2011'!AY48/'CPI 1960-2011'!BC48*1/Table37[[#This Row],[PPP Exchange rate with the US$ (2016)]]), "n/a", Table37[[#This Row],[Minimum Hourly Wage Rate (LC)]]*'GDP Deflator 1960-2011'!AZ48/'GDP Deflator 1960-2011'!BD48*1/Table37[[#This Row],[PPP Exchange rate with the US$ (2016)]]) -> 1.134162596 | EV52: 17.2 | EX52: 10.76155705 | EY52: 20.02313609 | EZ52: 0.09799283303 | FA52: 0.2841442571 | FC52: 0 | FD52: 0 | FE52: 0 | FF52: 5.223346829 | FG52: =IFERROR(Table37[[#This Row],[Operating Costs US$ - Bus]]/Table37[[#This Row],[Fare revenue US$- Bus]], "") ->  | FH52: =IFERROR(Table37[[#This Row],[Operating Costs US$ - Metro]]/Table37[[#This Row],[Fare revenue US$- Metro]], "") ->  | FI52: =IFERROR(Table37[[#This Row],[Operating Costs US$- LRT]]/Table37[[#This Row],[Fare revenue US$- LRT]], "") ->  | FJ52: =IFERROR(Table37[[#This Row],[Operating Costs US$- Tram]]/Table37[[#This Row],[Fare revenue US$- Tram]], "") ->  | FK52: =IFERROR(Table37[[#This Row],[Operating Costs US$ - Trolley Bus]]/Table37[[#This Row],[Fare revenue US$- Trolley Buses]], "") ->  | FL52: =IFERROR((AVERAGEIF(Table37[[#This Row],[Fares for 10 km of journey (2007 US$ PPP) - Bus]:[Fares for 10 km of journey (2007 US$ PPP) - Trolley Bus]], "<>0")*40*12)/EO52, "") ->  | FM52: =IFERROR((AVERAGEIF(Table37[[#This Row],[Fares for 10 km of journey (2007 US$ PPP) - Regional/Commuter Rail]:[Fares for 10 km of journey (2007 US$ PPP) - BRT]], "<>0")*40*12)/EO52, "") ->  | FN52: =IFERROR(2*(AVERAGEIF(Table37[[#This Row],[Fares for avg. length of journey (2007 US$ PPP) - Metro]:[Fares for avg. length of journey (2007 US$ PPP) - BRT]], "<>0"))/(Table37[[#This Row],[Minimum Hourly Wage rate (PPP $ 2007)]]*8), "") ->  | FP52: 0 | FQ52: 0 | FR52: =SUM(AP52:AQ52)+Table37[[#This Row],[Length of mass transit (km) - BRT]] -> 16.45 | FS52: 0.6328767123 | FT52: 7494.099613 | FU52: 0.04184708637 | FV52: 0.01111486486 | FW52: 0.2749662162 | FX52: 421 | FY52: 29.83163338 | GA52: 7.350078476 | GB52: 0 | GC52: 3.23997896 | GD52: 2.248148666 | GE52: 8.926472645 | GF52: 0 | GG52: 0 | GH52: =Table37[[#This Row],[Fares for 10 km of journey (2007 US$ PPP) - Bus]]/10*Table37[[#This Row],[Average trip length by car (km)]] -> 0 | GI52: =Table37[[#This Row],[Fares for 10 km of journey (2007 US$ PPP) - Regional/Commuter Rail]]/10*Table37[[#This Row],[Average trip length by car (km)]] -> 0 | GJ52: =Table37[[#This Row],[Fares for 10 km of journey (2007 US$ PPP) - Metro]]/10*Table37[[#This Row],[Average trip length by car (km)]] -> 0 | GK52: =Table37[[#This Row],[Fares for 10 km of journey (2007 US$ PPP) - LRT]]/10*Table37[[#This Row],[Average trip length by car (km)]] -> 0 | GL52: =Table37[[#This Row],[Fares for 10 km of journey (2007 US$ PPP) - Tram]]/10*Table37[[#This Row],[Average trip length by car (km)]] -> 0 | GM52: =Table37[[#This Row],[Fares for 10 km of journey (2007 US$ PPP) - BRT]]/10*Table37[[#This Row],[Average trip length by car (km)]] -> 0 | GN52: =Table37[[#This Row],[Fares for 10 km of journey (2007 US$ PPP) - Trolley Bus]]/10*Table37[[#This Row],[Average trip length by car (km)]] -> 0
B53: Madurai | C53: India | D53: SAR | E53: 1016885 | F53: 928869 | G53: 1462420 | I53: 248 | J53: 147.997 | M53: 4100.342742 | O53: 363071 | P53: =24626+1527 -> 26153 | Q53: 389224 | R53: 440182 | Z53: 0 | AF53: 0 | AG53: 0 | AH53: 0 | AI53: 0 | AJ53: 0 | AK53: 0 | AL53: 0 | AP53: 0 | AQ53: 0 | AR53: 0 | AS53: 0 | AT53: 0 | AV53: 0 | AW53: 0 | AX53: 0 | AY53: 0 | AZ53: 0 | BF53: 0 | BH53: 0 | BI53: 0 | BJ53: 0 | BK53: 0 | BL53: =10154+8931 -> 19085 | BN53: 0 | BO53: 0 | BP53: 0 | BQ53: 0 | BR53: 0 | BS53: 0 | BT53: 0 | BU53: 0 | BV53: 0 | BW53: 0 | BX53: 0 | BY53: 0 | BZ53: 0 | CC53: 0 | CD53: 0 | CE53: 0 | CF53: 0 | CG53: 0 | CJ53: 0 | CK53: 0 | CL53: 0 | CN53: 0 | CQ53: 0 | CR53: 0 | CS53: 0 | CT53: 0 | CV53: 0 | CW53: 0 | CX53: 0 | CY53: 0 | DB53: 0 | DC53: 0 | DD53: 0 | DF53: 0 | DI53: 0 | DJ53: 0 | DK53: 0 | DL53: 0 | DO53: 0 | DP53: 0 | DQ53: 0 | DR53: 0 | DS53: 0 | DW53: 63.67 | DX53: 71.55 | DY53: 54.68 | DZ53: 0.04 | EB53: 0.83 | ED53: =142/E53*100000 -> 13.96421424 | EI53: 48 | EL53: Euro 3 | EO53: =Table37[[#This Row],[City Per Capita GDP (LC)]]*('GDP Deflator 1960-2011'!AZ49/'GDP Deflator 1960-2011'!BB49)*1/Table37[[#This Row],[PPP Exchange rate with the US$ (2016)]] -> 0 | EQ53: =Table37[[#This Row],[City GDP (LC Billion)]]*'GDP Deflator 1960-2011'!AZ49/'GDP Deflator 1960-2011'!BC49*1/Table37[[#This Row],[PPP Exchange rate with the US$ (2016)]] -> 0 | ES53: =Table37[[#This Row],[Median Annual household income (LC)]]*'GDP Deflator 1960-2011'!AZ49/'GDP Deflator 1960-2011'!AY49*1/Table37[[#This Row],[PPP Exchange rate with the US$ (2016)]] -> 0 | ET53: =(20.5+27.5)/2 -> 24 | EU53: =IF(ISERROR(Table37[[#This Row],[Minimum Hourly Wage Rate (LC)]]*'CPI 1960-2011'!AY49/'CPI 1960-2011'!BC49*1/Table37[[#This Row],[PPP Exchange rate with the US$ (2016)]]), "n/a", Table37[[#This Row],[Minimum Hourly Wage Rate (LC)]]*'GDP Deflator 1960-2011'!AZ49/'GDP Deflator 1960-2011'!BD49*1/Table37[[#This Row],[PPP Exchange rate with the US$ (2016)]]) -> 1.034387319 | EV53: 17.2 | EX53: 248.2672556 | EY53: 17.8833714 | EZ53: 0 | FA53: 0.824820188 | FC53: 0 | FD53: 0 | FE53: 0 | FG53: =IFERROR(Table37[[#This Row],[Operating Costs US$ - Bus]]/Table37[[#This Row],[Fare revenue US$- Bus]], "") ->  | FH53: =IFERROR(Table37[[#This Row],[Operating Costs US$ - Metro]]/Table37[[#This Row],[Fare revenue US$- Metro]], "") ->  | FI53: =IFERROR(Table37[[#This Row],[Operating Costs US$- LRT]]/Table37[[#This Row],[Fare revenue US$- LRT]], "") ->  | FJ53: =IFERROR(Table37[[#This Row],[Operating Costs US$- Tram]]/Table37[[#This Row],[Fare revenue US$- Tram]], "") ->  | FK53: =IFERROR(Table37[[#This Row],[Operating Costs US$ - Trolley Bus]]/Table37[[#This Row],[Fare revenue US$- Trolley Buses]], "") ->  | FL53: =IFERROR((AVERAGEIF(Table37[[#This Row],[Fares for 10 km of journey (2007 US$ PPP) - Bus]:[Fares for 10 km of journey (2007 US$ PPP) - Trolley Bus]], "<>0")*40*12)/EO53, "") ->  | FM53: =IFERROR((AVERAGEIF(Table37[[#This Row],[Fares for 10 km of journey (2007 US$ PPP) - Regional/Commuter Rail]:[Fares for 10 km of journey (2007 US$ PPP) - BRT]], "<>0")*40*12)/EO53, "") ->  | FN53: =IFERROR(2*(AVERAGEIF(Table37[[#This Row],[Fares for avg. length of journey (2007 US$ PPP) - Metro]:[Fares for avg. length of journey (2007 US$ PPP) - BRT]], "<>0"))/(Table37[[#This Row],[Minimum Hourly Wage rate (PPP $ 2007)]]*8), "") ->  | FP53: 0 | FQ53: 0 | FR53: =SUM(AP53:AQ53)+Table37[[#This Row],[Length of mass transit (km) - BRT]] -> 0 | FS53: 0 | FU53: 0 | FV53: 0 | FW53: 0.9577822581 | FX53: 142 | FY53: 139.6421424 | GA53: 3.225938362 | GB53: 0 | GC53: 0 | GD53: 0 | GE53: 32.82230823 | GF53: 0 | GG53: 0 | GH53: =Table37[[#This Row],[Fares for 10 km of journey (2007 US$ PPP) - Bus]]/10*Table37[[#This Row],[Average trip length by car (km)]] -> 0 | GI53: =Table37[[#This Row],[Fares for 10 km of journey (2007 US$ PPP) - Regional/Commuter Rail]]/10*Table37[[#This Row],[Average trip length by car (km)]] -> 0 | GJ53: =Table37[[#This Row],[Fares for 10 km of journey (2007 US$ PPP) - Metro]]/10*Table37[[#This Row],[Average trip length by car (km)]] -> 0 | GK53: =Table37[[#This Row],[Fares for 10 km of journey (2007 US$ PPP) - LRT]]/10*Table37[[#This Row],[Average trip length by car (km)]] -> 0 | GL53: =Table37[[#This Row],[Fares for 10 km of journey (2007 US$ PPP) - Tram]]/10*Table37[[#This Row],[Average trip length by car (km)]] -> 0 | GM53: =Table37[[#This Row],[Fares for 10 km of journey (2007 US$ PPP) - BRT]]/10*Table37[[#This Row],[Average trip length by car (km)]] -> 0 | GN53: =Table37[[#This Row],[Fares for 10 km of journey (2007 US$ PPP) - Trolley Bus]]/10*Table37[[#This Row],[Average trip length by car (km)]] -> 0
B54: Mumbai | C54: India | D54: SAR | E54: 12478447 | F54: 11978450 | G54: 22000000 | H54: 16434386 | I54: 603 | J54: 603 | K54: 705.33 | L54: 705330 | M54: 20693.94196 | O54: 859075 | P54: =464381+25200 -> 489581 | Q54: 1348656 | R54: 1604704 | S54: 33.96 | T54: 3.77 | U54: 3.77 | V54: 16.98 | X54: 11.32 | Y54: 13.21 | Z54: 16.99 | AA54: 19.78 | AB54: 63 | AC54: =1636/365 -> 4.482191781 | AE54: =2314/365 -> 6.339726027 | AF54: 0 | AG54: 0 | AH54: 0 | AI54: 0 | AJ54: 0 | AK54: 4.482191781 | AL54: 0 | AM54: 1941.16 | AN54: 5824.6 | AO54: 319 | AP54: Under Construction | AQ54: 0 | AR54: 0 | AS54: 0 | AT54: 0 | AV54: Under Construction | AW54: 0 | AX54: 0 | AY54: 0 | AZ54: 0 | BC54: 3391 | BF54: Under Construction | BG54: 2226 | BH54: 0 | BI54: 0 | BJ54: 0 | BK54: 0 | BL54: =57865+104725 -> 162590 | BN54: 4 | BO54: 0 | BP54: 0 | BQ54: 0 | BR54: 0 | BS54: 0 | BT54: 0 | BU54: 0.1785013396 | BV54: 0 | BW54: 0 | BX54: 0 | BY54: 0 | BZ54: 0 | CA54: 14444 | CC54: 0 | CD54: 0 | CE54: 0 | CF54: 0 | CG54: 0 | CH54: 8936.373 | CJ54: 0 | CK54: 0 | CL54: 0 | CN54: 0 | CO54: 2299.131 | CQ54: 0 | CR54: 0 | CS54: 0 | CT54: 0 | CU54: 701.6632035 | CV54: 0 | CW54: 0 | CX54: 0 | CY54: 0 | CZ54: 434.1127186 | DB54: 0 | DC54: 0 | DD54: 0 | DF54: 0 | DG54: 111.687595 | DI54: 0 | DJ54: 0 | DK54: 0 | DL54: 0 | DO54: 0 | DP54: 0 | DQ54: 0 | DR54: 0 | DS54: 0 | DT54: 9 | DU54: 0.08 | DV54: 2.02 | DW54: 70.64 | DX54: 74.43 | DY54: 58.07 | DZ54: 1.07 | EA54: 1.1228 | EB54: 0.88 | ED54: =840/E54*100000 -> 6.731606906 | EF54: 9.337 | EG54: 33 | EH54: 39 | EI54: 117 | EK54: 45.843 | EL54: Euro 4 | EO54: =Table37[[#This Row],[City Per Capita GDP (LC)]]*('GDP Deflator 1960-2011'!AZ50/'GDP Deflator 1960-2011'!BB50)*1/Table37[[#This Row],[PPP Exchange rate with the US$ (2016)]] -> 0 | EQ54: =Table37[[#This Row],[City GDP (LC Billion)]]*'GDP Deflator 1960-2011'!AZ50/'GDP Deflator 1960-2011'!BC50*1/Table37[[#This Row],[PPP Exchange rate with the US$ (2016)]] -> 0 | ER54: 459457 | ES54: =Table37[[#This Row],[Median Annual household income (LC)]]*'GDP Deflator 1960-2011'!AZ50/'GDP Deflator 1960-2011'!AX50*1/Table37[[#This Row],[PPP Exchange rate with the US$ (2016)]] -> 30064.66035 | ET54: 25.2 | EU54: =IF(ISERROR(Table37[[#This Row],[Minimum Hourly Wage Rate (LC)]]*'CPI 1960-2011'!AY50/'CPI 1960-2011'!BC50*1/Table37[[#This Row],[PPP Exchange rate with the US$ (2016)]]), "n/a", Table37[[#This Row],[Minimum Hourly Wage Rate (LC)]]*'GDP Deflator 1960-2011'!AZ50/'GDP Deflator 1960-2011'!BD50*1/Table37[[#This Row],[PPP Exchange rate with the US$ (2016)]]) -> 1.086106685 | EV54: 17.2 | EX54: 39.04886364 | EY54: 22.25368182 | EZ54: 0.1541363636 | FA54: 0.535347952 | FB54: 561.6157349 | FC54: 1941.16 | FD54: 88.23454545 | FE54: 3.219170813 | FF54: 0 | FG54: =IFERROR(Table37[[#This Row],[Operating Costs US$ - Bus]]/Table37[[#This Row],[Fare revenue US$- Bus]], "") -> 1.616315702 | FH54: =IFERROR(Table37[[#This Row],[Operating Costs US$ - Metro]]/Table37[[#This Row],[Fare revenue US$- Metro]], "") ->  | FI54: =IFERROR(Table37[[#This Row],[Operating Costs US$- LRT]]/Table37[[#This Row],[Fare revenue US$- LRT]], "") ->  | FJ54: =IFERROR(Table37[[#This Row],[Operating Costs US$- Tram]]/Table37[[#This Row],[Fare revenue US$- Tram]], "") ->  | FK54: =IFERROR(Table37[[#This Row],[Operating Costs US$ - Trolley Bus]]/Table37[[#This Row],[Fare revenue US$- Trolley Buses]], "") ->  | FL54: =IFERROR((AVERAGEIF(Table37[[#This Row],[Fares for 10 km of journey (2007 US$ PPP) - Bus]:[Fares for 10 km of journey (2007 US$ PPP) - Trolley Bus]], "<>0")*40*12)/EO54, "") ->  | FM54: =IFERROR((AVERAGEIF(Table37[[#This Row],[Fares for 10 km of journey (2007 US$ PPP) - Regional/Commuter Rail]:[Fares for 10 km of journey (2007 US$ PPP) - BRT]], "<>0")*40*12)/EO54, "") ->  | FN54: =IFERROR(2*(AVERAGEIF(Table37[[#This Row],[Fares for avg. length of journey (2007 US$ PPP) - Metro]:[Fares for avg. length of journey (2007 US$ PPP) - BRT]], "<>0"))/(Table37[[#This Row],[Minimum Hourly Wage rate (PPP $ 2007)]]*8), "") ->  | FP54: 19.78 | FQ54: 63 | FR54: =SUM(AP54:AQ54)+Table37[[#This Row],[Length of mass transit (km) - BRT]] -> 0 | FS54: 0 | FU54: 0 | FV54: 0 | FW54: 0.2063018242 | FX54: 840 | FY54: 67.31606906 | FZ54: 0.4327309444 | GA54: 5.234610246 | GB54: 0 | GC54: 1.5 | GD54: 1.772727273 | GE54: 5.318181818 | GF54: 0.08 | GG54: 2.02 | GH54: =Table37[[#This Row],[Fares for 10 km of journey (2007 US$ PPP) - Bus]]/10*Table37[[#This Row],[Average trip length by car (km)]] -> 0 | GI54: =Table37[[#This Row],[Fares for 10 km of journey (2007 US$ PPP) - Regional/Commuter Rail]]/10*Table37[[#This Row],[Average trip length by car (km)]] -> 0.3530756498 | GJ54: =Table37[[#This Row],[Fares for 10 km of journey (2007 US$ PPP) - Metro]]/10*Table37[[#This Row],[Average trip length by car (km)]] -> 0 | GK54: =Table37[[#This Row],[Fares for 10 km of journey (2007 US$ PPP) - LRT]]/10*Table37[[#This Row],[Average trip length by car (km)]] -> 0 | GL54: =Table37[[#This Row],[Fares for 10 km of journey (2007 US$ PPP) - Tram]]/10*Table37[[#This Row],[Average trip length by car (km)]] -> 0 | GM54: =Table37[[#This Row],[Fares for 10 km of journey (2007 US$ PPP) - BRT]]/10*Table37[[#This Row],[Average trip length by car (km)]] -> 0 | GN54: =Table37[[#This Row],[Fares for 10 km of journey (2007 US$ PPP) - Trolley Bus]]/10*Table37[[#This Row],[Average trip length by car (km)]] -> 0
B55: Nagpur | C55: India | D55: SAR | E55: 2405421 | F55: 2052066 | G55: 2497777 | I55: 217.56 | J55: 217.56 | M55: 11056.35687 | O55: 799014 | P55: =64511+20482 -> 84993 | Q55: 884007 | R55: 946022 | Z55: 0 | AF55: 0 | AG55: 0 | AH55: 0 | AI55: 0 | AJ55: 0 | AK55: 0 | AL55: 0 | AN55: 2019 | AP55: 0 | AQ55: 0 | AR55: 0 | AS55: 0 | AT55: 0 | AV55: 0 | AW55: 0 | AX55: 0 | AY55: 0 | AZ55: 0 | BC55: 212 | BF55: 0 | BH55: 0 | BI55: 0 | BJ55: 0 | BK55: 0 | BL55: =1771+15309 -> 17080 | BN55: 0 | BO55: 0 | BP55: 0 | BQ55: 0 | BR55: 0 | BS55: 0 | BT55: 0 | BU55: 0 | BV55: 0 | BW55: 0 | BX55: 0 | BY55: 0 | BZ55: 0 | CC55: 0 | CD55: 0 | CE55: 0 | CF55: 0 | CG55: 0 | CJ55: 0 | CK55: 0 | CL55: 0 | CN55: 0 | CQ55: 0 | CR55: 0 | CS55: 0 | CT55: 0 | CV55: 0 | CW55: 0 | CX55: 0 | CY55: 0 | DB55: 0 | DC55: 0 | DD55: 0 | DF55: 0 | DI55: 0 | DJ55: 0 | DK55: 0 | DL55: 0 | DM55: 1369 | DO55: 0 | DP55: 0 | DQ55: 0 | DR55: 0 | DS55: 0 | DW55: 69.25 | DX55: 72.81 | DY55: 57.16 | DZ55: 1.04 | EB55: 0.86 | ED55: =352/E55*100000 -> 14.63361299 | EG55: 6 | EH55: 13 | EI55: 103 | EL55: Euro 3 | EO55: =Table37[[#This Row],[City Per Capita GDP (LC)]]*('GDP Deflator 1960-2011'!AZ51/'GDP Deflator 1960-2011'!BB51)*1/Table37[[#This Row],[PPP Exchange rate with the US$ (2016)]] -> 0 | EQ55: =Table37[[#This Row],[City GDP (LC Billion)]]*'GDP Deflator 1960-2011'!AZ51/'GDP Deflator 1960-2011'!BC51*1/Table37[[#This Row],[PPP Exchange rate with the US$ (2016)]] -> 0 | ER55: 308625 | ES55: =Table37[[#This Row],[Median Annual household income (LC)]]*'GDP Deflator 1960-2011'!AZ51/'GDP Deflator 1960-2011'!BA51*1/Table37[[#This Row],[PPP Exchange rate with the US$ (2016)]] -> 16512.55972 | ET55: =(22.63+30)/2 -> 26.315 | EU55: =IF(ISERROR(Table37[[#This Row],[Minimum Hourly Wage Rate (LC)]]*'CPI 1960-2011'!AY51/'CPI 1960-2011'!BC51*1/Table37[[#This Row],[PPP Exchange rate with the US$ (2016)]]), "n/a", Table37[[#This Row],[Minimum Hourly Wage Rate (LC)]]*'GDP Deflator 1960-2011'!AZ51/'GDP Deflator 1960-2011'!BD51*1/Table37[[#This Row],[PPP Exchange rate with the US$ (2016)]]) -> 1.134162596 | EV55: 17.2 | EX55: 319.8900462 | EY55: 34.02745721 | EZ55: 0.08487547127 | FA55: 0.8446040367 | FC55: 0 | FD55: 0 | FE55: 0 | FF55: 6.45754717 | FG55: =IFERROR(Table37[[#This Row],[Operating Costs US$ - Bus]]/Table37[[#This Row],[Fare revenue US$- Bus]], "") ->  | FH55: =IFERROR(Table37[[#This Row],[Operating Costs US$ - Metro]]/Table37[[#This Row],[Fare revenue US$- Metro]], "") ->  | FI55: =IFERROR(Table37[[#This Row],[Operating Costs US$- LRT]]/Table37[[#This Row],[Fare revenue US$- LRT]], "") ->  | FJ55: =IFERROR(Table37[[#This Row],[Operating Costs US$- Tram]]/Table37[[#This Row],[Fare revenue US$- Tram]], "") ->  | FK55: =IFERROR(Table37[[#This Row],[Operating Costs US$ - Trolley Bus]]/Table37[[#This Row],[Fare revenue US$- Trolley Buses]], "") ->  | FL55: =IFERROR((AVERAGEIF(Table37[[#This Row],[Fares for 10 km of journey (2007 US$ PPP) - Bus]:[Fares for 10 km of journey (2007 US$ PPP) - Trolley Bus]], "<>0")*40*12)/EO55, "") ->  | FM55: =IFERROR((AVERAGEIF(Table37[[#This Row],[Fares for 10 km of journey (2007 US$ PPP) - Regional/Commuter Rail]:[Fares for 10 km of journey (2007 US$ PPP) - BRT]], "<>0")*40*12)/EO55, "") ->  | FN55: =IFERROR(2*(AVERAGEIF(Table37[[#This Row],[Fares for avg. length of journey (2007 US$ PPP) - Metro]:[Fares for avg. length of journey (2007 US$ PPP) - BRT]], "<>0"))/(Table37[[#This Row],[Minimum Hourly Wage rate (PPP $ 2007)]]*8), "") ->  | FP55: 0 | FQ55: 0 | FR55: =SUM(AP55:AQ55)+Table37[[#This Row],[Length of mass transit (km) - BRT]] -> 0 | FS55: 0 | FU55: 0 | FV55: 0 | FW55: 5.428387571 | FX55: 352 | FY55: 146.3361299 | GA55: 3.720843701 | GB55: 0 | GC55: 2.402135979 | GD55: 5.204627955 | GE55: 41.23666764 | GF55: 0 | GG55: 0 | GH55: =Table37[[#This Row],[Fares for 10 km of journey (2007 US$ PPP) - Bus]]/10*Table37[[#This Row],[Average trip length by car (km)]] -> 0 | GI55: =Table37[[#This Row],[Fares for 10 km of journey (2007 US$ PPP) - Regional/Commuter Rail]]/10*Table37[[#This Row],[Average trip length by car (km)]] -> 0 | GJ55: =Table37[[#This Row],[Fares for 10 km of journey (2007 US$ PPP) - Metro]]/10*Table37[[#This Row],[Average trip length by car (km)]] -> 0 | GK55: =Table37[[#This Row],[Fares for 10 km of journey (2007 US$ PPP) - LRT]]/10*Table37[[#This Row],[Average trip length by car (km)]] -> 0 | GL55: =Table37[[#This Row],[Fares for 10 km of journey (2007 US$ PPP) - Tram]]/10*Table37[[#This Row],[Average trip length by car (km)]] -> 0 | GM55: =Table37[[#This Row],[Fares for 10 km of journey (2007 US$ PPP) - BRT]]/10*Table37[[#This Row],[Average trip length by car (km)]] -> 0 | GN55: =Table37[[#This Row],[Fares for 10 km of journey (2007 US$ PPP) - Trolley Bus]]/10*Table37[[#This Row],[Average trip length by car (km)]] -> 0
B56: Patna | C56: India | D56: SAR | E56: 1683200 | F56: 1366444 | G56: 2046652 | I56: 109.218 | J56: 108.34 | M56: 15411.37908 | O56: 325450 | P56: 55589 | Q56: 381039 | R56: 471490 | S56: 15 | T56: 18 | U56: 13 | V56: 41 | W56: 5 | Y56: 8 | Z56: 0 | AF56: 0 | AG56: 0 | AH56: 0 | AI56: 0 | AJ56: 0 | AK56: 0 | AL56: 0 | AM56: 1421 | AP56: 0 | AQ56: 0 | AR56: 0 | AS56: 0 | AT56: 0 | AV56: 0 | AW56: 0 | AX56: 0 | AY56: 0 | AZ56: 0 | BF56: 0 | BH56: 0 | BI56: 0 | BJ56: 0 | BK56: 0 | BL56: =4263+43282 -> 47545 | BN56: 0 | BO56: 0 | BP56: 0 | BQ56: 0 | BR56: 0 | BS56: 0 | BT56: 0 | BU56: 0 | BV56: 0 | BW56: 0 | BX56: 0 | BY56: 0 | BZ56: 0 | CC56: 0 | CD56: 0 | CE56: 0 | CF56: 0 | CG56: 0 | CJ56: 0 | CK56: 0 | CL56: 0 | CN56: 0 | CQ56: 0 | CR56: 0 | CS56: 0 | CT56: 0 | CV56: 0 | CW56: 0 | CX56: 0 | CY56: 0 | DB56: 0 | DC56: 0 | DD56: 0 | DF56: 0 | DI56: 0 | DJ56: 0 | DK56: 0 | DL56: 0 | DO56: 0 | DP56: 0 | DQ56: 0 | DR56: 0 | DS56: 0 | DW56: 66.84 | DX56: 71.94 | DY56: 65.74 | DZ56: 1.01 | EB56: 0.99 | ED56: =42/E56*100000 -> 2.495247148 | EI56: 167 | EL56: Euro 3 | EO56: =Table37[[#This Row],[City Per Capita GDP (LC)]]*('GDP Deflator 1960-2011'!AZ52/'GDP Deflator 1960-2011'!BB52)*1/Table37[[#This Row],[PPP Exchange rate with the US$ (2016)]] -> 0 | EQ56: =Table37[[#This Row],[City GDP (LC Billion)]]*'GDP Deflator 1960-2011'!AZ52/'GDP Deflator 1960-2011'!BC52*1/Table37[[#This Row],[PPP Exchange rate with the US$ (2016)]] -> 0 | ES56: =Table37[[#This Row],[Median Annual household income (LC)]]*'GDP Deflator 1960-2011'!AZ52/'GDP Deflator 1960-2011'!AY52*1/Table37[[#This Row],[PPP Exchange rate with the US$ (2016)]] -> 0 | ET56: =(20.5+27.5)/2 -> 24 | EU56: =IF(ISERROR(Table37[[#This Row],[Minimum Hourly Wage Rate (LC)]]*'CPI 1960-2011'!AY52/'CPI 1960-2011'!BC52*1/Table37[[#This Row],[PPP Exchange rate with the US$ (2016)]]), "n/a", Table37[[#This Row],[Minimum Hourly Wage Rate (LC)]]*'GDP Deflator 1960-2011'!AZ52/'GDP Deflator 1960-2011'!BD52*1/Table37[[#This Row],[PPP Exchange rate with the US$ (2016)]]) -> 1.034387319 | EV56: 17.2 | EX56: 159.0157975 | EY56: 27.16094382 | EZ56: 0 | FA56: 0.6902585421 | FB56: 187.0928923 | FC56: 1421 | FD56: 694.3046497 | FE56: 13.0106759 | FG56: =IFERROR(Table37[[#This Row],[Operating Costs US$ - Bus]]/Table37[[#This Row],[Fare revenue US$- Bus]], "") ->  | FH56: =IFERROR(Table37[[#This Row],[Operating Costs US$ - Metro]]/Table37[[#This Row],[Fare revenue US$- Metro]], "") ->  | FI56: =IFERROR(Table37[[#This Row],[Operating Costs US$- LRT]]/Table37[[#This Row],[Fare revenue US$- LRT]], "") ->  | FJ56: =IFERROR(Table37[[#This Row],[Operating Costs US$- Tram]]/Table37[[#This Row],[Fare revenue US$- Tram]], "") ->  | FK56: =IFERROR(Table37[[#This Row],[Operating Costs US$ - Trolley Bus]]/Table37[[#This Row],[Fare revenue US$- Trolley Buses]], "") ->  | FL56: =IFERROR((AVERAGEIF(Table37[[#This Row],[Fares for 10 km of journey (2007 US$ PPP) - Bus]:[Fares for 10 km of journey (2007 US$ PPP) - Trolley Bus]], "<>0")*40*12)/EO56, "") ->  | FM56: =IFERROR((AVERAGEIF(Table37[[#This Row],[Fares for 10 km of journey (2007 US$ PPP) - Regional/Commuter Rail]:[Fares for 10 km of journey (2007 US$ PPP) - BRT]], "<>0")*40*12)/EO56, "") ->  | FN56: =IFERROR(2*(AVERAGEIF(Table37[[#This Row],[Fares for avg. length of journey (2007 US$ PPP) - Metro]:[Fares for avg. length of journey (2007 US$ PPP) - BRT]], "<>0"))/(Table37[[#This Row],[Minimum Hourly Wage rate (PPP $ 2007)]]*8), "") ->  | FP56: 0 | FQ56: 0 | FR56: =SUM(AP56:AQ56)+Table37[[#This Row],[Length of mass transit (km) - BRT]] -> 0 | FS56: 0 | FU56: 0 | FV56: 0 | FW56: 1.30930799 | FX56: 42 | FY56: 24.95247148 | FZ56: 0.02955665025 | GA56: 0.8907930179 | GB56: 0 | GC56: 0 | GD56: 0 | GE56: 81.59667594 | GF56: 0 | GG56: 0 | GH56: =Table37[[#This Row],[Fares for 10 km of journey (2007 US$ PPP) - Bus]]/10*Table37[[#This Row],[Average trip length by car (km)]] -> 0 | GI56: =Table37[[#This Row],[Fares for 10 km of journey (2007 US$ PPP) - Regional/Commuter Rail]]/10*Table37[[#This Row],[Average trip length by car (km)]] -> 0 | GJ56: =Table37[[#This Row],[Fares for 10 km of journey (2007 US$ PPP) - Metro]]/10*Table37[[#This Row],[Average trip length by car (km)]] -> 0 | GK56: =Table37[[#This Row],[Fares for 10 km of journey (2007 US$ PPP) - LRT]]/10*Table37[[#This Row],[Average trip length by car (km)]] -> 0 | GL56: =Table37[[#This Row],[Fares for 10 km of journey (2007 US$ PPP) - Tram]]/10*Table37[[#This Row],[Average trip length by car (km)]] -> 0 | GM56: =Table37[[#This Row],[Fares for 10 km of journey (2007 US$ PPP) - BRT]]/10*Table37[[#This Row],[Average trip length by car (km)]] -> 0 | GN56: =Table37[[#This Row],[Fares for 10 km of journey (2007 US$ PPP) - Trolley Bus]]/10*Table37[[#This Row],[Average trip length by car (km)]] -> 0
B57: Pune | C57: India | D57: SAR | E57: 3115431 | F57: 2538473 | G57: 5743865 | I57: 430 | J57: 430 | K57: 459.44 | L57: 430 | M57: =E57/I57 -> 7245.188372 | O57: 817609 | P57: =102924+15918 -> 118842 | Q57: 936451 | R57: 1140920 | S57: 19 | T57: 11 | U57: 19 | V57: 7 | W57: 5 | Y57: 39 | Z57: 0 | AA57: 6.1 | AB57: 20 | AC57: =228.2/365+30.35/365 -> 0.7083561644 | AF57: 0 | AG57: 0 | AH57: 0 | AI57: 0.09675 | AJ57: 0 | AK57: 0.8051061644 | AL57: 0.09675 | AP57: 0 | AQ57: 0 | AR57: 0 | AS57: 29.2 | AT57: 0 | AV57: 0 | AW57: 0 | AX57: 0 | AY57: 0 | AZ57: 40 | BC57: 927 | BF57: 0 | BH57: 0 | BI57: 0 | BJ57: 144 | BK57: 0 | BL57: 62335 | BM57: 9 | BO57: 0 | BP57: 0 | BQ57: 0 | BS57: 0 | BT57: 0.4016280141 | BU57: 0 | BV57: 0 | BW57: 0 | BX57: 0 | BY57: 0.45 | BZ57: 0 | CC57: 0 | CD57: 0 | CE57: 0 | CG57: 0 | CJ57: 0 | CK57: 0 | CL57: 0 | CN57: 0 | CQ57: 0 | CR57: 0 | CS57: 0 | CT57: 0 | CV57: 0 | CW57: 0 | CX57: 0 | CY57: 0 | DB57: 0 | DC57: 0 | DD57: 0 | DF57: 0 | DI57: 0 | DJ57: 0 | DK57: 0 | DL57: 0 | DM57: 10591 | DO57: 0 | DP57: 0 | DQ57: 0 | DS57: 0 | DT57: 8.23-8.62 | DU57: 0.355 | DW57: 69.31 | DX57: 74.77 | DY57: 56.7 | DZ57: 1.05 | EB57: 0.86 | ED57: =615/E57*100000 -> 19.74044683 | EI57: 92 | EK57: 21.05 | EL57: Euro 4 | EO57: =Table37[[#This Row],[City Per Capita GDP (LC)]]*('GDP Deflator 1960-2011'!AZ53/'GDP Deflator 1960-2011'!BB53)*1/Table37[[#This Row],[PPP Exchange rate with the US$ (2016)]] -> 0 | EQ57: =Table37[[#This Row],[City GDP (LC Billion)]]*'GDP Deflator 1960-2011'!AZ53/'GDP Deflator 1960-2011'!BC53*1/Table37[[#This Row],[PPP Exchange rate with the US$ (2016)]] -> 0 | ER57: 210458 | ES57: =Table37[[#This Row],[Median Annual household income (LC)]]*'GDP Deflator 1960-2011'!AZ53/'GDP Deflator 1960-2011'!BA53*1/Table37[[#This Row],[PPP Exchange rate with the US$ (2016)]] -> 11260.26827 | ET57: =(20.5+27.5)/2 -> 24 | EU57: =IF(ISERROR(Table37[[#This Row],[Minimum Hourly Wage Rate (LC)]]*'CPI 1960-2011'!AY53/'CPI 1960-2011'!BC53*1/Table37[[#This Row],[PPP Exchange rate with the US$ (2016)]]), "n/a", Table37[[#This Row],[Minimum Hourly Wage Rate (LC)]]*'GDP Deflator 1960-2011'!AZ53/'GDP Deflator 1960-2011'!BD53*1/Table37[[#This Row],[PPP Exchange rate with the US$ (2016)]]) -> 1.034387319 | EV57: 17.2 | EX57: 142.3447452 | EY57: 20.69024951 | EZ57: 0.161389587 | FA57: 0.7166225502 | FC57: 0 | FD57: 0 | FE57: 0 | FF57: 11.42502697 | FG57: =IFERROR(Table37[[#This Row],[Operating Costs US$ - Bus]]/Table37[[#This Row],[Fare revenue US$- Bus]], "") ->  | FH57: =IFERROR(Table37[[#This Row],[Operating Costs US$ - Metro]]/Table37[[#This Row],[Fare revenue US$- Metro]], "") ->  | FI57: =IFERROR(Table37[[#This Row],[Operating Costs US$- LRT]]/Table37[[#This Row],[Fare revenue US$- LRT]], "") ->  | FJ57: =IFERROR(Table37[[#This Row],[Operating Costs US$- Tram]]/Table37[[#This Row],[Fare revenue US$- Tram]], "") ->  | FK57: =IFERROR(Table37[[#This Row],[Operating Costs US$ - Trolley Bus]]/Table37[[#This Row],[Fare revenue US$- Trolley Buses]], "") ->  | FL57: =IFERROR((AVERAGEIF(Table37[[#This Row],[Fares for 10 km of journey (2007 US$ PPP) - Bus]:[Fares for 10 km of journey (2007 US$ PPP) - Trolley Bus]], "<>0")*40*12)/EO57, "") ->  | FM57: =IFERROR((AVERAGEIF(Table37[[#This Row],[Fares for 10 km of journey (2007 US$ PPP) - Regional/Commuter Rail]:[Fares for 10 km of journey (2007 US$ PPP) - BRT]], "<>0")*40*12)/EO57, "") ->  | FN57: =IFERROR(2*(AVERAGEIF(Table37[[#This Row],[Fares for avg. length of journey (2007 US$ PPP) - Metro]:[Fares for avg. length of journey (2007 US$ PPP) - BRT]], "<>0"))/(Table37[[#This Row],[Minimum Hourly Wage rate (PPP $ 2007)]]*8), "") -> 0.06634362075 | FP57: 6.1 | FQ57: 20 | FR57: =SUM(AP57:AQ57)+Table37[[#This Row],[Length of mass transit (km) - BRT]] -> 29.2 | FS57: 0.09675 | FT57: 3313.356164 | FU57: 0.01684405883 | FV57: 0.06790697674 | FW57: 2.55627907 | FX57: 615 | FY57: 197.4044683 | GA57: 5.390386705 | GB57: 0 | GC57: 0 | GD57: 0 | GE57: 16.01708954 | GF57: 0.355 | GG57: 0 | GH57: =Table37[[#This Row],[Fares for 10 km of journey (2007 US$ PPP) - Bus]]/10*Table37[[#This Row],[Average trip length by car (km)]] -> 0.2449930886 | GI57: =Table37[[#This Row],[Fares for 10 km of journey (2007 US$ PPP) - Regional/Commuter Rail]]/10*Table37[[#This Row],[Average trip length by car (km)]] -> 0 | GJ57: =Table37[[#This Row],[Fares for 10 km of journey (2007 US$ PPP) - Metro]]/10*Table37[[#This Row],[Average trip length by car (km)]] -> 0 | GK57: =Table37[[#This Row],[Fares for 10 km of journey (2007 US$ PPP) - LRT]]/10*Table37[[#This Row],[Average trip length by car (km)]] -> 0 | GL57: =Table37[[#This Row],[Fares for 10 km of journey (2007 US$ PPP) - Tram]]/10*Table37[[#This Row],[Average trip length by car (km)]] -> 0 | GM57: =Table37[[#This Row],[Fares for 10 km of journey (2007 US$ PPP) - BRT]]/10*Table37[[#This Row],[Average trip length by car (km)]] -> 0.2745 | GN57: =Table37[[#This Row],[Fares for 10 km of journey (2007 US$ PPP) - Trolley Bus]]/10*Table37[[#This Row],[Average trip length by car (km)]] -> 0
B58: Surat | C58: India | D58: SAR | E58: 4462002 | F58: 2433835 | G58: 4585367 | H58: 2811614 | I58: 212.52 | J58: 112.28 | K58: 1810.075 | L58: 1810.075 | M58: =E58/I58 -> 20995.68041 | O58: 819415 | P58: 95812 | Q58: 915227 | R58: 982340 | Z58: 0 | AA58: 5.3 | AB58: 16 | AF58: 0 | AG58: 0 | AH58: 0 | AI58: 0.0135 | AJ58: 0 | AK58: 0 | AL58: 0 | AM58: 1800 | AP58: 0 | AQ58: 0 | AR58: 0 | AS58: 10 | AT58: 0 | AV58: 0 | AW58: 0 | AX58: 0 | AY58: 0 | AZ58: 18 | BC58: 64 | BF58: 0 | BH58: 0 | BI58: 0 | BJ58: 0 | BK58: 0 | BL58: 47843 | BN58: 0 | BO58: 0 | BP58: 0 | BQ58: 0 | BR58: 0 | BS58: 0 | BT58: 0 | BU58: 0 | BV58: 0 | BW58: 0 | BX58: 0 | BY58: 0.22 | BZ58: 0 | CC58: 0 | CD58: 0 | CE58: 0 | CF58: 0 | CG58: 0 | CJ58: 0 | CK58: 0 | CL58: 0 | CN58: 0 | CQ58: 0 | CR58: 0 | CS58: 0 | CT58: 0 | CV58: 0 | CW58: 0 | CX58: 0 | CY58: 0 | DB58: 0 | DC58: 0 | DD58: 0 | DF58: 0 | DI58: 0 | DJ58: 0 | DK58: 0 | DL58: 0 | DO58: 0 | DP58: 0 | DQ58: 0 | DR58: 0 | DS58: 0 | DW58: 65.88 | DX58: 71.75 | DY58: 58.35 | DZ58: 0.998 | EB58: 0.88 | ED58: =252/E58*100000 -> 5.647689087 | EI58: 97 | EL58: Euro 4 | EO58: =Table37[[#This Row],[City Per Capita GDP (LC)]]*('GDP Deflator 1960-2011'!AZ54/'GDP Deflator 1960-2011'!BB54)*1/Table37[[#This Row],[PPP Exchange rate with the US$ (2016)]] -> 0 | EQ58: =Table37[[#This Row],[City GDP (LC Billion)]]*'GDP Deflator 1960-2011'!AZ54/'GDP Deflator 1960-2011'!BC54*1/Table37[[#This Row],[PPP Exchange rate with the US$ (2016)]] -> 0 | ER58: 431201 | ES58: =Table37[[#This Row],[Median Annual household income (LC)]]*'GDP Deflator 1960-2011'!AZ54/'GDP Deflator 1960-2011'!BA54*1/Table37[[#This Row],[PPP Exchange rate with the US$ (2016)]] -> 23070.82143 | ET58: =(20.5+27.5)/2 -> 24 | EU58: =IF(ISERROR(Table37[[#This Row],[Minimum Hourly Wage Rate (LC)]]*'CPI 1960-2011'!AY54/'CPI 1960-2011'!BC54*1/Table37[[#This Row],[PPP Exchange rate with the US$ (2016)]]), "n/a", Table37[[#This Row],[Minimum Hourly Wage Rate (LC)]]*'GDP Deflator 1960-2011'!AZ54/'GDP Deflator 1960-2011'!BD54*1/Table37[[#This Row],[PPP Exchange rate with the US$ (2016)]]) -> 1.034387319 | EV58: 17.2 | EX58: 178.7021628 | EY58: 20.89516499 | EZ58: 0.01395744332 | FA58: 0.8341460187 | FB58: 307.5125 | FC58: 1800 | FD58: 392.5530934 | FE58: 8.469791078 | FF58: 0 | FG58: =IFERROR(Table37[[#This Row],[Operating Costs US$ - Bus]]/Table37[[#This Row],[Fare revenue US$- Bus]], "") ->  | FH58: =IFERROR(Table37[[#This Row],[Operating Costs US$ - Metro]]/Table37[[#This Row],[Fare revenue US$- Metro]], "") ->  | FI58: =IFERROR(Table37[[#This Row],[Operating Costs US$- LRT]]/Table37[[#This Row],[Fare revenue US$- LRT]], "") ->  | FJ58: =IFERROR(Table37[[#This Row],[Operating Costs US$- Tram]]/Table37[[#This Row],[Fare revenue US$- Tram]], "") ->  | FK58: =IFERROR(Table37[[#This Row],[Operating Costs US$ - Trolley Bus]]/Table37[[#This Row],[Fare revenue US$- Trolley Buses]], "") ->  | FL58: =IFERROR((AVERAGEIF(Table37[[#This Row],[Fares for 10 km of journey (2007 US$ PPP) - Bus]:[Fares for 10 km of journey (2007 US$ PPP) - Trolley Bus]], "<>0")*40*12)/EO58, "") ->  | FM58: =IFERROR((AVERAGEIF(Table37[[#This Row],[Fares for 10 km of journey (2007 US$ PPP) - Regional/Commuter Rail]:[Fares for 10 km of journey (2007 US$ PPP) - BRT]], "<>0")*40*12)/EO58, "") ->  | FN58: =IFERROR(2*(AVERAGEIF(Table37[[#This Row],[Fares for avg. length of journey (2007 US$ PPP) - Metro]:[Fares for avg. length of journey (2007 US$ PPP) - BRT]], "<>0"))/(Table37[[#This Row],[Minimum Hourly Wage rate (PPP $ 2007)]]*8), "") -> 0.02818093326 | FP58: 5.3 | FQ58: 16 | FR58: =SUM(AP58:AQ58)+Table37[[#This Row],[Length of mass transit (km) - BRT]] -> 10 | FS58: 0.0135 | FT58: 1350 | FU58: 0.0029441482 | FV58: 0.04705439488 | FW58: 3.131469979 | FX58: 252 | FY58: 56.47689087 | FZ58: 0.14 | GA58: 2.565303255 | GB58: 0 | GC58: 0 | GD58: 0 | GE58: 21.15425003 | GF58: 0 | GG58: 0 | GH58: =Table37[[#This Row],[Fares for 10 km of journey (2007 US$ PPP) - Bus]]/10*Table37[[#This Row],[Average trip length by car (km)]] -> 0 | GI58: =Table37[[#This Row],[Fares for 10 km of journey (2007 US$ PPP) - Regional/Commuter Rail]]/10*Table37[[#This Row],[Average trip length by car (km)]] -> 0 | GJ58: =Table37[[#This Row],[Fares for 10 km of journey (2007 US$ PPP) - Metro]]/10*Table37[[#This Row],[Average trip length by car (km)]] -> 0 | GK58: =Table37[[#This Row],[Fares for 10 km of journey (2007 US$ PPP) - LRT]]/10*Table37[[#This Row],[Average trip length by car (km)]] -> 0 | GL58: =Table37[[#This Row],[Fares for 10 km of journey (2007 US$ PPP) - Tram]]/10*Table37[[#This Row],[Average trip length by car (km)]] -> 0 | GM58: =Table37[[#This Row],[Fares for 10 km of journey (2007 US$ PPP) - BRT]]/10*Table37[[#This Row],[Average trip length by car (km)]] -> 0.1166 | GN58: =Table37[[#This Row],[Fares for 10 km of journey (2007 US$ PPP) - Trolley Bus]]/10*Table37[[#This Row],[Average trip length by car (km)]] -> 0
B59: Varanasi | C59: India | D59: SAR | E59: 1201815 | F59: 1091918 | G59: 1435113 | I59: 91.9 | J59: 91.9 | K59: 147.8 | L59: 147.8 | M59: 13077.42111 | O59: 402694 | P59: =29534+4294 -> 33828 | Q59: 436522 | R59: 482011 | Z59: 0 | AF59: 0 | AG59: 0 | AH59: 0 | AI59: 0 | AJ59: 0 | AK59: 0 | AL59: 0 | AM59: 1170 | AP59: 0 | AQ59: 0 | AR59: 0 | AS59: 0 | AT59: 0 | AV59: 0 | AW59: 0 | AX59: 0 | AY59: 0 | AZ59: 0 | BC59: 493 | BF59: 0 | BH59: 0 | BI59: 0 | BJ59: 0 | BK59: 0 | BL59: =1252+5730 -> 6982 | BN59: 0 | BO59: 0 | BP59: 0 | BQ59: 0 | BR59: 0 | BS59: 0 | BT59: 0 | BU59: 0 | BV59: 0 | BW59: 0 | BX59: 0 | BY59: 0 | BZ59: 0 | CC59: 0 | CD59: 0 | CE59: 0 | CF59: 0 | CG59: 0 | CJ59: 0 | CK59: 0 | CL59: 0 | CN59: 0 | CQ59: 0 | CR59: 0 | CS59: 0 | CT59: 0 | CV59: 0 | CW59: 0 | CX59: 0 | CY59: 0 | DB59: 0 | DC59: 0 | DD59: 0 | DF59: 0 | DI59: 0 | DJ59: 0 | DK59: 0 | DL59: 0 | DO59: 0 | DP59: 0 | DQ59: 0 | DR59: 0 | DS59: 0 | DW59: 67.08 | DX59: 72.97 | DY59: 54.42 | DZ59: 0.116 | EB59: 0.82 | ED59: =273/E59*100000 -> 22.71564259 | EI59: 138 | EL59: Euro 3 | EO59: =Table37[[#This Row],[City Per Capita GDP (LC)]]*('GDP Deflator 1960-2011'!AZ55/'GDP Deflator 1960-2011'!BB55)*1/Table37[[#This Row],[PPP Exchange rate with the US$ (2016)]] -> 0 | EQ59: =Table37[[#This Row],[City GDP (LC Billion)]]*'GDP Deflator 1960-2011'!AZ55/'GDP Deflator 1960-2011'!BC55*1/Table37[[#This Row],[PPP Exchange rate with the US$ (2016)]] -> 0 | ES59: =Table37[[#This Row],[Median Annual household income (LC)]]*'GDP Deflator 1960-2011'!AZ55/'GDP Deflator 1960-2011'!AY55*1/Table37[[#This Row],[PPP Exchange rate with the US$ (2016)]] -> 0 | ET59: =(20.5+27.5)/2 -> 24 | EU59: =IF(ISERROR(Table37[[#This Row],[Minimum Hourly Wage Rate (LC)]]*'CPI 1960-2011'!AY55/'CPI 1960-2011'!BC55*1/Table37[[#This Row],[PPP Exchange rate with the US$ (2016)]]), "n/a", Table37[[#This Row],[Minimum Hourly Wage Rate (LC)]]*'GDP Deflator 1960-2011'!AZ55/'GDP Deflator 1960-2011'!BD55*1/Table37[[#This Row],[PPP Exchange rate with the US$ (2016)]]) -> 1.034387319 | EV59: 17.2 | EX59: 280.6009004 | EY59: 23.571663 | EZ59: 0.3435269557 | FA59: 0.8354456641 | FB59: 208.0252137 | FC59: 1170 | FD59: 815.2668117 | FE59: 12.7312296 | FF59: 0 | FG59: =IFERROR(Table37[[#This Row],[Operating Costs US$ - Bus]]/Table37[[#This Row],[Fare revenue US$- Bus]], "") ->  | FH59: =IFERROR(Table37[[#This Row],[Operating Costs US$ - Metro]]/Table37[[#This Row],[Fare revenue US$- Metro]], "") ->  | FI59: =IFERROR(Table37[[#This Row],[Operating Costs US$- LRT]]/Table37[[#This Row],[Fare revenue US$- LRT]], "") ->  | FJ59: =IFERROR(Table37[[#This Row],[Operating Costs US$- Tram]]/Table37[[#This Row],[Fare revenue US$- Tram]], "") ->  | FK59: =IFERROR(Table37[[#This Row],[Operating Costs US$ - Trolley Bus]]/Table37[[#This Row],[Fare revenue US$- Trolley Buses]], "") ->  | FL59: =IFERROR((AVERAGEIF(Table37[[#This Row],[Fares for 10 km of journey (2007 US$ PPP) - Bus]:[Fares for 10 km of journey (2007 US$ PPP) - Trolley Bus]], "<>0")*40*12)/EO59, "") ->  | FM59: =IFERROR((AVERAGEIF(Table37[[#This Row],[Fares for 10 km of journey (2007 US$ PPP) - Regional/Commuter Rail]:[Fares for 10 km of journey (2007 US$ PPP) - BRT]], "<>0")*40*12)/EO59, "") ->  | FN59: =IFERROR(2*(AVERAGEIF(Table37[[#This Row],[Fares for avg. length of journey (2007 US$ PPP) - Metro]:[Fares for avg. length of journey (2007 US$ PPP) - BRT]], "<>0"))/(Table37[[#This Row],[Minimum Hourly Wage rate (PPP $ 2007)]]*8), "") ->  | FP59: 0 | FQ59: 0 | FR59: =SUM(AP59:AQ59)+Table37[[#This Row],[Length of mass transit (km) - BRT]] -> 0 | FS59: 0 | FU59: 0 | FV59: 0 | FW59: 4.207834603 | FX59: 273 | FY59: 227.1564259 | FZ59: 0.2333333333 | GA59: 5.663771159 | GB59: 0 | GC59: 0 | GD59: 0 | GE59: 96.15967523 | GF59: 0 | GG59: 0 | GH59: =Table37[[#This Row],[Fares for 10 km of journey (2007 US$ PPP) - Bus]]/10*Table37[[#This Row],[Average trip length by car (km)]] -> 0 | GI59: =Table37[[#This Row],[Fares for 10 km of journey (2007 US$ PPP) - Regional/Commuter Rail]]/10*Table37[[#This Row],[Average trip length by car (km)]] -> 0 | GJ59: =Table37[[#This Row],[Fares for 10 km of journey (2007 US$ PPP) - Metro]]/10*Table37[[#This Row],[Average trip length by car (km)]] -> 0 | GK59: =Table37[[#This Row],[Fares for 10 km of journey (2007 US$ PPP) - LRT]]/10*Table37[[#This Row],[Average trip length by car (km)]] -> 0 | GL59: =Table37[[#This Row],[Fares for 10 km of journey (2007 US$ PPP) - Tram]]/10*Table37[[#This Row],[Average trip length by car (km)]] -> 0 | GM59: =Table37[[#This Row],[Fares for 10 km of journey (2007 US$ PPP) - BRT]]/10*Table37[[#This Row],[Average trip length by car (km)]] -> 0 | GN59: =Table37[[#This Row],[Fares for 10 km of journey (2007 US$ PPP) - Trolley Bus]]/10*Table37[[#This Row],[Average trip length by car (km)]] -> 0
B60: Jakarta | C60: Indonesia | D60: EAP | E60: 9607787 | F60: 8389443 | G60: 31689592 | H60: 27018545 | I60: 662.33 | K60: 6682.8 | M60: =E60/I60 -> 14506.04231 | N60: 4590000 | Q60: 0 | R60: 12000 | Z60: 0 | AA60: 9.2 | AB60: 34 | AG60: 0 | AH60: 0 | AI60: 0.37 | AJ60: 0 | AK60: 0.33 | AL60: 0.33 | AO60: 30 | AQ60: 0 | AR60: 0 | AS60: 206.75 | AT60: 0 | AU60: 23 | AW60: 0 | AX60: 0 | AY60: 0 | AZ60: 240 | BD60: 570 | BH60: 0 | BI60: 0 | BJ60: 670 | BK60: 0 | BL60: 8000 | BP60: 0 | BQ60: 0 | BR60: 0.3 | BS60: 0 | BT60: 0 | BU60: 0 | BV60: 0 | BW60: 0 | BX60: 0 | BY60: 0.27 | BZ60: 0 | CD60: 0 | CE60: 0 | CG60: 0 | CK60: 0 | CL60: 0 | CM60: 21.35 | CN60: 0 | CR60: 0 | CT60: 0 | CW60: 0 | CX60: 0 | CY60: 0 | DC60: 0 | DD60: 0 | DE60: 83.06281911 | DF60: 0 | DJ60: 0 | DL60: 0 | DP60: 0 | DQ60: 0 | DS60: 0 | DU60: 0.59 | DV60: 1.99 | DY60: 5150 | EB60: 0.39 | EF60: 22.705 | EH60: 250 | EI60: 43 | EJ60: 43.8 | EL60: Euro 2 | EO60: =Table37[[#This Row],[City Per Capita GDP (LC)]]*('GDP Deflator 1960-2011'!AZ56/'GDP Deflator 1960-2011'!BB56)*1/Table37[[#This Row],[PPP Exchange rate with the US$ (2016)]] -> 0 | ES60: =Table37[[#This Row],[Median Annual household income (LC)]]*'GDP Deflator 1960-2011'!AZ56/'GDP Deflator 1960-2011'!AY56*1/Table37[[#This Row],[PPP Exchange rate with the US$ (2016)]] -> 0 | ET60: =1529150/(20*8) -> 9557.1875 | EU60: =IF(ISERROR(Table37[[#This Row],[Minimum Hourly Wage Rate (LC)]]*'CPI 1960-2011'!AY56/'CPI 1960-2011'!BC56*1/Table37[[#This Row],[PPP Exchange rate with the US$ (2016)]]), "n/a", Table37[[#This Row],[Minimum Hourly Wage Rate (LC)]]*'GDP Deflator 1960-2011'!AZ56/'GDP Deflator 1960-2011'!BD56*1/Table37[[#This Row],[PPP Exchange rate with the US$ (2016)]]) -> 1.537697364 | EV60: 4146 | EX60: 0 | EY60: 0 | EZ60: 0.01798697819 | FA60: 0 | FC60: 0 | FD60: 0 | FE60: 0 | FF60: 0 | FG60: =IFERROR(Table37[[#This Row],[Operating Costs US$ - Bus]]/Table37[[#This Row],[Fare revenue US$- Bus]], "") ->  | FH60: =IFERROR(Table37[[#This Row],[Operating Costs US$ - Metro]]/Table37[[#This Row],[Fare revenue US$- Metro]], "") ->  | FI60: =IFERROR(Table37[[#This Row],[Operating Costs US$- LRT]]/Table37[[#This Row],[Fare revenue US$- LRT]], "") ->  | FJ60: =IFERROR(Table37[[#This Row],[Operating Costs US$- Tram]]/Table37[[#This Row],[Fare revenue US$- Tram]], "") ->  | FK60: =IFERROR(Table37[[#This Row],[Operating Costs US$ - Trolley Bus]]/Table37[[#This Row],[Fare revenue US$- Trolley Buses]], "") ->  | FL60: =IFERROR((AVERAGEIF(Table37[[#This Row],[Fares for 10 km of journey (2007 US$ PPP) - Bus]:[Fares for 10 km of journey (2007 US$ PPP) - Trolley Bus]], "<>0")*40*12)/EO60, "") ->  | FM60: =IFERROR((AVERAGEIF(Table37[[#This Row],[Fares for 10 km of journey (2007 US$ PPP) - Regional/Commuter Rail]:[Fares for 10 km of journey (2007 US$ PPP) - BRT]], "<>0")*40*12)/EO60, "") ->  | FN60: =IFERROR(2*(AVERAGEIF(Table37[[#This Row],[Fares for avg. length of journey (2007 US$ PPP) - Metro]:[Fares for avg. length of journey (2007 US$ PPP) - BRT]], "<>0"))/(Table37[[#This Row],[Minimum Hourly Wage rate (PPP $ 2007)]]*8), "") -> 0.04038505981 | FP60: 9.2 | FQ60: 34 | FR60: =SUM(AP60:AQ60)+Table37[[#This Row],[Length of mass transit (km) - BRT]] -> 206.75 | FS60: 0.37 | FT60: 1789.600967 | FU60: 0.01167575777 | FV60: 0.312155572 | FW60: 0.03623571332 | FX60: 0 | FY60: 0 | GA60: 0 | GB60: 1.382157271 | GC60: 0 | GD60: 7.88902552 | GE60: 1.356912389 | GF60: 0.59 | GG60: 1.99 | GH60: =Table37[[#This Row],[Fares for 10 km of journey (2007 US$ PPP) - Bus]]/10*Table37[[#This Row],[Average trip length by car (km)]] -> 0 | GI60: =Table37[[#This Row],[Fares for 10 km of journey (2007 US$ PPP) - Regional/Commuter Rail]]/10*Table37[[#This Row],[Average trip length by car (km)]] -> 0 | GJ60: =Table37[[#This Row],[Fares for 10 km of journey (2007 US$ PPP) - Metro]]/10*Table37[[#This Row],[Average trip length by car (km)]] -> 0 | GK60: =Table37[[#This Row],[Fares for 10 km of journey (2007 US$ PPP) - LRT]]/10*Table37[[#This Row],[Average trip length by car (km)]] -> 0 | GL60: =Table37[[#This Row],[Fares for 10 km of journey (2007 US$ PPP) - Tram]]/10*Table37[[#This Row],[Average trip length by car (km)]] -> 0 | GM60: =Table37[[#This Row],[Fares for 10 km of journey (2007 US$ PPP) - BRT]]/10*Table37[[#This Row],[Average trip length by car (km)]] -> 0.2484 | GN60: =Table37[[#This Row],[Fares for 10 km of journey (2007 US$ PPP) - Trolley Bus]]/10*Table37[[#This Row],[Average trip length by car (km)]] -> 0
B61: Surabaya | C61: Indonesia | D61: EAP | E61: 2784762 | G61: 6484026 | I61: 552 | K61: 2116.65 | M61: 5044.858696 | Q61: 0 | R61: =Q61+SUM(BA61:BE61)+BL61 -> 0 | Z61: 0 | AF61: 0 | AG61: 0 | AH61: 0 | AI61: 0 | AJ61: 0 | AK61: 0 | AL61: 0 | AP61: 0 | AQ61: 0 | AR61: 0 | AS61: 0 | AT61: 0 | AV61: 0 | AW61: 0 | AX61: 0 | AY61: 0 | AZ61: 0 | BF61: 0 | BH61: 0 | BI61: 0 | BJ61: 0 | BK61: 0 | BN61: 0 | BO61: 0 | BP61: 0 | BQ61: 0 | BR61: 0 | BS61: 0 | BT61: 0 | BU61: 0 | BV61: 0 | BW61: 0 | BX61: 0 | BY61: 0 | BZ61: 0 | CC61: 0 | CD61: 0 | CE61: 0 | CF61: 0 | CG61: 0 | CJ61: 0 | CK61: 0 | CL61: 0 | CN61: 0 | CQ61: 0 | CR61: 0 | CS61: 0 | CT61: 0 | CV61: 0 | CW61: 0 | CX61: 0 | CY61: 0 | DB61: 0 | DC61: 0 | DD61: 0 | DF61: 0 | DI61: 0 | DJ61: 0 | DK61: 0 | DL61: 0 | DO61: 0 | DP61: 0 | DQ61: 0 | DR61: 0 | DS61: 0 | DU61: 0.85 | DY61: 5650 | EB61: 0.435 | EH61: 120 | EI61: 69 | EL61: Euro 2 | EN61: =4034.8*9527.25 -> 38440548.3 | EO61: =Table37[[#This Row],[City Per Capita GDP (LC)]]*('GDP Deflator 1960-2011'!AZ57/'GDP Deflator 1960-2011'!BB57)*1/Table37[[#This Row],[PPP Exchange rate with the US$ (2016)]] -> 7247.701022 | EP61: =(EN61*E61/10^9) -> 107047.7782 | EQ61: =Table37[[#This Row],[City GDP (LC Billion)]]*'GDP Deflator 1960-2011'!AZ57/'GDP Deflator 1960-2011'!BB57*1/Table37[[#This Row],[PPP Exchange rate with the US$ (2016)]] -> 20.18312239 | ES61: =Table37[[#This Row],[Median Annual household income (LC)]]*'GDP Deflator 1960-2011'!AZ57/'GDP Deflator 1960-2011'!AY57*1/Table37[[#This Row],[PPP Exchange rate with the US$ (2016)]] -> 0 | ET61: East Java Provinces doesn't set a Minimum Wage | EU61: =IF(ISERROR(Table37[[#This Row],[Minimum Hourly Wage Rate (LC)]]*'CPI 1960-2011'!AY57/'CPI 1960-2011'!BC57*1/Table37[[#This Row],[PPP Exchange rate with the US$ (2016)]]), "n/a", Table37[[#This Row],[Minimum Hourly Wage Rate (LC)]]*'GDP Deflator 1960-2011'!AZ57/'GDP Deflator 1960-2011'!BD57*1/Table37[[#This Row],[PPP Exchange rate with the US$ (2016)]]) -> n/a | EV61: 4146 | EX61: 0 | EY61: 0 | EZ61: 0 | FC61: 0 | FD61: 0 | FE61: 0 | FG61: =IFERROR(Table37[[#This Row],[Operating Costs US$ - Bus]]/Table37[[#This Row],[Fare revenue US$- Bus]], "") ->  | FH61: =IFERROR(Table37[[#This Row],[Operating Costs US$ - Metro]]/Table37[[#This Row],[Fare revenue US$- Metro]], "") ->  | FI61: =IFERROR(Table37[[#This Row],[Operating Costs US$- LRT]]/Table37[[#This Row],[Fare revenue US$- LRT]], "") ->  | FJ61: =IFERROR(Table37[[#This Row],[Operating Costs US$- Tram]]/Table37[[#This Row],[Fare revenue US$- Tram]], "") ->  | FK61: =IFERROR(Table37[[#This Row],[Operating Costs US$ - Trolley Bus]]/Table37[[#This Row],[Fare revenue US$- Trolley Buses]], "") ->  | FL61: =IFERROR((AVERAGEIF(Table37[[#This Row],[Fares for 10 km of journey (2007 US$ PPP) - Bus]:[Fares for 10 km of journey (2007 US$ PPP) - Trolley Bus]], "<>0")*40*12)/EO61, "") ->  | FM61: =IFERROR((AVERAGEIF(Table37[[#This Row],[Fares for 10 km of journey (2007 US$ PPP) - Regional/Commuter Rail]:[Fares for 10 km of journey (2007 US$ PPP) - BRT]], "<>0")*40*12)/EO61, "") ->  | FN61: =IFERROR(2*(AVERAGEIF(Table37[[#This Row],[Fares for avg. length of journey (2007 US$ PPP) - Metro]:[Fares for avg. length of journey (2007 US$ PPP) - BRT]], "<>0"))/(Table37[[#This Row],[Minimum Hourly Wage rate (PPP $ 2007)]]*8), "") ->  | FO61: 0 | FP61: 0 | FQ61: 0 | FR61: =SUM(AP61:AQ61)+Table37[[#This Row],[Length of mass transit (km) - BRT]] -> 0 | FS61: 0 | FU61: 0 | FV61: 0 | FW61: 0.175 | FX61: 0 | FY61: 0 | GB61: 0 | GC61: 0 | GD61: 18.50702018 | GE61: 10.6415366 | GF61: 0.85 | GG61: 0 | GH61: =Table37[[#This Row],[Fares for 10 km of journey (2007 US$ PPP) - Bus]]/10*Table37[[#This Row],[Average trip length by car (km)]] -> 0 | GI61: =Table37[[#This Row],[Fares for 10 km of journey (2007 US$ PPP) - Regional/Commuter Rail]]/10*Table37[[#This Row],[Average trip length by car (km)]] -> 0 | GJ61: =Table37[[#This Row],[Fares for 10 km of journey (2007 US$ PPP) - Metro]]/10*Table37[[#This Row],[Average trip length by car (km)]] -> 0 | GK61: =Table37[[#This Row],[Fares for 10 km of journey (2007 US$ PPP) - LRT]]/10*Table37[[#This Row],[Average trip length by car (km)]] -> 0 | GL61: =Table37[[#This Row],[Fares for 10 km of journey (2007 US$ PPP) - Tram]]/10*Table37[[#This Row],[Average trip length by car (km)]] -> 0 | GM61: =Table37[[#This Row],[Fares for 10 km of journey (2007 US$ PPP) - BRT]]/10*Table37[[#This Row],[Average trip length by car (km)]] -> 0 | GN61: =Table37[[#This Row],[Fares for 10 km of journey (2007 US$ PPP) - Trolley Bus]]/10*Table37[[#This Row],[Average trip length by car (km)]] -> 0
